Workbook

Sheet INTRO
C1: Cette version sera utilisée par les pays endémiques à la Loase
B2: Formulaire de demande commune de médicaments pour CP v.3.1 (L)
B4: Dans le cadre des efforts mondiaux entrepris pour accélérer l'expansion de la chimioprévention (CP) pour l'élimination de la filariose lymphatique et la lutte contre la schistosomiase et les géohelminthiases, l'Organisation mondiale de la Santé (OMS) facilite l'approvisionnement en albendazole, comprimés de 400 mg (GSK), pour les programmes nationaux d'élimination de la filariose lymphatique et programmes nationaux de lutte contre les géohelminthiases; en diethylcarbamazine, comprimés de 100 mg (Eisai), pour les programmes nationaux d'élimination de la filariose lymphatique; en mebendazole, comprimés de 500 mg (J&J) pour les programmes nationaux de lutte contre les géohelminthiases et en praziquantel, comprimés de 600 mg (Merck KGaA), destinés aux enfants d'âge scolaire, pour les programmes nationaux de lutte contre la schistosomiase. L'OMS contribue également à l'approvisionnement en ivermectine, comprimés de 3 mg (Merck), pour les programmes de donation pour l'onchocercose et la filariose lymphatique. Cet outil Excel est concu pour aider les pays à quantifier le nombre de comprimés nécessaires, selon le traitement de chimioprévention requis, pour atteindre les objectifs de couverture de traitement de populations et districts pour l'année de la demande de médicaments. Le résultat de cet outil est une demande commune de médicaments pour la chimioprévention des maladies tropicales négligées, qui peut être imprimée, signée et soumise à l'OMS pour la demande de ces médicaments.
B6: Structure de l'application (feuilles de travail) :
B8: INTRO | C8: Cette feuille contient des instructions pour compléter le formulaire de demande de médicaments pour la chimioprévention et des informations sur le statut de la chimioprévention pour les maladies d'endémie du pays.
B9: COUNTRY_INFO | C9: Cette feuille contient des informations sur la structure administrative du pays, la population par groupe d'âge, le statut d'endémicité pour chaque maladie, la population devant être traitée par chimioprévention et les interventions prévues.
B10: DEC, ALB_MBD, PZQ et IVM | C10: Ces feuilles contiennent des informations sur l'endémicité des districts ciblés pour le traitement aux médicaments spécifiques à la chimioprévention, les plans de traitement, et le nombre de comprimés requis et demandés.
B11: SUMMARY | C11: Cette feuille inclut un résumé du nombre de comprimés demandés, des informations concernant le stock et les dates de soumission de la demande de médicaments. Avant de générer le rapport (run macros), veuillez sélectionner le médicament pour lequel le rapport est nécessaire. Veuillez suivre la même règle pour voir le nombre de personnes à traiter pour les maladies spécifiques. Cette feuille doit être imprimée et soumise en tant que "Formulaire de demande commune de médicaments pour chimioprévention" (voir les instructions pour la soumission du formulaire sous la feuille SUMMARY).
B13: Instructions pour la saisie des données
B15: La plupart des cellules des feuilles de travail mentionnées ci-dessus contiennent des formules calculées automatiquement en fonction du protocole de traitement recommandé par l'OMS pour chaque maladie. Voir : http://www.who.int/neglected_diseases/preventive_chemotherapy/pct_manual/en/index.html
B17: Veuillez entrer vos données dans les cellules en fonction de leur code de couleur :
C19: Blanc - la cellule n'est pas protégée. Veuillez entrer la valeur de l'indicateur demandé.
C21: Jaune - la cellule est protégée et inclut le nom de l'indicateur. Aucune entrée de données requise.
C23: Orange - la cellule n'est pas protégée et contient un menu déroulant. Veuillez sélectionner la valeur dans le menu déroulant.
C26: Vert - la cellule n'est pas protégée et contient des formules. Veuillez changer la valeur indiquée uniquement si vos données sont différentes de celles calculées automatiquement.
C29: Bleu - la cellule est protégée et contient des formules. Aucune entrée de données requise.
B31: Données pays
B33: PAYS | E33: DRC
B35: Année de la demande de médicaments | E35: 2020
B37: Le pays est-il endémique à la filariose lymphatique (FL) ? | E37: Endémique
B39: Le pays est-il endémique à l'onchocercose (ONCHO) ? | E39: Endémique
B41: Le pays est-il endémique aux géohelminthiases (STH) ? | E41: Endémique
B43: Le pays est-il endémique à la schistosomiase (SCH) ? | E43: Endémique
B45: Combien d'unités administratives compte le pays ? | E45: 519
B47: Si les données démographiques par groupe d'âge ne sont pas disponibles au second niveau administratif, veuillez entrer la proportion (%) de population, par groupe d'âge, du pays. Si les données sont disponibles, veuillez laisser les cellules vierges.
B48: 1-4 ans | C48: Enfants d'âge pré-scolaire (EAPréS) | E48: 0.17
B49: 5-14 ans | C49: Enfants d'âge scolaire (EAS) | E49: 0.35
B50: 15 ans et plus | C50: Adultes | E50: 0.46

Sheet COUNTRY_INFO
A1: INFORMATIONS PAYS
A2: Struture administrative, population par groupe d'âge, statut d'endémicité et interventions planifiées
A4: TOTAL | D4: =SUM(D$9:D$1000) -> 105869108 | E4: =SUM(E$9:E$1000) -> 17997738 | F4: =SUM(F$9:F$1000) -> 37054200 | G4: =SUM(G$9:G$1000) -> 48699790 | M4: =SUM(M$9:M$1000) -> 47432624 | N4: =SUM(N$9:N$1000) -> 50806499 | O4: =SUM(O$9:O$1000) -> 30532994 | P4: =SUM(P$9:P$1000) -> 15978768.68
A6: Structure administrative du pays | D6: Population | H6: Endémicité | M6: Population nécessitant la CP | Q6: Nombre de tournées de traitement prévues pour l'année | U6: Enquêtes épidémiologiques planifiées pour l’année | AB6: Treatment SCH
A7: Pays | B7: Région/Département | C7: District | D7: Total | E7: EAPréS | F7: EAS | G7: Adultes | H7: FL | I7: Oncho | J7: STH | K7: SCH | L7: Loa | M7: FL | N7: Oncho | O7: STH | P7: SCH | Q7: FL | R7: Oncho | S7: STH | T7: SCH | U7: FL | V7: Oncho | W7: STH | X7: SCH | Y7: ID_ID | Z7: IU_Name | AA7: x | AB7: 2018 | AC7: 2019 | AD7: 2018 + 2019 | AE7: x | AF7: x | AG7: x
A9: =IF(INTRO!$E$33<>0,INTRO!$E$33, " ") -> DRC | B9: BAS UELE | C9: Aketi | D9: 151299 | E9: =IF(INTRO!$E$48="","",ROUND($D9*INTRO!$E$48,0)) -> 25721 | F9: =IF(INTRO!$E$49="","",ROUND($D9*INTRO!$E$49,0)) -> 52955 | G9: =IF(INTRO!$E$50="","",ROUND($D9*INTRO!$E$50,0)) -> 69598 | H9: 1 | I9: 1 | J9: 1 | K9: 1 | L9: 0 | M9: =IF(INTRO!$E$37="Endémique",IF($H9>0,IF($H9=4,"Inconnu",IF($H9=99,"Interrompu",$D9)),0),"Non requis") -> 151299 | N9: =IF(INTRO!$E$39="Endémique", IF($I9>0, IF($I9=4,"Inconnu",IF($I9=99,"Interrompu",$D9)), 0),"Non requis") -> 151299 | O9: =IF(INTRO!$E$41="Endémique", IF(AND($J9>1,$J9<5), IF($J9=4, "Inconnu", E9+F9), 0),"Non requis") -> 0 | P9: =IF(INTRO!$E$43="Endémique", IF(AND($K9>0,$K9<5), IF($K9=4,"Inconnu", IF($K9=1, $F9*0.33, IF($K9=2, $F9*0.5+$G9*0.2, SUM(F9:G9)))), 0),"Non requis") -> 17475.15 | Q9: 1 | R9: 1 | S9: 0 | T9: 1 | Y9: 14216 | Z9: Aketi | AA9: =Z9=C9 -> TRUE | AB9: 0 | AC9: 0 | AD9: =AB9+AC9 -> 0
A10: =IF(INTRO!$E$33<>0,INTRO!$E$33, " ") -> DRC | B10: BAS UELE | C10: Ango | D10: 188187 | E10: =IF(INTRO!$E$48="","",ROUND($D10*INTRO!$E$48,0)) -> 31992 | F10: =IF(INTRO!$E$49="","",ROUND($D10*INTRO!$E$49,0)) -> 65865 | G10: =IF(INTRO!$E$50="","",ROUND($D10*INTRO!$E$50,0)) -> 86566 | H10: 0 | I10: 1 | J10: 3 | K10: 1 | L10: 0 | M10: =IF(INTRO!$E$37="Endémique",IF($H10>0,IF($H10=4,"Inconnu",IF($H10=99,"Interrompu",$D10)),0),"Non requis") -> 0 | N10: =IF(INTRO!$E$39="Endémique", IF($I10>0, IF($I10=4,"Inconnu",IF($I10=99,"Interrompu",$D10)), 0),"Non requis") -> 188187 | O10: =IF(INTRO!$E$41="Endémique", IF(AND($J10>1,$J10<5), IF($J10=4, "Inconnu", E10+F10), 0),"Non requis") -> 97857 | P10: =IF(INTRO!$E$43="Endémique", IF(AND($K10>0,$K10<5), IF($K10=4,"Inconnu", IF($K10=1, $F10*0.33, IF($K10=2, $F10*0.5+$G10*0.2, SUM(F10:G10)))), 0),"Non requis") -> 21735.45 | Q10: 0 | R10: 1 | S10: 1 | T10: 1 | Y10: 14217 | Z10: Ango | AA10: =Z10=C10 -> TRUE | AB10: 0 | AC10: 0 | AD10: =AB10+AC10 -> 0
A11: =IF(INTRO!$E$33<>0,INTRO!$E$33, " ") -> DRC | B11: BAS UELE | C11: Bili | D11: 79908 | E11: =IF(INTRO!$E$48="","",ROUND($D11*INTRO!$E$48,0)) -> 13584 | F11: =IF(INTRO!$E$49="","",ROUND($D11*INTRO!$E$49,0)) -> 27968 | G11: =IF(INTRO!$E$50="","",ROUND($D11*INTRO!$E$50,0)) -> 36758 | H11: 0 | I11: 1 | J11: 2 | K11: 1 | L11: 0 | M11: =IF(INTRO!$E$37="Endémique",IF($H11>0,IF($H11=4,"Inconnu",IF($H11=99,"Interrompu",$D11)),0),"Non requis") -> 0 | N11: =IF(INTRO!$E$39="Endémique", IF($I11>0, IF($I11=4,"Inconnu",IF($I11=99,"Interrompu",$D11)), 0),"Non requis") -> 79908 | O11: =IF(INTRO!$E$41="Endémique", IF(AND($J11>1,$J11<5), IF($J11=4, "Inconnu", E11+F11), 0),"Non requis") -> 41552 | P11: =IF(INTRO!$E$43="Endémique", IF(AND($K11>0,$K11<5), IF($K11=4,"Inconnu", IF($K11=1, $F11*0.33, IF($K11=2, $F11*0.5+$G11*0.2, SUM(F11:G11)))), 0),"Non requis") -> 9229.44 | Q11: 0 | R11: 1 | S11: 1 | T11: 1 | Y11: 13903 | Z11: Bili (Bas-Ueles) | AA11: FALSE | AB11: 0 | AC11: 0 | AD11: 0
A12: =IF(INTRO!$E$33<>0,INTRO!$E$33, " ") -> DRC | B12: BAS UELE | C12: Bondo | D12: 157275 | E12: =IF(INTRO!$E$48="","",ROUND($D12*INTRO!$E$48,0)) -> 26737 | F12: =IF(INTRO!$E$49="","",ROUND($D12*INTRO!$E$49,0)) -> 55046 | G12: =IF(INTRO!$E$50="","",ROUND($D12*INTRO!$E$50,0)) -> 72347 | H12: 1 | I12: 1 | J12: 2 | K12: 2 | L12: 0 | M12: =IF(INTRO!$E$37="Endémique",IF($H12>0,IF($H12=4,"Inconnu",IF($H12=99,"Interrompu",$D12)),0),"Non requis") -> 157275 | N12: =IF(INTRO!$E$39="Endémique", IF($I12>0, IF($I12=4,"Inconnu",IF($I12=99,"Interrompu",$D12)), 0),"Non requis") -> 157275 | O12: =IF(INTRO!$E$41="Endémique", IF(AND($J12>1,$J12<5), IF($J12=4, "Inconnu", E12+F12), 0),"Non requis") -> 81783 | P12: =IF(INTRO!$E$43="Endémique", IF(AND($K12>0,$K12<5), IF($K12=4,"Inconnu", IF($K12=1, $F12*0.33, IF($K12=2, $F12*0.5+$G12*0.2, SUM(F12:G12)))), 0),"Non requis") -> 41992.4 | Q12: 1 | R12: 1 | S12: 1 | T12: 0 | Y12: 14232 | Z12: Bondo | AA12: TRUE | AB12: 0 | AC12: 1 | AD12: 1
A13: =IF(INTRO!$E$33<>0,INTRO!$E$33, " ") -> DRC | B13: BAS UELE | C13: Buta | D13: 227069 | E13: =IF(INTRO!$E$48="","",ROUND($D13*INTRO!$E$48,0)) -> 38602 | F13: =IF(INTRO!$E$49="","",ROUND($D13*INTRO!$E$49,0)) -> 79474 | G13: =IF(INTRO!$E$50="","",ROUND($D13*INTRO!$E$50,0)) -> 104452 | H13: 1 | I13: 1 | J13: 2 | K13: 3 | L13: 0 | M13: =IF(INTRO!$E$37="Endémique",IF($H13>0,IF($H13=4,"Inconnu",IF($H13=99,"Interrompu",$D13)),0),"Non requis") -> 227069 | N13: =IF(INTRO!$E$39="Endémique", IF($I13>0, IF($I13=4,"Inconnu",IF($I13=99,"Interrompu",$D13)), 0),"Non requis") -> 227069 | O13: =IF(INTRO!$E$41="Endémique", IF(AND($J13>1,$J13<5), IF($J13=4, "Inconnu", E13+F13), 0),"Non requis") -> 118076 | P13: =IF(INTRO!$E$43="Endémique", IF(AND($K13>0,$K13<5), IF($K13=4,"Inconnu", IF($K13=1, $F13*0.33, IF($K13=2, $F13*0.5+$G13*0.2, SUM(F13:G13)))), 0),"Non requis") -> 183926 | Q13: 1 | R13: 1 | S13: 1 | T13: 1 | Y13: 14234 | Z13: Buta | AA13: TRUE | AB13: 0 | AC13: 1 | AD13: 1
A14: =IF(INTRO!$E$33<>0,INTRO!$E$33, " ") -> DRC | B14: BAS UELE | C14: Dingela | D14: 146954 | E14: =IF(INTRO!$E$48="","",ROUND($D14*INTRO!$E$48,0)) -> 24982 | F14: =IF(INTRO!$E$49="","",ROUND($D14*INTRO!$E$49,0)) -> 51434 | G14: =IF(INTRO!$E$50="","",ROUND($D14*INTRO!$E$50,0)) -> 67599 | H14: 0 | I14: 1 | J14: 3 | K14: 1 | L14: 0 | M14: =IF(INTRO!$E$37="Endémique",IF($H14>0,IF($H14=4,"Inconnu",IF($H14=99,"Interrompu",$D14)),0),"Non requis") -> 0 | N14: =IF(INTRO!$E$39="Endémique", IF($I14>0, IF($I14=4,"Inconnu",IF($I14=99,"Interrompu",$D14)), 0),"Non requis") -> 146954 | O14: =IF(INTRO!$E$41="Endémique", IF(AND($J14>1,$J14<5), IF($J14=4, "Inconnu", E14+F14), 0),"Non requis") -> 76416 | P14: =IF(INTRO!$E$43="Endémique", IF(AND($K14>0,$K14<5), IF($K14=4,"Inconnu", IF($K14=1, $F14*0.33, IF($K14=2, $F14*0.5+$G14*0.2, SUM(F14:G14)))), 0),"Non requis") -> 16973.22 | Q14: 0 | R14: 1 | S14: 1 | T14: 1 | Y14: 14241 | Z14: Dingela | AA14: TRUE | AB14: 0 | AC14: 0 | AD14: 0
A15: =IF(INTRO!$E$33<>0,INTRO!$E$33, " ") -> DRC | B15: BAS UELE | C15: Likati | D15: 88098 | E15: =IF(INTRO!$E$48="","",ROUND($D15*INTRO!$E$48,0)) -> 14977 | F15: =IF(INTRO!$E$49="","",ROUND($D15*INTRO!$E$49,0)) -> 30834 | G15: =IF(INTRO!$E$50="","",ROUND($D15*INTRO!$E$50,0)) -> 40525 | H15: 1 | I15: 1 | J15: 1 | K15: 3 | L15: 0 | M15: =IF(INTRO!$E$37="Endémique",IF($H15>0,IF($H15=4,"Inconnu",IF($H15=99,"Interrompu",$D15)),0),"Non requis") -> 88098 | N15: =IF(INTRO!$E$39="Endémique", IF($I15>0, IF($I15=4,"Inconnu",IF($I15=99,"Interrompu",$D15)), 0),"Non requis") -> 88098 | O15: =IF(INTRO!$E$41="Endémique", IF(AND($J15>1,$J15<5), IF($J15=4, "Inconnu", E15+F15), 0),"Non requis") -> 0 | P15: =IF(INTRO!$E$43="Endémique", IF(AND($K15>0,$K15<5), IF($K15=4,"Inconnu", IF($K15=1, $F15*0.33, IF($K15=2, $F15*0.5+$G15*0.2, SUM(F15:G15)))), 0),"Non requis") -> 71359 | Q15: 1 | R15: 1 | S15: 0 | T15: 1 | Y15: 14252 | Z15: Likati | AA15: TRUE | AB15: 0 | AC15: 1 | AD15: 1
A16: =IF(INTRO!$E$33<>0,INTRO!$E$33, " ") -> DRC | B16: BAS UELE | C16: Monga | D16: 91971 | E16: =IF(INTRO!$E$48="","",ROUND($D16*INTRO!$E$48,0)) -> 15635 | F16: =IF(INTRO!$E$49="","",ROUND($D16*INTRO!$E$49,0)) -> 32190 | G16: =IF(INTRO!$E$50="","",ROUND($D16*INTRO!$E$50,0)) -> 42307 | H16: 1 | I16: 1 | J16: 2 | K16: 2 | L16: 0 | M16: =IF(INTRO!$E$37="Endémique",IF($H16>0,IF($H16=4,"Inconnu",IF($H16=99,"Interrompu",$D16)),0),"Non requis") -> 91971 | N16: =IF(INTRO!$E$39="Endémique", IF($I16>0, IF($I16=4,"Inconnu",IF($I16=99,"Interrompu",$D16)), 0),"Non requis") -> 91971 | O16: =IF(INTRO!$E$41="Endémique", IF(AND($J16>1,$J16<5), IF($J16=4, "Inconnu", E16+F16), 0),"Non requis") -> 47825 | P16: =IF(INTRO!$E$43="Endémique", IF(AND($K16>0,$K16<5), IF($K16=4,"Inconnu", IF($K16=1, $F16*0.33, IF($K16=2, $F16*0.5+$G16*0.2, SUM(F16:G16)))), 0),"Non requis") -> 24556.4 | Q16: 1 | R16: 1 | S16: 1 | T16: 0 | Y16: 14266 | Z16: Monga | AA16: TRUE | AB16: 0 | AC16: 1 | AD16: 1
A17: =IF(INTRO!$E$33<>0,INTRO!$E$33, " ") -> DRC | B17: BAS UELE | C17: Poko | D17: 145737 | E17: =IF(INTRO!$E$48="","",ROUND($D17*INTRO!$E$48,0)) -> 24775 | F17: =IF(INTRO!$E$49="","",ROUND($D17*INTRO!$E$49,0)) -> 51008 | G17: =IF(INTRO!$E$50="","",ROUND($D17*INTRO!$E$50,0)) -> 67039 | H17: 1 | I17: 1 | J17: 2 | K17: 2 | L17: 0 | M17: =IF(INTRO!$E$37="Endémique",IF($H17>0,IF($H17=4,"Inconnu",IF($H17=99,"Interrompu",$D17)),0),"Non requis") -> 145737 | N17: =IF(INTRO!$E$39="Endémique", IF($I17>0, IF($I17=4,"Inconnu",IF($I17=99,"Interrompu",$D17)), 0),"Non requis") -> 145737 | O17: =IF(INTRO!$E$41="Endémique", IF(AND($J17>1,$J17<5), IF($J17=4, "Inconnu", E17+F17), 0),"Non requis") -> 75783 | P17: =IF(INTRO!$E$43="Endémique", IF(AND($K17>0,$K17<5), IF($K17=4,"Inconnu", IF($K17=1, $F17*0.33, IF($K17=2, $F17*0.5+$G17*0.2, SUM(F17:G17)))), 0),"Non requis") -> 38911.8 | Q17: 1 | R17: 1 | S17: 1 | T17: 0 | Y17: 14276 | Z17: Poko | AA17: TRUE | AB17: 0 | AC17: 1 | AD17: 1
A18: =IF(INTRO!$E$33<>0,INTRO!$E$33, " ") -> DRC | B18: BAS UELE | C18: Titule | D18: 93961 | E18: =IF(INTRO!$E$48="","",ROUND($D18*INTRO!$E$48,0)) -> 15973 | F18: =IF(INTRO!$E$49="","",ROUND($D18*INTRO!$E$49,0)) -> 32886 | G18: =IF(INTRO!$E$50="","",ROUND($D18*INTRO!$E$50,0)) -> 43222 | H18: 0 | I18: 1 | J18: 3 | K18: 2 | L18: 0 | M18: =IF(INTRO!$E$37="Endémique",IF($H18>0,IF($H18=4,"Inconnu",IF($H18=99,"Interrompu",$D18)),0),"Non requis") -> 0 | N18: =IF(INTRO!$E$39="Endémique", IF($I18>0, IF($I18=4,"Inconnu",IF($I18=99,"Interrompu",$D18)), 0),"Non requis") -> 93961 | O18: =IF(INTRO!$E$41="Endémique", IF(AND($J18>1,$J18<5), IF($J18=4, "Inconnu", E18+F18), 0),"Non requis") -> 48859 | P18: =IF(INTRO!$E$43="Endémique", IF(AND($K18>0,$K18<5), IF($K18=4,"Inconnu", IF($K18=1, $F18*0.33, IF($K18=2, $F18*0.5+$G18*0.2, SUM(F18:G18)))), 0),"Non requis") -> 25087.4 | Q18: 0 | R18: 1 | S18: 1 | T18: 0 | Y18: 14282 | Z18: Titule | AA18: TRUE | AB18: 0 | AC18: 1 | AD18: 1
A19: =IF(INTRO!$E$33<>0,INTRO!$E$33, " ") -> DRC | B19: BAS UELE | C19: Viadana | D19: 127390 | E19: =IF(INTRO!$E$48="","",ROUND($D19*INTRO!$E$48,0)) -> 21656 | F19: =IF(INTRO!$E$49="","",ROUND($D19*INTRO!$E$49,0)) -> 44587 | G19: =IF(INTRO!$E$50="","",ROUND($D19*INTRO!$E$50,0)) -> 58599 | H19: 1 | I19: 1 | J19: 3 | K19: 1 | L19: 0 | M19: =IF(INTRO!$E$37="Endémique",IF($H19>0,IF($H19=4,"Inconnu",IF($H19=99,"Interrompu",$D19)),0),"Non requis") -> 127390 | N19: =IF(INTRO!$E$39="Endémique", IF($I19>0, IF($I19=4,"Inconnu",IF($I19=99,"Interrompu",$D19)), 0),"Non requis") -> 127390 | O19: =IF(INTRO!$E$41="Endémique", IF(AND($J19>1,$J19<5), IF($J19=4, "Inconnu", E19+F19), 0),"Non requis") -> 66243 | P19: =IF(INTRO!$E$43="Endémique", IF(AND($K19>0,$K19<5), IF($K19=4,"Inconnu", IF($K19=1, $F19*0.33, IF($K19=2, $F19*0.5+$G19*0.2, SUM(F19:G19)))), 0),"Non requis") -> 14713.71 | Q19: 1 | R19: 1 | S19: 1 | T19: 1 | Y19: 14285 | Z19: Viadana | AA19: TRUE | AB19: 0 | AC19: 0 | AD19: 0
A20: =IF(INTRO!$E$33<>0,INTRO!$E$33, " ") -> DRC | B20: EQUATEUR | C20: Basankusu | D20: 284797 | E20: =IF(INTRO!$E$48="","",ROUND($D20*INTRO!$E$48,0)) -> 48415 | F20: =IF(INTRO!$E$49="","",ROUND($D20*INTRO!$E$49,0)) -> 99679 | G20: =IF(INTRO!$E$50="","",ROUND($D20*INTRO!$E$50,0)) -> 131007 | H20: 1 | I20: 1 | J20: 3 | K20: 0 | L20: 0 | M20: =IF(INTRO!$E$37="Endémique",IF($H20>0,IF($H20=4,"Inconnu",IF($H20=99,"Interrompu",$D20)),0),"Non requis") -> 284797 | N20: =IF(INTRO!$E$39="Endémique", IF($I20>0, IF($I20=4,"Inconnu",IF($I20=99,"Interrompu",$D20)), 0),"Non requis") -> 284797 | O20: =IF(INTRO!$E$41="Endémique", IF(AND($J20>1,$J20<5), IF($J20=4, "Inconnu", E20+F20), 0),"Non requis") -> 148094 | P20: =IF(INTRO!$E$43="Endémique", IF(AND($K20>0,$K20<5), IF($K20=4,"Inconnu", IF($K20=1, $F20*0.33, IF($K20=2, $F20*0.5+$G20*0.2, SUM(F20:G20)))), 0),"Non requis") -> 0 | Q20: 1 | R20: 1 | S20: 1 | T20: 0 | Y20: 13901 | Z20: Basankusu | AA20: TRUE | AB20: 0 | AC20: 0 | AD20: 0
A21: =IF(INTRO!$E$33<>0,INTRO!$E$33, " ") -> DRC | B21: EQUATEUR | C21: Bikoro | D21: 178189 | E21: =IF(INTRO!$E$48="","",ROUND($D21*INTRO!$E$48,0)) -> 30292 | F21: =IF(INTRO!$E$49="","",ROUND($D21*INTRO!$E$49,0)) -> 62366 | G21: =IF(INTRO!$E$50="","",ROUND($D21*INTRO!$E$50,0)) -> 81967 | H21: 1 | I21: 4 | J21: 3 | K21: 1 | L21: 1 | M21: =IF(INTRO!$E$37="Endémique",IF($H21>0,IF($H21=4,"Inconnu",IF($H21=99,"Interrompu",$D21)),0),"Non requis") -> 178189 | N21: =IF(INTRO!$E$39="Endémique", IF($I21>0, IF($I21=4,"Inconnu",IF($I21=99,"Interrompu",$D21)), 0),"Non requis") -> Inconnu | O21: =IF(INTRO!$E$41="Endémique", IF(AND($J21>1,$J21<5), IF($J21=4, "Inconnu", E21+F21), 0),"Non requis") -> 92658 | P21: =IF(INTRO!$E$43="Endémique", IF(AND($K21>0,$K21<5), IF($K21=4,"Inconnu", IF($K21=1, $F21*0.33, IF($K21=2, $F21*0.5+$G21*0.2, SUM(F21:G21)))), 0),"Non requis") -> 20580.78 | Q21: 1 | R21: 0 | S21: 1 | T21: 1 | Y21: 13902 | Z21: Bikoro | AA21: TRUE | AB21: 0 | AC21: 0 | AD21: 0
A22: =IF(INTRO!$E$33<>0,INTRO!$E$33, " ") -> DRC | B22: EQUATEUR | C22: Bolenge | D22: 118511 | E22: =IF(INTRO!$E$48="","",ROUND($D22*INTRO!$E$48,0)) -> 20147 | F22: =IF(INTRO!$E$49="","",ROUND($D22*INTRO!$E$49,0)) -> 41479 | G22: =IF(INTRO!$E$50="","",ROUND($D22*INTRO!$E$50,0)) -> 54515 | H22: 0 | I22: 1 | J22: 3 | K22: 1 | L22: 0 | M22: =IF(INTRO!$E$37="Endémique",IF($H22>0,IF($H22=4,"Inconnu",IF($H22=99,"Interrompu",$D22)),0),"Non requis") -> 0 | N22: =IF(INTRO!$E$39="Endémique", IF($I22>0, IF($I22=4,"Inconnu",IF($I22=99,"Interrompu",$D22)), 0),"Non requis") -> 118511 | O22: =IF(INTRO!$E$41="Endémique", IF(AND($J22>1,$J22<5), IF($J22=4, "Inconnu", E22+F22), 0),"Non requis") -> 61626 | P22: =IF(INTRO!$E$43="Endémique", IF(AND($K22>0,$K22<5), IF($K22=4,"Inconnu", IF($K22=1, $F22*0.33, IF($K22=2, $F22*0.5+$G22*0.2, SUM(F22:G22)))), 0),"Non requis") -> 13688.07 | Q22: 0 | R22: 1 | S22: 1 | T22: 1 | Y22: 13909 | Z22: Bolenge | AA22: TRUE | AB22: 0 | AC22: 0 | AD22: 0
A23: =IF(INTRO!$E$33<>0,INTRO!$E$33, " ") -> DRC | B23: EQUATEUR | C23: Bolomba | D23: 320659 | E23: =IF(INTRO!$E$48="","",ROUND($D23*INTRO!$E$48,0)) -> 54512 | F23: =IF(INTRO!$E$49="","",ROUND($D23*INTRO!$E$49,0)) -> 112231 | G23: =IF(INTRO!$E$50="","",ROUND($D23*INTRO!$E$50,0)) -> 147503 | H23: 1 | I23: 1 | J23: 3 | K23: 1 | L23: 0 | M23: =IF(INTRO!$E$37="Endémique",IF($H23>0,IF($H23=4,"Inconnu",IF($H23=99,"Interrompu",$D23)),0),"Non requis") -> 320659 | N23: =IF(INTRO!$E$39="Endémique", IF($I23>0, IF($I23=4,"Inconnu",IF($I23=99,"Interrompu",$D23)), 0),"Non requis") -> 320659 | O23: =IF(INTRO!$E$41="Endémique", IF(AND($J23>1,$J23<5), IF($J23=4, "Inconnu", E23+F23), 0),"Non requis") -> 166743 | P23: =IF(INTRO!$E$43="Endémique", IF(AND($K23>0,$K23<5), IF($K23=4,"Inconnu", IF($K23=1, $F23*0.33, IF($K23=2, $F23*0.5+$G23*0.2, SUM(F23:G23)))), 0),"Non requis") -> 37036.23 | Q23: 1 | R23: 1 | S23: 1 | T23: 1 | Y23: 13910 | Z23: Bolomba | AA23: TRUE | AB23: 0 | AC23: 0 | AD23: 0
A24: =IF(INTRO!$E$33<>0,INTRO!$E$33, " ") -> DRC | B24: EQUATEUR | C24: Bomongo | D24: 125933 | E24: =IF(INTRO!$E$48="","",ROUND($D24*INTRO!$E$48,0)) -> 21409 | F24: =IF(INTRO!$E$49="","",ROUND($D24*INTRO!$E$49,0)) -> 44077 | G24: =IF(INTRO!$E$50="","",ROUND($D24*INTRO!$E$50,0)) -> 57929 | H24: 1 | I24: 4 | J24: 2 | K24: 2 | L24: 1 | M24: =IF(INTRO!$E$37="Endémique",IF($H24>0,IF($H24=4,"Inconnu",IF($H24=99,"Interrompu",$D24)),0),"Non requis") -> 125933 | N24: =IF(INTRO!$E$39="Endémique", IF($I24>0, IF($I24=4,"Inconnu",IF($I24=99,"Interrompu",$D24)), 0),"Non requis") -> Inconnu | O24: =IF(INTRO!$E$41="Endémique", IF(AND($J24>1,$J24<5), IF($J24=4, "Inconnu", E24+F24), 0),"Non requis") -> 65486 | P24: =IF(INTRO!$E$43="Endémique", IF(AND($K24>0,$K24<5), IF($K24=4,"Inconnu", IF($K24=1, $F24*0.33, IF($K24=2, $F24*0.5+$G24*0.2, SUM(F24:G24)))), 0),"Non requis") -> 33624.3 | Q24: 1 | R24: 0 | S24: 1 | T24: 0 | Y24: 13912 | Z24: Bomongo | AA24: TRUE | AB24: 0 | AC24: 1 | AD24: 1
A25: =IF(INTRO!$E$33<>0,INTRO!$E$33, " ") -> DRC | B25: EQUATEUR | C25: Djombo | D25: 138178 | E25: =IF(INTRO!$E$48="","",ROUND($D25*INTRO!$E$48,0)) -> 23490 | F25: =IF(INTRO!$E$49="","",ROUND($D25*INTRO!$E$49,0)) -> 48362 | G25: =IF(INTRO!$E$50="","",ROUND($D25*INTRO!$E$50,0)) -> 63562 | H25: 1 | I25: 1 | J25: 3 | K25: 1 | L25: 0 | M25: =IF(INTRO!$E$37="Endémique",IF($H25>0,IF($H25=4,"Inconnu",IF($H25=99,"Interrompu",$D25)),0),"Non requis") -> 138178 | N25: =IF(INTRO!$E$39="Endémique", IF($I25>0, IF($I25=4,"Inconnu",IF($I25=99,"Interrompu",$D25)), 0),"Non requis") -> 138178 | O25: =IF(INTRO!$E$41="Endémique", IF(AND($J25>1,$J25<5), IF($J25=4, "Inconnu", E25+F25), 0),"Non requis") -> 71852 | P25: =IF(INTRO!$E$43="Endémique", IF(AND($K25>0,$K25<5), IF($K25=4,"Inconnu", IF($K25=1, $F25*0.33, IF($K25=2, $F25*0.5+$G25*0.2, SUM(F25:G25)))), 0),"Non requis") -> 15959.46 | Q25: 1 | R25: 1 | S25: 1 | T25: 1 | Y25: 13925 | Z25: Djombo | AA25: TRUE | AB25: 0 | AC25: 0 | AD25: 0
A26: =IF(INTRO!$E$33<>0,INTRO!$E$33, " ") -> DRC | B26: EQUATEUR | C26: Iboko | D26: 134915 | E26: =IF(INTRO!$E$48="","",ROUND($D26*INTRO!$E$48,0)) -> 22936 | F26: =IF(INTRO!$E$49="","",ROUND($D26*INTRO!$E$49,0)) -> 47220 | G26: =IF(INTRO!$E$50="","",ROUND($D26*INTRO!$E$50,0)) -> 62061 | H26: 0 | I26: 4 | J26: 2 | K26: 1 | L26: 0 | M26: =IF(INTRO!$E$37="Endémique",IF($H26>0,IF($H26=4,"Inconnu",IF($H26=99,"Interrompu",$D26)),0),"Non requis") -> 0 | N26: =IF(INTRO!$E$39="Endémique", IF($I26>0, IF($I26=4,"Inconnu",IF($I26=99,"Interrompu",$D26)), 0),"Non requis") -> Inconnu | O26: =IF(INTRO!$E$41="Endémique", IF(AND($J26>1,$J26<5), IF($J26=4, "Inconnu", E26+F26), 0),"Non requis") -> 70156 | P26: =IF(INTRO!$E$43="Endémique", IF(AND($K26>0,$K26<5), IF($K26=4,"Inconnu", IF($K26=1, $F26*0.33, IF($K26=2, $F26*0.5+$G26*0.2, SUM(F26:G26)))), 0),"Non requis") -> 15582.6 | Q26: 0 | R26: 0 | S26: 1 | T26: 1 | Y26: 13928 | Z26: Iboko | AA26: TRUE | AB26: 0 | AC26: 0 | AD26: 0
A27: =IF(INTRO!$E$33<>0,INTRO!$E$33, " ") -> DRC | B27: EQUATEUR | C27: Ingende | D27: 174854 | E27: =IF(INTRO!$E$48="","",ROUND($D27*INTRO!$E$48,0)) -> 29725 | F27: =IF(INTRO!$E$49="","",ROUND($D27*INTRO!$E$49,0)) -> 61199 | G27: =IF(INTRO!$E$50="","",ROUND($D27*INTRO!$E$50,0)) -> 80433 | H27: 1 | I27: 1 | J27: 3 | K27: 1 | L27: 0 | M27: =IF(INTRO!$E$37="Endémique",IF($H27>0,IF($H27=4,"Inconnu",IF($H27=99,"Interrompu",$D27)),0),"Non requis") -> 174854 | N27: =IF(INTRO!$E$39="Endémique", IF($I27>0, IF($I27=4,"Inconnu",IF($I27=99,"Interrompu",$D27)), 0),"Non requis") -> 174854 | O27: =IF(INTRO!$E$41="Endémique", IF(AND($J27>1,$J27<5), IF($J27=4, "Inconnu", E27+F27), 0),"Non requis") -> 90924 | P27: =IF(INTRO!$E$43="Endémique", IF(AND($K27>0,$K27<5), IF($K27=4,"Inconnu", IF($K27=1, $F27*0.33, IF($K27=2, $F27*0.5+$G27*0.2, SUM(F27:G27)))), 0),"Non requis") -> 20195.67 | Q27: 1 | R27: 1 | S27: 1 | T27: 1 | Y27: 13930 | Z27: Ingende | AA27: TRUE | AB27: 0 | AC27: 0 | AD27: 0
A28: =IF(INTRO!$E$33<>0,INTRO!$E$33, " ") -> DRC | B28: EQUATEUR | C28: Irebu | D28: 43867 | E28: =IF(INTRO!$E$48="","",ROUND($D28*INTRO!$E$48,0)) -> 7457 | F28: =IF(INTRO!$E$49="","",ROUND($D28*INTRO!$E$49,0)) -> 15353 | G28: =IF(INTRO!$E$50="","",ROUND($D28*INTRO!$E$50,0)) -> 20179 | H28: 0 | I28: 4 | J28: 1 | K28: 1 | L28: 0 | M28: =IF(INTRO!$E$37="Endémique",IF($H28>0,IF($H28=4,"Inconnu",IF($H28=99,"Interrompu",$D28)),0),"Non requis") -> 0 | N28: =IF(INTRO!$E$39="Endémique", IF($I28>0, IF($I28=4,"Inconnu",IF($I28=99,"Interrompu",$D28)), 0),"Non requis") -> Inconnu | O28: =IF(INTRO!$E$41="Endémique", IF(AND($J28>1,$J28<5), IF($J28=4, "Inconnu", E28+F28), 0),"Non requis") -> 0 | P28: =IF(INTRO!$E$43="Endémique", IF(AND($K28>0,$K28<5), IF($K28=4,"Inconnu", IF($K28=1, $F28*0.33, IF($K28=2, $F28*0.5+$G28*0.2, SUM(F28:G28)))), 0),"Non requis") -> 5066.49 | Q28: 0 | R28: 0 | S28: 0 | T28: 1 | Y28: 13931 | Z28: Irebu | AA28: TRUE | AB28: 0 | AC28: 0 | AD28: 0
A29: =IF(INTRO!$E$33<>0,INTRO!$E$33, " ") -> DRC | B29: EQUATEUR | C29: Lilanga Bobangi | D29: 97177 | E29: =IF(INTRO!$E$48="","",ROUND($D29*INTRO!$E$48,0)) -> 16520 | F29: =IF(INTRO!$E$49="","",ROUND($D29*INTRO!$E$49,0)) -> 34012 | G29: =IF(INTRO!$E$50="","",ROUND($D29*INTRO!$E$50,0)) -> 44701 | H29: 0 | I29: 4 | J29: 2 | K29: 2 | L29: 0 | M29: =IF(INTRO!$E$37="Endémique",IF($H29>0,IF($H29=4,"Inconnu",IF($H29=99,"Interrompu",$D29)),0),"Non requis") -> 0 | N29: =IF(INTRO!$E$39="Endémique", IF($I29>0, IF($I29=4,"Inconnu",IF($I29=99,"Interrompu",$D29)), 0),"Non requis") -> Inconnu | O29: =IF(INTRO!$E$41="Endémique", IF(AND($J29>1,$J29<5), IF($J29=4, "Inconnu", E29+F29), 0),"Non requis") -> 50532 | P29: =IF(INTRO!$E$43="Endémique", IF(AND($K29>0,$K29<5), IF($K29=4,"Inconnu", IF($K29=1, $F29*0.33, IF($K29=2, $F29*0.5+$G29*0.2, SUM(F29:G29)))), 0),"Non requis") -> 25946.2 | Q29: 0 | R29: 0 | S29: 1 | T29: 0 | Y29: 13966 | Z29: Lilanga Bobangi | AA29: TRUE | AB29: 0 | AC29: 1 | AD29: 1
A30: =IF(INTRO!$E$33<>0,INTRO!$E$33, " ") -> DRC | B30: EQUATEUR | C30: Lotumbe | D30: 139055 | E30: =IF(INTRO!$E$48="","",ROUND($D30*INTRO!$E$48,0)) -> 23639 | F30: =IF(INTRO!$E$49="","",ROUND($D30*INTRO!$E$49,0)) -> 48669 | G30: =IF(INTRO!$E$50="","",ROUND($D30*INTRO!$E$50,0)) -> 63965 | H30: 0 | I30: 1 | J30: 3 | K30: 0 | L30: 0 | M30: =IF(INTRO!$E$37="Endémique",IF($H30>0,IF($H30=4,"Inconnu",IF($H30=99,"Interrompu",$D30)),0),"Non requis") -> 0 | N30: =IF(INTRO!$E$39="Endémique", IF($I30>0, IF($I30=4,"Inconnu",IF($I30=99,"Interrompu",$D30)), 0),"Non requis") -> 139055 | O30: =IF(INTRO!$E$41="Endémique", IF(AND($J30>1,$J30<5), IF($J30=4, "Inconnu", E30+F30), 0),"Non requis") -> 72308 | P30: =IF(INTRO!$E$43="Endémique", IF(AND($K30>0,$K30<5), IF($K30=4,"Inconnu", IF($K30=1, $F30*0.33, IF($K30=2, $F30*0.5+$G30*0.2, SUM(F30:G30)))), 0),"Non requis") -> 0 | Q30: 0 | R30: 1 | S30: 1 | T30: 0 | Y30: 13939 | Z30: Lotumbe | AA30: TRUE | AB30: 0 | AC30: 0 | AD30: 0
A31: =IF(INTRO!$E$33<>0,INTRO!$E$33, " ") -> DRC | B31: EQUATEUR | C31: Lukolela | D31: 173622 | E31: =IF(INTRO!$E$48="","",ROUND($D31*INTRO!$E$48,0)) -> 29516 | F31: =IF(INTRO!$E$49="","",ROUND($D31*INTRO!$E$49,0)) -> 60768 | G31: =IF(INTRO!$E$50="","",ROUND($D31*INTRO!$E$50,0)) -> 79866 | H31: 0 | I31: 4 | J31: 1 | K31: 2 | L31: 0 | M31: =IF(INTRO!$E$37="Endémique",IF($H31>0,IF($H31=4,"Inconnu",IF($H31=99,"Interrompu",$D31)),0),"Non requis") -> 0 | N31: =IF(INTRO!$E$39="Endémique", IF($I31>0, IF($I31=4,"Inconnu",IF($I31=99,"Interrompu",$D31)), 0),"Non requis") -> Inconnu | O31: =IF(INTRO!$E$41="Endémique", IF(AND($J31>1,$J31<5), IF($J31=4, "Inconnu", E31+F31), 0),"Non requis") -> 0 | P31: =IF(INTRO!$E$43="Endémique", IF(AND($K31>0,$K31<5), IF($K31=4,"Inconnu", IF($K31=1, $F31*0.33, IF($K31=2, $F31*0.5+$G31*0.2, SUM(F31:G31)))), 0),"Non requis") -> 46357.2 | Q31: 0 | R31: 0 | S31: 0 | T31: 0 | Y31: 13940 | Z31: Lukolela | AA31: TRUE | AB31: 0 | AC31: 1 | AD31: 1
A32: =IF(INTRO!$E$33<>0,INTRO!$E$33, " ") -> DRC | B32: EQUATEUR | C32: Makanza | D32: 136035 | E32: =IF(INTRO!$E$48="","",ROUND($D32*INTRO!$E$48,0)) -> 23126 | F32: =IF(INTRO!$E$49="","",ROUND($D32*INTRO!$E$49,0)) -> 47612 | G32: =IF(INTRO!$E$50="","",ROUND($D32*INTRO!$E$50,0)) -> 62576 | H32: 0 | I32: 4 | J32: 2 | K32: 0 | L32: 0 | M32: =IF(INTRO!$E$37="Endémique",IF($H32>0,IF($H32=4,"Inconnu",IF($H32=99,"Interrompu",$D32)),0),"Non requis") -> 0 | N32: =IF(INTRO!$E$39="Endémique", IF($I32>0, IF($I32=4,"Inconnu",IF($I32=99,"Interrompu",$D32)), 0),"Non requis") -> Inconnu | O32: =IF(INTRO!$E$41="Endémique", IF(AND($J32>1,$J32<5), IF($J32=4, "Inconnu", E32+F32), 0),"Non requis") -> 70738 | P32: =IF(INTRO!$E$43="Endémique", IF(AND($K32>0,$K32<5), IF($K32=4,"Inconnu", IF($K32=1, $F32*0.33, IF($K32=2, $F32*0.5+$G32*0.2, SUM(F32:G32)))), 0),"Non requis") -> 0 | Q32: 0 | R32: 0 | S32: 1 | T32: 0 | Y32: 13942 | Z32: Makanza | AA32: TRUE | AB32: 0 | AC32: 0 | AD32: 0
A33: =IF(INTRO!$E$33<>0,INTRO!$E$33, " ") -> DRC | B33: EQUATEUR | C33: Mampoko | D33: 129474 | E33: =IF(INTRO!$E$48="","",ROUND($D33*INTRO!$E$48,0)) -> 22011 | F33: =IF(INTRO!$E$49="","",ROUND($D33*INTRO!$E$49,0)) -> 45316 | G33: =IF(INTRO!$E$50="","",ROUND($D33*INTRO!$E$50,0)) -> 59558 | H33: 1 | I33: 1 | J33: 0 | K33: 0 | L33: 0 | M33: =IF(INTRO!$E$37="Endémique",IF($H33>0,IF($H33=4,"Inconnu",IF($H33=99,"Interrompu",$D33)),0),"Non requis") -> 129474 | N33: =IF(INTRO!$E$39="Endémique", IF($I33>0, IF($I33=4,"Inconnu",IF($I33=99,"Interrompu",$D33)), 0),"Non requis") -> 129474 | O33: =IF(INTRO!$E$41="Endémique", IF(AND($J33>1,$J33<5), IF($J33=4, "Inconnu", E33+F33), 0),"Non requis") -> 0 | P33: =IF(INTRO!$E$43="Endémique", IF(AND($K33>0,$K33<5), IF($K33=4,"Inconnu", IF($K33=1, $F33*0.33, IF($K33=2, $F33*0.5+$G33*0.2, SUM(F33:G33)))), 0),"Non requis") -> 0 | Q33: 1 | R33: 1 | S33: 0 | T33: 0 | Y33: 13941 | Z33: Mampoko | AA33: TRUE | AB33: 0 | AC33: 0 | AD33: 0
A34: =IF(INTRO!$E$33<>0,INTRO!$E$33, " ") -> DRC | B34: EQUATEUR | C34: Mbandaka | D34: 205385 | E34: =IF(INTRO!$E$48="","",ROUND($D34*INTRO!$E$48,0)) -> 34915 | F34: =IF(INTRO!$E$49="","",ROUND($D34*INTRO!$E$49,0)) -> 71885 | G34: =IF(INTRO!$E$50="","",ROUND($D34*INTRO!$E$50,0)) -> 94477 | H34: 1 | I34: 4 | J34: 1 | K34: 1 | L34: 1 | M34: =IF(INTRO!$E$37="Endémique",IF($H34>0,IF($H34=4,"Inconnu",IF($H34=99,"Interrompu",$D34)),0),"Non requis") -> 205385 | N34: =IF(INTRO!$E$39="Endémique", IF($I34>0, IF($I34=4,"Inconnu",IF($I34=99,"Interrompu",$D34)), 0),"Non requis") -> Inconnu | O34: =IF(INTRO!$E$41="Endémique", IF(AND($J34>1,$J34<5), IF($J34=4, "Inconnu", E34+F34), 0),"Non requis") -> 0 | P34: =IF(INTRO!$E$43="Endémique", IF(AND($K34>0,$K34<5), IF($K34=4,"Inconnu", IF($K34=1, $F34*0.33, IF($K34=2, $F34*0.5+$G34*0.2, SUM(F34:G34)))), 0),"Non requis") -> 23722.05 | Q34: 1 | R34: 0 | S34: 0 | T34: 1 | Y34: 13944 | Z34: Mbandaka | AA34: TRUE | AB34: 0 | AC34: 0 | AD34: 0
A35: =IF(INTRO!$E$33<>0,INTRO!$E$33, " ") -> DRC | B35: EQUATEUR | C35: Monieka | D35: 92966 | E35: =IF(INTRO!$E$48="","",ROUND($D35*INTRO!$E$48,0)) -> 15804 | F35: =IF(INTRO!$E$49="","",ROUND($D35*INTRO!$E$49,0)) -> 32538 | G35: =IF(INTRO!$E$50="","",ROUND($D35*INTRO!$E$50,0)) -> 42764 | H35: 1 | I35: 1 | J35: 1 | K35: 1 | L35: 0 | M35: =IF(INTRO!$E$37="Endémique",IF($H35>0,IF($H35=4,"Inconnu",IF($H35=99,"Interrompu",$D35)),0),"Non requis") -> 92966 | N35: =IF(INTRO!$E$39="Endémique", IF($I35>0, IF($I35=4,"Inconnu",IF($I35=99,"Interrompu",$D35)), 0),"Non requis") -> 92966 | O35: =IF(INTRO!$E$41="Endémique", IF(AND($J35>1,$J35<5), IF($J35=4, "Inconnu", E35+F35), 0),"Non requis") -> 0 | P35: =IF(INTRO!$E$43="Endémique", IF(AND($K35>0,$K35<5), IF($K35=4,"Inconnu", IF($K35=1, $F35*0.33, IF($K35=2, $F35*0.5+$G35*0.2, SUM(F35:G35)))), 0),"Non requis") -> 10737.54 | Q35: 1 | R35: 1 | S35: 0 | T35: 1 | Y35: 13950 | Z35: Monieka | AA35: TRUE | AB35: 0 | AC35: 0 | AD35: 0
A36: =IF(INTRO!$E$33<>0,INTRO!$E$33, " ") -> DRC | B36: EQUATEUR | C36: Ntondo | D36: 79516 | E36: =IF(INTRO!$E$48="","",ROUND($D36*INTRO!$E$48,0)) -> 13518 | F36: =IF(INTRO!$E$49="","",ROUND($D36*INTRO!$E$49,0)) -> 27831 | G36: =IF(INTRO!$E$50="","",ROUND($D36*INTRO!$E$50,0)) -> 36577 | H36: 1 | I36: 4 | J36: 3 | K36: 2 | L36: 1 | M36: =IF(INTRO!$E$37="Endémique",IF($H36>0,IF($H36=4,"Inconnu",IF($H36=99,"Interrompu",$D36)),0),"Non requis") -> 79516 | N36: =IF(INTRO!$E$39="Endémique", IF($I36>0, IF($I36=4,"Inconnu",IF($I36=99,"Interrompu",$D36)), 0),"Non requis") -> Inconnu | O36: =IF(INTRO!$E$41="Endémique", IF(AND($J36>1,$J36<5), IF($J36=4, "Inconnu", E36+F36), 0),"Non requis") -> 41349 | P36: =IF(INTRO!$E$43="Endémique", IF(AND($K36>0,$K36<5), IF($K36=4,"Inconnu", IF($K36=1, $F36*0.33, IF($K36=2, $F36*0.5+$G36*0.2, SUM(F36:G36)))), 0),"Non requis") -> 21230.9 | Q36: 1 | R36: 0 | S36: 1 | T36: 0 | Y36: 13953 | Z36: Ntondo | AA36: TRUE | AB36: 0 | AC36: 1 | AD36: 1
A37: =IF(INTRO!$E$33<>0,INTRO!$E$33, " ") -> DRC | B37: EQUATEUR | C37: Wangata | D37: 192900 | E37: =IF(INTRO!$E$48="","",ROUND($D37*INTRO!$E$48,0)) -> 32793 | F37: =IF(INTRO!$E$49="","",ROUND($D37*INTRO!$E$49,0)) -> 67515 | G37: =IF(INTRO!$E$50="","",ROUND($D37*INTRO!$E$50,0)) -> 88734 | H37: 1 | I37: 1 | J37: 3 | K37: 1 | L37: 0 | M37: =IF(INTRO!$E$37="Endémique",IF($H37>0,IF($H37=4,"Inconnu",IF($H37=99,"Interrompu",$D37)),0),"Non requis") -> 192900 | N37: =IF(INTRO!$E$39="Endémique", IF($I37>0, IF($I37=4,"Inconnu",IF($I37=99,"Interrompu",$D37)), 0),"Non requis") -> 192900 | O37: =IF(INTRO!$E$41="Endémique", IF(AND($J37>1,$J37<5), IF($J37=4, "Inconnu", E37+F37), 0),"Non requis") -> 100308 | P37: =IF(INTRO!$E$43="Endémique", IF(AND($K37>0,$K37<5), IF($K37=4,"Inconnu", IF($K37=1, $F37*0.33, IF($K37=2, $F37*0.5+$G37*0.2, SUM(F37:G37)))), 0),"Non requis") -> 22279.95 | Q37: 1 | R37: 1 | S37: 1 | T37: 1 | Y37: 13957 | Z37: Wangata | AA37: TRUE | AB37: 0 | AC37: 0 | AD37: 0
A38: =IF(INTRO!$E$33<>0,INTRO!$E$33, " ") -> DRC | B38: Haut Katanga | C38: Kafubu | D38: 108347 | E38: =IF(INTRO!$E$48="","",ROUND($D38*INTRO!$E$48,0)) -> 18419 | F38: =IF(INTRO!$E$49="","",ROUND($D38*INTRO!$E$49,0)) -> 37921 | G38: =IF(INTRO!$E$50="","",ROUND($D38*INTRO!$E$50,0)) -> 49840 | H38: 0 | I38: 1 | J38: 1 | K38: 1 | L38: 0 | M38: =IF(INTRO!$E$37="Endémique",IF($H38>0,IF($H38=4,"Inconnu",IF($H38=99,"Interrompu",$D38)),0),"Non requis") -> 0 | N38: =IF(INTRO!$E$39="Endémique", IF($I38>0, IF($I38=4,"Inconnu",IF($I38=99,"Interrompu",$D38)), 0),"Non requis") -> 108347 | O38: =IF(INTRO!$E$41="Endémique", IF(AND($J38>1,$J38<5), IF($J38=4, "Inconnu", E38+F38), 0),"Non requis") -> 0 | P38: =IF(INTRO!$E$43="Endémique", IF(AND($K38>0,$K38<5), IF($K38=4,"Inconnu", IF($K38=1, $F38*0.33, IF($K38=2, $F38*0.5+$G38*0.2, SUM(F38:G38)))), 0),"Non requis") -> 12513.93 | Q38: 0 | R38: 1 | S38: 0 | T38: 1 | Y38: 14071 | Z38: Kafubu | AA38: TRUE | AB38: 0 | AC38: 0 | AD38: 0
A39: =IF(INTRO!$E$33<>0,INTRO!$E$33, " ") -> DRC | B39: Haut Katanga | C39: Kamalondo | D39: 55560 | E39: =IF(INTRO!$E$48="","",ROUND($D39*INTRO!$E$48,0)) -> 9445 | F39: =IF(INTRO!$E$49="","",ROUND($D39*INTRO!$E$49,0)) -> 19446 | G39: =IF(INTRO!$E$50="","",ROUND($D39*INTRO!$E$50,0)) -> 25558 | H39: 0 | I39: 4 | J39: 2 | K39: 1 | L39: 0 | M39: =IF(INTRO!$E$37="Endémique",IF($H39>0,IF($H39=4,"Inconnu",IF($H39=99,"Interrompu",$D39)),0),"Non requis") -> 0 | N39: =IF(INTRO!$E$39="Endémique", IF($I39>0, IF($I39=4,"Inconnu",IF($I39=99,"Interrompu",$D39)), 0),"Non requis") -> Inconnu | O39: =IF(INTRO!$E$41="Endémique", IF(AND($J39>1,$J39<5), IF($J39=4, "Inconnu", E39+F39), 0),"Non requis") -> 28891 | P39: =IF(INTRO!$E$43="Endémique", IF(AND($K39>0,$K39<5), IF($K39=4,"Inconnu", IF($K39=1, $F39*0.33, IF($K39=2, $F39*0.5+$G39*0.2, SUM(F39:G39)))), 0),"Non requis") -> 6417.18 | Q39: 0 | R39: 0 | S39: 1 | T39: 0 | Y39: 14074 | Z39: Kamalondo | AA39: TRUE | AB39: 0 | AC39: 1 | AD39: 1
A40: =IF(INTRO!$E$33<>0,INTRO!$E$33, " ") -> DRC | B40: Haut Katanga | C40: Kambove | D40: 134334 | E40: =IF(INTRO!$E$48="","",ROUND($D40*INTRO!$E$48,0)) -> 22837 | F40: =IF(INTRO!$E$49="","",ROUND($D40*INTRO!$E$49,0)) -> 47017 | G40: =IF(INTRO!$E$50="","",ROUND($D40*INTRO!$E$50,0)) -> 61794 | H40: 0 | I40: 4 | J40: 1 | K40: 0 | L40: 0 | M40: =IF(INTRO!$E$37="Endémique",IF($H40>0,IF($H40=4,"Inconnu",IF($H40=99,"Interrompu",$D40)),0),"Non requis") -> 0 | N40: =IF(INTRO!$E$39="Endémique", IF($I40>0, IF($I40=4,"Inconnu",IF($I40=99,"Interrompu",$D40)), 0),"Non requis") -> Inconnu | O40: =IF(INTRO!$E$41="Endémique", IF(AND($J40>1,$J40<5), IF($J40=4, "Inconnu", E40+F40), 0),"Non requis") -> 0 | P40: =IF(INTRO!$E$43="Endémique", IF(AND($K40>0,$K40<5), IF($K40=4,"Inconnu", IF($K40=1, $F40*0.33, IF($K40=2, $F40*0.5+$G40*0.2, SUM(F40:G40)))), 0),"Non requis") -> 0 | Q40: 0 | R40: 0 | S40: 0 | T40: 0 | Y40: 14075 | Z40: Kambove | AA40: TRUE | AB40: 0 | AC40: 0 | AD40: 0
A41: =IF(INTRO!$E$33<>0,INTRO!$E$33, " ") -> DRC | B41: Haut Katanga | C41: Kampemba | D41: 468820 | E41: =IF(INTRO!$E$48="","",ROUND($D41*INTRO!$E$48,0)) -> 79699 | F41: =IF(INTRO!$E$49="","",ROUND($D41*INTRO!$E$49,0)) -> 164087 | G41: =IF(INTRO!$E$50="","",ROUND($D41*INTRO!$E$50,0)) -> 215657 | H41: 0 | I41: 4 | J41: 0 | K41: 2 | L41: 0 | M41: =IF(INTRO!$E$37="Endémique",IF($H41>0,IF($H41=4,"Inconnu",IF($H41=99,"Interrompu",$D41)),0),"Non requis") -> 0 | N41: =IF(INTRO!$E$39="Endémique", IF($I41>0, IF($I41=4,"Inconnu",IF($I41=99,"Interrompu",$D41)), 0),"Non requis") -> Inconnu | O41: =IF(INTRO!$E$41="Endémique", IF(AND($J41>1,$J41<5), IF($J41=4, "Inconnu", E41+F41), 0),"Non requis") -> 0 | P41: =IF(INTRO!$E$43="Endémique", IF(AND($K41>0,$K41<5), IF($K41=4,"Inconnu", IF($K41=1, $F41*0.33, IF($K41=2, $F41*0.5+$G41*0.2, SUM(F41:G41)))), 0),"Non requis") -> 125174.9 | Q41: 0 | R41: 0 | S41: 0 | T41: 0 | Y41: 14080 | Z41: Kampemba | AA41: TRUE | AB41: 0 | AC41: 1 | AD41: 1
A42: =IF(INTRO!$E$33<>0,INTRO!$E$33, " ") -> DRC | B42: Haut Katanga | C42: Kapolobwe | D42: 181037 | E42: =IF(INTRO!$E$48="","",ROUND($D42*INTRO!$E$48,0)) -> 30776 | F42: =IF(INTRO!$E$49="","",ROUND($D42*INTRO!$E$49,0)) -> 63363 | G42: =IF(INTRO!$E$50="","",ROUND($D42*INTRO!$E$50,0)) -> 83277 | H42: 0 | I42: 4 | J42: 0 | K42: 2 | L42: 0 | M42: =IF(INTRO!$E$37="Endémique",IF($H42>0,IF($H42=4,"Inconnu",IF($H42=99,"Interrompu",$D42)),0),"Non requis") -> 0 | N42: =IF(INTRO!$E$39="Endémique", IF($I42>0, IF($I42=4,"Inconnu",IF($I42=99,"Interrompu",$D42)), 0),"Non requis") -> Inconnu | O42: =IF(INTRO!$E$41="Endémique", IF(AND($J42>1,$J42<5), IF($J42=4, "Inconnu", E42+F42), 0),"Non requis") -> 0 | P42: =IF(INTRO!$E$43="Endémique", IF(AND($K42>0,$K42<5), IF($K42=4,"Inconnu", IF($K42=1, $F42*0.33, IF($K42=2, $F42*0.5+$G42*0.2, SUM(F42:G42)))), 0),"Non requis") -> 48336.9 | Q42: 0 | R42: 0 | S42: 0 | T42: 1 | Y42: 14081 | Z42: Kapolobwe | AA42: TRUE | AB42: 0 | AC42: 0 | AD42: 0
A43: =IF(INTRO!$E$33<>0,INTRO!$E$33, " ") -> DRC | B43: Haut Katanga | C43: Kasenga | D43: 171058 | E43: =IF(INTRO!$E$48="","",ROUND($D43*INTRO!$E$48,0)) -> 29080 | F43: =IF(INTRO!$E$49="","",ROUND($D43*INTRO!$E$49,0)) -> 59870 | G43: =IF(INTRO!$E$50="","",ROUND($D43*INTRO!$E$50,0)) -> 78687 | H43: 1 | I43: 4 | J43: 1 | K43: 2 | L43: 0 | M43: =IF(INTRO!$E$37="Endémique",IF($H43>0,IF($H43=4,"Inconnu",IF($H43=99,"Interrompu",$D43)),0),"Non requis") -> 171058 | N43: =IF(INTRO!$E$39="Endémique", IF($I43>0, IF($I43=4,"Inconnu",IF($I43=99,"Interrompu",$D43)), 0),"Non requis") -> Inconnu | O43: =IF(INTRO!$E$41="Endémique", IF(AND($J43>1,$J43<5), IF($J43=4, "Inconnu", E43+F43), 0),"Non requis") -> 0 | P43: =IF(INTRO!$E$43="Endémique", IF(AND($K43>0,$K43<5), IF($K43=4,"Inconnu", IF($K43=1, $F43*0.33, IF($K43=2, $F43*0.5+$G43*0.2, SUM(F43:G43)))), 0),"Non requis") -> 45672.4 | Q43: 1 | R43: 0 | S43: 0 | T43: 1 | Y43: 14083 | Z43: Kasenga | AA43: TRUE | AB43: 0 | AC43: 0 | AD43: 0
A44: =IF(INTRO!$E$33<>0,INTRO!$E$33, " ") -> DRC | B44: Haut Katanga | C44: Kashobwe | D44: 173047 | E44: =IF(INTRO!$E$48="","",ROUND($D44*INTRO!$E$48,0)) -> 29418 | F44: =IF(INTRO!$E$49="","",ROUND($D44*INTRO!$E$49,0)) -> 60566 | G44: =IF(INTRO!$E$50="","",ROUND($D44*INTRO!$E$50,0)) -> 79602 | H44: 0 | I44: 4 | J44: 1 | K44: 2 | L44: 0 | M44: =IF(INTRO!$E$37="Endémique",IF($H44>0,IF($H44=4,"Inconnu",IF($H44=99,"Interrompu",$D44)),0),"Non requis") -> 0 | N44: =IF(INTRO!$E$39="Endémique", IF($I44>0, IF($I44=4,"Inconnu",IF($I44=99,"Interrompu",$D44)), 0),"Non requis") -> Inconnu | O44: =IF(INTRO!$E$41="Endémique", IF(AND($J44>1,$J44<5), IF($J44=4, "Inconnu", E44+F44), 0),"Non requis") -> 0 | P44: =IF(INTRO!$E$43="Endémique", IF(AND($K44>0,$K44<5), IF($K44=4,"Inconnu", IF($K44=1, $F44*0.33, IF($K44=2, $F44*0.5+$G44*0.2, SUM(F44:G44)))), 0),"Non requis") -> 46203.4 | Q44: 0 | R44: 0 | S44: 0 | T44: 0 | Y44: 14337 | Z44: Kashobwe | AA44: TRUE | AB44: 0 | AC44: 1 | AD44: 1
A45: =IF(INTRO!$E$33<>0,INTRO!$E$33, " ") -> DRC | B45: Haut Katanga | C45: Katuba | D45: 204065 | E45: =IF(INTRO!$E$48="","",ROUND($D45*INTRO!$E$48,0)) -> 34691 | F45: =IF(INTRO!$E$49="","",ROUND($D45*INTRO!$E$49,0)) -> 71423 | G45: =IF(INTRO!$E$50="","",ROUND($D45*INTRO!$E$50,0)) -> 93870 | H45: 0 | I45: 4 | J45: 2 | K45: 0 | L45: 0 | M45: =IF(INTRO!$E$37="Endémique",IF($H45>0,IF($H45=4,"Inconnu",IF($H45=99,"Interrompu",$D45)),0),"Non requis") -> 0 | N45: =IF(INTRO!$E$39="Endémique", IF($I45>0, IF($I45=4,"Inconnu",IF($I45=99,"Interrompu",$D45)), 0),"Non requis") -> Inconnu | O45: =IF(INTRO!$E$41="Endémique", IF(AND($J45>1,$J45<5), IF($J45=4, "Inconnu", E45+F45), 0),"Non requis") -> 106114 | P45: =IF(INTRO!$E$43="Endémique", IF(AND($K45>0,$K45<5), IF($K45=4,"Inconnu", IF($K45=1, $F45*0.33, IF($K45=2, $F45*0.5+$G45*0.2, SUM(F45:G45)))), 0),"Non requis") -> 0 | Q45: 0 | R45: 0 | S45: 1 | T45: 0 | Y45: 14085 | Z45: Katuba | AA45: TRUE | AB45: 0 | AC45: 0 | AD45: 0
A46: =IF(INTRO!$E$33<>0,INTRO!$E$33, " ") -> DRC | B46: Haut Katanga | C46: Kenya | D46: 227103 | E46: =IF(INTRO!$E$48="","",ROUND($D46*INTRO!$E$48,0)) -> 38608 | F46: =IF(INTRO!$E$49="","",ROUND($D46*INTRO!$E$49,0)) -> 79486 | G46: =IF(INTRO!$E$50="","",ROUND($D46*INTRO!$E$50,0)) -> 104467 | H46: 1 | I46: 4 | J46: 1 | K46: 0 | L46: 0 | M46: =IF(INTRO!$E$37="Endémique",IF($H46>0,IF($H46=4,"Inconnu",IF($H46=99,"Interrompu",$D46)),0),"Non requis") -> 227103 | N46: =IF(INTRO!$E$39="Endémique", IF($I46>0, IF($I46=4,"Inconnu",IF($I46=99,"Interrompu",$D46)), 0),"Non requis") -> Inconnu | O46: =IF(INTRO!$E$41="Endémique", IF(AND($J46>1,$J46<5), IF($J46=4, "Inconnu", E46+F46), 0),"Non requis") -> 0 | P46: =IF(INTRO!$E$43="Endémique", IF(AND($K46>0,$K46<5), IF($K46=4,"Inconnu", IF($K46=1, $F46*0.33, IF($K46=2, $F46*0.5+$G46*0.2, SUM(F46:G46)))), 0),"Non requis") -> 0 | Q46: 1 | R46: 0 | S46: 0 | T46: 0 | Y46: 14087 | Z46: Kenya | AA46: TRUE | AB46: 0 | AC46: 0 | AD46: 0
A47: =IF(INTRO!$E$33<>0,INTRO!$E$33, " ") -> DRC | B47: Haut Katanga | C47: Kikula | D47: 240252 | E47: =IF(INTRO!$E$48="","",ROUND($D47*INTRO!$E$48,0)) -> 40843 | F47: =IF(INTRO!$E$49="","",ROUND($D47*INTRO!$E$49,0)) -> 84088 | G47: =IF(INTRO!$E$50="","",ROUND($D47*INTRO!$E$50,0)) -> 110516 | H47: 0 | I47: 4 | J47: 0 | K47: 1 | L47: 0 | M47: =IF(INTRO!$E$37="Endémique",IF($H47>0,IF($H47=4,"Inconnu",IF($H47=99,"Interrompu",$D47)),0),"Non requis") -> 0 | N47: =IF(INTRO!$E$39="Endémique", IF($I47>0, IF($I47=4,"Inconnu",IF($I47=99,"Interrompu",$D47)), 0),"Non requis") -> Inconnu | O47: =IF(INTRO!$E$41="Endémique", IF(AND($J47>1,$J47<5), IF($J47=4, "Inconnu", E47+F47), 0),"Non requis") -> 0 | P47: =IF(INTRO!$E$43="Endémique", IF(AND($K47>0,$K47<5), IF($K47=4,"Inconnu", IF($K47=1, $F47*0.33, IF($K47=2, $F47*0.5+$G47*0.2, SUM(F47:G47)))), 0),"Non requis") -> 27749.04 | Q47: 0 | R47: 0 | S47: 0 | T47: 0 | Y47: 14089 | Z47: Kikula | AA47: TRUE | AB47: 0 | AC47: 1 | AD47: 1
A48: =IF(INTRO!$E$33<>0,INTRO!$E$33, " ") -> DRC | B48: Haut Katanga | C48: Kilela Balanda | D48: 111952 | E48: =IF(INTRO!$E$48="","",ROUND($D48*INTRO!$E$48,0)) -> 19032 | F48: =IF(INTRO!$E$49="","",ROUND($D48*INTRO!$E$49,0)) -> 39183 | G48: =IF(INTRO!$E$50="","",ROUND($D48*INTRO!$E$50,0)) -> 51498 | H48: 0 | I48: 4 | J48: 1 | K48: 1 | L48: 0 | M48: =IF(INTRO!$E$37="Endémique",IF($H48>0,IF($H48=4,"Inconnu",IF($H48=99,"Interrompu",$D48)),0),"Non requis") -> 0 | N48: =IF(INTRO!$E$39="Endémique", IF($I48>0, IF($I48=4,"Inconnu",IF($I48=99,"Interrompu",$D48)), 0),"Non requis") -> Inconnu | O48: =IF(INTRO!$E$41="Endémique", IF(AND($J48>1,$J48<5), IF($J48=4, "Inconnu", E48+F48), 0),"Non requis") -> 0 | P48: =IF(INTRO!$E$43="Endémique", IF(AND($K48>0,$K48<5), IF($K48=4,"Inconnu", IF($K48=1, $F48*0.33, IF($K48=2, $F48*0.5+$G48*0.2, SUM(F48:G48)))), 0),"Non requis") -> 12930.39 | Q48: 0 | R48: 0 | S48: 0 | T48: 1 | Y48: 14090 | Z48: Kilela Balanda | AA48: TRUE | AB48: 0 | AC48: 0 | AD48: 0
A49: =IF(INTRO!$E$33<>0,INTRO!$E$33, " ") -> DRC | B49: Haut Katanga | C49: Kilwa | D49: 384149 | E49: =IF(INTRO!$E$48="","",ROUND($D49*INTRO!$E$48,0)) -> 65305 | F49: =IF(INTRO!$E$49="","",ROUND($D49*INTRO!$E$49,0)) -> 134452 | G49: =IF(INTRO!$E$50="","",ROUND($D49*INTRO!$E$50,0)) -> 176709 | H49: 1 | I49: 4 | J49: 1 | K49: 2 | L49: 0 | M49: =IF(INTRO!$E$37="Endémique",IF($H49>0,IF($H49=4,"Inconnu",IF($H49=99,"Interrompu",$D49)),0),"Non requis") -> 384149 | N49: =IF(INTRO!$E$39="Endémique", IF($I49>0, IF($I49=4,"Inconnu",IF($I49=99,"Interrompu",$D49)), 0),"Non requis") -> Inconnu | O49: =IF(INTRO!$E$41="Endémique", IF(AND($J49>1,$J49<5), IF($J49=4, "Inconnu", E49+F49), 0),"Non requis") -> 0 | P49: =IF(INTRO!$E$43="Endémique", IF(AND($K49>0,$K49<5), IF($K49=4,"Inconnu", IF($K49=1, $F49*0.33, IF($K49=2, $F49*0.5+$G49*0.2, SUM(F49:G49)))), 0),"Non requis") -> 102567.8 | Q49: 1 | R49: 0 | S49: 0 | T49: 1 | Y49: 14091 | Z49: Kilwa | AA49: TRUE | AB49: 0 | AC49: 0 | AD49: 0
A50: =IF(INTRO!$E$33<>0,INTRO!$E$33, " ") -> DRC | B50: Haut Katanga | C50: Kipushi | D50: 204863 | E50: =IF(INTRO!$E$48="","",ROUND($D50*INTRO!$E$48,0)) -> 34827 | F50: =IF(INTRO!$E$49="","",ROUND($D50*INTRO!$E$49,0)) -> 71702 | G50: =IF(INTRO!$E$50="","",ROUND($D50*INTRO!$E$50,0)) -> 94237 | H50: 1 | I50: 1 | J50: 1 | K50: 2 | L50: 0 | M50: =IF(INTRO!$E$37="Endémique",IF($H50>0,IF($H50=4,"Inconnu",IF($H50=99,"Interrompu",$D50)),0),"Non requis") -> 204863 | N50: =IF(INTRO!$E$39="Endémique", IF($I50>0, IF($I50=4,"Inconnu",IF($I50=99,"Interrompu",$D50)), 0),"Non requis") -> 204863 | O50: =IF(INTRO!$E$41="Endémique", IF(AND($J50>1,$J50<5), IF($J50=4, "Inconnu", E50+F50), 0),"Non requis") -> 0 | P50: =IF(INTRO!$E$43="Endémique", IF(AND($K50>0,$K50<5), IF($K50=4,"Inconnu", IF($K50=1, $F50*0.33, IF($K50=2, $F50*0.5+$G50*0.2, SUM(F50:G50)))), 0),"Non requis") -> 54698.4 | Q50: 1 | R50: 1 | S50: 0 | T50: 1 | Y50: 14094 | Z50: Kipushi | AA50: TRUE | AB50: 0 | AC50: 0 | AD50: 0
A51: =IF(INTRO!$E$33<>0,INTRO!$E$33, " ") -> DRC | B51: Haut Katanga | C51: Kisanga | D51: 288447 | E51: =IF(INTRO!$E$48="","",ROUND($D51*INTRO!$E$48,0)) -> 49036 | F51: =IF(INTRO!$E$49="","",ROUND($D51*INTRO!$E$49,0)) -> 100956 | G51: =IF(INTRO!$E$50="","",ROUND($D51*INTRO!$E$50,0)) -> 132686 | H51: 1 | I51: 4 | J51: 1 | K51: 0 | L51: 0 | M51: =IF(INTRO!$E$37="Endémique",IF($H51>0,IF($H51=4,"Inconnu",IF($H51=99,"Interrompu",$D51)),0),"Non requis") -> 288447 | N51: =IF(INTRO!$E$39="Endémique", IF($I51>0, IF($I51=4,"Inconnu",IF($I51=99,"Interrompu",$D51)), 0),"Non requis") -> Inconnu | O51: =IF(INTRO!$E$41="Endémique", IF(AND($J51>1,$J51<5), IF($J51=4, "Inconnu", E51+F51), 0),"Non requis") -> 0 | P51: =IF(INTRO!$E$43="Endémique", IF(AND($K51>0,$K51<5), IF($K51=4,"Inconnu", IF($K51=1, $F51*0.33, IF($K51=2, $F51*0.5+$G51*0.2, SUM(F51:G51)))), 0),"Non requis") -> 0 | Q51: 1 | R51: 0 | S51: 0 | T51: 0 | Y51: 14095 | Z51: Kisanga | AA51: TRUE | AB51: 0 | AC51: 0 | AD51: 0
A52: =IF(INTRO!$E$33<>0,INTRO!$E$33, " ") -> DRC | B52: Haut Katanga | C52: Kowe | D52: 54303 | E52: =IF(INTRO!$E$48="","",ROUND($D52*INTRO!$E$48,0)) -> 9232 | F52: =IF(INTRO!$E$49="","",ROUND($D52*INTRO!$E$49,0)) -> 19006 | G52: =IF(INTRO!$E$50="","",ROUND($D52*INTRO!$E$50,0)) -> 24979 | H52: 0 | I52: 4 | J52: 2 | K52: 1 | L52: 0 | M52: =IF(INTRO!$E$37="Endémique",IF($H52>0,IF($H52=4,"Inconnu",IF($H52=99,"Interrompu",$D52)),0),"Non requis") -> 0 | N52: =IF(INTRO!$E$39="Endémique", IF($I52>0, IF($I52=4,"Inconnu",IF($I52=99,"Interrompu",$D52)), 0),"Non requis") -> Inconnu | O52: =IF(INTRO!$E$41="Endémique", IF(AND($J52>1,$J52<5), IF($J52=4, "Inconnu", E52+F52), 0),"Non requis") -> 28238 | P52: =IF(INTRO!$E$43="Endémique", IF(AND($K52>0,$K52<5), IF($K52=4,"Inconnu", IF($K52=1, $F52*0.33, IF($K52=2, $F52*0.5+$G52*0.2, SUM(F52:G52)))), 0),"Non requis") -> 6271.98 | Q52: 0 | R52: 0 | S52: 1 | T52: 1 | Y52: 14098 | Z52: Kowe | AA52: TRUE | AB52: 0 | AC52: 0 | AD52: 0
A53: =IF(INTRO!$E$33<>0,INTRO!$E$33, " ") -> DRC | B53: Haut Katanga | C53: Likasi | D53: 185722 | E53: =IF(INTRO!$E$48="","",ROUND($D53*INTRO!$E$48,0)) -> 31573 | F53: =IF(INTRO!$E$49="","",ROUND($D53*INTRO!$E$49,0)) -> 65003 | G53: =IF(INTRO!$E$50="","",ROUND($D53*INTRO!$E$50,0)) -> 85432 | H53: 1 | I53: 4 | J53: 1 | K53: 0 | L53: 0 | M53: =IF(INTRO!$E$37="Endémique",IF($H53>0,IF($H53=4,"Inconnu",IF($H53=99,"Interrompu",$D53)),0),"Non requis") -> 185722 | N53: =IF(INTRO!$E$39="Endémique", IF($I53>0, IF($I53=4,"Inconnu",IF($I53=99,"Interrompu",$D53)), 0),"Non requis") -> Inconnu | O53: =IF(INTRO!$E$41="Endémique", IF(AND($J53>1,$J53<5), IF($J53=4, "Inconnu", E53+F53), 0),"Non requis") -> 0 | P53: =IF(INTRO!$E$43="Endémique", IF(AND($K53>0,$K53<5), IF($K53=4,"Inconnu", IF($K53=1, $F53*0.33, IF($K53=2, $F53*0.5+$G53*0.2, SUM(F53:G53)))), 0),"Non requis") -> 0 | Q53: 1 | R53: 0 | S53: 0 | T53: 0 | Y53: 14099 | Z53: Likasi | AA53: TRUE | AB53: 0 | AC53: 0 | AD53: 0
A54: =IF(INTRO!$E$33<>0,INTRO!$E$33, " ") -> DRC | B54: Haut Katanga | C54: Lubumbashi | D54: 130236 | E54: =IF(INTRO!$E$48="","",ROUND($D54*INTRO!$E$48,0)) -> 22140 | F54: =IF(INTRO!$E$49="","",ROUND($D54*INTRO!$E$49,0)) -> 45583 | G54: =IF(INTRO!$E$50="","",ROUND($D54*INTRO!$E$50,0)) -> 59909 | H54: 1 | I54: 4 | J54: 1 | K54: 1 | L54: 0 | M54: =IF(INTRO!$E$37="Endémique",IF($H54>0,IF($H54=4,"Inconnu",IF($H54=99,"Interrompu",$D54)),0),"Non requis") -> 130236 | N54: =IF(INTRO!$E$39="Endémique", IF($I54>0, IF($I54=4,"Inconnu",IF($I54=99,"Interrompu",$D54)), 0),"Non requis") -> Inconnu | O54: =IF(INTRO!$E$41="Endémique", IF(AND($J54>1,$J54<5), IF($J54=4, "Inconnu", E54+F54), 0),"Non requis") -> 0 | P54: =IF(INTRO!$E$43="Endémique", IF(AND($K54>0,$K54<5), IF($K54=4,"Inconnu", IF($K54=1, $F54*0.33, IF($K54=2, $F54*0.5+$G54*0.2, SUM(F54:G54)))), 0),"Non requis") -> 15042.39 | Q54: 1 | R54: 0 | S54: 0 | T54: 1 | Y54: 14102 | Z54: Lubumbashi | AA54: TRUE | AB54: 0 | AC54: 0 | AD54: 0
A55: =IF(INTRO!$E$33<>0,INTRO!$E$33, " ") -> DRC | B55: Haut Katanga | C55: Lukafu | D55: 100469 | E55: =IF(INTRO!$E$48="","",ROUND($D55*INTRO!$E$48,0)) -> 17080 | F55: =IF(INTRO!$E$49="","",ROUND($D55*INTRO!$E$49,0)) -> 35164 | G55: =IF(INTRO!$E$50="","",ROUND($D55*INTRO!$E$50,0)) -> 46216 | H55: 1 | I55: 4 | J55: 1 | K55: 2 | L55: 0 | M55: =IF(INTRO!$E$37="Endémique",IF($H55>0,IF($H55=4,"Inconnu",IF($H55=99,"Interrompu",$D55)),0),"Non requis") -> 100469 | N55: =IF(INTRO!$E$39="Endémique", IF($I55>0, IF($I55=4,"Inconnu",IF($I55=99,"Interrompu",$D55)), 0),"Non requis") -> Inconnu | O55: =IF(INTRO!$E$41="Endémique", IF(AND($J55>1,$J55<5), IF($J55=4, "Inconnu", E55+F55), 0),"Non requis") -> 0 | P55: =IF(INTRO!$E$43="Endémique", IF(AND($K55>0,$K55<5), IF($K55=4,"Inconnu", IF($K55=1, $F55*0.33, IF($K55=2, $F55*0.5+$G55*0.2, SUM(F55:G55)))), 0),"Non requis") -> 26825.2 | Q55: 1 | R55: 0 | S55: 0 | T55: 1 | Y55: 14103 | Z55: Lukafu | AA55: TRUE | AB55: 0 | AC55: 0 | AD55: 0
A56: =IF(INTRO!$E$33<>0,INTRO!$E$33, " ") -> DRC | B56: Haut Katanga | C56: Mitwaba | D56: 163392 | E56: =IF(INTRO!$E$48="","",ROUND($D56*INTRO!$E$48,0)) -> 27777 | F56: =IF(INTRO!$E$49="","",ROUND($D56*INTRO!$E$49,0)) -> 57187 | G56: =IF(INTRO!$E$50="","",ROUND($D56*INTRO!$E$50,0)) -> 75160 | H56: 1 | I56: 1 | J56: 1 | K56: 1 | L56: 0 | M56: =IF(INTRO!$E$37="Endémique",IF($H56>0,IF($H56=4,"Inconnu",IF($H56=99,"Interrompu",$D56)),0),"Non requis") -> 163392 | N56: =IF(INTRO!$E$39="Endémique", IF($I56>0, IF($I56=4,"Inconnu",IF($I56=99,"Interrompu",$D56)), 0),"Non requis") -> 163392 | O56: =IF(INTRO!$E$41="Endémique", IF(AND($J56>1,$J56<5), IF($J56=4, "Inconnu", E56+F56), 0),"Non requis") -> 0 | P56: =IF(INTRO!$E$43="Endémique", IF(AND($K56>0,$K56<5), IF($K56=4,"Inconnu", IF($K56=1, $F56*0.33, IF($K56=2, $F56*0.5+$G56*0.2, SUM(F56:G56)))), 0),"Non requis") -> 18871.71 | Q56: 1 | R56: 1 | S56: 0 | T56: 0 | Y56: 14109 | Z56: Mitwaba | AA56: TRUE | AB56: 0 | AC56: 1 | AD56: 1
A57: =IF(INTRO!$E$33<>0,INTRO!$E$33, " ") -> DRC | B57: Haut Katanga | C57: Mufunga Sampwe | D57: 186443 | E57: =IF(INTRO!$E$48="","",ROUND($D57*INTRO!$E$48,0)) -> 31695 | F57: =IF(INTRO!$E$49="","",ROUND($D57*INTRO!$E$49,0)) -> 65255 | G57: =IF(INTRO!$E$50="","",ROUND($D57*INTRO!$E$50,0)) -> 85764 | H57: 1 | I57: 1 | J57: 1 | K57: 0 | L57: 0 | M57: =IF(INTRO!$E$37="Endémique",IF($H57>0,IF($H57=4,"Inconnu",IF($H57=99,"Interrompu",$D57)),0),"Non requis") -> 186443 | N57: =IF(INTRO!$E$39="Endémique", IF($I57>0, IF($I57=4,"Inconnu",IF($I57=99,"Interrompu",$D57)), 0),"Non requis") -> 186443 | O57: =IF(INTRO!$E$41="Endémique", IF(AND($J57>1,$J57<5), IF($J57=4, "Inconnu", E57+F57), 0),"Non requis") -> 0 | P57: =IF(INTRO!$E$43="Endémique", IF(AND($K57>0,$K57<5), IF($K57=4,"Inconnu", IF($K57=1, $F57*0.33, IF($K57=2, $F57*0.5+$G57*0.2, SUM(F57:G57)))), 0),"Non requis") -> 0 | Q57: 1 | R57: 1 | S57: 0 | T57: 0 | Y57: 14112 | Z57: Mufunga Sampwe | AA57: TRUE | AB57: 0 | AC57: 0 | AD57: 0
A58: =IF(INTRO!$E$33<>0,INTRO!$E$33, " ") -> DRC | B58: Haut Katanga | C58: Mumbunda | D58: 165338 | E58: =IF(INTRO!$E$48="","",ROUND($D58*INTRO!$E$48,0)) -> 28107 | F58: =IF(INTRO!$E$49="","",ROUND($D58*INTRO!$E$49,0)) -> 57868 | G58: =IF(INTRO!$E$50="","",ROUND($D58*INTRO!$E$50,0)) -> 76055 | H58: 0 | I58: 4 | J58: 1 | K58: 0 | L58: 0 | M58: =IF(INTRO!$E$37="Endémique",IF($H58>0,IF($H58=4,"Inconnu",IF($H58=99,"Interrompu",$D58)),0),"Non requis") -> 0 | N58: =IF(INTRO!$E$39="Endémique", IF($I58>0, IF($I58=4,"Inconnu",IF($I58=99,"Interrompu",$D58)), 0),"Non requis") -> Inconnu | O58: =IF(INTRO!$E$41="Endémique", IF(AND($J58>1,$J58<5), IF($J58=4, "Inconnu", E58+F58), 0),"Non requis") -> 0 | P58: =IF(INTRO!$E$43="Endémique", IF(AND($K58>0,$K58<5), IF($K58=4,"Inconnu", IF($K58=1, $F58*0.33, IF($K58=2, $F58*0.5+$G58*0.2, SUM(F58:G58)))), 0),"Non requis") -> 0 | Q58: 0 | R58: 0 | S58: 0 | T58: 0 | Y58: 14111 | Z58: Mumbunda | AA58: TRUE | AB58: 0 | AC58: 0 | AD58: 0
A59: =IF(INTRO!$E$33<>0,INTRO!$E$33, " ") -> DRC | B59: Haut Katanga | C59: Panda | D59: 95788 | E59: =IF(INTRO!$E$48="","",ROUND($D59*INTRO!$E$48,0)) -> 16284 | F59: =IF(INTRO!$E$49="","",ROUND($D59*INTRO!$E$49,0)) -> 33526 | G59: =IF(INTRO!$E$50="","",ROUND($D59*INTRO!$E$50,0)) -> 44062 | H59: 0 | I59: 4 | J59: 1 | K59: 0 | L59: 0 | M59: =IF(INTRO!$E$37="Endémique",IF($H59>0,IF($H59=4,"Inconnu",IF($H59=99,"Interrompu",$D59)),0),"Non requis") -> 0 | N59: =IF(INTRO!$E$39="Endémique", IF($I59>0, IF($I59=4,"Inconnu",IF($I59=99,"Interrompu",$D59)), 0),"Non requis") -> Inconnu | O59: =IF(INTRO!$E$41="Endémique", IF(AND($J59>1,$J59<5), IF($J59=4, "Inconnu", E59+F59), 0),"Non requis") -> 0 | P59: =IF(INTRO!$E$43="Endémique", IF(AND($K59>0,$K59<5), IF($K59=4,"Inconnu", IF($K59=1, $F59*0.33, IF($K59=2, $F59*0.5+$G59*0.2, SUM(F59:G59)))), 0),"Non requis") -> 0 | Q59: 0 | R59: 0 | S59: 0 | T59: 0 | Y59: 14118 | Z59: Panda | AA59: TRUE | AB59: 0 | AC59: 0 | AD59: 0
A60: =IF(INTRO!$E$33<>0,INTRO!$E$33, " ") -> DRC | B60: Haut Katanga | C60: Pweto | D60: 312782 | E60: =IF(INTRO!$E$48="","",ROUND($D60*INTRO!$E$48,0)) -> 53173 | F60: =IF(INTRO!$E$49="","",ROUND($D60*INTRO!$E$49,0)) -> 109474 | G60: =IF(INTRO!$E$50="","",ROUND($D60*INTRO!$E$50,0)) -> 143880 | H60: 0 | I60: 4 | J60: 1 | K60: 1 | L60: 0 | M60: =IF(INTRO!$E$37="Endémique",IF($H60>0,IF($H60=4,"Inconnu",IF($H60=99,"Interrompu",$D60)),0),"Non requis") -> 0 | N60: =IF(INTRO!$E$39="Endémique", IF($I60>0, IF($I60=4,"Inconnu",IF($I60=99,"Interrompu",$D60)), 0),"Non requis") -> Inconnu | O60: =IF(INTRO!$E$41="Endémique", IF(AND($J60>1,$J60<5), IF($J60=4, "Inconnu", E60+F60), 0),"Non requis") -> 0 | P60: =IF(INTRO!$E$43="Endémique", IF(AND($K60>0,$K60<5), IF($K60=4,"Inconnu", IF($K60=1, $F60*0.33, IF($K60=2, $F60*0.5+$G60*0.2, SUM(F60:G60)))), 0),"Non requis") -> 36126.42 | Q60: 0 | R60: 0 | S60: 0 | T60: 1 | Y60: 14119 | Z60: Pweto | AA60: TRUE | AB60: 0 | AC60: 0 | AD60: 0
A61: =IF(INTRO!$E$33<>0,INTRO!$E$33, " ") -> DRC | B61: Haut Katanga | C61: Ruashi | D61: 298744 | E61: =IF(INTRO!$E$48="","",ROUND($D61*INTRO!$E$48,0)) -> 50786 | F61: =IF(INTRO!$E$49="","",ROUND($D61*INTRO!$E$49,0)) -> 104560 | G61: =IF(INTRO!$E$50="","",ROUND($D61*INTRO!$E$50,0)) -> 137422 | H61: 0 | I61: 4 | J61: 1 | K61: 0 | L61: 0 | M61: =IF(INTRO!$E$37="Endémique",IF($H61>0,IF($H61=4,"Inconnu",IF($H61=99,"Interrompu",$D61)),0),"Non requis") -> 0 | N61: =IF(INTRO!$E$39="Endémique", IF($I61>0, IF($I61=4,"Inconnu",IF($I61=99,"Interrompu",$D61)), 0),"Non requis") -> Inconnu | O61: =IF(INTRO!$E$41="Endémique", IF(AND($J61>1,$J61<5), IF($J61=4, "Inconnu", E61+F61), 0),"Non requis") -> 0 | P61: =IF(INTRO!$E$43="Endémique", IF(AND($K61>0,$K61<5), IF($K61=4,"Inconnu", IF($K61=1, $F61*0.33, IF($K61=2, $F61*0.5+$G61*0.2, SUM(F61:G61)))), 0),"Non requis") -> 0 | Q61: 0 | R61: 0 | S61: 0 | T61: 0 | Y61: 14120 | Z61: Ruashi | AA61: TRUE | AB61: 0 | AC61: 0 | AD61: 0
A62: =IF(INTRO!$E$33<>0,INTRO!$E$33, " ") -> DRC | B62: Haut Katanga | C62: Sakania | D62: 192496 | E62: =IF(INTRO!$E$48="","",ROUND($D62*INTRO!$E$48,0)) -> 32724 | F62: =IF(INTRO!$E$49="","",ROUND($D62*INTRO!$E$49,0)) -> 67374 | G62: =IF(INTRO!$E$50="","",ROUND($D62*INTRO!$E$50,0)) -> 88548 | H62: 1 | I62: 4 | J62: 1 | K62: 2 | L62: 0 | M62: =IF(INTRO!$E$37="Endémique",IF($H62>0,IF($H62=4,"Inconnu",IF($H62=99,"Interrompu",$D62)),0),"Non requis") -> 192496 | N62: =IF(INTRO!$E$39="Endémique", IF($I62>0, IF($I62=4,"Inconnu",IF($I62=99,"Interrompu",$D62)), 0),"Non requis") -> Inconnu | O62: =IF(INTRO!$E$41="Endémique", IF(AND($J62>1,$J62<5), IF($J62=4, "Inconnu", E62+F62), 0),"Non requis") -> 0 | P62: =IF(INTRO!$E$43="Endémique", IF(AND($K62>0,$K62<5), IF($K62=4,"Inconnu", IF($K62=1, $F62*0.33, IF($K62=2, $F62*0.5+$G62*0.2, SUM(F62:G62)))), 0),"Non requis") -> 51396.6 | Q62: 1 | R62: 0 | S62: 0 | T62: 1 | Y62: 14121 | Z62: Sakania | AA62: TRUE | AB62: 0 | AC62: 0 | AD62: 0
A63: =IF(INTRO!$E$33<>0,INTRO!$E$33, " ") -> DRC | B63: Haut Katanga | C63: Tshamilemba | D63: 270768 | E63: =IF(INTRO!$E$48="","",ROUND($D63*INTRO!$E$48,0)) -> 46031 | F63: =IF(INTRO!$E$49="","",ROUND($D63*INTRO!$E$49,0)) -> 94769 | G63: =IF(INTRO!$E$50="","",ROUND($D63*INTRO!$E$50,0)) -> 124553 | H63: 0 | I63: 4 | J63: 1 | K63: 1 | L63: 0 | M63: =IF(INTRO!$E$37="Endémique",IF($H63>0,IF($H63=4,"Inconnu",IF($H63=99,"Interrompu",$D63)),0),"Non requis") -> 0 | N63: =IF(INTRO!$E$39="Endémique", IF($I63>0, IF($I63=4,"Inconnu",IF($I63=99,"Interrompu",$D63)), 0),"Non requis") -> Inconnu | O63: =IF(INTRO!$E$41="Endémique", IF(AND($J63>1,$J63<5), IF($J63=4, "Inconnu", E63+F63), 0),"Non requis") -> 0 | P63: =IF(INTRO!$E$43="Endémique", IF(AND($K63>0,$K63<5), IF($K63=4,"Inconnu", IF($K63=1, $F63*0.33, IF($K63=2, $F63*0.5+$G63*0.2, SUM(F63:G63)))), 0),"Non requis") -> 31273.77 | Q63: 0 | R63: 0 | S63: 0 | T63: 1 | Y63: 14124 | Z63: Tshamilemba | AA63: TRUE | AB63: 0 | AC63: 0 | AD63: 0
A64: =IF(INTRO!$E$33<>0,INTRO!$E$33, " ") -> DRC | B64: Haut Katanga | C64: Vangu | D64: 154442 | E64: =IF(INTRO!$E$48="","",ROUND($D64*INTRO!$E$48,0)) -> 26255 | F64: =IF(INTRO!$E$49="","",ROUND($D64*INTRO!$E$49,0)) -> 54055 | G64: =IF(INTRO!$E$50="","",ROUND($D64*INTRO!$E$50,0)) -> 71043 | H64: 0 | I64: 4 | J64: 2 | K64: 1 | L64: 0 | M64: =IF(INTRO!$E$37="Endémique",IF($H64>0,IF($H64=4,"Inconnu",IF($H64=99,"Interrompu",$D64)),0),"Non requis") -> 0 | N64: =IF(INTRO!$E$39="Endémique", IF($I64>0, IF($I64=4,"Inconnu",IF($I64=99,"Interrompu",$D64)), 0),"Non requis") -> Inconnu | O64: =IF(INTRO!$E$41="Endémique", IF(AND($J64>1,$J64<5), IF($J64=4, "Inconnu", E64+F64), 0),"Non requis") -> 80310 | P64: =IF(INTRO!$E$43="Endémique", IF(AND($K64>0,$K64<5), IF($K64=4,"Inconnu", IF($K64=1, $F64*0.33, IF($K64=2, $F64*0.5+$G64*0.2, SUM(F64:G64)))), 0),"Non requis") -> 17838.15 | Q64: 0 | R64: 0 | S64: 1 | T64: 0 | Y64: 14125 | Z64: Vangu | AA64: TRUE | AB64: 0 | AC64: 1 | AD64: 1
A65: =IF(INTRO!$E$33<>0,INTRO!$E$33, " ") -> DRC | B65: HAUT LOMAMI | C65: Bukama | D65: 391431 | E65: =IF(INTRO!$E$48="","",ROUND($D65*INTRO!$E$48,0)) -> 66543 | F65: =IF(INTRO!$E$49="","",ROUND($D65*INTRO!$E$49,0)) -> 137001 | G65: =IF(INTRO!$E$50="","",ROUND($D65*INTRO!$E$50,0)) -> 180058 | H65: 0 | I65: 4 | J65: 1 | K65: 2 | L65: 0 | M65: =IF(INTRO!$E$37="Endémique",IF($H65>0,IF($H65=4,"Inconnu",IF($H65=99,"Interrompu",$D65)),0),"Non requis") -> 0 | N65: =IF(INTRO!$E$39="Endémique", IF($I65>0, IF($I65=4,"Inconnu",IF($I65=99,"Interrompu",$D65)), 0),"Non requis") -> Inconnu | O65: =IF(INTRO!$E$41="Endémique", IF(AND($J65>1,$J65<5), IF($J65=4, "Inconnu", E65+F65), 0),"Non requis") -> 0 | P65: =IF(INTRO!$E$43="Endémique", IF(AND($K65>0,$K65<5), IF($K65=4,"Inconnu", IF($K65=1, $F65*0.33, IF($K65=2, $F65*0.5+$G65*0.2, SUM(F65:G65)))), 0),"Non requis") -> 104512.1 | Q65: 0 | R65: 0 | S65: 0 | T65: 1 | Y65: 14061 | Z65: Bukama | AA65: TRUE | AB65: 0 | AC65: 0 | AD65: 0
A66: =IF(INTRO!$E$33<>0,INTRO!$E$33, " ") -> DRC | B66: HAUT LOMAMI | C66: Butumba | D66: 231496 | E66: =IF(INTRO!$E$48="","",ROUND($D66*INTRO!$E$48,0)) -> 39354 | F66: =IF(INTRO!$E$49="","",ROUND($D66*INTRO!$E$49,0)) -> 81024 | G66: =IF(INTRO!$E$50="","",ROUND($D66*INTRO!$E$50,0)) -> 106488 | H66: 0 | I66: 4 | J66: 1 | K66: 2 | L66: 0 | M66: =IF(INTRO!$E$37="Endémique",IF($H66>0,IF($H66=4,"Inconnu",IF($H66=99,"Interrompu",$D66)),0),"Non requis") -> 0 | N66: =IF(INTRO!$E$39="Endémique", IF($I66>0, IF($I66=4,"Inconnu",IF($I66=99,"Interrompu",$D66)), 0),"Non requis") -> Inconnu | O66: =IF(INTRO!$E$41="Endémique", IF(AND($J66>1,$J66<5), IF($J66=4, "Inconnu", E66+F66), 0),"Non requis") -> 0 | P66: =IF(INTRO!$E$43="Endémique", IF(AND($K66>0,$K66<5), IF($K66=4,"Inconnu", IF($K66=1, $F66*0.33, IF($K66=2, $F66*0.5+$G66*0.2, SUM(F66:G66)))), 0),"Non requis") -> 61809.6 | Q66: 0 | R66: 0 | S66: 0 | T66: 1 | Y66: 14063 | Z66: Butumba | AA66: TRUE | AB66: 0 | AC66: 0 | AD66: 0
A67: =IF(INTRO!$E$33<>0,INTRO!$E$33, " ") -> DRC | B67: HAUT LOMAMI | C67: Kabondo Dianda | D67: 285378 | E67: =IF(INTRO!$E$48="","",ROUND($D67*INTRO!$E$48,0)) -> 48514 | F67: =IF(INTRO!$E$49="","",ROUND($D67*INTRO!$E$49,0)) -> 99882 | G67: =IF(INTRO!$E$50="","",ROUND($D67*INTRO!$E$50,0)) -> 131274 | H67: 0 | I67: 4 | J67: 1 | K67: 1 | L67: 0 | M67: =IF(INTRO!$E$37="Endémique",IF($H67>0,IF($H67=4,"Inconnu",IF($H67=99,"Interrompu",$D67)),0),"Non requis") -> 0 | N67: =IF(INTRO!$E$39="Endémique", IF($I67>0, IF($I67=4,"Inconnu",IF($I67=99,"Interrompu",$D67)), 0),"Non requis") -> Inconnu | O67: =IF(INTRO!$E$41="Endémique", IF(AND($J67>1,$J67<5), IF($J67=4, "Inconnu", E67+F67), 0),"Non requis") -> 0 | P67: =IF(INTRO!$E$43="Endémique", IF(AND($K67>0,$K67<5), IF($K67=4,"Inconnu", IF($K67=1, $F67*0.33, IF($K67=2, $F67*0.5+$G67*0.2, SUM(F67:G67)))), 0),"Non requis") -> 32961.06 | Q67: 0 | R67: 0 | S67: 0 | T67: 0 | Y67: 14068 | Z67: Kabondo Dianda | AA67: TRUE | AB67: 0 | AC67: 1 | AD67: 1
A68: =IF(INTRO!$E$33<>0,INTRO!$E$33, " ") -> DRC | B68: HAUT LOMAMI | C68: Kabongo | D68: 427066 | E68: =IF(INTRO!$E$48="","",ROUND($D68*INTRO!$E$48,0)) -> 72601 | F68: =IF(INTRO!$E$49="","",ROUND($D68*INTRO!$E$49,0)) -> 149473 | G68: =IF(INTRO!$E$50="","",ROUND($D68*INTRO!$E$50,0)) -> 196450 | H68: 1 | I68: 4 | J68: 0 | K68: 2 | L68: 0 | M68: =IF(INTRO!$E$37="Endémique",IF($H68>0,IF($H68=4,"Inconnu",IF($H68=99,"Interrompu",$D68)),0),"Non requis") -> 427066 | N68: =IF(INTRO!$E$39="Endémique", IF($I68>0, IF($I68=4,"Inconnu",IF($I68=99,"Interrompu",$D68)), 0),"Non requis") -> Inconnu | O68: =IF(INTRO!$E$41="Endémique", IF(AND($J68>1,$J68<5), IF($J68=4, "Inconnu", E68+F68), 0),"Non requis") -> 0 | P68: =IF(INTRO!$E$43="Endémique", IF(AND($K68>0,$K68<5), IF($K68=4,"Inconnu", IF($K68=1, $F68*0.33, IF($K68=2, $F68*0.5+$G68*0.2, SUM(F68:G68)))), 0),"Non requis") -> 114026.5 | Q68: 1 | R68: 0 | S68: 0 | T68: 1 | Y68: 14069 | Z68: Kabongo | AA68: TRUE | AB68: 0 | AC68: 0 | AD68: 0
A69: =IF(INTRO!$E$33<>0,INTRO!$E$33, " ") -> DRC | B69: HAUT LOMAMI | C69: Kamina | D69: 342090 | E69: =IF(INTRO!$E$48="","",ROUND($D69*INTRO!$E$48,0)) -> 58155 | F69: =IF(INTRO!$E$49="","",ROUND($D69*INTRO!$E$49,0)) -> 119732 | G69: =IF(INTRO!$E$50="","",ROUND($D69*INTRO!$E$50,0)) -> 157361 | H69: 0 | I69: 4 | J69: 2 | K69: 0 | L69: 0 | M69: =IF(INTRO!$E$37="Endémique",IF($H69>0,IF($H69=4,"Inconnu",IF($H69=99,"Interrompu",$D69)),0),"Non requis") -> 0 | N69: =IF(INTRO!$E$39="Endémique", IF($I69>0, IF($I69=4,"Inconnu",IF($I69=99,"Interrompu",$D69)), 0),"Non requis") -> Inconnu | O69: =IF(INTRO!$E$41="Endémique", IF(AND($J69>1,$J69<5), IF($J69=4, "Inconnu", E69+F69), 0),"Non requis") -> 177887 | P69: =IF(INTRO!$E$43="Endémique", IF(AND($K69>0,$K69<5), IF($K69=4,"Inconnu", IF($K69=1, $F69*0.33, IF($K69=2, $F69*0.5+$G69*0.2, SUM(F69:G69)))), 0),"Non requis") -> 0 | Q69: 0 | R69: 0 | S69: 1 | T69: 0 | Y69: 14076 | Z69: Kamina | AA69: TRUE | AB69: 0 | AC69: 0 | AD69: 0
A70: =IF(INTRO!$E$33<>0,INTRO!$E$33, " ") -> DRC | B70: HAUT LOMAMI | C70: Kamina Base (Baka) | D70: 36618 | E70: =IF(INTRO!$E$48="","",ROUND($D70*INTRO!$E$48,0)) -> 6225 | F70: =IF(INTRO!$E$49="","",ROUND($D70*INTRO!$E$49,0)) -> 12816 | G70: =IF(INTRO!$E$50="","",ROUND($D70*INTRO!$E$50,0)) -> 16844 | H70: 1 | I70: 4 | J70: 0 | K70: 0 | L70: 0 | M70: =IF(INTRO!$E$37="Endémique",IF($H70>0,IF($H70=4,"Inconnu",IF($H70=99,"Interrompu",$D70)),0),"Non requis") -> 36618 | N70: =IF(INTRO!$E$39="Endémique", IF($I70>0, IF($I70=4,"Inconnu",IF($I70=99,"Interrompu",$D70)), 0),"Non requis") -> Inconnu | O70: =IF(INTRO!$E$41="Endémique", IF(AND($J70>1,$J70<5), IF($J70=4, "Inconnu", E70+F70), 0),"Non requis") -> 0 | P70: =IF(INTRO!$E$43="Endémique", IF(AND($K70>0,$K70<5), IF($K70=4,"Inconnu", IF($K70=1, $F70*0.33, IF($K70=2, $F70*0.5+$G70*0.2, SUM(F70:G70)))), 0),"Non requis") -> 0 | Q70: 1 | R70: 0 | S70: 0 | T70: 0 | Y70: 14060 | Z70: Kamina Base (Baka) | AA70: TRUE | AB70: 0 | AC70: 0 | AD70: 0
A71: =IF(INTRO!$E$33<>0,INTRO!$E$33, " ") -> DRC | B71: HAUT LOMAMI | C71: Kaniama | D71: 328491 | E71: =IF(INTRO!$E$48="","",ROUND($D71*INTRO!$E$48,0)) -> 55843 | F71: =IF(INTRO!$E$49="","",ROUND($D71*INTRO!$E$49,0)) -> 114972 | G71: =IF(INTRO!$E$50="","",ROUND($D71*INTRO!$E$50,0)) -> 151106 | H71: 1 | I71: 4 | J71: 0 | K71: 0 | L71: 0 | M71: =IF(INTRO!$E$37="Endémique",IF($H71>0,IF($H71=4,"Inconnu",IF($H71=99,"Interrompu",$D71)),0),"Non requis") -> 328491 | N71: =IF(INTRO!$E$39="Endémique", IF($I71>0, IF($I71=4,"Inconnu",IF($I71=99,"Interrompu",$D71)), 0),"Non requis") -> Inconnu | O71: =IF(INTRO!$E$41="Endémique", IF(AND($J71>1,$J71<5), IF($J71=4, "Inconnu", E71+F71), 0),"Non requis") -> 0 | P71: =IF(INTRO!$E$43="Endémique", IF(AND($K71>0,$K71<5), IF($K71=4,"Inconnu", IF($K71=1, $F71*0.33, IF($K71=2, $F71*0.5+$G71*0.2, SUM(F71:G71)))), 0),"Non requis") -> 0 | Q71: 1 | R71: 0 | S71: 0 | T71: 0 | Y71: 14077 | Z71: Kaniama | AA71: TRUE | AB71: 0 | AC71: 0 | AD71: 0
A72: =IF(INTRO!$E$33<>0,INTRO!$E$33, " ") -> DRC | B72: HAUT LOMAMI | C72: Kayamba | D72: 121252 | E72: =IF(INTRO!$E$48="","",ROUND($D72*INTRO!$E$48,0)) -> 20613 | F72: =IF(INTRO!$E$49="","",ROUND($D72*INTRO!$E$49,0)) -> 42438 | G72: =IF(INTRO!$E$50="","",ROUND($D72*INTRO!$E$50,0)) -> 55776 | H72: 1 | I72: 1 | J72: 0 | K72: 2 | L72: 0 | M72: =IF(INTRO!$E$37="Endémique",IF($H72>0,IF($H72=4,"Inconnu",IF($H72=99,"Interrompu",$D72)),0),"Non requis") -> 121252 | N72: =IF(INTRO!$E$39="Endémique", IF($I72>0, IF($I72=4,"Inconnu",IF($I72=99,"Interrompu",$D72)), 0),"Non requis") -> 121252 | O72: =IF(INTRO!$E$41="Endémique", IF(AND($J72>1,$J72<5), IF($J72=4, "Inconnu", E72+F72), 0),"Non requis") -> 0 | P72: =IF(INTRO!$E$43="Endémique", IF(AND($K72>0,$K72<5), IF($K72=4,"Inconnu", IF($K72=1, $F72*0.33, IF($K72=2, $F72*0.5+$G72*0.2, SUM(F72:G72)))), 0),"Non requis") -> 32374.2 | Q72: 1 | R72: 1 | S72: 0 | T72: 0 | Y72: 14086 | Z72: Kayamba | AA72: TRUE | AB72: 0 | AC72: 1 | AD72: 1
A73: =IF(INTRO!$E$33<>0,INTRO!$E$33, " ") -> DRC | B73: HAUT LOMAMI | C73: Kinda | D73: 105689 | E73: =IF(INTRO!$E$48="","",ROUND($D73*INTRO!$E$48,0)) -> 17967 | F73: =IF(INTRO!$E$49="","",ROUND($D73*INTRO!$E$49,0)) -> 36991 | G73: =IF(INTRO!$E$50="","",ROUND($D73*INTRO!$E$50,0)) -> 48617 | H73: 0 | I73: 4 | J73: 1 | K73: 2 | L73: 0 | M73: =IF(INTRO!$E$37="Endémique",IF($H73>0,IF($H73=4,"Inconnu",IF($H73=99,"Interrompu",$D73)),0),"Non requis") -> 0 | N73: =IF(INTRO!$E$39="Endémique", IF($I73>0, IF($I73=4,"Inconnu",IF($I73=99,"Interrompu",$D73)), 0),"Non requis") -> Inconnu | O73: =IF(INTRO!$E$41="Endémique", IF(AND($J73>1,$J73<5), IF($J73=4, "Inconnu", E73+F73), 0),"Non requis") -> 0 | P73: =IF(INTRO!$E$43="Endémique", IF(AND($K73>0,$K73<5), IF($K73=4,"Inconnu", IF($K73=1, $F73*0.33, IF($K73=2, $F73*0.5+$G73*0.2, SUM(F73:G73)))), 0),"Non requis") -> 28218.9 | Q73: 0 | R73: 0 | S73: 0 | T73: 1 | Y73: 14092 | Z73: Kinda | AA73: TRUE | AB73: 0 | AC73: 0 | AD73: 0
A74: =IF(INTRO!$E$33<>0,INTRO!$E$33, " ") -> DRC | B74: HAUT LOMAMI | C74: Kinkonja | D74: 296521 | E74: =IF(INTRO!$E$48="","",ROUND($D74*INTRO!$E$48,0)) -> 50409 | F74: =IF(INTRO!$E$49="","",ROUND($D74*INTRO!$E$49,0)) -> 103782 | G74: =IF(INTRO!$E$50="","",ROUND($D74*INTRO!$E$50,0)) -> 136400 | H74: 0 | I74: 4 | J74: 1 | K74: 1 | L74: 0 | M74: =IF(INTRO!$E$37="Endémique",IF($H74>0,IF($H74=4,"Inconnu",IF($H74=99,"Interrompu",$D74)),0),"Non requis") -> 0 | N74: =IF(INTRO!$E$39="Endémique", IF($I74>0, IF($I74=4,"Inconnu",IF($I74=99,"Interrompu",$D74)), 0),"Non requis") -> Inconnu | O74: =IF(INTRO!$E$41="Endémique", IF(AND($J74>1,$J74<5), IF($J74=4, "Inconnu", E74+F74), 0),"Non requis") -> 0 | P74: =IF(INTRO!$E$43="Endémique", IF(AND($K74>0,$K74<5), IF($K74=4,"Inconnu", IF($K74=1, $F74*0.33, IF($K74=2, $F74*0.5+$G74*0.2, SUM(F74:G74)))), 0),"Non requis") -> 34248.06 | Q74: 0 | R74: 0 | S74: 0 | T74: 0 | Y74: 14093 | Z74: Kinkonja | AA74: =Z74=C74 -> TRUE | AB74: 0 | AC74: 1 | AD74: =AB74+AC74 -> 1
A75: =IF(INTRO!$E$33<>0,INTRO!$E$33, " ") -> DRC | B75: HAUT LOMAMI | C75: Kitenge | D75: 328137 | E75: =IF(INTRO!$E$48="","",ROUND($D75*INTRO!$E$48,0)) -> 55783 | F75: =IF(INTRO!$E$49="","",ROUND($D75*INTRO!$E$49,0)) -> 114848 | G75: =IF(INTRO!$E$50="","",ROUND($D75*INTRO!$E$50,0)) -> 150943 | H75: 0 | I75: 1 | J75: 1 | K75: 0 | L75: 0 | M75: =IF(INTRO!$E$37="Endémique",IF($H75>0,IF($H75=4,"Inconnu",IF($H75=99,"Interrompu",$D75)),0),"Non requis") -> 0 | N75: =IF(INTRO!$E$39="Endémique", IF($I75>0, IF($I75=4,"Inconnu",IF($I75=99,"Interrompu",$D75)), 0),"Non requis") -> 328137 | O75: =IF(INTRO!$E$41="Endémique", IF(AND($J75>1,$J75<5), IF($J75=4, "Inconnu", E75+F75), 0),"Non requis") -> 0 | P75: =IF(INTRO!$E$43="Endémique", IF(AND($K75>0,$K75<5), IF($K75=4,"Inconnu", IF($K75=1, $F75*0.33, IF($K75=2, $F75*0.5+$G75*0.2, SUM(F75:G75)))), 0),"Non requis") -> 0 | Q75: 0 | R75: 1 | S75: 0 | T75: 0 | Y75: 14096 | Z75: Kitenge | AA75: TRUE | AB75: 0 | AC75: 0 | AD75: 0
A76: =IF(INTRO!$E$33<>0,INTRO!$E$33, " ") -> DRC | B76: HAUT LOMAMI | C76: Lwamba | D76: 160369 | E76: =IF(INTRO!$E$48="","",ROUND($D76*INTRO!$E$48,0)) -> 27263 | F76: =IF(INTRO!$E$49="","",ROUND($D76*INTRO!$E$49,0)) -> 56129 | G76: =IF(INTRO!$E$50="","",ROUND($D76*INTRO!$E$50,0)) -> 73770 | H76: 0 | I76: 4 | J76: 1 | K76: 1 | L76: 0 | M76: =IF(INTRO!$E$37="Endémique",IF($H76>0,IF($H76=4,"Inconnu",IF($H76=99,"Interrompu",$D76)),0),"Non requis") -> 0 | N76: =IF(INTRO!$E$39="Endémique", IF($I76>0, IF($I76=4,"Inconnu",IF($I76=99,"Interrompu",$D76)), 0),"Non requis") -> Inconnu | O76: =IF(INTRO!$E$41="Endémique", IF(AND($J76>1,$J76<5), IF($J76=4, "Inconnu", E76+F76), 0),"Non requis") -> 0 | P76: =IF(INTRO!$E$43="Endémique", IF(AND($K76>0,$K76<5), IF($K76=4,"Inconnu", IF($K76=1, $F76*0.33, IF($K76=2, $F76*0.5+$G76*0.2, SUM(F76:G76)))), 0),"Non requis") -> 18522.57 | Q76: 0 | R76: 0 | S76: 0 | T76: 0 | Y76: 14104 | Z76: Lwamba | AA76: TRUE | AB76: 0 | AC76: 1 | AD76: 1
A77: =IF(INTRO!$E$33<>0,INTRO!$E$33, " ") -> DRC | B77: HAUT LOMAMI | C77: Malemba Nkulu | D77: 383602 | E77: =IF(INTRO!$E$48="","",ROUND($D77*INTRO!$E$48,0)) -> 65212 | F77: =IF(INTRO!$E$49="","",ROUND($D77*INTRO!$E$49,0)) -> 134261 | G77: =IF(INTRO!$E$50="","",ROUND($D77*INTRO!$E$50,0)) -> 176457 | H77: 0 | I77: 4 | J77: 1 | K77: 2 | L77: 0 | M77: =IF(INTRO!$E$37="Endémique",IF($H77>0,IF($H77=4,"Inconnu",IF($H77=99,"Interrompu",$D77)),0),"Non requis") -> 0 | N77: =IF(INTRO!$E$39="Endémique", IF($I77>0, IF($I77=4,"Inconnu",IF($I77=99,"Interrompu",$D77)), 0),"Non requis") -> Inconnu | O77: =IF(INTRO!$E$41="Endémique", IF(AND($J77>1,$J77<5), IF($J77=4, "Inconnu", E77+F77), 0),"Non requis") -> 0 | P77: =IF(INTRO!$E$43="Endémique", IF(AND($K77>0,$K77<5), IF($K77=4,"Inconnu", IF($K77=1, $F77*0.33, IF($K77=2, $F77*0.5+$G77*0.2, SUM(F77:G77)))), 0),"Non requis") -> 102421.9 | Q77: 0 | R77: 0 | S77: 0 | T77: 0 | Y77: 14105 | Z77: Malemba Nkulu | AA77: TRUE | AB77: 0 | AC77: 1 | AD77: 1
A78: =IF(INTRO!$E$33<>0,INTRO!$E$33, " ") -> DRC | B78: HAUT LOMAMI | C78: Mukanga | D78: 240338 | E78: =IF(INTRO!$E$48="","",ROUND($D78*INTRO!$E$48,0)) -> 40857 | F78: =IF(INTRO!$E$49="","",ROUND($D78*INTRO!$E$49,0)) -> 84118 | G78: =IF(INTRO!$E$50="","",ROUND($D78*INTRO!$E$50,0)) -> 110555 | H78: 0 | I78: 4 | J78: 1 | K78: 2 | L78: 0 | M78: =IF(INTRO!$E$37="Endémique",IF($H78>0,IF($H78=4,"Inconnu",IF($H78=99,"Interrompu",$D78)),0),"Non requis") -> 0 | N78: =IF(INTRO!$E$39="Endémique", IF($I78>0, IF($I78=4,"Inconnu",IF($I78=99,"Interrompu",$D78)), 0),"Non requis") -> Inconnu | O78: =IF(INTRO!$E$41="Endémique", IF(AND($J78>1,$J78<5), IF($J78=4, "Inconnu", E78+F78), 0),"Non requis") -> 0 | P78: =IF(INTRO!$E$43="Endémique", IF(AND($K78>0,$K78<5), IF($K78=4,"Inconnu", IF($K78=1, $F78*0.33, IF($K78=2, $F78*0.5+$G78*0.2, SUM(F78:G78)))), 0),"Non requis") -> 64170 | Q78: 0 | R78: 0 | S78: 0 | T78: 0 | Y78: 14113 | Z78: Mukanga | AA78: TRUE | AB78: 0 | AC78: 1 | AD78: 1
A79: =IF(INTRO!$E$33<>0,INTRO!$E$33, " ") -> DRC | B79: HAUT LOMAMI | C79: Mulongo | D79: 316724 | E79: =IF(INTRO!$E$48="","",ROUND($D79*INTRO!$E$48,0)) -> 53843 | F79: =IF(INTRO!$E$49="","",ROUND($D79*INTRO!$E$49,0)) -> 110853 | G79: =IF(INTRO!$E$50="","",ROUND($D79*INTRO!$E$50,0)) -> 145693 | H79: 0 | I79: 4 | J79: 1 | K79: 0 | L79: 0 | M79: =IF(INTRO!$E$37="Endémique",IF($H79>0,IF($H79=4,"Inconnu",IF($H79=99,"Interrompu",$D79)),0),"Non requis") -> 0 | N79: =IF(INTRO!$E$39="Endémique", IF($I79>0, IF($I79=4,"Inconnu",IF($I79=99,"Interrompu",$D79)), 0),"Non requis") -> Inconnu | O79: =IF(INTRO!$E$41="Endémique", IF(AND($J79>1,$J79<5), IF($J79=4, "Inconnu", E79+F79), 0),"Non requis") -> 0 | P79: =IF(INTRO!$E$43="Endémique", IF(AND($K79>0,$K79<5), IF($K79=4,"Inconnu", IF($K79=1, $F79*0.33, IF($K79=2, $F79*0.5+$G79*0.2, SUM(F79:G79)))), 0),"Non requis") -> 0 | Q79: 0 | R79: 0 | S79: 0 | T79: 0 | Y79: 14114 | Z79: Mulongo | AA79: TRUE | AB79: 0 | AC79: 0 | AD79: 0
A80: =IF(INTRO!$E$33<>0,INTRO!$E$33, " ") -> DRC | B80: HAUT LOMAMI | C80: Songa | D80: 217143 | E80: =IF(INTRO!$E$48="","",ROUND($D80*INTRO!$E$48,0)) -> 36914 | F80: =IF(INTRO!$E$49="","",ROUND($D80*INTRO!$E$49,0)) -> 76000 | G80: =IF(INTRO!$E$50="","",ROUND($D80*INTRO!$E$50,0)) -> 99886 | H80: 1 | I80: 4 | J80: 2 | K80: 2 | L80: 0 | M80: =IF(INTRO!$E$37="Endémique",IF($H80>0,IF($H80=4,"Inconnu",IF($H80=99,"Interrompu",$D80)),0),"Non requis") -> 217143 | N80: =IF(INTRO!$E$39="Endémique", IF($I80>0, IF($I80=4,"Inconnu",IF($I80=99,"Interrompu",$D80)), 0),"Non requis") -> Inconnu | O80: =IF(INTRO!$E$41="Endémique", IF(AND($J80>1,$J80<5), IF($J80=4, "Inconnu", E80+F80), 0),"Non requis") -> 112914 | P80: =IF(INTRO!$E$43="Endémique", IF(AND($K80>0,$K80<5), IF($K80=4,"Inconnu", IF($K80=1, $F80*0.33, IF($K80=2, $F80*0.5+$G80*0.2, SUM(F80:G80)))), 0),"Non requis") -> 57977.2 | Q80: 1 | R80: 0 | S80: 1 | T80: 1 | Y80: 14123 | Z80: Songa | AA80: TRUE | AB80: 0 | AC80: 0 | AD80: 0
A81: =IF(INTRO!$E$33<>0,INTRO!$E$33, " ") -> DRC | B81: HAUT UELE | C81: Aba | D81: 145984 | E81: =IF(INTRO!$E$48="","",ROUND($D81*INTRO!$E$48,0)) -> 24817 | F81: =IF(INTRO!$E$49="","",ROUND($D81*INTRO!$E$49,0)) -> 51094 | G81: =IF(INTRO!$E$50="","",ROUND($D81*INTRO!$E$50,0)) -> 67153 | H81: 1 | I81: 4 | J81: 1 | K81: 1 | L81: 1 | M81: =IF(INTRO!$E$37="Endémique",IF($H81>0,IF($H81=4,"Inconnu",IF($H81=99,"Interrompu",$D81)),0),"Non requis") -> 145984 | N81: =IF(INTRO!$E$39="Endémique", IF($I81>0, IF($I81=4,"Inconnu",IF($I81=99,"Interrompu",$D81)), 0),"Non requis") -> Inconnu | O81: =IF(INTRO!$E$41="Endémique", IF(AND($J81>1,$J81<5), IF($J81=4, "Inconnu", E81+F81), 0),"Non requis") -> 0 | P81: =IF(INTRO!$E$43="Endémique", IF(AND($K81>0,$K81<5), IF($K81=4,"Inconnu", IF($K81=1, $F81*0.33, IF($K81=2, $F81*0.5+$G81*0.2, SUM(F81:G81)))), 0),"Non requis") -> 16861.02 | Q81: 1 | R81: 0 | S81: 0 | T81: 1 | Y81: 14213 | Z81: Aba | AA81: TRUE | AB81: 0 | AC81: 0 | AD81: 0
A82: =IF(INTRO!$E$33<>0,INTRO!$E$33, " ") -> DRC | B82: HAUT UELE | C82: Bomamangbetu | D82: 116075 | E82: =IF(INTRO!$E$48="","",ROUND($D82*INTRO!$E$48,0)) -> 19733 | F82: =IF(INTRO!$E$49="","",ROUND($D82*INTRO!$E$49,0)) -> 40626 | G82: =IF(INTRO!$E$50="","",ROUND($D82*INTRO!$E$50,0)) -> 53395 | H82: 0 | I82: 1 | J82: 1 | K82: 1 | L82: 0 | M82: =IF(INTRO!$E$37="Endémique",IF($H82>0,IF($H82=4,"Inconnu",IF($H82=99,"Interrompu",$D82)),0),"Non requis") -> 0 | N82: =IF(INTRO!$E$39="Endémique", IF($I82>0, IF($I82=4,"Inconnu",IF($I82=99,"Interrompu",$D82)), 0),"Non requis") -> 116075 | O82: =IF(INTRO!$E$41="Endémique", IF(AND($J82>1,$J82<5), IF($J82=4, "Inconnu", E82+F82), 0),"Non requis") -> 0 | P82: =IF(INTRO!$E$43="Endémique", IF(AND($K82>0,$K82<5), IF($K82=4,"Inconnu", IF($K82=1, $F82*0.33, IF($K82=2, $F82*0.5+$G82*0.2, SUM(F82:G82)))), 0),"Non requis") -> 13406.58 | Q82: 0 | R82: 1 | S82: 0 | T82: 1 | Y82: 14330 | Z82: Bomamangbetu | AA82: TRUE | AB82: 0 | AC82: 0 | AD82: 0
A83: =IF(INTRO!$E$33<>0,INTRO!$E$33, " ") -> DRC | B83: HAUT UELE | C83: Doruma | D83: 84479 | E83: =IF(INTRO!$E$48="","",ROUND($D83*INTRO!$E$48,0)) -> 14361 | F83: =IF(INTRO!$E$49="","",ROUND($D83*INTRO!$E$49,0)) -> 29568 | G83: =IF(INTRO!$E$50="","",ROUND($D83*INTRO!$E$50,0)) -> 38860 | H83: 1 | I83: 4 | J83: 1 | K83: 1 | L83: 1 | M83: =IF(INTRO!$E$37="Endémique",IF($H83>0,IF($H83=4,"Inconnu",IF($H83=99,"Interrompu",$D83)),0),"Non requis") -> 84479 | N83: =IF(INTRO!$E$39="Endémique", IF($I83>0, IF($I83=4,"Inconnu",IF($I83=99,"Interrompu",$D83)), 0),"Non requis") -> Inconnu | O83: =IF(INTRO!$E$41="Endémique", IF(AND($J83>1,$J83<5), IF($J83=4, "Inconnu", E83+F83), 0),"Non requis") -> 0 | P83: =IF(INTRO!$E$43="Endémique", IF(AND($K83>0,$K83<5), IF($K83=4,"Inconnu", IF($K83=1, $F83*0.33, IF($K83=2, $F83*0.5+$G83*0.2, SUM(F83:G83)))), 0),"Non requis") -> 9757.44 | Q83: 1 | R83: 0 | S83: 0 | T83: 1 | Y83: 14236 | Z83: Doruma | AA83: TRUE | AB83: 0 | AC83: 0 | AD83: 0
A84: =IF(INTRO!$E$33<>0,INTRO!$E$33, " ") -> DRC | B84: HAUT UELE | C84: Dungu | D84: 135973 | E84: =IF(INTRO!$E$48="","",ROUND($D84*INTRO!$E$48,0)) -> 23115 | F84: =IF(INTRO!$E$49="","",ROUND($D84*INTRO!$E$49,0)) -> 47591 | G84: =IF(INTRO!$E$50="","",ROUND($D84*INTRO!$E$50,0)) -> 62548 | H84: 0 | I84: 1 | J84: 1 | K84: 1 | L84: 0 | M84: =IF(INTRO!$E$37="Endémique",IF($H84>0,IF($H84=4,"Inconnu",IF($H84=99,"Interrompu",$D84)),0),"Non requis") -> 0 | N84: =IF(INTRO!$E$39="Endémique", IF($I84>0, IF($I84=4,"Inconnu",IF($I84=99,"Interrompu",$D84)), 0),"Non requis") -> 135973 | O84: =IF(INTRO!$E$41="Endémique", IF(AND($J84>1,$J84<5), IF($J84=4, "Inconnu", E84+F84), 0),"Non requis") -> 0 | P84: =IF(INTRO!$E$43="Endémique", IF(AND($K84>0,$K84<5), IF($K84=4,"Inconnu", IF($K84=1, $F84*0.33, IF($K84=2, $F84*0.5+$G84*0.2, SUM(F84:G84)))), 0),"Non requis") -> 15705.03 | Q84: 0 | R84: 1 | S84: 0 | T84: 1 | Y84: 14238 | Z84: Dungu | AA84: TRUE | AB84: 0 | AC84: 0 | AD84: 0
A85: =IF(INTRO!$E$33<>0,INTRO!$E$33, " ") -> DRC | B85: HAUT UELE | C85: Faradje | D85: 143895 | E85: =IF(INTRO!$E$48="","",ROUND($D85*INTRO!$E$48,0)) -> 24462 | F85: =IF(INTRO!$E$49="","",ROUND($D85*INTRO!$E$49,0)) -> 50363 | G85: =IF(INTRO!$E$50="","",ROUND($D85*INTRO!$E$50,0)) -> 66192 | H85: 1 | I85: 1 | J85: 1 | K85: 1 | L85: 0 | M85: =IF(INTRO!$E$37="Endémique",IF($H85>0,IF($H85=4,"Inconnu",IF($H85=99,"Interrompu",$D85)),0),"Non requis") -> 143895 | N85: =IF(INTRO!$E$39="Endémique", IF($I85>0, IF($I85=4,"Inconnu",IF($I85=99,"Interrompu",$D85)), 0),"Non requis") -> 143895 | O85: =IF(INTRO!$E$41="Endémique", IF(AND($J85>1,$J85<5), IF($J85=4, "Inconnu", E85+F85), 0),"Non requis") -> 0 | P85: =IF(INTRO!$E$43="Endémique", IF(AND($K85>0,$K85<5), IF($K85=4,"Inconnu", IF($K85=1, $F85*0.33, IF($K85=2, $F85*0.5+$G85*0.2, SUM(F85:G85)))), 0),"Non requis") -> 16619.79 | Q85: 1 | R85: 1 | S85: 0 | T85: 1 | Y85: 14239 | Z85: Faradje | AA85: TRUE | AB85: 0 | AC85: 0 | AD85: 0
A86: =IF(INTRO!$E$33<>0,INTRO!$E$33, " ") -> DRC | B86: HAUT UELE | C86: Gombari | D86: 129455 | E86: =IF(INTRO!$E$48="","",ROUND($D86*INTRO!$E$48,0)) -> 22007 | F86: =IF(INTRO!$E$49="","",ROUND($D86*INTRO!$E$49,0)) -> 45309 | G86: =IF(INTRO!$E$50="","",ROUND($D86*INTRO!$E$50,0)) -> 59549 | H86: 1 | I86: 4 | J86: 1 | K86: 1 | L86: 1 | M86: =IF(INTRO!$E$37="Endémique",IF($H86>0,IF($H86=4,"Inconnu",IF($H86=99,"Interrompu",$D86)),0),"Non requis") -> 129455 | N86: =IF(INTRO!$E$39="Endémique", IF($I86>0, IF($I86=4,"Inconnu",IF($I86=99,"Interrompu",$D86)), 0),"Non requis") -> Inconnu | O86: =IF(INTRO!$E$41="Endémique", IF(AND($J86>1,$J86<5), IF($J86=4, "Inconnu", E86+F86), 0),"Non requis") -> 0 | P86: =IF(INTRO!$E$43="Endémique", IF(AND($K86>0,$K86<5), IF($K86=4,"Inconnu", IF($K86=1, $F86*0.33, IF($K86=2, $F86*0.5+$G86*0.2, SUM(F86:G86)))), 0),"Non requis") -> 14951.97 | Q86: 1 | R86: 0 | S86: 0 | T86: 1 | Y86: 14243 | Z86: Gombari | AA86: TRUE | AB86: 0 | AC86: 0 | AD86: 0
A87: =IF(INTRO!$E$33<>0,INTRO!$E$33, " ") -> DRC | B87: HAUT UELE | C87: Isiro | D87: 297375 | E87: =IF(INTRO!$E$48="","",ROUND($D87*INTRO!$E$48,0)) -> 50554 | F87: =IF(INTRO!$E$49="","",ROUND($D87*INTRO!$E$49,0)) -> 104081 | G87: =IF(INTRO!$E$50="","",ROUND($D87*INTRO!$E$50,0)) -> 136793 | H87: 1 | I87: 1 | J87: 1 | K87: 2 | L87: 0 | M87: =IF(INTRO!$E$37="Endémique",IF($H87>0,IF($H87=4,"Inconnu",IF($H87=99,"Interrompu",$D87)),0),"Non requis") -> 297375 | N87: =IF(INTRO!$E$39="Endémique", IF($I87>0, IF($I87=4,"Inconnu",IF($I87=99,"Interrompu",$D87)), 0),"Non requis") -> 297375 | O87: =IF(INTRO!$E$41="Endémique", IF(AND($J87>1,$J87<5), IF($J87=4, "Inconnu", E87+F87), 0),"Non requis") -> 0 | P87: =IF(INTRO!$E$43="Endémique", IF(AND($K87>0,$K87<5), IF($K87=4,"Inconnu", IF($K87=1, $F87*0.33, IF($K87=2, $F87*0.5+$G87*0.2, SUM(F87:G87)))), 0),"Non requis") -> 79399.1 | Q87: 1 | R87: 1 | S87: 0 | T87: 1 | Y87: 14245 | Z87: Isiro | AA87: TRUE | AB87: 0 | AC87: 0 | AD87: 0
A88: =IF(INTRO!$E$33<>0,INTRO!$E$33, " ") -> DRC | B88: HAUT UELE | C88: Makoro | D88: 168090 | E88: =IF(INTRO!$E$48="","",ROUND($D88*INTRO!$E$48,0)) -> 28575 | F88: =IF(INTRO!$E$49="","",ROUND($D88*INTRO!$E$49,0)) -> 58832 | G88: =IF(INTRO!$E$50="","",ROUND($D88*INTRO!$E$50,0)) -> 77321 | H88: 0 | I88: 1 | J88: 1 | K88: 1 | L88: 0 | M88: =IF(INTRO!$E$37="Endémique",IF($H88>0,IF($H88=4,"Inconnu",IF($H88=99,"Interrompu",$D88)),0),"Non requis") -> 0 | N88: =IF(INTRO!$E$39="Endémique", IF($I88>0, IF($I88=4,"Inconnu",IF($I88=99,"Interrompu",$D88)), 0),"Non requis") -> 168090 | O88: =IF(INTRO!$E$41="Endémique", IF(AND($J88>1,$J88<5), IF($J88=4, "Inconnu", E88+F88), 0),"Non requis") -> 0 | P88: =IF(INTRO!$E$43="Endémique", IF(AND($K88>0,$K88<5), IF($K88=4,"Inconnu", IF($K88=1, $F88*0.33, IF($K88=2, $F88*0.5+$G88*0.2, SUM(F88:G88)))), 0),"Non requis") -> 19414.56 | Q88: 0 | R88: 1 | S88: 0 | T88: 1 | Y88: 14260 | Z88: Makoro | AA88: TRUE | AB88: 0 | AC88: 0 | AD88: 0
A89: =IF(INTRO!$E$33<>0,INTRO!$E$33, " ") -> DRC | B89: HAUT UELE | C89: Niangara | D89: 120667 | E89: =IF(INTRO!$E$48="","",ROUND($D89*INTRO!$E$48,0)) -> 20513 | F89: =IF(INTRO!$E$49="","",ROUND($D89*INTRO!$E$49,0)) -> 42233 | G89: =IF(INTRO!$E$50="","",ROUND($D89*INTRO!$E$50,0)) -> 55507 | H89: 1 | I89: 1 | J89: 1 | K89: 1 | L89: 0 | M89: =IF(INTRO!$E$37="Endémique",IF($H89>0,IF($H89=4,"Inconnu",IF($H89=99,"Interrompu",$D89)),0),"Non requis") -> 120667 | N89: =IF(INTRO!$E$39="Endémique", IF($I89>0, IF($I89=4,"Inconnu",IF($I89=99,"Interrompu",$D89)), 0),"Non requis") -> 120667 | O89: =IF(INTRO!$E$41="Endémique", IF(AND($J89>1,$J89<5), IF($J89=4, "Inconnu", E89+F89), 0),"Non requis") -> 0 | P89: =IF(INTRO!$E$43="Endémique", IF(AND($K89>0,$K89<5), IF($K89=4,"Inconnu", IF($K89=1, $F89*0.33, IF($K89=2, $F89*0.5+$G89*0.2, SUM(F89:G89)))), 0),"Non requis") -> 13936.89 | Q89: 1 | R89: 1 | S89: 0 | T89: 1 | Y89: 14268 | Z89: Niangara | AA89: TRUE | AB89: 0 | AC89: 0 | AD89: 0
A90: =IF(INTRO!$E$33<>0,INTRO!$E$33, " ") -> DRC | B90: HAUT UELE | C90: Pawa | D90: 200843 | E90: =IF(INTRO!$E$48="","",ROUND($D90*INTRO!$E$48,0)) -> 34143 | F90: =IF(INTRO!$E$49="","",ROUND($D90*INTRO!$E$49,0)) -> 70295 | G90: =IF(INTRO!$E$50="","",ROUND($D90*INTRO!$E$50,0)) -> 92388 | H90: 1 | I90: 1 | J90: 0 | K90: 1 | L90: 0 | M90: =IF(INTRO!$E$37="Endémique",IF($H90>0,IF($H90=4,"Inconnu",IF($H90=99,"Interrompu",$D90)),0),"Non requis") -> 200843 | N90: =IF(INTRO!$E$39="Endémique", IF($I90>0, IF($I90=4,"Inconnu",IF($I90=99,"Interrompu",$D90)), 0),"Non requis") -> 200843 | O90: =IF(INTRO!$E$41="Endémique", IF(AND($J90>1,$J90<5), IF($J90=4, "Inconnu", E90+F90), 0),"Non requis") -> 0 | P90: =IF(INTRO!$E$43="Endémique", IF(AND($K90>0,$K90<5), IF($K90=4,"Inconnu", IF($K90=1, $F90*0.33, IF($K90=2, $F90*0.5+$G90*0.2, SUM(F90:G90)))), 0),"Non requis") -> 23197.35 | Q90: 1 | R90: 1 | S90: 0 | T90: 1 | Y90: 14275 | Z90: Pawa | AA90: TRUE | AB90: 0 | AC90: 0 | AD90: 0
A91: =IF(INTRO!$E$33<>0,INTRO!$E$33, " ") -> DRC | B91: HAUT UELE | C91: Rungu | D91: 123973 | E91: =IF(INTRO!$E$48="","",ROUND($D91*INTRO!$E$48,0)) -> 21075 | F91: =IF(INTRO!$E$49="","",ROUND($D91*INTRO!$E$49,0)) -> 43391 | G91: =IF(INTRO!$E$50="","",ROUND($D91*INTRO!$E$50,0)) -> 57028 | H91: 1 | I91: 1 | J91: 1 | K91: 1 | L91: 0 | M91: =IF(INTRO!$E$37="Endémique",IF($H91>0,IF($H91=4,"Inconnu",IF($H91=99,"Interrompu",$D91)),0),"Non requis") -> 123973 | N91: =IF(INTRO!$E$39="Endémique", IF($I91>0, IF($I91=4,"Inconnu",IF($I91=99,"Interrompu",$D91)), 0),"Non requis") -> 123973 | O91: =IF(INTRO!$E$41="Endémique", IF(AND($J91>1,$J91<5), IF($J91=4, "Inconnu", E91+F91), 0),"Non requis") -> 0 | P91: =IF(INTRO!$E$43="Endémique", IF(AND($K91>0,$K91<5), IF($K91=4,"Inconnu", IF($K91=1, $F91*0.33, IF($K91=2, $F91*0.5+$G91*0.2, SUM(F91:G91)))), 0),"Non requis") -> 14319.03 | Q91: 1 | R91: 1 | S91: 0 | T91: 1 | Y91: 14279 | Z91: Rungu | AA91: TRUE | AB91: 0 | AC91: 0 | AD91: 0
A92: =IF(INTRO!$E$33<>0,INTRO!$E$33, " ") -> DRC | B92: HAUT UELE | C92: Wamba | D92: 128831 | E92: =IF(INTRO!$E$48="","",ROUND($D92*INTRO!$E$48,0)) -> 21901 | F92: =IF(INTRO!$E$49="","",ROUND($D92*INTRO!$E$49,0)) -> 45091 | G92: =IF(INTRO!$E$50="","",ROUND($D92*INTRO!$E$50,0)) -> 59262 | H92: 0 | I92: 1 | J92: 1 | K92: 1 | L92: 0 | M92: =IF(INTRO!$E$37="Endémique",IF($H92>0,IF($H92=4,"Inconnu",IF($H92=99,"Interrompu",$D92)),0),"Non requis") -> 0 | N92: =IF(INTRO!$E$39="Endémique", IF($I92>0, IF($I92=4,"Inconnu",IF($I92=99,"Interrompu",$D92)), 0),"Non requis") -> 128831 | O92: =IF(INTRO!$E$41="Endémique", IF(AND($J92>1,$J92<5), IF($J92=4, "Inconnu", E92+F92), 0),"Non requis") -> 0 | P92: =IF(INTRO!$E$43="Endémique", IF(AND($K92>0,$K92<5), IF($K92=4,"Inconnu", IF($K92=1, $F92*0.33, IF($K92=2, $F92*0.5+$G92*0.2, SUM(F92:G92)))), 0),"Non requis") -> 14880.03 | Q92: 0 | R92: 1 | S92: 0 | T92: 1 | Y92: 14286 | Z92: Wamba | AA92: TRUE | AB92: 0 | AC92: 0 | AD92: 0
A93: =IF(INTRO!$E$33<>0,INTRO!$E$33, " ") -> DRC | B93: HAUT UELE | C93: Wasta | D93: 306973 | E93: =IF(INTRO!$E$48="","",ROUND($D93*INTRO!$E$48,0)) -> 52185 | F93: =IF(INTRO!$E$49="","",ROUND($D93*INTRO!$E$49,0)) -> 107441 | G93: =IF(INTRO!$E$50="","",ROUND($D93*INTRO!$E$50,0)) -> 141208 | H93: 1 | I93: 1 | J93: 1 | K93: 2 | L93: 0 | M93: =IF(INTRO!$E$37="Endémique",IF($H93>0,IF($H93=4,"Inconnu",IF($H93=99,"Interrompu",$D93)),0),"Non requis") -> 306973 | N93: =IF(INTRO!$E$39="Endémique", IF($I93>0, IF($I93=4,"Inconnu",IF($I93=99,"Interrompu",$D93)), 0),"Non requis") -> 306973 | O93: =IF(INTRO!$E$41="Endémique", IF(AND($J93>1,$J93<5), IF($J93=4, "Inconnu", E93+F93), 0),"Non requis") -> 0 | P93: =IF(INTRO!$E$43="Endémique", IF(AND($K93>0,$K93<5), IF($K93=4,"Inconnu", IF($K93=1, $F93*0.33, IF($K93=2, $F93*0.5+$G93*0.2, SUM(F93:G93)))), 0),"Non requis") -> 81962.1 | Q93: 1 | R93: 1 | S93: 0 | T93: 1 | Y93: 14288 | Z93: Wasta | AA93: TRUE | AB93: 0 | AC93: 0 | AD93: 0
A94: =IF(INTRO!$E$33<>0,INTRO!$E$33, " ") -> DRC | B94: ITURI | C94: Adi | D94: 191308 | E94: =IF(INTRO!$E$48="","",ROUND($D94*INTRO!$E$48,0)) -> 32522 | F94: =IF(INTRO!$E$49="","",ROUND($D94*INTRO!$E$49,0)) -> 66958 | G94: =IF(INTRO!$E$50="","",ROUND($D94*INTRO!$E$50,0)) -> 88002 | H94: 0 | I94: 1 | J94: 1 | K94: 0 | L94: 0 | M94: =IF(INTRO!$E$37="Endémique",IF($H94>0,IF($H94=4,"Inconnu",IF($H94=99,"Interrompu",$D94)),0),"Non requis") -> 0 | N94: =IF(INTRO!$E$39="Endémique", IF($I94>0, IF($I94=4,"Inconnu",IF($I94=99,"Interrompu",$D94)), 0),"Non requis") -> 191308 | O94: =IF(INTRO!$E$41="Endémique", IF(AND($J94>1,$J94<5), IF($J94=4, "Inconnu", E94+F94), 0),"Non requis") -> 0 | P94: =IF(INTRO!$E$43="Endémique", IF(AND($K94>0,$K94<5), IF($K94=4,"Inconnu", IF($K94=1, $F94*0.33, IF($K94=2, $F94*0.5+$G94*0.2, SUM(F94:G94)))), 0),"Non requis") -> 0 | Q94: 0 | R94: 1 | S94: 0 | T94: 0 | Y94: 14214 | Z94: Adi | AA94: TRUE | AB94: 0 | AC94: 0 | AD94: 0
A95: =IF(INTRO!$E$33<>0,INTRO!$E$33, " ") -> DRC | B95: ITURI | C95: Adja | D95: 146322 | E95: =IF(INTRO!$E$48="","",ROUND($D95*INTRO!$E$48,0)) -> 24875 | F95: =IF(INTRO!$E$49="","",ROUND($D95*INTRO!$E$49,0)) -> 51213 | G95: =IF(INTRO!$E$50="","",ROUND($D95*INTRO!$E$50,0)) -> 67308 | H95: 0 | I95: 1 | J95: 1 | K95: 0 | L95: 0 | M95: =IF(INTRO!$E$37="Endémique",IF($H95>0,IF($H95=4,"Inconnu",IF($H95=99,"Interrompu",$D95)),0),"Non requis") -> 0 | N95: =IF(INTRO!$E$39="Endémique", IF($I95>0, IF($I95=4,"Inconnu",IF($I95=99,"Interrompu",$D95)), 0),"Non requis") -> 146322 | O95: =IF(INTRO!$E$41="Endémique", IF(AND($J95>1,$J95<5), IF($J95=4, "Inconnu", E95+F95), 0),"Non requis") -> 0 | P95: =IF(INTRO!$E$43="Endémique", IF(AND($K95>0,$K95<5), IF($K95=4,"Inconnu", IF($K95=1, $F95*0.33, IF($K95=2, $F95*0.5+$G95*0.2, SUM(F95:G95)))), 0),"Non requis") -> 0 | Q95: 0 | R95: 1 | S95: 0 | T95: 0 | Y95: 14215 | Z95: Adja | AA95: TRUE | AB95: 0 | AC95: 0 | AD95: 0
A96: =IF(INTRO!$E$33<>0,INTRO!$E$33, " ") -> DRC | B96: ITURI | C96: Angumu | D96: 193503 | E96: =IF(INTRO!$E$48="","",ROUND($D96*INTRO!$E$48,0)) -> 32896 | F96: =IF(INTRO!$E$49="","",ROUND($D96*INTRO!$E$49,0)) -> 67726 | G96: =IF(INTRO!$E$50="","",ROUND($D96*INTRO!$E$50,0)) -> 89011 | H96: 1 | I96: 1 | J96: 0 | K96: 1 | L96: 0 | M96: =IF(INTRO!$E$37="Endémique",IF($H96>0,IF($H96=4,"Inconnu",IF($H96=99,"Interrompu",$D96)),0),"Non requis") -> 193503 | N96: =IF(INTRO!$E$39="Endémique", IF($I96>0, IF($I96=4,"Inconnu",IF($I96=99,"Interrompu",$D96)), 0),"Non requis") -> 193503 | O96: =IF(INTRO!$E$41="Endémique", IF(AND($J96>1,$J96<5), IF($J96=4, "Inconnu", E96+F96), 0),"Non requis") -> 0 | P96: =IF(INTRO!$E$43="Endémique", IF(AND($K96>0,$K96<5), IF($K96=4,"Inconnu", IF($K96=1, $F96*0.33, IF($K96=2, $F96*0.5+$G96*0.2, SUM(F96:G96)))), 0),"Non requis") -> 22349.58 | Q96: 1 | R96: 1 | S96: 0 | T96: 0 | Y96: 14218 | Z96: Angumu | AA96: TRUE | AB96: 0 | AC96: 0 | AD96: 0
A97: =IF(INTRO!$E$33<>0,INTRO!$E$33, " ") -> DRC | B97: ITURI | C97: Ariwara | D97: 250264 | E97: =IF(INTRO!$E$48="","",ROUND($D97*INTRO!$E$48,0)) -> 42545 | F97: =IF(INTRO!$E$49="","",ROUND($D97*INTRO!$E$49,0)) -> 87592 | G97: =IF(INTRO!$E$50="","",ROUND($D97*INTRO!$E$50,0)) -> 115121 | H97: 1 | I97: 4 | J97: 1 | K97: 0 | L97: 0 | M97: =IF(INTRO!$E$37="Endémique",IF($H97>0,IF($H97=4,"Inconnu",IF($H97=99,"Interrompu",$D97)),0),"Non requis") -> 250264 | N97: =IF(INTRO!$E$39="Endémique", IF($I97>0, IF($I97=4,"Inconnu",IF($I97=99,"Interrompu",$D97)), 0),"Non requis") -> Inconnu | O97: =IF(INTRO!$E$41="Endémique", IF(AND($J97>1,$J97<5), IF($J97=4, "Inconnu", E97+F97), 0),"Non requis") -> 0 | P97: =IF(INTRO!$E$43="Endémique", IF(AND($K97>0,$K97<5), IF($K97=4,"Inconnu", IF($K97=1, $F97*0.33, IF($K97=2, $F97*0.5+$G97*0.2, SUM(F97:G97)))), 0),"Non requis") -> 0 | Q97: 1 | R97: 0 | S97: 0 | T97: 0 | Y97: 14219 | Z97: Ariwara | AA97: TRUE | AB97: 0 | AC97: 0 | AD97: 0
A98: =IF(INTRO!$E$33<>0,INTRO!$E$33, " ") -> DRC | B98: ITURI | C98: Aru | D98: 182161 | E98: =IF(INTRO!$E$48="","",ROUND($D98*INTRO!$E$48,0)) -> 30967 | F98: =IF(INTRO!$E$49="","",ROUND($D98*INTRO!$E$49,0)) -> 63756 | G98: =IF(INTRO!$E$50="","",ROUND($D98*INTRO!$E$50,0)) -> 83794 | H98: 0 | I98: 4 | J98: 1 | K98: 2 | L98: 0 | M98: =IF(INTRO!$E$37="Endémique",IF($H98>0,IF($H98=4,"Inconnu",IF($H98=99,"Interrompu",$D98)),0),"Non requis") -> 0 | N98: =IF(INTRO!$E$39="Endémique", IF($I98>0, IF($I98=4,"Inconnu",IF($I98=99,"Interrompu",$D98)), 0),"Non requis") -> Inconnu | O98: =IF(INTRO!$E$41="Endémique", IF(AND($J98>1,$J98<5), IF($J98=4, "Inconnu", E98+F98), 0),"Non requis") -> 0 | P98: =IF(INTRO!$E$43="Endémique", IF(AND($K98>0,$K98<5), IF($K98=4,"Inconnu", IF($K98=1, $F98*0.33, IF($K98=2, $F98*0.5+$G98*0.2, SUM(F98:G98)))), 0),"Non requis") -> 48636.8 | Q98: 0 | R98: 0 | S98: 0 | T98: 0 | Y98: 14220 | Z98: Aru | AA98: TRUE | AB98: 0 | AC98: 1 | AD98: 1
A99: =IF(INTRO!$E$33<>0,INTRO!$E$33, " ") -> DRC | B99: ITURI | C99: Augnba | D99: 306973 | E99: =IF(INTRO!$E$48="","",ROUND($D99*INTRO!$E$48,0)) -> 52185 | F99: =IF(INTRO!$E$49="","",ROUND($D99*INTRO!$E$49,0)) -> 107441 | G99: =IF(INTRO!$E$50="","",ROUND($D99*INTRO!$E$50,0)) -> 141208 | H99: 0 | I99: 1 | J99: 2 | K99: 1 | L99: 0 | M99: =IF(INTRO!$E$37="Endémique",IF($H99>0,IF($H99=4,"Inconnu",IF($H99=99,"Interrompu",$D99)),0),"Non requis") -> 0 | N99: =IF(INTRO!$E$39="Endémique", IF($I99>0, IF($I99=4,"Inconnu",IF($I99=99,"Interrompu",$D99)), 0),"Non requis") -> 306973 | O99: =IF(INTRO!$E$41="Endémique", IF(AND($J99>1,$J99<5), IF($J99=4, "Inconnu", E99+F99), 0),"Non requis") -> 159626 | P99: =IF(INTRO!$E$43="Endémique", IF(AND($K99>0,$K99<5), IF($K99=4,"Inconnu", IF($K99=1, $F99*0.33, IF($K99=2, $F99*0.5+$G99*0.2, SUM(F99:G99)))), 0),"Non requis") -> 35455.53 | Q99: 0 | R99: 1 | S99: 1 | T99: 0 | Y99: 14221 | Z99: Augnba | AA99: TRUE | AB99: 0 | AC99: 1 | AD99: 1
A100: =IF(INTRO!$E$33<>0,INTRO!$E$33, " ") -> DRC | B100: ITURI | C100: Bambu | D100: 132470 | E100: =IF(INTRO!$E$48="","",ROUND($D100*INTRO!$E$48,0)) -> 22520 | F100: =IF(INTRO!$E$49="","",ROUND($D100*INTRO!$E$49,0)) -> 46365 | G100: =IF(INTRO!$E$50="","",ROUND($D100*INTRO!$E$50,0)) -> 60936 | H100: 1 | I100: 4 | J100: 1 | K100: 1 | L100: 0 | M100: =IF(INTRO!$E$37="Endémique",IF($H100>0,IF($H100=4,"Inconnu",IF($H100=99,"Interrompu",$D100)),0),"Non requis") -> 132470 | N100: =IF(INTRO!$E$39="Endémique", IF($I100>0, IF($I100=4,"Inconnu",IF($I100=99,"Interrompu",$D100)), 0),"Non requis") -> Inconnu | O100: =IF(INTRO!$E$41="Endémique", IF(AND($J100>1,$J100<5), IF($J100=4, "Inconnu", E100+F100), 0),"Non requis") -> 0 | P100: =IF(INTRO!$E$43="Endémique", IF(AND($K100>0,$K100<5), IF($K100=4,"Inconnu", IF($K100=1, $F100*0.33, IF($K100=2, $F100*0.5+$G100*0.2, SUM(F100:G100)))), 0),"Non requis") -> 15300.45 | Q100: 1 | R100: 0 | S100: 0 | T100: 1 | Y100: 14224 | Z100: Bambu | AA100: TRUE | AB100: 0 | AC100: 0 | AD100: 0
A101: =IF(INTRO!$E$33<>0,INTRO!$E$33, " ") -> DRC | B101: ITURI | C101: Biringi | D101: 148546 | E101: =IF(INTRO!$E$48="","",ROUND($D101*INTRO!$E$48,0)) -> 25253 | F101: =IF(INTRO!$E$49="","",ROUND($D101*INTRO!$E$49,0)) -> 51991 | G101: =IF(INTRO!$E$50="","",ROUND($D101*INTRO!$E$50,0)) -> 68331 | H101: 1 | I101: 1 | J101: 1 | K101: 2 | L101: 0 | M101: =IF(INTRO!$E$37="Endémique",IF($H101>0,IF($H101=4,"Inconnu",IF($H101=99,"Interrompu",$D101)),0),"Non requis") -> 148546 | N101: =IF(INTRO!$E$39="Endémique", IF($I101>0, IF($I101=4,"Inconnu",IF($I101=99,"Interrompu",$D101)), 0),"Non requis") -> 148546 | O101: =IF(INTRO!$E$41="Endémique", IF(AND($J101>1,$J101<5), IF($J101=4, "Inconnu", E101+F101), 0),"Non requis") -> 0 | P101: =IF(INTRO!$E$43="Endémique", IF(AND($K101>0,$K101<5), IF($K101=4,"Inconnu", IF($K101=1, $F101*0.33, IF($K101=2, $F101*0.5+$G101*0.2, SUM(F101:G101)))), 0),"Non requis") -> 39661.7 | Q101: 1 | R101: 1 | S101: 0 | T101: 1 | Y101: 14230 | Z101: Biringi | AA101: FALSE | AB101: 0 | AC101: 0 | AD101: 0
A102: =IF(INTRO!$E$33<>0,INTRO!$E$33, " ") -> DRC | B102: ITURI | C102: Boga | D102: 77294 | E102: =IF(INTRO!$E$48="","",ROUND($D102*INTRO!$E$48,0)) -> 13140 | F102: =IF(INTRO!$E$49="","",ROUND($D102*INTRO!$E$49,0)) -> 27053 | G102: =IF(INTRO!$E$50="","",ROUND($D102*INTRO!$E$50,0)) -> 35555 | H102: 1 | I102: 1 | J102: 1 | K102: 2 | L102: 0 | M102: =IF(INTRO!$E$37="Endémique",IF($H102>0,IF($H102=4,"Inconnu",IF($H102=99,"Interrompu",$D102)),0),"Non requis") -> 77294 | N102: =IF(INTRO!$E$39="Endémique", IF($I102>0, IF($I102=4,"Inconnu",IF($I102=99,"Interrompu",$D102)), 0),"Non requis") -> 77294 | O102: =IF(INTRO!$E$41="Endémique", IF(AND($J102>1,$J102<5), IF($J102=4, "Inconnu", E102+F102), 0),"Non requis") -> 0 | P102: =IF(INTRO!$E$43="Endémique", IF(AND($K102>0,$K102<5), IF($K102=4,"Inconnu", IF($K102=1, $F102*0.33, IF($K102=2, $F102*0.5+$G102*0.2, SUM(F102:G102)))), 0),"Non requis") -> 20637.5 | Q102: 1 | R102: 1 | S102: 0 | T102: 1 | Y102: 14231 | Z102: Boga | AA102: TRUE | AB102: 0 | AC102: 0 | AD102: 0
A103: =IF(INTRO!$E$33<>0,INTRO!$E$33, " ") -> DRC | B103: ITURI | C103: Bunia | D103: 353997 | E103: =IF(INTRO!$E$48="","",ROUND($D103*INTRO!$E$48,0)) -> 60179 | F103: =IF(INTRO!$E$49="","",ROUND($D103*INTRO!$E$49,0)) -> 123899 | G103: =IF(INTRO!$E$50="","",ROUND($D103*INTRO!$E$50,0)) -> 162839 | H103: 1 | I103: 4 | J103: 1 | K103: 2 | L103: 0 | M103: =IF(INTRO!$E$37="Endémique",IF($H103>0,IF($H103=4,"Inconnu",IF($H103=99,"Interrompu",$D103)),0),"Non requis") -> 353997 | N103: =IF(INTRO!$E$39="Endémique", IF($I103>0, IF($I103=4,"Inconnu",IF($I103=99,"Interrompu",$D103)), 0),"Non requis") -> Inconnu | O103: =IF(INTRO!$E$41="Endémique", IF(AND($J103>1,$J103<5), IF($J103=4, "Inconnu", E103+F103), 0),"Non requis") -> 0 | P103: =IF(INTRO!$E$43="Endémique", IF(AND($K103>0,$K103<5), IF($K103=4,"Inconnu", IF($K103=1, $F103*0.33, IF($K103=2, $F103*0.5+$G103*0.2, SUM(F103:G103)))), 0),"Non requis") -> 94517.3 | Q103: 1 | R103: 0 | S103: 0 | T103: 0 | Y103: 14233 | Z103: Bunia | AA103: TRUE | AB103: 0 | AC103: 1 | AD103: 1
A104: =IF(INTRO!$E$33<>0,INTRO!$E$33, " ") -> DRC | B104: ITURI | C104: Damas | D104: 130734 | E104: =IF(INTRO!$E$48="","",ROUND($D104*INTRO!$E$48,0)) -> 22225 | F104: =IF(INTRO!$E$49="","",ROUND($D104*INTRO!$E$49,0)) -> 45757 | G104: =IF(INTRO!$E$50="","",ROUND($D104*INTRO!$E$50,0)) -> 60138 | H104: 1 | I104: 1 | J104: 1 | K104: 1 | L104: 0 | M104: =IF(INTRO!$E$37="Endémique",IF($H104>0,IF($H104=4,"Inconnu",IF($H104=99,"Interrompu",$D104)),0),"Non requis") -> 130734 | N104: =IF(INTRO!$E$39="Endémique", IF($I104>0, IF($I104=4,"Inconnu",IF($I104=99,"Interrompu",$D104)), 0),"Non requis") -> 130734 | O104: =IF(INTRO!$E$41="Endémique", IF(AND($J104>1,$J104<5), IF($J104=4, "Inconnu", E104+F104), 0),"Non requis") -> 0 | P104: =IF(INTRO!$E$43="Endémique", IF(AND($K104>0,$K104<5), IF($K104=4,"Inconnu", IF($K104=1, $F104*0.33, IF($K104=2, $F104*0.5+$G104*0.2, SUM(F104:G104)))), 0),"Non requis") -> 15099.81 | Q104: 1 | R104: 1 | S104: 0 | T104: 0 | Y104: 14235 | Z104: Damas | AA104: TRUE | AB104: 0 | AC104: 1 | AD104: 1
A105: =IF(INTRO!$E$33<>0,INTRO!$E$33, " ") -> DRC | B105: ITURI | C105: Drodro | D105: 93150 | E105: =IF(INTRO!$E$48="","",ROUND($D105*INTRO!$E$48,0)) -> 15836 | F105: =IF(INTRO!$E$49="","",ROUND($D105*INTRO!$E$49,0)) -> 32603 | G105: =IF(INTRO!$E$50="","",ROUND($D105*INTRO!$E$50,0)) -> 42849 | H105: 0 | I105: 4 | J105: 1 | K105: 2 | L105: 0 | M105: =IF(INTRO!$E$37="Endémique",IF($H105>0,IF($H105=4,"Inconnu",IF($H105=99,"Interrompu",$D105)),0),"Non requis") -> 0 | N105: =IF(INTRO!$E$39="Endémique", IF($I105>0, IF($I105=4,"Inconnu",IF($I105=99,"Interrompu",$D105)), 0),"Non requis") -> Inconnu | O105: =IF(INTRO!$E$41="Endémique", IF(AND($J105>1,$J105<5), IF($J105=4, "Inconnu", E105+F105), 0),"Non requis") -> 0 | P105: =IF(INTRO!$E$43="Endémique", IF(AND($K105>0,$K105<5), IF($K105=4,"Inconnu", IF($K105=1, $F105*0.33, IF($K105=2, $F105*0.5+$G105*0.2, SUM(F105:G105)))), 0),"Non requis") -> 24871.3 | Q105: 0 | R105: 0 | S105: 0 | T105: 0 | Y105: 14237 | Z105: Drodro | AA105: TRUE | AB105: 0 | AC105: 1 | AD105: 1
A106: =IF(INTRO!$E$33<>0,INTRO!$E$33, " ") -> DRC | B106: ITURI | C106: Fataki | D106: 115716 | E106: =IF(INTRO!$E$48="","",ROUND($D106*INTRO!$E$48,0)) -> 19672 | F106: =IF(INTRO!$E$49="","",ROUND($D106*INTRO!$E$49,0)) -> 40501 | G106: =IF(INTRO!$E$50="","",ROUND($D106*INTRO!$E$50,0)) -> 53229 | H106: 1 | I106: 4 | J106: 1 | K106: 1 | L106: 0 | M106: =IF(INTRO!$E$37="Endémique",IF($H106>0,IF($H106=4,"Inconnu",IF($H106=99,"Interrompu",$D106)),0),"Non requis") -> 115716 | N106: =IF(INTRO!$E$39="Endémique", IF($I106>0, IF($I106=4,"Inconnu",IF($I106=99,"Interrompu",$D106)), 0),"Non requis") -> Inconnu | O106: =IF(INTRO!$E$41="Endémique", IF(AND($J106>1,$J106<5), IF($J106=4, "Inconnu", E106+F106), 0),"Non requis") -> 0 | P106: =IF(INTRO!$E$43="Endémique", IF(AND($K106>0,$K106<5), IF($K106=4,"Inconnu", IF($K106=1, $F106*0.33, IF($K106=2, $F106*0.5+$G106*0.2, SUM(F106:G106)))), 0),"Non requis") -> 13365.33 | Q106: 1 | R106: 0 | S106: 0 | T106: 0 | Y106: 14240 | Z106: Fataki | AA106: TRUE | AB106: 0 | AC106: 0 | AD106: 0
A107: =IF(INTRO!$E$33<>0,INTRO!$E$33, " ") -> DRC | B107: ITURI | C107: Gethy | D107: 195363 | E107: =IF(INTRO!$E$48="","",ROUND($D107*INTRO!$E$48,0)) -> 33212 | F107: =IF(INTRO!$E$49="","",ROUND($D107*INTRO!$E$49,0)) -> 68377 | G107: =IF(INTRO!$E$50="","",ROUND($D107*INTRO!$E$50,0)) -> 89867 | H107: 0 | I107: 1 | J107: 1 | K107: 2 | L107: 0 | M107: =IF(INTRO!$E$37="Endémique",IF($H107>0,IF($H107=4,"Inconnu",IF($H107=99,"Interrompu",$D107)),0),"Non requis") -> 0 | N107: =IF(INTRO!$E$39="Endémique", IF($I107>0, IF($I107=4,"Inconnu",IF($I107=99,"Interrompu",$D107)), 0),"Non requis") -> 195363 | O107: =IF(INTRO!$E$41="Endémique", IF(AND($J107>1,$J107<5), IF($J107=4, "Inconnu", E107+F107), 0),"Non requis") -> 0 | P107: =IF(INTRO!$E$43="Endémique", IF(AND($K107>0,$K107<5), IF($K107=4,"Inconnu", IF($K107=1, $F107*0.33, IF($K107=2, $F107*0.5+$G107*0.2, SUM(F107:G107)))), 0),"Non requis") -> 52161.9 | Q107: 0 | R107: 1 | S107: 0 | T107: 1 | Y107: 14242 | Z107: Gethy | AA107: TRUE | AB107: 0 | AC107: 0 | AD107: 0
A108: =IF(INTRO!$E$33<>0,INTRO!$E$33, " ") -> DRC | B108: ITURI | C108: Jiba | D108: 93338 | E108: =IF(INTRO!$E$48="","",ROUND($D108*INTRO!$E$48,0)) -> 15867 | F108: =IF(INTRO!$E$49="","",ROUND($D108*INTRO!$E$49,0)) -> 32668 | G108: =IF(INTRO!$E$50="","",ROUND($D108*INTRO!$E$50,0)) -> 42935 | H108: 1 | I108: 4 | J108: 1 | K108: 1 | L108: 0 | M108: =IF(INTRO!$E$37="Endémique",IF($H108>0,IF($H108=4,"Inconnu",IF($H108=99,"Interrompu",$D108)),0),"Non requis") -> 93338 | N108: =IF(INTRO!$E$39="Endémique", IF($I108>0, IF($I108=4,"Inconnu",IF($I108=99,"Interrompu",$D108)), 0),"Non requis") -> Inconnu | O108: =IF(INTRO!$E$41="Endémique", IF(AND($J108>1,$J108<5), IF($J108=4, "Inconnu", E108+F108), 0),"Non requis") -> 0 | P108: =IF(INTRO!$E$43="Endémique", IF(AND($K108>0,$K108<5), IF($K108=4,"Inconnu", IF($K108=1, $F108*0.33, IF($K108=2, $F108*0.5+$G108*0.2, SUM(F108:G108)))), 0),"Non requis") -> 10780.44 | Q108: 1 | R108: 0 | S108: 0 | T108: 1 | Y108: 14246 | Z108: Jiba | AA108: TRUE | AB108: 0 | AC108: 0 | AD108: 0
A109: =IF(INTRO!$E$33<>0,INTRO!$E$33, " ") -> DRC | B109: ITURI | C109: Kambale | D109: 141899 | E109: =IF(INTRO!$E$48="","",ROUND($D109*INTRO!$E$48,0)) -> 24123 | F109: =IF(INTRO!$E$49="","",ROUND($D109*INTRO!$E$49,0)) -> 49665 | G109: =IF(INTRO!$E$50="","",ROUND($D109*INTRO!$E$50,0)) -> 65274 | H109: 1 | I109: 1 | J109: 1 | K109: 0 | L109: 0 | M109: =IF(INTRO!$E$37="Endémique",IF($H109>0,IF($H109=4,"Inconnu",IF($H109=99,"Interrompu",$D109)),0),"Non requis") -> 141899 | N109: =IF(INTRO!$E$39="Endémique", IF($I109>0, IF($I109=4,"Inconnu",IF($I109=99,"Interrompu",$D109)), 0),"Non requis") -> 141899 | O109: =IF(INTRO!$E$41="Endémique", IF(AND($J109>1,$J109<5), IF($J109=4, "Inconnu", E109+F109), 0),"Non requis") -> 0 | P109: =IF(INTRO!$E$43="Endémique", IF(AND($K109>0,$K109<5), IF($K109=4,"Inconnu", IF($K109=1, $F109*0.33, IF($K109=2, $F109*0.5+$G109*0.2, SUM(F109:G109)))), 0),"Non requis") -> 0 | Q109: 1 | R109: 1 | S109: 0 | T109: 0 | Y109: 14248 | Z109: Kambale | AA109: TRUE | AB109: 0 | AC109: 0 | AD109: 0
A110: =IF(INTRO!$E$33<>0,INTRO!$E$33, " ") -> DRC | B110: ITURI | C110: Kilo | D110: 60162 | E110: =IF(INTRO!$E$48="","",ROUND($D110*INTRO!$E$48,0)) -> 10228 | F110: =IF(INTRO!$E$49="","",ROUND($D110*INTRO!$E$49,0)) -> 21057 | G110: =IF(INTRO!$E$50="","",ROUND($D110*INTRO!$E$50,0)) -> 27675 | H110: 1 | I110: 4 | J110: 2 | K110: 2 | L110: 0 | M110: =IF(INTRO!$E$37="Endémique",IF($H110>0,IF($H110=4,"Inconnu",IF($H110=99,"Interrompu",$D110)),0),"Non requis") -> 60162 | N110: =IF(INTRO!$E$39="Endémique", IF($I110>0, IF($I110=4,"Inconnu",IF($I110=99,"Interrompu",$D110)), 0),"Non requis") -> Inconnu | O110: =IF(INTRO!$E$41="Endémique", IF(AND($J110>1,$J110<5), IF($J110=4, "Inconnu", E110+F110), 0),"Non requis") -> 31285 | P110: =IF(INTRO!$E$43="Endémique", IF(AND($K110>0,$K110<5), IF($K110=4,"Inconnu", IF($K110=1, $F110*0.33, IF($K110=2, $F110*0.5+$G110*0.2, SUM(F110:G110)))), 0),"Non requis") -> 16063.5 | Q110: 1 | R110: 0 | S110: 1 | T110: 0 | Y110: 14249 | Z110: Kilo | AA110: TRUE | AB110: 0 | AC110: 1 | AD110: 1
A111: =IF(INTRO!$E$33<>0,INTRO!$E$33, " ") -> DRC | B111: ITURI | C111: Komanda | D111: 288264 | E111: =IF(INTRO!$E$48="","",ROUND($D111*INTRO!$E$48,0)) -> 49005 | F111: =IF(INTRO!$E$49="","",ROUND($D111*INTRO!$E$49,0)) -> 100892 | G111: =IF(INTRO!$E$50="","",ROUND($D111*INTRO!$E$50,0)) -> 132601 | H111: 1 | I111: 1 | J111: 1 | K111: 2 | L111: 0 | M111: =IF(INTRO!$E$37="Endémique",IF($H111>0,IF($H111=4,"Inconnu",IF($H111=99,"Interrompu",$D111)),0),"Non requis") -> 288264 | N111: =IF(INTRO!$E$39="Endémique", IF($I111>0, IF($I111=4,"Inconnu",IF($I111=99,"Interrompu",$D111)), 0),"Non requis") -> 288264 | O111: =IF(INTRO!$E$41="Endémique", IF(AND($J111>1,$J111<5), IF($J111=4, "Inconnu", E111+F111), 0),"Non requis") -> 0 | P111: =IF(INTRO!$E$43="Endémique", IF(AND($K111>0,$K111<5), IF($K111=4,"Inconnu", IF($K111=1, $F111*0.33, IF($K111=2, $F111*0.5+$G111*0.2, SUM(F111:G111)))), 0),"Non requis") -> 76966.2 | Q111: 1 | R111: 1 | S111: 0 | T111: 1 | Y111: 14250 | Z111: Komanda | AA111: TRUE | AB111: 0 | AC111: 0 | AD111: 0
A112: =IF(INTRO!$E$33<>0,INTRO!$E$33, " ") -> DRC | B112: ITURI | C112: Laybo | D112: 173123 | E112: =IF(INTRO!$E$48="","",ROUND($D112*INTRO!$E$48,0)) -> 29431 | F112: =IF(INTRO!$E$49="","",ROUND($D112*INTRO!$E$49,0)) -> 60593 | G112: =IF(INTRO!$E$50="","",ROUND($D112*INTRO!$E$50,0)) -> 79637 | H112: 0 | I112: 1 | J112: 1 | K112: 0 | L112: 0 | M112: =IF(INTRO!$E$37="Endémique",IF($H112>0,IF($H112=4,"Inconnu",IF($H112=99,"Interrompu",$D112)),0),"Non requis") -> 0 | N112: =IF(INTRO!$E$39="Endémique", IF($I112>0, IF($I112=4,"Inconnu",IF($I112=99,"Interrompu",$D112)), 0),"Non requis") -> 173123 | O112: =IF(INTRO!$E$41="Endémique", IF(AND($J112>1,$J112<5), IF($J112=4, "Inconnu", E112+F112), 0),"Non requis") -> 0 | P112: =IF(INTRO!$E$43="Endémique", IF(AND($K112>0,$K112<5), IF($K112=4,"Inconnu", IF($K112=1, $F112*0.33, IF($K112=2, $F112*0.5+$G112*0.2, SUM(F112:G112)))), 0),"Non requis") -> 0 | Q112: 0 | R112: 1 | S112: 0 | T112: 0 | Y112: 14251 | Z112: Laybo | AA112: TRUE | AB112: 0 | AC112: 0 | AD112: 0
A113: =IF(INTRO!$E$33<>0,INTRO!$E$33, " ") -> DRC | B113: ITURI | C113: Linga | D113: 127063 | E113: =IF(INTRO!$E$48="","",ROUND($D113*INTRO!$E$48,0)) -> 21601 | F113: =IF(INTRO!$E$49="","",ROUND($D113*INTRO!$E$49,0)) -> 44472 | G113: =IF(INTRO!$E$50="","",ROUND($D113*INTRO!$E$50,0)) -> 58449 | H113: 1 | I113: 4 | J113: 1 | K113: 1 | L113: 0 | M113: =IF(INTRO!$E$37="Endémique",IF($H113>0,IF($H113=4,"Inconnu",IF($H113=99,"Interrompu",$D113)),0),"Non requis") -> 127063 | N113: =IF(INTRO!$E$39="Endémique", IF($I113>0, IF($I113=4,"Inconnu",IF($I113=99,"Interrompu",$D113)), 0),"Non requis") -> Inconnu | O113: =IF(INTRO!$E$41="Endémique", IF(AND($J113>1,$J113<5), IF($J113=4, "Inconnu", E113+F113), 0),"Non requis") -> 0 | P113: =IF(INTRO!$E$43="Endémique", IF(AND($K113>0,$K113<5), IF($K113=4,"Inconnu", IF($K113=1, $F113*0.33, IF($K113=2, $F113*0.5+$G113*0.2, SUM(F113:G113)))), 0),"Non requis") -> 14675.76 | Q113: 1 | R113: 0 | S113: 0 | T113: 0 | Y113: 14253 | Z113: Linga | AA113: TRUE | AB113: 0 | AC113: 0 | AD113: 0
A114: =IF(INTRO!$E$33<>0,INTRO!$E$33, " ") -> DRC | B114: ITURI | C114: Lita | D114: 151220 | E114: =IF(INTRO!$E$48="","",ROUND($D114*INTRO!$E$48,0)) -> 25707 | F114: =IF(INTRO!$E$49="","",ROUND($D114*INTRO!$E$49,0)) -> 52927 | G114: =IF(INTRO!$E$50="","",ROUND($D114*INTRO!$E$50,0)) -> 69561 | H114: 0 | I114: 4 | J114: 1 | K114: 1 | L114: 0 | M114: =IF(INTRO!$E$37="Endémique",IF($H114>0,IF($H114=4,"Inconnu",IF($H114=99,"Interrompu",$D114)),0),"Non requis") -> 0 | N114: =IF(INTRO!$E$39="Endémique", IF($I114>0, IF($I114=4,"Inconnu",IF($I114=99,"Interrompu",$D114)), 0),"Non requis") -> Inconnu | O114: =IF(INTRO!$E$41="Endémique", IF(AND($J114>1,$J114<5), IF($J114=4, "Inconnu", E114+F114), 0),"Non requis") -> 0 | P114: =IF(INTRO!$E$43="Endémique", IF(AND($K114>0,$K114<5), IF($K114=4,"Inconnu", IF($K114=1, $F114*0.33, IF($K114=2, $F114*0.5+$G114*0.2, SUM(F114:G114)))), 0),"Non requis") -> 17465.91 | Q114: 0 | R114: 0 | S114: 0 | T114: 1 | Y114: 14254 | Z114: Lita | AA114: TRUE | AB114: 0 | AC114: 0 | AD114: 0
A115: =IF(INTRO!$E$33<>0,INTRO!$E$33, " ") -> DRC | B115: ITURI | C115: Logo | D115: 119322 | E115: =IF(INTRO!$E$48="","",ROUND($D115*INTRO!$E$48,0)) -> 20285 | F115: =IF(INTRO!$E$49="","",ROUND($D115*INTRO!$E$49,0)) -> 41763 | G115: =IF(INTRO!$E$50="","",ROUND($D115*INTRO!$E$50,0)) -> 54888 | H115: 0 | I115: 4 | J115: 1 | K115: 1 | L115: 0 | M115: =IF(INTRO!$E$37="Endémique",IF($H115>0,IF($H115=4,"Inconnu",IF($H115=99,"Interrompu",$D115)),0),"Non requis") -> 0 | N115: =IF(INTRO!$E$39="Endémique", IF($I115>0, IF($I115=4,"Inconnu",IF($I115=99,"Interrompu",$D115)), 0),"Non requis") -> Inconnu | O115: =IF(INTRO!$E$41="Endémique", IF(AND($J115>1,$J115<5), IF($J115=4, "Inconnu", E115+F115), 0),"Non requis") -> 0 | P115: =IF(INTRO!$E$43="Endémique", IF(AND($K115>0,$K115<5), IF($K115=4,"Inconnu", IF($K115=1, $F115*0.33, IF($K115=2, $F115*0.5+$G115*0.2, SUM(F115:G115)))), 0),"Non requis") -> 13781.79 | Q115: 0 | R115: 0 | S115: 0 | T115: 1 | Y115: 14255 | Z115: Logo | AA115: TRUE | AB115: 0 | AC115: 0 | AD115: 0
A116: =IF(INTRO!$E$33<>0,INTRO!$E$33, " ") -> DRC | B116: ITURI | C116: Lolwa | D116: 77706 | E116: =IF(INTRO!$E$48="","",ROUND($D116*INTRO!$E$48,0)) -> 13210 | F116: =IF(INTRO!$E$49="","",ROUND($D116*INTRO!$E$49,0)) -> 27197 | G116: =IF(INTRO!$E$50="","",ROUND($D116*INTRO!$E$50,0)) -> 35745 | H116: 1 | I116: 1 | J116: 1 | K116: 2 | L116: 0 | M116: =IF(INTRO!$E$37="Endémique",IF($H116>0,IF($H116=4,"Inconnu",IF($H116=99,"Interrompu",$D116)),0),"Non requis") -> 77706 | N116: =IF(INTRO!$E$39="Endémique", IF($I116>0, IF($I116=4,"Inconnu",IF($I116=99,"Interrompu",$D116)), 0),"Non requis") -> 77706 | O116: =IF(INTRO!$E$41="Endémique", IF(AND($J116>1,$J116<5), IF($J116=4, "Inconnu", E116+F116), 0),"Non requis") -> 0 | P116: =IF(INTRO!$E$43="Endémique", IF(AND($K116>0,$K116<5), IF($K116=4,"Inconnu", IF($K116=1, $F116*0.33, IF($K116=2, $F116*0.5+$G116*0.2, SUM(F116:G116)))), 0),"Non requis") -> 20747.5 | Q116: 1 | R116: 1 | S116: 0 | T116: 1 | Y116: 13992 | Z116: Lolwa | AA116: TRUE | AB116: 0 | AC116: 0 | AD116: 0
A117: =IF(INTRO!$E$33<>0,INTRO!$E$33, " ") -> DRC | B117: ITURI | C117: Mahagi | D117: 202074 | E117: =IF(INTRO!$E$48="","",ROUND($D117*INTRO!$E$48,0)) -> 34353 | F117: =IF(INTRO!$E$49="","",ROUND($D117*INTRO!$E$49,0)) -> 70726 | G117: =IF(INTRO!$E$50="","",ROUND($D117*INTRO!$E$50,0)) -> 92954 | H117: 0 | I117: 4 | J117: 1 | K117: 1 | L117: 0 | M117: =IF(INTRO!$E$37="Endémique",IF($H117>0,IF($H117=4,"Inconnu",IF($H117=99,"Interrompu",$D117)),0),"Non requis") -> 0 | N117: =IF(INTRO!$E$39="Endémique", IF($I117>0, IF($I117=4,"Inconnu",IF($I117=99,"Interrompu",$D117)), 0),"Non requis") -> Inconnu | O117: =IF(INTRO!$E$41="Endémique", IF(AND($J117>1,$J117<5), IF($J117=4, "Inconnu", E117+F117), 0),"Non requis") -> 0 | P117: =IF(INTRO!$E$43="Endémique", IF(AND($K117>0,$K117<5), IF($K117=4,"Inconnu", IF($K117=1, $F117*0.33, IF($K117=2, $F117*0.5+$G117*0.2, SUM(F117:G117)))), 0),"Non requis") -> 23339.58 | Q117: 0 | R117: 0 | S117: 0 | T117: 1 | Y117: 14258 | Z117: Mahagi | AA117: TRUE | AB117: 0 | AC117: 0 | AD117: 0
A118: =IF(INTRO!$E$33<>0,INTRO!$E$33, " ") -> DRC | B118: ITURI | C118: Mambasa | D118: 118515 | E118: =IF(INTRO!$E$48="","",ROUND($D118*INTRO!$E$48,0)) -> 20148 | F118: =IF(INTRO!$E$49="","",ROUND($D118*INTRO!$E$49,0)) -> 41480 | G118: =IF(INTRO!$E$50="","",ROUND($D118*INTRO!$E$50,0)) -> 54517 | H118: 1 | I118: 1 | J118: 1 | K118: 2 | L118: 0 | M118: =IF(INTRO!$E$37="Endémique",IF($H118>0,IF($H118=4,"Inconnu",IF($H118=99,"Interrompu",$D118)),0),"Non requis") -> 118515 | N118: =IF(INTRO!$E$39="Endémique", IF($I118>0, IF($I118=4,"Inconnu",IF($I118=99,"Interrompu",$D118)), 0),"Non requis") -> 118515 | O118: =IF(INTRO!$E$41="Endémique", IF(AND($J118>1,$J118<5), IF($J118=4, "Inconnu", E118+F118), 0),"Non requis") -> 0 | P118: =IF(INTRO!$E$43="Endémique", IF(AND($K118>0,$K118<5), IF($K118=4,"Inconnu", IF($K118=1, $F118*0.33, IF($K118=2, $F118*0.5+$G118*0.2, SUM(F118:G118)))), 0),"Non requis") -> 31643.4 | Q118: 1 | R118: 1 | S118: 0 | T118: 1 | Y118: 14261 | Z118: Mambasa | AA118: TRUE | AB118: 0 | AC118: 0 | AD118: 0
A119: =IF(INTRO!$E$33<>0,INTRO!$E$33, " ") -> DRC | B119: ITURI | C119: Mandima | D119: 157648 | E119: =IF(INTRO!$E$48="","",ROUND($D119*INTRO!$E$48,0)) -> 26800 | F119: =IF(INTRO!$E$49="","",ROUND($D119*INTRO!$E$49,0)) -> 55177 | G119: =IF(INTRO!$E$50="","",ROUND($D119*INTRO!$E$50,0)) -> 72518 | H119: 1 | I119: 1 | J119: 2 | K119: 1 | L119: 0 | M119: =IF(INTRO!$E$37="Endémique",IF($H119>0,IF($H119=4,"Inconnu",IF($H119=99,"Interrompu",$D119)),0),"Non requis") -> 157648 | N119: =IF(INTRO!$E$39="Endémique", IF($I119>0, IF($I119=4,"Inconnu",IF($I119=99,"Interrompu",$D119)), 0),"Non requis") -> 157648 | O119: =IF(INTRO!$E$41="Endémique", IF(AND($J119>1,$J119<5), IF($J119=4, "Inconnu", E119+F119), 0),"Non requis") -> 81977 | P119: =IF(INTRO!$E$43="Endémique", IF(AND($K119>0,$K119<5), IF($K119=4,"Inconnu", IF($K119=1, $F119*0.33, IF($K119=2, $F119*0.5+$G119*0.2, SUM(F119:G119)))), 0),"Non requis") -> 18208.41 | Q119: 1 | R119: 1 | S119: 1 | T119: 0 | Y119: 14262 | Z119: Mandima | AA119: TRUE | AB119: 0 | AC119: 1 | AD119: 1
A120: =IF(INTRO!$E$33<>0,INTRO!$E$33, " ") -> DRC | B120: ITURI | C120: Mangala | D120: 89337 | E120: =IF(INTRO!$E$48="","",ROUND($D120*INTRO!$E$48,0)) -> 15187 | F120: =IF(INTRO!$E$49="","",ROUND($D120*INTRO!$E$49,0)) -> 31268 | G120: =IF(INTRO!$E$50="","",ROUND($D120*INTRO!$E$50,0)) -> 41095 | H120: 1 | I120: 4 | J120: 2 | K120: 1 | L120: 0 | M120: =IF(INTRO!$E$37="Endémique",IF($H120>0,IF($H120=4,"Inconnu",IF($H120=99,"Interrompu",$D120)),0),"Non requis") -> 89337 | N120: =IF(INTRO!$E$39="Endémique", IF($I120>0, IF($I120=4,"Inconnu",IF($I120=99,"Interrompu",$D120)), 0),"Non requis") -> Inconnu | O120: =IF(INTRO!$E$41="Endémique", IF(AND($J120>1,$J120<5), IF($J120=4, "Inconnu", E120+F120), 0),"Non requis") -> 46455 | P120: =IF(INTRO!$E$43="Endémique", IF(AND($K120>0,$K120<5), IF($K120=4,"Inconnu", IF($K120=1, $F120*0.33, IF($K120=2, $F120*0.5+$G120*0.2, SUM(F120:G120)))), 0),"Non requis") -> 10318.44 | Q120: 1 | R120: 0 | S120: 1 | T120: 1 | Y120: 14263 | Z120: Mangala | AA120: TRUE | AB120: 0 | AC120: 0 | AD120: 0
A121: =IF(INTRO!$E$33<>0,INTRO!$E$33, " ") -> DRC | B121: ITURI | C121: Mongbwalu | D121: 169321 | E121: =IF(INTRO!$E$48="","",ROUND($D121*INTRO!$E$48,0)) -> 28785 | F121: =IF(INTRO!$E$49="","",ROUND($D121*INTRO!$E$49,0)) -> 59262 | G121: =IF(INTRO!$E$50="","",ROUND($D121*INTRO!$E$50,0)) -> 77888 | H121: 0 | I121: 1 | J121: 2 | K121: 2 | L121: 0 | M121: =IF(INTRO!$E$37="Endémique",IF($H121>0,IF($H121=4,"Inconnu",IF($H121=99,"Interrompu",$D121)),0),"Non requis") -> 0 | N121: =IF(INTRO!$E$39="Endémique", IF($I121>0, IF($I121=4,"Inconnu",IF($I121=99,"Interrompu",$D121)), 0),"Non requis") -> 169321 | O121: =IF(INTRO!$E$41="Endémique", IF(AND($J121>1,$J121<5), IF($J121=4, "Inconnu", E121+F121), 0),"Non requis") -> 88047 | P121: =IF(INTRO!$E$43="Endémique", IF(AND($K121>0,$K121<5), IF($K121=4,"Inconnu", IF($K121=1, $F121*0.33, IF($K121=2, $F121*0.5+$G121*0.2, SUM(F121:G121)))), 0),"Non requis") -> 45208.6 | Q121: 0 | R121: 1 | S121: 1 | T121: 1 | Y121: 14267 | Z121: Mongbwalu | AA121: TRUE | AB121: 0 | AC121: 0 | AD121: 0
A122: =IF(INTRO!$E$33<>0,INTRO!$E$33, " ") -> DRC | B122: ITURI | C122: Niania | D122: 82581 | E122: =IF(INTRO!$E$48="","",ROUND($D122*INTRO!$E$48,0)) -> 14039 | F122: =IF(INTRO!$E$49="","",ROUND($D122*INTRO!$E$49,0)) -> 28903 | G122: =IF(INTRO!$E$50="","",ROUND($D122*INTRO!$E$50,0)) -> 37987 | H122: 1 | I122: 1 | J122: 1 | K122: 2 | L122: 0 | M122: =IF(INTRO!$E$37="Endémique",IF($H122>0,IF($H122=4,"Inconnu",IF($H122=99,"Interrompu",$D122)),0),"Non requis") -> 82581 | N122: =IF(INTRO!$E$39="Endémique", IF($I122>0, IF($I122=4,"Inconnu",IF($I122=99,"Interrompu",$D122)), 0),"Non requis") -> 82581 | O122: =IF(INTRO!$E$41="Endémique", IF(AND($J122>1,$J122<5), IF($J122=4, "Inconnu", E122+F122), 0),"Non requis") -> 0 | P122: =IF(INTRO!$E$43="Endémique", IF(AND($K122>0,$K122<5), IF($K122=4,"Inconnu", IF($K122=1, $F122*0.33, IF($K122=2, $F122*0.5+$G122*0.2, SUM(F122:G122)))), 0),"Non requis") -> 22048.9 | Q122: 1 | R122: 1 | S122: 0 | T122: 1 | Y122: 14269 | Z122: Niania | AA122: TRUE | AB122: 0 | AC122: 0 | AD122: 0
A123: =IF(INTRO!$E$33<>0,INTRO!$E$33, " ") -> DRC | B123: ITURI | C123: Nizi | D123: 172355 | E123: =IF(INTRO!$E$48="","",ROUND($D123*INTRO!$E$48,0)) -> 29300 | F123: =IF(INTRO!$E$49="","",ROUND($D123*INTRO!$E$49,0)) -> 60324 | G123: =IF(INTRO!$E$50="","",ROUND($D123*INTRO!$E$50,0)) -> 79283 | H123: 1 | I123: 4 | J123: 2 | K123: 1 | L123: 0 | M123: =IF(INTRO!$E$37="Endémique",IF($H123>0,IF($H123=4,"Inconnu",IF($H123=99,"Interrompu",$D123)),0),"Non requis") -> 172355 | N123: =IF(INTRO!$E$39="Endémique", IF($I123>0, IF($I123=4,"Inconnu",IF($I123=99,"Interrompu",$D123)), 0),"Non requis") -> Inconnu | O123: =IF(INTRO!$E$41="Endémique", IF(AND($J123>1,$J123<5), IF($J123=4, "Inconnu", E123+F123), 0),"Non requis") -> 89624 | P123: =IF(INTRO!$E$43="Endémique", IF(AND($K123>0,$K123<5), IF($K123=4,"Inconnu", IF($K123=1, $F123*0.33, IF($K123=2, $F123*0.5+$G123*0.2, SUM(F123:G123)))), 0),"Non requis") -> 19906.92 | Q123: 1 | R123: 0 | S123: 1 | T123: 1 | Y123: 14270 | Z123: Nizi | AA123: TRUE | AB123: 0 | AC123: 0 | AD123: 0
A124: =IF(INTRO!$E$33<>0,INTRO!$E$33, " ") -> DRC | B124: ITURI | C124: Nyankunde | D124: 114217 | E124: =IF(INTRO!$E$48="","",ROUND($D124*INTRO!$E$48,0)) -> 19417 | F124: =IF(INTRO!$E$49="","",ROUND($D124*INTRO!$E$49,0)) -> 39976 | G124: =IF(INTRO!$E$50="","",ROUND($D124*INTRO!$E$50,0)) -> 52540 | H124: 1 | I124: 1 | J124: 1 | K124: 2 | L124: 0 | M124: =IF(INTRO!$E$37="Endémique",IF($H124>0,IF($H124=4,"Inconnu",IF($H124=99,"Interrompu",$D124)),0),"Non requis") -> 114217 | N124: =IF(INTRO!$E$39="Endémique", IF($I124>0, IF($I124=4,"Inconnu",IF($I124=99,"Interrompu",$D124)), 0),"Non requis") -> 114217 | O124: =IF(INTRO!$E$41="Endémique", IF(AND($J124>1,$J124<5), IF($J124=4, "Inconnu", E124+F124), 0),"Non requis") -> 0 | P124: =IF(INTRO!$E$43="Endémique", IF(AND($K124>0,$K124<5), IF($K124=4,"Inconnu", IF($K124=1, $F124*0.33, IF($K124=2, $F124*0.5+$G124*0.2, SUM(F124:G124)))), 0),"Non requis") -> 30496 | Q124: 1 | R124: 1 | S124: 0 | T124: 1 | Y124: 14271 | Z124: Nyankunde | AA124: TRUE | AB124: 0 | AC124: 0 | AD124: 0
A125: =IF(INTRO!$E$33<>0,INTRO!$E$33, " ") -> DRC | B125: ITURI | C125: Nyarambe | D125: 247603 | E125: =IF(INTRO!$E$48="","",ROUND($D125*INTRO!$E$48,0)) -> 42093 | F125: =IF(INTRO!$E$49="","",ROUND($D125*INTRO!$E$49,0)) -> 86661 | G125: =IF(INTRO!$E$50="","",ROUND($D125*INTRO!$E$50,0)) -> 113897 | H125: 1 | I125: 4 | J125: 0 | K125: 3 | L125: 0 | M125: =IF(INTRO!$E$37="Endémique",IF($H125>0,IF($H125=4,"Inconnu",IF($H125=99,"Interrompu",$D125)),0),"Non requis") -> 247603 | N125: =IF(INTRO!$E$39="Endémique", IF($I125>0, IF($I125=4,"Inconnu",IF($I125=99,"Interrompu",$D125)), 0),"Non requis") -> Inconnu | O125: =IF(INTRO!$E$41="Endémique", IF(AND($J125>1,$J125<5), IF($J125=4, "Inconnu", E125+F125), 0),"Non requis") -> 0 | P125: =IF(INTRO!$E$43="Endémique", IF(AND($K125>0,$K125<5), IF($K125=4,"Inconnu", IF($K125=1, $F125*0.33, IF($K125=2, $F125*0.5+$G125*0.2, SUM(F125:G125)))), 0),"Non requis") -> 200558 | Q125: 1 | R125: 0 | S125: 0 | T125: 1 | Y125: 14272 | Z125: Nyarambe | AA125: TRUE | AB125: 0 | AC125: 1 | AD125: 1
A126: =IF(INTRO!$E$33<>0,INTRO!$E$33, " ") -> DRC | B126: ITURI | C126: Rethy | D126: 231090 | E126: =IF(INTRO!$E$48="","",ROUND($D126*INTRO!$E$48,0)) -> 39285 | F126: =IF(INTRO!$E$49="","",ROUND($D126*INTRO!$E$49,0)) -> 80882 | G126: =IF(INTRO!$E$50="","",ROUND($D126*INTRO!$E$50,0)) -> 106301 | H126: 1 | I126: 1 | J126: 1 | K126: 1 | L126: 0 | M126: =IF(INTRO!$E$37="Endémique",IF($H126>0,IF($H126=4,"Inconnu",IF($H126=99,"Interrompu",$D126)),0),"Non requis") -> 231090 | N126: =IF(INTRO!$E$39="Endémique", IF($I126>0, IF($I126=4,"Inconnu",IF($I126=99,"Interrompu",$D126)), 0),"Non requis") -> 231090 | O126: =IF(INTRO!$E$41="Endémique", IF(AND($J126>1,$J126<5), IF($J126=4, "Inconnu", E126+F126), 0),"Non requis") -> 0 | P126: =IF(INTRO!$E$43="Endémique", IF(AND($K126>0,$K126<5), IF($K126=4,"Inconnu", IF($K126=1, $F126*0.33, IF($K126=2, $F126*0.5+$G126*0.2, SUM(F126:G126)))), 0),"Non requis") -> 26691.06 | Q126: 1 | R126: 1 | S126: 0 | T126: 0 | Y126: 14277 | Z126: Rethy | AA126: TRUE | AB126: 0 | AC126: 1 | AD126: 1
A127: =IF(INTRO!$E$33<>0,INTRO!$E$33, " ") -> DRC | B127: ITURI | C127: Rimba | D127: 254079 | E127: =IF(INTRO!$E$48="","",ROUND($D127*INTRO!$E$48,0)) -> 43193 | F127: =IF(INTRO!$E$49="","",ROUND($D127*INTRO!$E$49,0)) -> 88928 | G127: =IF(INTRO!$E$50="","",ROUND($D127*INTRO!$E$50,0)) -> 116876 | H127: 0 | I127: 1 | J127: 1 | K127: 1 | L127: 0 | M127: =IF(INTRO!$E$37="Endémique",IF($H127>0,IF($H127=4,"Inconnu",IF($H127=99,"Interrompu",$D127)),0),"Non requis") -> 0 | N127: =IF(INTRO!$E$39="Endémique", IF($I127>0, IF($I127=4,"Inconnu",IF($I127=99,"Interrompu",$D127)), 0),"Non requis") -> 254079 | O127: =IF(INTRO!$E$41="Endémique", IF(AND($J127>1,$J127<5), IF($J127=4, "Inconnu", E127+F127), 0),"Non requis") -> 0 | P127: =IF(INTRO!$E$43="Endémique", IF(AND($K127>0,$K127<5), IF($K127=4,"Inconnu", IF($K127=1, $F127*0.33, IF($K127=2, $F127*0.5+$G127*0.2, SUM(F127:G127)))), 0),"Non requis") -> 29346.24 | Q127: 0 | R127: 1 | S127: 0 | T127: 0 | Y127: 14278 | Z127: Rimba | AA127: TRUE | AB127: 0 | AC127: 1 | AD127: 1
A128: =IF(INTRO!$E$33<>0,INTRO!$E$33, " ") -> DRC | B128: ITURI | C128: Rwampara | D128: 163967 | E128: =IF(INTRO!$E$48="","",ROUND($D128*INTRO!$E$48,0)) -> 27874 | F128: =IF(INTRO!$E$49="","",ROUND($D128*INTRO!$E$49,0)) -> 57388 | G128: =IF(INTRO!$E$50="","",ROUND($D128*INTRO!$E$50,0)) -> 75425 | H128: 1 | I128: 1 | J128: 1 | K128: 2 | L128: 0 | M128: =IF(INTRO!$E$37="Endémique",IF($H128>0,IF($H128=4,"Inconnu",IF($H128=99,"Interrompu",$D128)),0),"Non requis") -> 163967 | N128: =IF(INTRO!$E$39="Endémique", IF($I128>0, IF($I128=4,"Inconnu",IF($I128=99,"Interrompu",$D128)), 0),"Non requis") -> 163967 | O128: =IF(INTRO!$E$41="Endémique", IF(AND($J128>1,$J128<5), IF($J128=4, "Inconnu", E128+F128), 0),"Non requis") -> 0 | P128: =IF(INTRO!$E$43="Endémique", IF(AND($K128>0,$K128<5), IF($K128=4,"Inconnu", IF($K128=1, $F128*0.33, IF($K128=2, $F128*0.5+$G128*0.2, SUM(F128:G128)))), 0),"Non requis") -> 43779 | Q128: 1 | R128: 1 | S128: 0 | T128: 1 | Y128: 14280 | Z128: Rwampara | AA128: TRUE | AB128: 0 | AC128: 0 | AD128: 0
A129: =IF(INTRO!$E$33<>0,INTRO!$E$33, " ") -> DRC | B129: ITURI | C129: Tchomia | D129: 98837 | E129: =IF(INTRO!$E$48="","",ROUND($D129*INTRO!$E$48,0)) -> 16802 | F129: =IF(INTRO!$E$49="","",ROUND($D129*INTRO!$E$49,0)) -> 34593 | G129: =IF(INTRO!$E$50="","",ROUND($D129*INTRO!$E$50,0)) -> 45465 | H129: 1 | I129: 4 | J129: 1 | K129: 3 | L129: 0 | M129: =IF(INTRO!$E$37="Endémique",IF($H129>0,IF($H129=4,"Inconnu",IF($H129=99,"Interrompu",$D129)),0),"Non requis") -> 98837 | N129: =IF(INTRO!$E$39="Endémique", IF($I129>0, IF($I129=4,"Inconnu",IF($I129=99,"Interrompu",$D129)), 0),"Non requis") -> Inconnu | O129: =IF(INTRO!$E$41="Endémique", IF(AND($J129>1,$J129<5), IF($J129=4, "Inconnu", E129+F129), 0),"Non requis") -> 0 | P129: =IF(INTRO!$E$43="Endémique", IF(AND($K129>0,$K129<5), IF($K129=4,"Inconnu", IF($K129=1, $F129*0.33, IF($K129=2, $F129*0.5+$G129*0.2, SUM(F129:G129)))), 0),"Non requis") -> 80058 | Q129: 1 | R129: 0 | S129: 0 | T129: 1 | Y129: 14281 | Z129: Tchomia | AA129: TRUE | AB129: 0 | AC129: 1 | AD129: 1
A130: =IF(INTRO!$E$33<>0,INTRO!$E$33, " ") -> DRC | B130: Kasai | C130: Banga Lubaka | D130: 323818 | E130: =IF(INTRO!$E$48="","",ROUND($D130*INTRO!$E$48,0)) -> 55049 | F130: =IF(INTRO!$E$49="","",ROUND($D130*INTRO!$E$49,0)) -> 113336 | G130: =IF(INTRO!$E$50="","",ROUND($D130*INTRO!$E$50,0)) -> 148956 | H130: 1 | I130: 1 | J130: 3 | K130: 0 | L130: 0 | M130: =IF(INTRO!$E$37="Endémique",IF($H130>0,IF($H130=4,"Inconnu",IF($H130=99,"Interrompu",$D130)),0),"Non requis") -> 323818 | N130: =IF(INTRO!$E$39="Endémique", IF($I130>0, IF($I130=4,"Inconnu",IF($I130=99,"Interrompu",$D130)), 0),"Non requis") -> 323818 | O130: =IF(INTRO!$E$41="Endémique", IF(AND($J130>1,$J130<5), IF($J130=4, "Inconnu", E130+F130), 0),"Non requis") -> 168385 | P130: =IF(INTRO!$E$43="Endémique", IF(AND($K130>0,$K130<5), IF($K130=4,"Inconnu", IF($K130=1, $F130*0.33, IF($K130=2, $F130*0.5+$G130*0.2, SUM(F130:G130)))), 0),"Non requis") -> 0 | Q130: 1 | R130: 1 | S130: 1 | T130: 0 | Y130: 13968 | Z130: Banga Lubaka | AA130: TRUE | AB130: 0 | AC130: 0 | AD130: 0
A131: =IF(INTRO!$E$33<>0,INTRO!$E$33, " ") -> DRC | B131: Kasai | C131: Bulape | D131: 204857 | E131: =IF(INTRO!$E$48="","",ROUND($D131*INTRO!$E$48,0)) -> 34826 | F131: =IF(INTRO!$E$49="","",ROUND($D131*INTRO!$E$49,0)) -> 71700 | G131: =IF(INTRO!$E$50="","",ROUND($D131*INTRO!$E$50,0)) -> 94234 | H131: 0 | I131: 1 | J131: 2 | K131: 0 | L131: 0 | M131: =IF(INTRO!$E$37="Endémique",IF($H131>0,IF($H131=4,"Inconnu",IF($H131=99,"Interrompu",$D131)),0),"Non requis") -> 0 | N131: =IF(INTRO!$E$39="Endémique", IF($I131>0, IF($I131=4,"Inconnu",IF($I131=99,"Interrompu",$D131)), 0),"Non requis") -> 204857 | O131: =IF(INTRO!$E$41="Endémique", IF(AND($J131>1,$J131<5), IF($J131=4, "Inconnu", E131+F131), 0),"Non requis") -> 106526 | P131: =IF(INTRO!$E$43="Endémique", IF(AND($K131>0,$K131<5), IF($K131=4,"Inconnu", IF($K131=1, $F131*0.33, IF($K131=2, $F131*0.5+$G131*0.2, SUM(F131:G131)))), 0),"Non requis") -> 0 | Q131: 0 | R131: 1 | S131: 1 | T131: 0 | Y131: 13972 | Z131: Bulape | AA131: TRUE | AB131: 0 | AC131: 0 | AD131: 0
A132: =IF(INTRO!$E$33<>0,INTRO!$E$33, " ") -> DRC | B132: Kasai | C132: Dekese | D132: 224947 | E132: =IF(INTRO!$E$48="","",ROUND($D132*INTRO!$E$48,0)) -> 38241 | F132: =IF(INTRO!$E$49="","",ROUND($D132*INTRO!$E$49,0)) -> 78731 | G132: =IF(INTRO!$E$50="","",ROUND($D132*INTRO!$E$50,0)) -> 103476 | H132: 0 | I132: 1 | J132: 3 | K132: 0 | L132: 0 | M132: =IF(INTRO!$E$37="Endémique",IF($H132>0,IF($H132=4,"Inconnu",IF($H132=99,"Interrompu",$D132)),0),"Non requis") -> 0 | N132: =IF(INTRO!$E$39="Endémique", IF($I132>0, IF($I132=4,"Inconnu",IF($I132=99,"Interrompu",$D132)), 0),"Non requis") -> 224947 | O132: =IF(INTRO!$E$41="Endémique", IF(AND($J132>1,$J132<5), IF($J132=4, "Inconnu", E132+F132), 0),"Non requis") -> 116972 | P132: =IF(INTRO!$E$43="Endémique", IF(AND($K132>0,$K132<5), IF($K132=4,"Inconnu", IF($K132=1, $F132*0.33, IF($K132=2, $F132*0.5+$G132*0.2, SUM(F132:G132)))), 0),"Non requis") -> 0 | Q132: 0 | R132: 1 | S132: 1 | T132: 0 | Y132: 13973 | Z132: Dekese | AA132: TRUE | AB132: 0 | AC132: 0 | AD132: 0
A133: =IF(INTRO!$E$33<>0,INTRO!$E$33, " ") -> DRC | B133: Kasai | C133: Ilebo | D133: 222068 | E133: =IF(INTRO!$E$48="","",ROUND($D133*INTRO!$E$48,0)) -> 37752 | F133: =IF(INTRO!$E$49="","",ROUND($D133*INTRO!$E$49,0)) -> 77724 | G133: =IF(INTRO!$E$50="","",ROUND($D133*INTRO!$E$50,0)) -> 102151 | H133: 1 | I133: 1 | J133: 2 | K133: 0 | L133: 0 | M133: =IF(INTRO!$E$37="Endémique",IF($H133>0,IF($H133=4,"Inconnu",IF($H133=99,"Interrompu",$D133)),0),"Non requis") -> 222068 | N133: =IF(INTRO!$E$39="Endémique", IF($I133>0, IF($I133=4,"Inconnu",IF($I133=99,"Interrompu",$D133)), 0),"Non requis") -> 222068 | O133: =IF(INTRO!$E$41="Endémique", IF(AND($J133>1,$J133<5), IF($J133=4, "Inconnu", E133+F133), 0),"Non requis") -> 115476 | P133: =IF(INTRO!$E$43="Endémique", IF(AND($K133>0,$K133<5), IF($K133=4,"Inconnu", IF($K133=1, $F133*0.33, IF($K133=2, $F133*0.5+$G133*0.2, SUM(F133:G133)))), 0),"Non requis") -> 0 | Q133: 1 | R133: 1 | S133: 1 | T133: 0 | Y133: 13976 | Z133: Ilebo | AA133: TRUE | AB133: 0 | AC133: 0 | AD133: 0
A134: =IF(INTRO!$E$33<>0,INTRO!$E$33, " ") -> DRC | B134: Kasai | C134: Kakenge | D134: 207860 | E134: =IF(INTRO!$E$48="","",ROUND($D134*INTRO!$E$48,0)) -> 35336 | F134: =IF(INTRO!$E$49="","",ROUND($D134*INTRO!$E$49,0)) -> 72751 | G134: =IF(INTRO!$E$50="","",ROUND($D134*INTRO!$E$50,0)) -> 95616 | H134: 0 | I134: 1 | J134: 2 | K134: 0 | L134: 0 | M134: =IF(INTRO!$E$37="Endémique",IF($H134>0,IF($H134=4,"Inconnu",IF($H134=99,"Interrompu",$D134)),0),"Non requis") -> 0 | N134: =IF(INTRO!$E$39="Endémique", IF($I134>0, IF($I134=4,"Inconnu",IF($I134=99,"Interrompu",$D134)), 0),"Non requis") -> 207860 | O134: =IF(INTRO!$E$41="Endémique", IF(AND($J134>1,$J134<5), IF($J134=4, "Inconnu", E134+F134), 0),"Non requis") -> 108087 | P134: =IF(INTRO!$E$43="Endémique", IF(AND($K134>0,$K134<5), IF($K134=4,"Inconnu", IF($K134=1, $F134*0.33, IF($K134=2, $F134*0.5+$G134*0.2, SUM(F134:G134)))), 0),"Non requis") -> 0 | Q134: 0 | R134: 1 | S134: 1 | T134: 0 | Y134: 13977 | Z134: Kakenge | AA134: TRUE | AB134: 0 | AC134: 0 | AD134: 0
A135: =IF(INTRO!$E$33<>0,INTRO!$E$33, " ") -> DRC | B135: Kasai | C135: Kalonda | D135: 492285 | E135: =IF(INTRO!$E$48="","",ROUND($D135*INTRO!$E$48,0)) -> 83688 | F135: =IF(INTRO!$E$49="","",ROUND($D135*INTRO!$E$49,0)) -> 172300 | G135: =IF(INTRO!$E$50="","",ROUND($D135*INTRO!$E$50,0)) -> 226451 | H135: 0 | I135: 1 | J135: 1 | K135: 0 | L135: 0 | M135: =IF(INTRO!$E$37="Endémique",IF($H135>0,IF($H135=4,"Inconnu",IF($H135=99,"Interrompu",$D135)),0),"Non requis") -> 0 | N135: =IF(INTRO!$E$39="Endémique", IF($I135>0, IF($I135=4,"Inconnu",IF($I135=99,"Interrompu",$D135)), 0),"Non requis") -> 492285 | O135: =IF(INTRO!$E$41="Endémique", IF(AND($J135>1,$J135<5), IF($J135=4, "Inconnu", E135+F135), 0),"Non requis") -> 0 | P135: =IF(INTRO!$E$43="Endémique", IF(AND($K135>0,$K135<5), IF($K135=4,"Inconnu", IF($K135=1, $F135*0.33, IF($K135=2, $F135*0.5+$G135*0.2, SUM(F135:G135)))), 0),"Non requis") -> 0 | Q135: 0 | R135: 1 | S135: 0 | T135: 0 | Y135: 13978 | Z135: Kalonda | AA135: TRUE | AB135: 0 | AC135: 0 | AD135: 0
A136: =IF(INTRO!$E$33<>0,INTRO!$E$33, " ") -> DRC | B136: Kasai | C136: Kamonya | D136: 475108 | E136: =IF(INTRO!$E$48="","",ROUND($D136*INTRO!$E$48,0)) -> 80768 | F136: =IF(INTRO!$E$49="","",ROUND($D136*INTRO!$E$49,0)) -> 166288 | G136: =IF(INTRO!$E$50="","",ROUND($D136*INTRO!$E$50,0)) -> 218550 | H136: 1 | I136: 1 | J136: 1 | K136: 0 | L136: 0 | M136: =IF(INTRO!$E$37="Endémique",IF($H136>0,IF($H136=4,"Inconnu",IF($H136=99,"Interrompu",$D136)),0),"Non requis") -> 475108 | N136: =IF(INTRO!$E$39="Endémique", IF($I136>0, IF($I136=4,"Inconnu",IF($I136=99,"Interrompu",$D136)), 0),"Non requis") -> 475108 | O136: =IF(INTRO!$E$41="Endémique", IF(AND($J136>1,$J136<5), IF($J136=4, "Inconnu", E136+F136), 0),"Non requis") -> 0 | P136: =IF(INTRO!$E$43="Endémique", IF(AND($K136>0,$K136<5), IF($K136=4,"Inconnu", IF($K136=1, $F136*0.33, IF($K136=2, $F136*0.5+$G136*0.2, SUM(F136:G136)))), 0),"Non requis") -> 0 | Q136: 1 | R136: 1 | S136: 0 | T136: 0 | Y136: 14340 | Z136: Kamonya | AA136: TRUE | AB136: 0 | AC136: 0 | AD136: 0
A137: =IF(INTRO!$E$33<>0,INTRO!$E$33, " ") -> DRC | B137: Kasai | C137: Kamwesha | D137: 532921 | E137: =IF(INTRO!$E$48="","",ROUND($D137*INTRO!$E$48,0)) -> 90597 | F137: =IF(INTRO!$E$49="","",ROUND($D137*INTRO!$E$49,0)) -> 186522 | G137: =IF(INTRO!$E$50="","",ROUND($D137*INTRO!$E$50,0)) -> 245144 | H137: 1 | I137: 1 | J137: 1 | K137: 0 | L137: 0 | M137: =IF(INTRO!$E$37="Endémique",IF($H137>0,IF($H137=4,"Inconnu",IF($H137=99,"Interrompu",$D137)),0),"Non requis") -> 532921 | N137: =IF(INTRO!$E$39="Endémique", IF($I137>0, IF($I137=4,"Inconnu",IF($I137=99,"Interrompu",$D137)), 0),"Non requis") -> 532921 | O137: =IF(INTRO!$E$41="Endémique", IF(AND($J137>1,$J137<5), IF($J137=4, "Inconnu", E137+F137), 0),"Non requis") -> 0 | P137: =IF(INTRO!$E$43="Endémique", IF(AND($K137>0,$K137<5), IF($K137=4,"Inconnu", IF($K137=1, $F137*0.33, IF($K137=2, $F137*0.5+$G137*0.2, SUM(F137:G137)))), 0),"Non requis") -> 0 | Q137: 1 | R137: 1 | S137: 0 | T137: 0 | Y137: 13979 | Z137: Kamwesha | AA137: TRUE | AB137: 0 | AC137: 0 | AD137: 0
A138: =IF(INTRO!$E$33<>0,INTRO!$E$33, " ") -> DRC | B138: Kasai | C138: Kanzala | D138: 390190 | E138: =IF(INTRO!$E$48="","",ROUND($D138*INTRO!$E$48,0)) -> 66332 | F138: =IF(INTRO!$E$49="","",ROUND($D138*INTRO!$E$49,0)) -> 136567 | G138: =IF(INTRO!$E$50="","",ROUND($D138*INTRO!$E$50,0)) -> 179487 | H138: 0 | I138: 1 | J138: 1 | K138: 0 | L138: 0 | M138: =IF(INTRO!$E$37="Endémique",IF($H138>0,IF($H138=4,"Inconnu",IF($H138=99,"Interrompu",$D138)),0),"Non requis") -> 0 | N138: =IF(INTRO!$E$39="Endémique", IF($I138>0, IF($I138=4,"Inconnu",IF($I138=99,"Interrompu",$D138)), 0),"Non requis") -> 390190 | O138: =IF(INTRO!$E$41="Endémique", IF(AND($J138>1,$J138<5), IF($J138=4, "Inconnu", E138+F138), 0),"Non requis") -> 0 | P138: =IF(INTRO!$E$43="Endémique", IF(AND($K138>0,$K138<5), IF($K138=4,"Inconnu", IF($K138=1, $F138*0.33, IF($K138=2, $F138*0.5+$G138*0.2, SUM(F138:G138)))), 0),"Non requis") -> 0 | Q138: 0 | R138: 1 | S138: 0 | T138: 0 | Y138: 13981 | Z138: Kanzala | AA138: =Z138=C138 -> TRUE | AB138: 0 | AC138: 0 | AD138: =AB138+AC138 -> 0
A139: =IF(INTRO!$E$33<>0,INTRO!$E$33, " ") -> DRC | B139: Kasai | C139: Kitangwa | D139: 323818 | E139: =IF(INTRO!$E$48="","",ROUND($D139*INTRO!$E$48,0)) -> 55049 | F139: =IF(INTRO!$E$49="","",ROUND($D139*INTRO!$E$49,0)) -> 113336 | G139: =IF(INTRO!$E$50="","",ROUND($D139*INTRO!$E$50,0)) -> 148956 | H139: 1 | I139: 1 | J139: 1 | K139: 0 | L139: 0 | M139: =IF(INTRO!$E$37="Endémique",IF($H139>0,IF($H139=4,"Inconnu",IF($H139=99,"Interrompu",$D139)),0),"Non requis") -> 323818 | N139: =IF(INTRO!$E$39="Endémique", IF($I139>0, IF($I139=4,"Inconnu",IF($I139=99,"Interrompu",$D139)), 0),"Non requis") -> 323818 | O139: =IF(INTRO!$E$41="Endémique", IF(AND($J139>1,$J139<5), IF($J139=4, "Inconnu", E139+F139), 0),"Non requis") -> 0 | P139: =IF(INTRO!$E$43="Endémique", IF(AND($K139>0,$K139<5), IF($K139=4,"Inconnu", IF($K139=1, $F139*0.33, IF($K139=2, $F139*0.5+$G139*0.2, SUM(F139:G139)))), 0),"Non requis") -> 0 | Q139: 1 | R139: 1 | S139: 0 | T139: 0 | Y139: 13985 | Z139: Kitangwa | AA139: TRUE | AB139: 0 | AC139: 0 | AD139: 0
A140: =IF(INTRO!$E$33<>0,INTRO!$E$33, " ") -> DRC | B140: Kasai | C140: Luebo | D140: 98825 | E140: =IF(INTRO!$E$48="","",ROUND($D140*INTRO!$E$48,0)) -> 16800 | F140: =IF(INTRO!$E$49="","",ROUND($D140*INTRO!$E$49,0)) -> 34589 | G140: =IF(INTRO!$E$50="","",ROUND($D140*INTRO!$E$50,0)) -> 45460 | H140: 1 | I140: 1 | J140: 3 | K140: 1 | L140: 0 | M140: =IF(INTRO!$E$37="Endémique",IF($H140>0,IF($H140=4,"Inconnu",IF($H140=99,"Interrompu",$D140)),0),"Non requis") -> 98825 | N140: =IF(INTRO!$E$39="Endémique", IF($I140>0, IF($I140=4,"Inconnu",IF($I140=99,"Interrompu",$D140)), 0),"Non requis") -> 98825 | O140: =IF(INTRO!$E$41="Endémique", IF(AND($J140>1,$J140<5), IF($J140=4, "Inconnu", E140+F140), 0),"Non requis") -> 51389 | P140: =IF(INTRO!$E$43="Endémique", IF(AND($K140>0,$K140<5), IF($K140=4,"Inconnu", IF($K140=1, $F140*0.33, IF($K140=2, $F140*0.5+$G140*0.2, SUM(F140:G140)))), 0),"Non requis") -> 11414.37 | Q140: 1 | R140: 1 | S140: 1 | T140: 0 | Y140: 13989 | Z140: Luebo | AA140: TRUE | AB140: 0 | AC140: 1 | AD140: 1
A141: =IF(INTRO!$E$33<>0,INTRO!$E$33, " ") -> DRC | B141: Kasai | C141: Mikope | D141: 233463 | E141: =IF(INTRO!$E$48="","",ROUND($D141*INTRO!$E$48,0)) -> 39689 | F141: =IF(INTRO!$E$49="","",ROUND($D141*INTRO!$E$49,0)) -> 81712 | G141: =IF(INTRO!$E$50="","",ROUND($D141*INTRO!$E$50,0)) -> 107393 | H141: 1 | I141: 1 | J141: 3 | K141: 0 | L141: 0 | M141: =IF(INTRO!$E$37="Endémique",IF($H141>0,IF($H141=4,"Inconnu",IF($H141=99,"Interrompu",$D141)),0),"Non requis") -> 233463 | N141: =IF(INTRO!$E$39="Endémique", IF($I141>0, IF($I141=4,"Inconnu",IF($I141=99,"Interrompu",$D141)), 0),"Non requis") -> 233463 | O141: =IF(INTRO!$E$41="Endémique", IF(AND($J141>1,$J141<5), IF($J141=4, "Inconnu", E141+F141), 0),"Non requis") -> 121401 | P141: =IF(INTRO!$E$43="Endémique", IF(AND($K141>0,$K141<5), IF($K141=4,"Inconnu", IF($K141=1, $F141*0.33, IF($K141=2, $F141*0.5+$G141*0.2, SUM(F141:G141)))), 0),"Non requis") -> 0 | Q141: 1 | R141: 1 | S141: 1 | T141: 0 | Y141: 13994 | Z141: Mikope | AA141: TRUE | AB141: 0 | AC141: 0 | AD141: 0
A142: =IF(INTRO!$E$33<>0,INTRO!$E$33, " ") -> DRC | B142: Kasai | C142: Mushenge | D142: 202968 | E142: =IF(INTRO!$E$48="","",ROUND($D142*INTRO!$E$48,0)) -> 34505 | F142: =IF(INTRO!$E$49="","",ROUND($D142*INTRO!$E$49,0)) -> 71039 | G142: =IF(INTRO!$E$50="","",ROUND($D142*INTRO!$E$50,0)) -> 93365 | H142: 1 | I142: 1 | J142: 3 | K142: 0 | L142: 0 | M142: =IF(INTRO!$E$37="Endémique",IF($H142>0,IF($H142=4,"Inconnu",IF($H142=99,"Interrompu",$D142)),0),"Non requis") -> 202968 | N142: =IF(INTRO!$E$39="Endémique", IF($I142>0, IF($I142=4,"Inconnu",IF($I142=99,"Interrompu",$D142)), 0),"Non requis") -> 202968 | O142: =IF(INTRO!$E$41="Endémique", IF(AND($J142>1,$J142<5), IF($J142=4, "Inconnu", E142+F142), 0),"Non requis") -> 105544 | P142: =IF(INTRO!$E$43="Endémique", IF(AND($K142>0,$K142<5), IF($K142=4,"Inconnu", IF($K142=1, $F142*0.33, IF($K142=2, $F142*0.5+$G142*0.2, SUM(F142:G142)))), 0),"Non requis") -> 0 | Q142: 1 | R142: 1 | S142: 1 | T142: 0 | Y142: 13995 | Z142: Mushenge | AA142: TRUE | AB142: 0 | AC142: 0 | AD142: 0
A143: =IF(INTRO!$E$33<>0,INTRO!$E$33, " ") -> DRC | B143: Kasai | C143: Mutenna | D143: 336190 | E143: =IF(INTRO!$E$48="","",ROUND($D143*INTRO!$E$48,0)) -> 57152 | F143: =IF(INTRO!$E$49="","",ROUND($D143*INTRO!$E$49,0)) -> 117667 | G143: =IF(INTRO!$E$50="","",ROUND($D143*INTRO!$E$50,0)) -> 154647 | H143: 1 | I143: 1 | J143: 1 | K143: 0 | L143: 0 | M143: =IF(INTRO!$E$37="Endémique",IF($H143>0,IF($H143=4,"Inconnu",IF($H143=99,"Interrompu",$D143)),0),"Non requis") -> 336190 | N143: =IF(INTRO!$E$39="Endémique", IF($I143>0, IF($I143=4,"Inconnu",IF($I143=99,"Interrompu",$D143)), 0),"Non requis") -> 336190 | O143: =IF(INTRO!$E$41="Endémique", IF(AND($J143>1,$J143<5), IF($J143=4, "Inconnu", E143+F143), 0),"Non requis") -> 0 | P143: =IF(INTRO!$E$43="Endémique", IF(AND($K143>0,$K143<5), IF($K143=4,"Inconnu", IF($K143=1, $F143*0.33, IF($K143=2, $F143*0.5+$G143*0.2, SUM(F143:G143)))), 0),"Non requis") -> 0 | Q143: 1 | R143: 1 | S143: 0 | T143: 0 | Y143: 13997 | Z143: Mutenna | AA143: TRUE | AB143: 0 | AC143: 0 | AD143: 0
A144: =IF(INTRO!$E$33<>0,INTRO!$E$33, " ") -> DRC | B144: Kasai | C144: Mweka | D144: 255874 | E144: =IF(INTRO!$E$48="","",ROUND($D144*INTRO!$E$48,0)) -> 43499 | F144: =IF(INTRO!$E$49="","",ROUND($D144*INTRO!$E$49,0)) -> 89556 | G144: =IF(INTRO!$E$50="","",ROUND($D144*INTRO!$E$50,0)) -> 117702 | H144: 0 | I144: 1 | J144: 2 | K144: 0 | L144: 0 | M144: =IF(INTRO!$E$37="Endémique",IF($H144>0,IF($H144=4,"Inconnu",IF($H144=99,"Interrompu",$D144)),0),"Non requis") -> 0 | N144: =IF(INTRO!$E$39="Endémique", IF($I144>0, IF($I144=4,"Inconnu",IF($I144=99,"Interrompu",$D144)), 0),"Non requis") -> 255874 | O144: =IF(INTRO!$E$41="Endémique", IF(AND($J144>1,$J144<5), IF($J144=4, "Inconnu", E144+F144), 0),"Non requis") -> 133055 | P144: =IF(INTRO!$E$43="Endémique", IF(AND($K144>0,$K144<5), IF($K144=4,"Inconnu", IF($K144=1, $F144*0.33, IF($K144=2, $F144*0.5+$G144*0.2, SUM(F144:G144)))), 0),"Non requis") -> 0 | Q144: 0 | R144: 1 | S144: 1 | T144: 0 | Y144: 13999 | Z144: Mweka | AA144: TRUE | AB144: 0 | AC144: 0 | AD144: 0
A145: =IF(INTRO!$E$33<>0,INTRO!$E$33, " ") -> DRC | B145: Kasai | C145: Ndjoko Punda | D145: 200030 | E145: =IF(INTRO!$E$48="","",ROUND($D145*INTRO!$E$48,0)) -> 34005 | F145: =IF(INTRO!$E$49="","",ROUND($D145*INTRO!$E$49,0)) -> 70011 | G145: =IF(INTRO!$E$50="","",ROUND($D145*INTRO!$E$50,0)) -> 92014 | H145: 1 | I145: 1 | J145: 3 | K145: 0 | L145: 0 | M145: =IF(INTRO!$E$37="Endémique",IF($H145>0,IF($H145=4,"Inconnu",IF($H145=99,"Interrompu",$D145)),0),"Non requis") -> 200030 | N145: =IF(INTRO!$E$39="Endémique", IF($I145>0, IF($I145=4,"Inconnu",IF($I145=99,"Interrompu",$D145)), 0),"Non requis") -> 200030 | O145: =IF(INTRO!$E$41="Endémique", IF(AND($J145>1,$J145<5), IF($J145=4, "Inconnu", E145+F145), 0),"Non requis") -> 104016 | P145: =IF(INTRO!$E$43="Endémique", IF(AND($K145>0,$K145<5), IF($K145=4,"Inconnu", IF($K145=1, $F145*0.33, IF($K145=2, $F145*0.5+$G145*0.2, SUM(F145:G145)))), 0),"Non requis") -> 0 | Q145: 1 | R145: 1 | S145: 1 | T145: 0 | Y145: 14003 | Z145: Ndjoko Punda | AA145: TRUE | AB145: 0 | AC145: 0 | AD145: 0
A146: =IF(INTRO!$E$33<>0,INTRO!$E$33, " ") -> DRC | B146: Kasai | C146: Nyanga | D146: 150948 | E146: =IF(INTRO!$E$48="","",ROUND($D146*INTRO!$E$48,0)) -> 25661 | F146: =IF(INTRO!$E$49="","",ROUND($D146*INTRO!$E$49,0)) -> 52832 | G146: =IF(INTRO!$E$50="","",ROUND($D146*INTRO!$E$50,0)) -> 69436 | H146: 1 | I146: 1 | J146: 1 | K146: 0 | L146: 0 | M146: =IF(INTRO!$E$37="Endémique",IF($H146>0,IF($H146=4,"Inconnu",IF($H146=99,"Interrompu",$D146)),0),"Non requis") -> 150948 | N146: =IF(INTRO!$E$39="Endémique", IF($I146>0, IF($I146=4,"Inconnu",IF($I146=99,"Interrompu",$D146)), 0),"Non requis") -> 150948 | O146: =IF(INTRO!$E$41="Endémique", IF(AND($J146>1,$J146<5), IF($J146=4, "Inconnu", E146+F146), 0),"Non requis") -> 0 | P146: =IF(INTRO!$E$43="Endémique", IF(AND($K146>0,$K146<5), IF($K146=4,"Inconnu", IF($K146=1, $F146*0.33, IF($K146=2, $F146*0.5+$G146*0.2, SUM(F146:G146)))), 0),"Non requis") -> 0 | Q146: 1 | R146: 1 | S146: 0 | T146: 0 | Y146: 14004 | Z146: Nyanga | AA146: TRUE | AB146: 0 | AC146: 0 | AD146: 0
A147: =IF(INTRO!$E$33<>0,INTRO!$E$33, " ") -> DRC | B147: Kasai | C147: Tshikapa | D147: 452943 | E147: =IF(INTRO!$E$48="","",ROUND($D147*INTRO!$E$48,0)) -> 77000 | F147: =IF(INTRO!$E$49="","",ROUND($D147*INTRO!$E$49,0)) -> 158530 | G147: =IF(INTRO!$E$50="","",ROUND($D147*INTRO!$E$50,0)) -> 208354 | H147: 0 | I147: 1 | J147: 1 | K147: 0 | L147: 0 | M147: =IF(INTRO!$E$37="Endémique",IF($H147>0,IF($H147=4,"Inconnu",IF($H147=99,"Interrompu",$D147)),0),"Non requis") -> 0 | N147: =IF(INTRO!$E$39="Endémique", IF($I147>0, IF($I147=4,"Inconnu",IF($I147=99,"Interrompu",$D147)), 0),"Non requis") -> 452943 | O147: =IF(INTRO!$E$41="Endémique", IF(AND($J147>1,$J147<5), IF($J147=4, "Inconnu", E147+F147), 0),"Non requis") -> 0 | P147: =IF(INTRO!$E$43="Endémique", IF(AND($K147>0,$K147<5), IF($K147=4,"Inconnu", IF($K147=1, $F147*0.33, IF($K147=2, $F147*0.5+$G147*0.2, SUM(F147:G147)))), 0),"Non requis") -> 0 | Q147: 0 | R147: 1 | S147: 0 | T147: 0 | Y147: 14006 | Z147: Tshikapa | AA147: TRUE | AB147: 0 | AC147: 0 | AD147: 0
A148: =IF(INTRO!$E$33<>0,INTRO!$E$33, " ") -> DRC | B148: Kasai Central | C148: Bena Leke | D148: 331002 | E148: =IF(INTRO!$E$48="","",ROUND($D148*INTRO!$E$48,0)) -> 56270 | F148: =IF(INTRO!$E$49="","",ROUND($D148*INTRO!$E$49,0)) -> 115851 | G148: =IF(INTRO!$E$50="","",ROUND($D148*INTRO!$E$50,0)) -> 152261 | H148: 0 | I148: 1 | J148: 3 | K148: 0 | L148: 0 | M148: =IF(INTRO!$E$37="Endémique",IF($H148>0,IF($H148=4,"Inconnu",IF($H148=99,"Interrompu",$D148)),0),"Non requis") -> 0 | N148: =IF(INTRO!$E$39="Endémique", IF($I148>0, IF($I148=4,"Inconnu",IF($I148=99,"Interrompu",$D148)), 0),"Non requis") -> 331002 | O148: =IF(INTRO!$E$41="Endémique", IF(AND($J148>1,$J148<5), IF($J148=4, "Inconnu", E148+F148), 0),"Non requis") -> 172121 | P148: =IF(INTRO!$E$43="Endémique", IF(AND($K148>0,$K148<5), IF($K148=4,"Inconnu", IF($K148=1, $F148*0.33, IF($K148=2, $F148*0.5+$G148*0.2, SUM(F148:G148)))), 0),"Non requis") -> 0 | Q148: 0 | R148: 1 | S148: 1 | T148: 0 | Y148: 13969 | Z148: Bena Leke | AA148: TRUE | AB148: 0 | AC148: 0 | AD148: 0
A149: =IF(INTRO!$E$33<>0,INTRO!$E$33, " ") -> DRC | B149: Kasai Central | C149: Bena Tshadi | D149: 134078 | E149: =IF(INTRO!$E$48="","",ROUND($D149*INTRO!$E$48,0)) -> 22793 | F149: =IF(INTRO!$E$49="","",ROUND($D149*INTRO!$E$49,0)) -> 46927 | G149: =IF(INTRO!$E$50="","",ROUND($D149*INTRO!$E$50,0)) -> 61676 | H149: 0 | I149: 1 | J149: 3 | K149: 0 | L149: 0 | M149: =IF(INTRO!$E$37="Endémique",IF($H149>0,IF($H149=4,"Inconnu",IF($H149=99,"Interrompu",$D149)),0),"Non requis") -> 0 | N149: =IF(INTRO!$E$39="Endémique", IF($I149>0, IF($I149=4,"Inconnu",IF($I149=99,"Interrompu",$D149)), 0),"Non requis") -> 134078 | O149: =IF(INTRO!$E$41="Endémique", IF(AND($J149>1,$J149<5), IF($J149=4, "Inconnu", E149+F149), 0),"Non requis") -> 69720 | P149: =IF(INTRO!$E$43="Endémique", IF(AND($K149>0,$K149<5), IF($K149=4,"Inconnu", IF($K149=1, $F149*0.33, IF($K149=2, $F149*0.5+$G149*0.2, SUM(F149:G149)))), 0),"Non requis") -> 0 | Q149: 0 | R149: 1 | S149: 1 | T149: 0 | Y149: 13982 | Z149: Bena Tshadi | AA149: TRUE | AB149: 0 | AC149: 0 | AD149: 0
A150: =IF(INTRO!$E$33<>0,INTRO!$E$33, " ") -> DRC | B150: Kasai Central | C150: Bilonda | D150: 109691 | E150: =IF(INTRO!$E$48="","",ROUND($D150*INTRO!$E$48,0)) -> 18647 | F150: =IF(INTRO!$E$49="","",ROUND($D150*INTRO!$E$49,0)) -> 38392 | G150: =IF(INTRO!$E$50="","",ROUND($D150*INTRO!$E$50,0)) -> 50458 | H150: 1 | I150: 1 | J150: 2 | K150: 0 | L150: 0 | M150: =IF(INTRO!$E$37="Endémique",IF($H150>0,IF($H150=4,"Inconnu",IF($H150=99,"Interrompu",$D150)),0),"Non requis") -> 109691 | N150: =IF(INTRO!$E$39="Endémique", IF($I150>0, IF($I150=4,"Inconnu",IF($I150=99,"Interrompu",$D150)), 0),"Non requis") -> 109691 | O150: =IF(INTRO!$E$41="Endémique", IF(AND($J150>1,$J150<5), IF($J150=4, "Inconnu", E150+F150), 0),"Non requis") -> 57039 | P150: =IF(INTRO!$E$43="Endémique", IF(AND($K150>0,$K150<5), IF($K150=4,"Inconnu", IF($K150=1, $F150*0.33, IF($K150=2, $F150*0.5+$G150*0.2, SUM(F150:G150)))), 0),"Non requis") -> 0 | Q150: 1 | R150: 1 | S150: 1 | T150: 0 | Y150: 13970 | Z150: Bilonda | AA150: TRUE | AB150: 0 | AC150: 0 | AD150: 0
A151: =IF(INTRO!$E$33<>0,INTRO!$E$33, " ") -> DRC | B151: Kasai Central | C151: Bobozo | D151: 56786 | E151: =IF(INTRO!$E$48="","",ROUND($D151*INTRO!$E$48,0)) -> 9654 | F151: =IF(INTRO!$E$49="","",ROUND($D151*INTRO!$E$49,0)) -> 19875 | G151: =IF(INTRO!$E$50="","",ROUND($D151*INTRO!$E$50,0)) -> 26122 | H151: 0 | I151: 1 | J151: 2 | K151: 0 | L151: 0 | M151: =IF(INTRO!$E$37="Endémique",IF($H151>0,IF($H151=4,"Inconnu",IF($H151=99,"Interrompu",$D151)),0),"Non requis") -> 0 | N151: =IF(INTRO!$E$39="Endémique", IF($I151>0, IF($I151=4,"Inconnu",IF($I151=99,"Interrompu",$D151)), 0),"Non requis") -> 56786 | O151: =IF(INTRO!$E$41="Endémique", IF(AND($J151>1,$J151<5), IF($J151=4, "Inconnu", E151+F151), 0),"Non requis") -> 29529 | P151: =IF(INTRO!$E$43="Endémique", IF(AND($K151>0,$K151<5), IF($K151=4,"Inconnu", IF($K151=1, $F151*0.33, IF($K151=2, $F151*0.5+$G151*0.2, SUM(F151:G151)))), 0),"Non requis") -> 0 | Q151: 0 | R151: 1 | S151: 1 | T151: 0 | Y151: 13971 | Z151: Bobozo | AA151: TRUE | AB151: 0 | AC151: 0 | AD151: 0
A152: =IF(INTRO!$E$33<>0,INTRO!$E$33, " ") -> DRC | B152: Kasai Central | C152: Bukonde | D152: 123180 | E152: =IF(INTRO!$E$48="","",ROUND($D152*INTRO!$E$48,0)) -> 20941 | F152: =IF(INTRO!$E$49="","",ROUND($D152*INTRO!$E$49,0)) -> 43113 | G152: =IF(INTRO!$E$50="","",ROUND($D152*INTRO!$E$50,0)) -> 56663 | H152: 0 | I152: 1 | J152: 2 | K152: 1 | L152: 0 | M152: =IF(INTRO!$E$37="Endémique",IF($H152>0,IF($H152=4,"Inconnu",IF($H152=99,"Interrompu",$D152)),0),"Non requis") -> 0 | N152: =IF(INTRO!$E$39="Endémique", IF($I152>0, IF($I152=4,"Inconnu",IF($I152=99,"Interrompu",$D152)), 0),"Non requis") -> 123180 | O152: =IF(INTRO!$E$41="Endémique", IF(AND($J152>1,$J152<5), IF($J152=4, "Inconnu", E152+F152), 0),"Non requis") -> 64054 | P152: =IF(INTRO!$E$43="Endémique", IF(AND($K152>0,$K152<5), IF($K152=4,"Inconnu", IF($K152=1, $F152*0.33, IF($K152=2, $F152*0.5+$G152*0.2, SUM(F152:G152)))), 0),"Non requis") -> 14227.29 | Q152: 0 | R152: 1 | S152: 1 | T152: 0 | Y152: 14338 | Z152: Bukonde | AA152: TRUE | AB152: 0 | AC152: 1 | AD152: 1
A153: =IF(INTRO!$E$33<>0,INTRO!$E$33, " ") -> DRC | B153: Kasai Central | C153: Demba | D153: 398320 | E153: =IF(INTRO!$E$48="","",ROUND($D153*INTRO!$E$48,0)) -> 67714 | F153: =IF(INTRO!$E$49="","",ROUND($D153*INTRO!$E$49,0)) -> 139412 | G153: =IF(INTRO!$E$50="","",ROUND($D153*INTRO!$E$50,0)) -> 183227 | H153: 0 | I153: 1 | J153: 2 | K153: 0 | L153: 0 | M153: =IF(INTRO!$E$37="Endémique",IF($H153>0,IF($H153=4,"Inconnu",IF($H153=99,"Interrompu",$D153)),0),"Non requis") -> 0 | N153: =IF(INTRO!$E$39="Endémique", IF($I153>0, IF($I153=4,"Inconnu",IF($I153=99,"Interrompu",$D153)), 0),"Non requis") -> 398320 | O153: =IF(INTRO!$E$41="Endémique", IF(AND($J153>1,$J153<5), IF($J153=4, "Inconnu", E153+F153), 0),"Non requis") -> 207126 | P153: =IF(INTRO!$E$43="Endémique", IF(AND($K153>0,$K153<5), IF($K153=4,"Inconnu", IF($K153=1, $F153*0.33, IF($K153=2, $F153*0.5+$G153*0.2, SUM(F153:G153)))), 0),"Non requis") -> 0 | Q153: 0 | R153: 1 | S153: 1 | T153: 0 | Y153: 13974 | Z153: Demba | AA153: TRUE | AB153: 0 | AC153: 0 | AD153: 0
A154: =IF(INTRO!$E$33<>0,INTRO!$E$33, " ") -> DRC | B154: Kasai Central | C154: Dibaya | D154: 216908 | E154: =IF(INTRO!$E$48="","",ROUND($D154*INTRO!$E$48,0)) -> 36874 | F154: =IF(INTRO!$E$49="","",ROUND($D154*INTRO!$E$49,0)) -> 75918 | G154: =IF(INTRO!$E$50="","",ROUND($D154*INTRO!$E$50,0)) -> 99778 | H154: 0 | I154: 1 | J154: 2 | K154: 0 | L154: 0 | M154: =IF(INTRO!$E$37="Endémique",IF($H154>0,IF($H154=4,"Inconnu",IF($H154=99,"Interrompu",$D154)),0),"Non requis") -> 0 | N154: =IF(INTRO!$E$39="Endémique", IF($I154>0, IF($I154=4,"Inconnu",IF($I154=99,"Interrompu",$D154)), 0),"Non requis") -> 216908 | O154: =IF(INTRO!$E$41="Endémique", IF(AND($J154>1,$J154<5), IF($J154=4, "Inconnu", E154+F154), 0),"Non requis") -> 112792 | P154: =IF(INTRO!$E$43="Endémique", IF(AND($K154>0,$K154<5), IF($K154=4,"Inconnu", IF($K154=1, $F154*0.33, IF($K154=2, $F154*0.5+$G154*0.2, SUM(F154:G154)))), 0),"Non requis") -> 0 | Q154: 0 | R154: 1 | S154: 1 | T154: 0 | Y154: 13975 | Z154: Dibaya | AA154: TRUE | AB154: 0 | AC154: 0 | AD154: 0
A155: =IF(INTRO!$E$33<>0,INTRO!$E$33, " ") -> DRC | B155: Kasai Central | C155: Kalomda | D155: 178066 | E155: =IF(INTRO!$E$48="","",ROUND($D155*INTRO!$E$48,0)) -> 30271 | F155: =IF(INTRO!$E$49="","",ROUND($D155*INTRO!$E$49,0)) -> 62323 | G155: =IF(INTRO!$E$50="","",ROUND($D155*INTRO!$E$50,0)) -> 81910 | H155: 1 | I155: 1 | J155: 2 | K155: 0 | L155: 0 | M155: =IF(INTRO!$E$37="Endémique",IF($H155>0,IF($H155=4,"Inconnu",IF($H155=99,"Interrompu",$D155)),0),"Non requis") -> 178066 | N155: =IF(INTRO!$E$39="Endémique", IF($I155>0, IF($I155=4,"Inconnu",IF($I155=99,"Interrompu",$D155)), 0),"Non requis") -> 178066 | O155: =IF(INTRO!$E$41="Endémique", IF(AND($J155>1,$J155<5), IF($J155=4, "Inconnu", E155+F155), 0),"Non requis") -> 92594 | P155: =IF(INTRO!$E$43="Endémique", IF(AND($K155>0,$K155<5), IF($K155=4,"Inconnu", IF($K155=1, $F155*0.33, IF($K155=2, $F155*0.5+$G155*0.2, SUM(F155:G155)))), 0),"Non requis") -> 0 | Q155: 1 | R155: 1 | S155: 1 | T155: 0 | Y155: 14332 | Z155: Kalomda | AA155: TRUE | AB155: 0 | AC155: 0 | AD155: 0
A156: =IF(INTRO!$E$33<>0,INTRO!$E$33, " ") -> DRC | B156: Kasai Central | C156: Kananga | D156: 367861 | E156: =IF(INTRO!$E$48="","",ROUND($D156*INTRO!$E$48,0)) -> 62536 | F156: =IF(INTRO!$E$49="","",ROUND($D156*INTRO!$E$49,0)) -> 128751 | G156: =IF(INTRO!$E$50="","",ROUND($D156*INTRO!$E$50,0)) -> 169216 | H156: 1 | I156: 1 | J156: 2 | K156: 0 | L156: 0 | M156: =IF(INTRO!$E$37="Endémique",IF($H156>0,IF($H156=4,"Inconnu",IF($H156=99,"Interrompu",$D156)),0),"Non requis") -> 367861 | N156: =IF(INTRO!$E$39="Endémique", IF($I156>0, IF($I156=4,"Inconnu",IF($I156=99,"Interrompu",$D156)), 0),"Non requis") -> 367861 | O156: =IF(INTRO!$E$41="Endémique", IF(AND($J156>1,$J156<5), IF($J156=4, "Inconnu", E156+F156), 0),"Non requis") -> 191287 | P156: =IF(INTRO!$E$43="Endémique", IF(AND($K156>0,$K156<5), IF($K156=4,"Inconnu", IF($K156=1, $F156*0.33, IF($K156=2, $F156*0.5+$G156*0.2, SUM(F156:G156)))), 0),"Non requis") -> 0 | Q156: 1 | R156: 1 | S156: 1 | T156: 0 | Y156: 13980 | Z156: Kananga | AA156: TRUE | AB156: 0 | AC156: 0 | AD156: 0
A157: =IF(INTRO!$E$33<>0,INTRO!$E$33, " ") -> DRC | B157: Kasai Central | C157: Katende | D157: 108959 | E157: =IF(INTRO!$E$48="","",ROUND($D157*INTRO!$E$48,0)) -> 18523 | F157: =IF(INTRO!$E$49="","",ROUND($D157*INTRO!$E$49,0)) -> 38136 | G157: =IF(INTRO!$E$50="","",ROUND($D157*INTRO!$E$50,0)) -> 50121 | H157: 1 | I157: 1 | J157: 3 | K157: 0 | L157: 0 | M157: =IF(INTRO!$E$37="Endémique",IF($H157>0,IF($H157=4,"Inconnu",IF($H157=99,"Interrompu",$D157)),0),"Non requis") -> 108959 | N157: =IF(INTRO!$E$39="Endémique", IF($I157>0, IF($I157=4,"Inconnu",IF($I157=99,"Interrompu",$D157)), 0),"Non requis") -> 108959 | O157: =IF(INTRO!$E$41="Endémique", IF(AND($J157>1,$J157<5), IF($J157=4, "Inconnu", E157+F157), 0),"Non requis") -> 56659 | P157: =IF(INTRO!$E$43="Endémique", IF(AND($K157>0,$K157<5), IF($K157=4,"Inconnu", IF($K157=1, $F157*0.33, IF($K157=2, $F157*0.5+$G157*0.2, SUM(F157:G157)))), 0),"Non requis") -> 0 | Q157: 1 | R157: 1 | S157: 1 | T157: 0 | Y157: 13983 | Z157: Katende | AA157: TRUE | AB157: 0 | AC157: 0 | AD157: 0
A158: =IF(INTRO!$E$33<>0,INTRO!$E$33, " ") -> DRC | B158: Kasai Central | C158: Katoka | D158: 151957 | E158: =IF(INTRO!$E$48="","",ROUND($D158*INTRO!$E$48,0)) -> 25833 | F158: =IF(INTRO!$E$49="","",ROUND($D158*INTRO!$E$49,0)) -> 53185 | G158: =IF(INTRO!$E$50="","",ROUND($D158*INTRO!$E$50,0)) -> 69900 | H158: 0 | I158: 1 | J158: 1 | K158: 1 | L158: 0 | M158: =IF(INTRO!$E$37="Endémique",IF($H158>0,IF($H158=4,"Inconnu",IF($H158=99,"Interrompu",$D158)),0),"Non requis") -> 0 | N158: =IF(INTRO!$E$39="Endémique", IF($I158>0, IF($I158=4,"Inconnu",IF($I158=99,"Interrompu",$D158)), 0),"Non requis") -> 151957 | O158: =IF(INTRO!$E$41="Endémique", IF(AND($J158>1,$J158<5), IF($J158=4, "Inconnu", E158+F158), 0),"Non requis") -> 0 | P158: =IF(INTRO!$E$43="Endémique", IF(AND($K158>0,$K158<5), IF($K158=4,"Inconnu", IF($K158=1, $F158*0.33, IF($K158=2, $F158*0.5+$G158*0.2, SUM(F158:G158)))), 0),"Non requis") -> 17551.05 | Q158: 0 | R158: 1 | S158: 0 | T158: 0 | Y158: 13984 | Z158: Katoka | AA158: TRUE | AB158: 0 | AC158: 1 | AD158: 1
A159: =IF(INTRO!$E$33<>0,INTRO!$E$33, " ") -> DRC | B159: Kasai Central | C159: Luambo | D159: 305128 | E159: =IF(INTRO!$E$48="","",ROUND($D159*INTRO!$E$48,0)) -> 51872 | F159: =IF(INTRO!$E$49="","",ROUND($D159*INTRO!$E$49,0)) -> 106795 | G159: =IF(INTRO!$E$50="","",ROUND($D159*INTRO!$E$50,0)) -> 140359 | H159: 1 | I159: 1 | J159: 3 | K159: 1 | L159: 0 | M159: =IF(INTRO!$E$37="Endémique",IF($H159>0,IF($H159=4,"Inconnu",IF($H159=99,"Interrompu",$D159)),0),"Non requis") -> 305128 | N159: =IF(INTRO!$E$39="Endémique", IF($I159>0, IF($I159=4,"Inconnu",IF($I159=99,"Interrompu",$D159)), 0),"Non requis") -> 305128 | O159: =IF(INTRO!$E$41="Endémique", IF(AND($J159>1,$J159<5), IF($J159=4, "Inconnu", E159+F159), 0),"Non requis") -> 158667 | P159: =IF(INTRO!$E$43="Endémique", IF(AND($K159>0,$K159<5), IF($K159=4,"Inconnu", IF($K159=1, $F159*0.33, IF($K159=2, $F159*0.5+$G159*0.2, SUM(F159:G159)))), 0),"Non requis") -> 35242.35 | Q159: 1 | R159: 1 | S159: 1 | T159: 0 | Y159: 13986 | Z159: Luambo | AA159: TRUE | AB159: 0 | AC159: 1 | AD159: 1
A160: =IF(INTRO!$E$33<>0,INTRO!$E$33, " ") -> DRC | B160: Kasai Central | C160: Lubondaie | D160: 155570 | E160: =IF(INTRO!$E$48="","",ROUND($D160*INTRO!$E$48,0)) -> 26447 | F160: =IF(INTRO!$E$49="","",ROUND($D160*INTRO!$E$49,0)) -> 54450 | G160: =IF(INTRO!$E$50="","",ROUND($D160*INTRO!$E$50,0)) -> 71562 | H160: 0 | I160: 1 | J160: 3 | K160: 1 | L160: 0 | M160: =IF(INTRO!$E$37="Endémique",IF($H160>0,IF($H160=4,"Inconnu",IF($H160=99,"Interrompu",$D160)),0),"Non requis") -> 0 | N160: =IF(INTRO!$E$39="Endémique", IF($I160>0, IF($I160=4,"Inconnu",IF($I160=99,"Interrompu",$D160)), 0),"Non requis") -> 155570 | O160: =IF(INTRO!$E$41="Endémique", IF(AND($J160>1,$J160<5), IF($J160=4, "Inconnu", E160+F160), 0),"Non requis") -> 80897 | P160: =IF(INTRO!$E$43="Endémique", IF(AND($K160>0,$K160<5), IF($K160=4,"Inconnu", IF($K160=1, $F160*0.33, IF($K160=2, $F160*0.5+$G160*0.2, SUM(F160:G160)))), 0),"Non requis") -> 17968.5 | Q160: 0 | R160: 1 | S160: 1 | T160: 0 | Y160: 13987 | Z160: Lubondaie | AA160: TRUE | AB160: 0 | AC160: 1 | AD160: 1
A161: =IF(INTRO!$E$33<>0,INTRO!$E$33, " ") -> DRC | B161: Kasai Central | C161: Lubunga | D161: 119873 | E161: =IF(INTRO!$E$48="","",ROUND($D161*INTRO!$E$48,0)) -> 20378 | F161: =IF(INTRO!$E$49="","",ROUND($D161*INTRO!$E$49,0)) -> 41956 | G161: =IF(INTRO!$E$50="","",ROUND($D161*INTRO!$E$50,0)) -> 55142 | H161: 0 | I161: 1 | J161: 3 | K161: 2 | L161: 0 | M161: =IF(INTRO!$E$37="Endémique",IF($H161>0,IF($H161=4,"Inconnu",IF($H161=99,"Interrompu",$D161)),0),"Non requis") -> 0 | N161: =IF(INTRO!$E$39="Endémique", IF($I161>0, IF($I161=4,"Inconnu",IF($I161=99,"Interrompu",$D161)), 0),"Non requis") -> 119873 | O161: =IF(INTRO!$E$41="Endémique", IF(AND($J161>1,$J161<5), IF($J161=4, "Inconnu", E161+F161), 0),"Non requis") -> 62334 | P161: =IF(INTRO!$E$43="Endémique", IF(AND($K161>0,$K161<5), IF($K161=4,"Inconnu", IF($K161=1, $F161*0.33, IF($K161=2, $F161*0.5+$G161*0.2, SUM(F161:G161)))), 0),"Non requis") -> 32006.4 | Q161: 0 | R161: 1 | S161: 1 | T161: 1 | Y161: 14257 | Z161: Lubunga (1) | AA161: FALSE | AB161: 0 | AC161: 0 | AD161: 0
A162: =IF(INTRO!$E$33<>0,INTRO!$E$33, " ") -> DRC | B162: Kasai Central | C162: Luiza | D162: 207207 | E162: =IF(INTRO!$E$48="","",ROUND($D162*INTRO!$E$48,0)) -> 35225 | F162: =IF(INTRO!$E$49="","",ROUND($D162*INTRO!$E$49,0)) -> 72522 | G162: =IF(INTRO!$E$50="","",ROUND($D162*INTRO!$E$50,0)) -> 95315 | H162: 0 | I162: 1 | J162: 2 | K162: 0 | L162: 0 | M162: =IF(INTRO!$E$37="Endémique",IF($H162>0,IF($H162=4,"Inconnu",IF($H162=99,"Interrompu",$D162)),0),"Non requis") -> 0 | N162: =IF(INTRO!$E$39="Endémique", IF($I162>0, IF($I162=4,"Inconnu",IF($I162=99,"Interrompu",$D162)), 0),"Non requis") -> 207207 | O162: =IF(INTRO!$E$41="Endémique", IF(AND($J162>1,$J162<5), IF($J162=4, "Inconnu", E162+F162), 0),"Non requis") -> 107747 | P162: =IF(INTRO!$E$43="Endémique", IF(AND($K162>0,$K162<5), IF($K162=4,"Inconnu", IF($K162=1, $F162*0.33, IF($K162=2, $F162*0.5+$G162*0.2, SUM(F162:G162)))), 0),"Non requis") -> 0 | Q162: 0 | R162: 1 | S162: 1 | T162: 0 | Y162: 13990 | Z162: Luiza | AA162: TRUE | AB162: 0 | AC162: 0 | AD162: 0
A163: =IF(INTRO!$E$33<>0,INTRO!$E$33, " ") -> DRC | B163: Kasai Central | C163: Lukonga | D163: 331530 | E163: =IF(INTRO!$E$48="","",ROUND($D163*INTRO!$E$48,0)) -> 56360 | F163: =IF(INTRO!$E$49="","",ROUND($D163*INTRO!$E$49,0)) -> 116036 | G163: =IF(INTRO!$E$50="","",ROUND($D163*INTRO!$E$50,0)) -> 152504 | H163: 1 | I163: 1 | J163: 2 | K163: 1 | L163: 0 | M163: =IF(INTRO!$E$37="Endémique",IF($H163>0,IF($H163=4,"Inconnu",IF($H163=99,"Interrompu",$D163)),0),"Non requis") -> 331530 | N163: =IF(INTRO!$E$39="Endémique", IF($I163>0, IF($I163=4,"Inconnu",IF($I163=99,"Interrompu",$D163)), 0),"Non requis") -> 331530 | O163: =IF(INTRO!$E$41="Endémique", IF(AND($J163>1,$J163<5), IF($J163=4, "Inconnu", E163+F163), 0),"Non requis") -> 172396 | P163: =IF(INTRO!$E$43="Endémique", IF(AND($K163>0,$K163<5), IF($K163=4,"Inconnu", IF($K163=1, $F163*0.33, IF($K163=2, $F163*0.5+$G163*0.2, SUM(F163:G163)))), 0),"Non requis") -> 38291.88 | Q163: 1 | R163: 1 | S163: 1 | T163: 0 | Y163: 13991 | Z163: Lukonga | AA163: TRUE | AB163: 0 | AC163: 1 | AD163: 1
A164: =IF(INTRO!$E$33<>0,INTRO!$E$33, " ") -> DRC | B164: Kasai Central | C164: Mikalayi | D164: 346593 | E164: =IF(INTRO!$E$48="","",ROUND($D164*INTRO!$E$48,0)) -> 58921 | F164: =IF(INTRO!$E$49="","",ROUND($D164*INTRO!$E$49,0)) -> 121308 | G164: =IF(INTRO!$E$50="","",ROUND($D164*INTRO!$E$50,0)) -> 159433 | H164: 0 | I164: 1 | J164: 3 | K164: 0 | L164: 0 | M164: =IF(INTRO!$E$37="Endémique",IF($H164>0,IF($H164=4,"Inconnu",IF($H164=99,"Interrompu",$D164)),0),"Non requis") -> 0 | N164: =IF(INTRO!$E$39="Endémique", IF($I164>0, IF($I164=4,"Inconnu",IF($I164=99,"Interrompu",$D164)), 0),"Non requis") -> 346593 | O164: =IF(INTRO!$E$41="Endémique", IF(AND($J164>1,$J164<5), IF($J164=4, "Inconnu", E164+F164), 0),"Non requis") -> 180229 | P164: =IF(INTRO!$E$43="Endémique", IF(AND($K164>0,$K164<5), IF($K164=4,"Inconnu", IF($K164=1, $F164*0.33, IF($K164=2, $F164*0.5+$G164*0.2, SUM(F164:G164)))), 0),"Non requis") -> 0 | Q164: 0 | R164: 1 | S164: 1 | T164: 0 | Y164: 13993 | Z164: Mikalayi | AA164: TRUE | AB164: 0 | AC164: 0 | AD164: 0
A165: =IF(INTRO!$E$33<>0,INTRO!$E$33, " ") -> DRC | B165: Kasai Central | C165: Musuika | D165: 249606 | E165: =IF(INTRO!$E$48="","",ROUND($D165*INTRO!$E$48,0)) -> 42433 | F165: =IF(INTRO!$E$49="","",ROUND($D165*INTRO!$E$49,0)) -> 87362 | G165: =IF(INTRO!$E$50="","",ROUND($D165*INTRO!$E$50,0)) -> 114819 | H165: 1 | I165: 1 | J165: 3 | K165: 0 | L165: 0 | M165: =IF(INTRO!$E$37="Endémique",IF($H165>0,IF($H165=4,"Inconnu",IF($H165=99,"Interrompu",$D165)),0),"Non requis") -> 249606 | N165: =IF(INTRO!$E$39="Endémique", IF($I165>0, IF($I165=4,"Inconnu",IF($I165=99,"Interrompu",$D165)), 0),"Non requis") -> 249606 | O165: =IF(INTRO!$E$41="Endémique", IF(AND($J165>1,$J165<5), IF($J165=4, "Inconnu", E165+F165), 0),"Non requis") -> 129795 | P165: =IF(INTRO!$E$43="Endémique", IF(AND($K165>0,$K165<5), IF($K165=4,"Inconnu", IF($K165=1, $F165*0.33, IF($K165=2, $F165*0.5+$G165*0.2, SUM(F165:G165)))), 0),"Non requis") -> 0 | Q165: 1 | R165: 1 | S165: 1 | T165: 0 | Y165: 13996 | Z165: Musuika | AA165: TRUE | AB165: 0 | AC165: 0 | AD165: 0
A166: =IF(INTRO!$E$33<>0,INTRO!$E$33, " ") -> DRC | B166: Kasai Central | C166: Mutoto | D166: 155973 | E166: =IF(INTRO!$E$48="","",ROUND($D166*INTRO!$E$48,0)) -> 26515 | F166: =IF(INTRO!$E$49="","",ROUND($D166*INTRO!$E$49,0)) -> 54591 | G166: =IF(INTRO!$E$50="","",ROUND($D166*INTRO!$E$50,0)) -> 71748 | H166: 1 | I166: 1 | J166: 3 | K166: 0 | L166: 0 | M166: =IF(INTRO!$E$37="Endémique",IF($H166>0,IF($H166=4,"Inconnu",IF($H166=99,"Interrompu",$D166)),0),"Non requis") -> 155973 | N166: =IF(INTRO!$E$39="Endémique", IF($I166>0, IF($I166=4,"Inconnu",IF($I166=99,"Interrompu",$D166)), 0),"Non requis") -> 155973 | O166: =IF(INTRO!$E$41="Endémique", IF(AND($J166>1,$J166<5), IF($J166=4, "Inconnu", E166+F166), 0),"Non requis") -> 81106 | P166: =IF(INTRO!$E$43="Endémique", IF(AND($K166>0,$K166<5), IF($K166=4,"Inconnu", IF($K166=1, $F166*0.33, IF($K166=2, $F166*0.5+$G166*0.2, SUM(F166:G166)))), 0),"Non requis") -> 0 | Q166: 1 | R166: 1 | S166: 1 | T166: 0 | Y166: 13998 | Z166: Mutoto | AA166: TRUE | AB166: 0 | AC166: 0 | AD166: 0
A167: =IF(INTRO!$E$33<>0,INTRO!$E$33, " ") -> DRC | B167: Kasai Central | C167: Mwetshi | D167: 138159 | E167: =IF(INTRO!$E$48="","",ROUND($D167*INTRO!$E$48,0)) -> 23487 | F167: =IF(INTRO!$E$49="","",ROUND($D167*INTRO!$E$49,0)) -> 48356 | G167: =IF(INTRO!$E$50="","",ROUND($D167*INTRO!$E$50,0)) -> 63553 | H167: 0 | I167: 1 | J167: 3 | K167: 1 | L167: 0 | M167: =IF(INTRO!$E$37="Endémique",IF($H167>0,IF($H167=4,"Inconnu",IF($H167=99,"Interrompu",$D167)),0),"Non requis") -> 0 | N167: =IF(INTRO!$E$39="Endémique", IF($I167>0, IF($I167=4,"Inconnu",IF($I167=99,"Interrompu",$D167)), 0),"Non requis") -> 138159 | O167: =IF(INTRO!$E$41="Endémique", IF(AND($J167>1,$J167<5), IF($J167=4, "Inconnu", E167+F167), 0),"Non requis") -> 71843 | P167: =IF(INTRO!$E$43="Endémique", IF(AND($K167>0,$K167<5), IF($K167=4,"Inconnu", IF($K167=1, $F167*0.33, IF($K167=2, $F167*0.5+$G167*0.2, SUM(F167:G167)))), 0),"Non requis") -> 15957.48 | Q167: 0 | R167: 1 | S167: 1 | T167: 0 | Y167: 14000 | Z167: Mwetshi | AA167: TRUE | AB167: 0 | AC167: 1 | AD167: 1
A168: =IF(INTRO!$E$33<>0,INTRO!$E$33, " ") -> DRC | B168: Kasai Central | C168: Ndekesha | D168: 190349 | E168: =IF(INTRO!$E$48="","",ROUND($D168*INTRO!$E$48,0)) -> 32359 | F168: =IF(INTRO!$E$49="","",ROUND($D168*INTRO!$E$49,0)) -> 66622 | G168: =IF(INTRO!$E$50="","",ROUND($D168*INTRO!$E$50,0)) -> 87561 | H168: 0 | I168: 1 | J168: 2 | K168: 0 | L168: 0 | M168: =IF(INTRO!$E$37="Endémique",IF($H168>0,IF($H168=4,"Inconnu",IF($H168=99,"Interrompu",$D168)),0),"Non requis") -> 0 | N168: =IF(INTRO!$E$39="Endémique", IF($I168>0, IF($I168=4,"Inconnu",IF($I168=99,"Interrompu",$D168)), 0),"Non requis") -> 190349 | O168: =IF(INTRO!$E$41="Endémique", IF(AND($J168>1,$J168<5), IF($J168=4, "Inconnu", E168+F168), 0),"Non requis") -> 98981 | P168: =IF(INTRO!$E$43="Endémique", IF(AND($K168>0,$K168<5), IF($K168=4,"Inconnu", IF($K168=1, $F168*0.33, IF($K168=2, $F168*0.5+$G168*0.2, SUM(F168:G168)))), 0),"Non requis") -> 0 | Q168: 0 | R168: 1 | S168: 1 | T168: 0 | Y168: 14001 | Z168: Ndekesha | AA168: TRUE | AB168: 0 | AC168: 0 | AD168: 0
A169: =IF(INTRO!$E$33<>0,INTRO!$E$33, " ") -> DRC | B169: Kasai Central | C169: Ndesha | D169: 126833 | E169: =IF(INTRO!$E$48="","",ROUND($D169*INTRO!$E$48,0)) -> 21562 | F169: =IF(INTRO!$E$49="","",ROUND($D169*INTRO!$E$49,0)) -> 44392 | G169: =IF(INTRO!$E$50="","",ROUND($D169*INTRO!$E$50,0)) -> 58343 | H169: 0 | I169: 1 | J169: 2 | K169: 0 | L169: 0 | M169: =IF(INTRO!$E$37="Endémique",IF($H169>0,IF($H169=4,"Inconnu",IF($H169=99,"Interrompu",$D169)),0),"Non requis") -> 0 | N169: =IF(INTRO!$E$39="Endémique", IF($I169>0, IF($I169=4,"Inconnu",IF($I169=99,"Interrompu",$D169)), 0),"Non requis") -> 126833 | O169: =IF(INTRO!$E$41="Endémique", IF(AND($J169>1,$J169<5), IF($J169=4, "Inconnu", E169+F169), 0),"Non requis") -> 65954 | P169: =IF(INTRO!$E$43="Endémique", IF(AND($K169>0,$K169<5), IF($K169=4,"Inconnu", IF($K169=1, $F169*0.33, IF($K169=2, $F169*0.5+$G169*0.2, SUM(F169:G169)))), 0),"Non requis") -> 0 | Q169: 0 | R169: 1 | S169: 1 | T169: 0 | Y169: 14002 | Z169: Ndesha | AA169: TRUE | AB169: 0 | AC169: 0 | AD169: 0
A170: =IF(INTRO!$E$33<>0,INTRO!$E$33, " ") -> DRC | B170: Kasai Central | C170: Tshibala | D170: 283281 | E170: =IF(INTRO!$E$48="","",ROUND($D170*INTRO!$E$48,0)) -> 48158 | F170: =IF(INTRO!$E$49="","",ROUND($D170*INTRO!$E$49,0)) -> 99148 | G170: =IF(INTRO!$E$50="","",ROUND($D170*INTRO!$E$50,0)) -> 130309 | H170: 1 | I170: 1 | J170: 2 | K170: 0 | L170: 0 | M170: =IF(INTRO!$E$37="Endémique",IF($H170>0,IF($H170=4,"Inconnu",IF($H170=99,"Interrompu",$D170)),0),"Non requis") -> 283281 | N170: =IF(INTRO!$E$39="Endémique", IF($I170>0, IF($I170=4,"Inconnu",IF($I170=99,"Interrompu",$D170)), 0),"Non requis") -> 283281 | O170: =IF(INTRO!$E$41="Endémique", IF(AND($J170>1,$J170<5), IF($J170=4, "Inconnu", E170+F170), 0),"Non requis") -> 147306 | P170: =IF(INTRO!$E$43="Endémique", IF(AND($K170>0,$K170<5), IF($K170=4,"Inconnu", IF($K170=1, $F170*0.33, IF($K170=2, $F170*0.5+$G170*0.2, SUM(F170:G170)))), 0),"Non requis") -> 0 | Q170: 1 | R170: 1 | S170: 1 | T170: 0 | Y170: 14005 | Z170: Tshibala | AA170: TRUE | AB170: 0 | AC170: 0 | AD170: 0
A171: =IF(INTRO!$E$33<>0,INTRO!$E$33, " ") -> DRC | B171: Kasai Central | C171: Tshikaji | D171: 149102 | E171: =IF(INTRO!$E$48="","",ROUND($D171*INTRO!$E$48,0)) -> 25347 | F171: =IF(INTRO!$E$49="","",ROUND($D171*INTRO!$E$49,0)) -> 52186 | G171: =IF(INTRO!$E$50="","",ROUND($D171*INTRO!$E$50,0)) -> 68587 | H171: 0 | I171: 1 | J171: 3 | K171: 0 | L171: 0 | M171: =IF(INTRO!$E$37="Endémique",IF($H171>0,IF($H171=4,"Inconnu",IF($H171=99,"Interrompu",$D171)),0),"Non requis") -> 0 | N171: =IF(INTRO!$E$39="Endémique", IF($I171>0, IF($I171=4,"Inconnu",IF($I171=99,"Interrompu",$D171)), 0),"Non requis") -> 149102 | O171: =IF(INTRO!$E$41="Endémique", IF(AND($J171>1,$J171<5), IF($J171=4, "Inconnu", E171+F171), 0),"Non requis") -> 77533 | P171: =IF(INTRO!$E$43="Endémique", IF(AND($K171>0,$K171<5), IF($K171=4,"Inconnu", IF($K171=1, $F171*0.33, IF($K171=2, $F171*0.5+$G171*0.2, SUM(F171:G171)))), 0),"Non requis") -> 0 | Q171: 0 | R171: 1 | S171: 1 | T171: 0 | Y171: 14058 | Z171: Tshikaji | AA171: TRUE | AB171: 0 | AC171: 0 | AD171: 0
A172: =IF(INTRO!$E$33<>0,INTRO!$E$33, " ") -> DRC | B172: Kasai Central | C172: Tshikula | D172: 159717 | E172: =IF(INTRO!$E$48="","",ROUND($D172*INTRO!$E$48,0)) -> 27152 | F172: =IF(INTRO!$E$49="","",ROUND($D172*INTRO!$E$49,0)) -> 55901 | G172: =IF(INTRO!$E$50="","",ROUND($D172*INTRO!$E$50,0)) -> 73470 | H172: 0 | I172: 1 | J172: 2 | K172: 0 | L172: 0 | M172: =IF(INTRO!$E$37="Endémique",IF($H172>0,IF($H172=4,"Inconnu",IF($H172=99,"Interrompu",$D172)),0),"Non requis") -> 0 | N172: =IF(INTRO!$E$39="Endémique", IF($I172>0, IF($I172=4,"Inconnu",IF($I172=99,"Interrompu",$D172)), 0),"Non requis") -> 159717 | O172: =IF(INTRO!$E$41="Endémique", IF(AND($J172>1,$J172<5), IF($J172=4, "Inconnu", E172+F172), 0),"Non requis") -> 83053 | P172: =IF(INTRO!$E$43="Endémique", IF(AND($K172>0,$K172<5), IF($K172=4,"Inconnu", IF($K172=1, $F172*0.33, IF($K172=2, $F172*0.5+$G172*0.2, SUM(F172:G172)))), 0),"Non requis") -> 0 | Q172: 0 | R172: 1 | S172: 1 | T172: 0 | Y172: 14007 | Z172: Tshikula | AA172: TRUE | AB172: 0 | AC172: 0 | AD172: 0
A173: =IF(INTRO!$E$33<>0,INTRO!$E$33, " ") -> DRC | B173: Kasai Central | C173: Yangala | D173: 184912 | E173: =IF(INTRO!$E$48="","",ROUND($D173*INTRO!$E$48,0)) -> 31435 | F173: =IF(INTRO!$E$49="","",ROUND($D173*INTRO!$E$49,0)) -> 64719 | G173: =IF(INTRO!$E$50="","",ROUND($D173*INTRO!$E$50,0)) -> 85060 | H173: 1 | I173: 1 | J173: 2 | K173: 1 | L173: 0 | M173: =IF(INTRO!$E$37="Endémique",IF($H173>0,IF($H173=4,"Inconnu",IF($H173=99,"Interrompu",$D173)),0),"Non requis") -> 184912 | N173: =IF(INTRO!$E$39="Endémique", IF($I173>0, IF($I173=4,"Inconnu",IF($I173=99,"Interrompu",$D173)), 0),"Non requis") -> 184912 | O173: =IF(INTRO!$E$41="Endémique", IF(AND($J173>1,$J173<5), IF($J173=4, "Inconnu", E173+F173), 0),"Non requis") -> 96154 | P173: =IF(INTRO!$E$43="Endémique", IF(AND($K173>0,$K173<5), IF($K173=4,"Inconnu", IF($K173=1, $F173*0.33, IF($K173=2, $F173*0.5+$G173*0.2, SUM(F173:G173)))), 0),"Non requis") -> 21357.27 | Q173: 1 | R173: 1 | S173: 1 | T173: 0 | Y173: 14008 | Z173: Yangala | AA173: TRUE | AB173: 0 | AC173: 1 | AD173: 1
A174: =IF(INTRO!$E$33<>0,INTRO!$E$33, " ") -> DRC | B174: KASAI ORIENTAL | C174: Bibanga | D174: 174994 | E174: =IF(INTRO!$E$48="","",ROUND($D174*INTRO!$E$48,0)) -> 29749 | F174: =IF(INTRO!$E$49="","",ROUND($D174*INTRO!$E$49,0)) -> 61248 | G174: =IF(INTRO!$E$50="","",ROUND($D174*INTRO!$E$50,0)) -> 80497 | H174: 1 | I174: 1 | J174: 1 | K174: 2 | L174: 0 | M174: =IF(INTRO!$E$37="Endémique",IF($H174>0,IF($H174=4,"Inconnu",IF($H174=99,"Interrompu",$D174)),0),"Non requis") -> 174994 | N174: =IF(INTRO!$E$39="Endémique", IF($I174>0, IF($I174=4,"Inconnu",IF($I174=99,"Interrompu",$D174)), 0),"Non requis") -> 174994 | O174: =IF(INTRO!$E$41="Endémique", IF(AND($J174>1,$J174<5), IF($J174=4, "Inconnu", E174+F174), 0),"Non requis") -> 0 | P174: =IF(INTRO!$E$43="Endémique", IF(AND($K174>0,$K174<5), IF($K174=4,"Inconnu", IF($K174=1, $F174*0.33, IF($K174=2, $F174*0.5+$G174*0.2, SUM(F174:G174)))), 0),"Non requis") -> 46723.4 | Q174: 1 | R174: 1 | S174: 0 | T174: 0 | Y174: 14010 | Z174: Bibanga | AA174: TRUE | AB174: 0 | AC174: 1 | AD174: 1
A175: =IF(INTRO!$E$33<>0,INTRO!$E$33, " ") -> DRC | B175: KASAI ORIENTAL | C175: Bimpemba | D175: 280811 | E175: =IF(INTRO!$E$48="","",ROUND($D175*INTRO!$E$48,0)) -> 47738 | F175: =IF(INTRO!$E$49="","",ROUND($D175*INTRO!$E$49,0)) -> 98284 | G175: =IF(INTRO!$E$50="","",ROUND($D175*INTRO!$E$50,0)) -> 129173 | H175: 0 | I175: 4 | J175: 1 | K175: 2 | L175: 0 | M175: =IF(INTRO!$E$37="Endémique",IF($H175>0,IF($H175=4,"Inconnu",IF($H175=99,"Interrompu",$D175)),0),"Non requis") -> 0 | N175: =IF(INTRO!$E$39="Endémique", IF($I175>0, IF($I175=4,"Inconnu",IF($I175=99,"Interrompu",$D175)), 0),"Non requis") -> Inconnu | O175: =IF(INTRO!$E$41="Endémique", IF(AND($J175>1,$J175<5), IF($J175=4, "Inconnu", E175+F175), 0),"Non requis") -> 0 | P175: =IF(INTRO!$E$43="Endémique", IF(AND($K175>0,$K175<5), IF($K175=4,"Inconnu", IF($K175=1, $F175*0.33, IF($K175=2, $F175*0.5+$G175*0.2, SUM(F175:G175)))), 0),"Non requis") -> 74976.6 | Q175: 0 | R175: 0 | S175: 0 | T175: 1 | Y175: 14011 | Z175: Bimpemba | AA175: TRUE | AB175: 0 | AC175: 0 | AD175: 0
A176: =IF(INTRO!$E$33<>0,INTRO!$E$33, " ") -> DRC | B176: KASAI ORIENTAL | C176: Bonzola | D176: 178934 | E176: =IF(INTRO!$E$48="","",ROUND($D176*INTRO!$E$48,0)) -> 30419 | F176: =IF(INTRO!$E$49="","",ROUND($D176*INTRO!$E$49,0)) -> 62627 | G176: =IF(INTRO!$E$50="","",ROUND($D176*INTRO!$E$50,0)) -> 82310 | H176: 1 | I176: 4 | J176: 1 | K176: 1 | L176: 0 | M176: =IF(INTRO!$E$37="Endémique",IF($H176>0,IF($H176=4,"Inconnu",IF($H176=99,"Interrompu",$D176)),0),"Non requis") -> 178934 | N176: =IF(INTRO!$E$39="Endémique", IF($I176>0, IF($I176=4,"Inconnu",IF($I176=99,"Interrompu",$D176)), 0),"Non requis") -> Inconnu | O176: =IF(INTRO!$E$41="Endémique", IF(AND($J176>1,$J176<5), IF($J176=4, "Inconnu", E176+F176), 0),"Non requis") -> 0 | P176: =IF(INTRO!$E$43="Endémique", IF(AND($K176>0,$K176<5), IF($K176=4,"Inconnu", IF($K176=1, $F176*0.33, IF($K176=2, $F176*0.5+$G176*0.2, SUM(F176:G176)))), 0),"Non requis") -> 20666.91 | Q176: 1 | R176: 0 | S176: 0 | T176: 0 | Y176: 14012 | Z176: Bonzola | AA176: TRUE | AB176: 0 | AC176: 1 | AD176: 1
A177: =IF(INTRO!$E$33<>0,INTRO!$E$33, " ") -> DRC | B177: KASAI ORIENTAL | C177: Dibindi | D177: 309561 | E177: =IF(INTRO!$E$48="","",ROUND($D177*INTRO!$E$48,0)) -> 52625 | F177: =IF(INTRO!$E$49="","",ROUND($D177*INTRO!$E$49,0)) -> 108346 | G177: =IF(INTRO!$E$50="","",ROUND($D177*INTRO!$E$50,0)) -> 142398 | H177: 0 | I177: 4 | J177: 2 | K177: 2 | L177: 0 | M177: =IF(INTRO!$E$37="Endémique",IF($H177>0,IF($H177=4,"Inconnu",IF($H177=99,"Interrompu",$D177)),0),"Non requis") -> 0 | N177: =IF(INTRO!$E$39="Endémique", IF($I177>0, IF($I177=4,"Inconnu",IF($I177=99,"Interrompu",$D177)), 0),"Non requis") -> Inconnu | O177: =IF(INTRO!$E$41="Endémique", IF(AND($J177>1,$J177<5), IF($J177=4, "Inconnu", E177+F177), 0),"Non requis") -> 160971 | P177: =IF(INTRO!$E$43="Endémique", IF(AND($K177>0,$K177<5), IF($K177=4,"Inconnu", IF($K177=1, $F177*0.33, IF($K177=2, $F177*0.5+$G177*0.2, SUM(F177:G177)))), 0),"Non requis") -> 82652.6 | Q177: 0 | R177: 0 | S177: 1 | T177: 1 | Y177: 14013 | Z177: Dibindi | AA177: TRUE | AB177: 0 | AC177: 0 | AD177: 0
A178: =IF(INTRO!$E$33<>0,INTRO!$E$33, " ") -> DRC | B178: KASAI ORIENTAL | C178: Diulu | D178: 428585 | E178: =IF(INTRO!$E$48="","",ROUND($D178*INTRO!$E$48,0)) -> 72859 | F178: =IF(INTRO!$E$49="","",ROUND($D178*INTRO!$E$49,0)) -> 150005 | G178: =IF(INTRO!$E$50="","",ROUND($D178*INTRO!$E$50,0)) -> 197149 | H178: 0 | I178: 4 | J178: 1 | K178: 2 | L178: 0 | M178: =IF(INTRO!$E$37="Endémique",IF($H178>0,IF($H178=4,"Inconnu",IF($H178=99,"Interrompu",$D178)),0),"Non requis") -> 0 | N178: =IF(INTRO!$E$39="Endémique", IF($I178>0, IF($I178=4,"Inconnu",IF($I178=99,"Interrompu",$D178)), 0),"Non requis") -> Inconnu | O178: =IF(INTRO!$E$41="Endémique", IF(AND($J178>1,$J178<5), IF($J178=4, "Inconnu", E178+F178), 0),"Non requis") -> 0 | P178: =IF(INTRO!$E$43="Endémique", IF(AND($K178>0,$K178<5), IF($K178=4,"Inconnu", IF($K178=1, $F178*0.33, IF($K178=2, $F178*0.5+$G178*0.2, SUM(F178:G178)))), 0),"Non requis") -> 114432.3 | Q178: 0 | R178: 0 | S178: 0 | T178: 1 | Y178: 14014 | Z178: Diulu | AA178: TRUE | AB178: 0 | AC178: 0 | AD178: 0
A179: =IF(INTRO!$E$33<>0,INTRO!$E$33, " ") -> DRC | B179: KASAI ORIENTAL | C179: Kabeya Kamuanga | D179: 212539 | E179: =IF(INTRO!$E$48="","",ROUND($D179*INTRO!$E$48,0)) -> 36132 | F179: =IF(INTRO!$E$49="","",ROUND($D179*INTRO!$E$49,0)) -> 74389 | G179: =IF(INTRO!$E$50="","",ROUND($D179*INTRO!$E$50,0)) -> 97768 | H179: 0 | I179: 1 | J179: 1 | K179: 2 | L179: 0 | M179: =IF(INTRO!$E$37="Endémique",IF($H179>0,IF($H179=4,"Inconnu",IF($H179=99,"Interrompu",$D179)),0),"Non requis") -> 0 | N179: =IF(INTRO!$E$39="Endémique", IF($I179>0, IF($I179=4,"Inconnu",IF($I179=99,"Interrompu",$D179)), 0),"Non requis") -> 212539 | O179: =IF(INTRO!$E$41="Endémique", IF(AND($J179>1,$J179<5), IF($J179=4, "Inconnu", E179+F179), 0),"Non requis") -> 0 | P179: =IF(INTRO!$E$43="Endémique", IF(AND($K179>0,$K179<5), IF($K179=4,"Inconnu", IF($K179=1, $F179*0.33, IF($K179=2, $F179*0.5+$G179*0.2, SUM(F179:G179)))), 0),"Non requis") -> 56748.1 | Q179: 0 | R179: 1 | S179: 0 | T179: 0 | Y179: 14016 | Z179: Kabeya Kamuanga | AA179: TRUE | AB179: 0 | AC179: 1 | AD179: 1
A180: =IF(INTRO!$E$33<>0,INTRO!$E$33, " ") -> DRC | B180: KASAI ORIENTAL | C180: Kansele | D180: 250583 | E180: =IF(INTRO!$E$48="","",ROUND($D180*INTRO!$E$48,0)) -> 42599 | F180: =IF(INTRO!$E$49="","",ROUND($D180*INTRO!$E$49,0)) -> 87704 | G180: =IF(INTRO!$E$50="","",ROUND($D180*INTRO!$E$50,0)) -> 115268 | H180: 0 | I180: 4 | J180: 2 | K180: 1 | L180: 0 | M180: =IF(INTRO!$E$37="Endémique",IF($H180>0,IF($H180=4,"Inconnu",IF($H180=99,"Interrompu",$D180)),0),"Non requis") -> 0 | N180: =IF(INTRO!$E$39="Endémique", IF($I180>0, IF($I180=4,"Inconnu",IF($I180=99,"Interrompu",$D180)), 0),"Non requis") -> Inconnu | O180: =IF(INTRO!$E$41="Endémique", IF(AND($J180>1,$J180<5), IF($J180=4, "Inconnu", E180+F180), 0),"Non requis") -> 130303 | P180: =IF(INTRO!$E$43="Endémique", IF(AND($K180>0,$K180<5), IF($K180=4,"Inconnu", IF($K180=1, $F180*0.33, IF($K180=2, $F180*0.5+$G180*0.2, SUM(F180:G180)))), 0),"Non requis") -> 28942.32 | Q180: 0 | R180: 0 | S180: 1 | T180: 0 | Y180: 14024 | Z180: Kansele | AA180: TRUE | AB180: 0 | AC180: 1 | AD180: 1
A181: =IF(INTRO!$E$33<>0,INTRO!$E$33, " ") -> DRC | B181: KASAI ORIENTAL | C181: Kasansa | D181: 239295 | E181: =IF(INTRO!$E$48="","",ROUND($D181*INTRO!$E$48,0)) -> 40680 | F181: =IF(INTRO!$E$49="","",ROUND($D181*INTRO!$E$49,0)) -> 83753 | G181: =IF(INTRO!$E$50="","",ROUND($D181*INTRO!$E$50,0)) -> 110076 | H181: 0 | I181: 1 | J181: 1 | K181: 2 | L181: 0 | M181: =IF(INTRO!$E$37="Endémique",IF($H181>0,IF($H181=4,"Inconnu",IF($H181=99,"Interrompu",$D181)),0),"Non requis") -> 0 | N181: =IF(INTRO!$E$39="Endémique", IF($I181>0, IF($I181=4,"Inconnu",IF($I181=99,"Interrompu",$D181)), 0),"Non requis") -> 239295 | O181: =IF(INTRO!$E$41="Endémique", IF(AND($J181>1,$J181<5), IF($J181=4, "Inconnu", E181+F181), 0),"Non requis") -> 0 | P181: =IF(INTRO!$E$43="Endémique", IF(AND($K181>0,$K181<5), IF($K181=4,"Inconnu", IF($K181=1, $F181*0.33, IF($K181=2, $F181*0.5+$G181*0.2, SUM(F181:G181)))), 0),"Non requis") -> 63891.7 | Q181: 0 | R181: 1 | S181: 0 | T181: 0 | Y181: 14025 | Z181: Kasansa | AA181: TRUE | AB181: 0 | AC181: 1 | AD181: 1
A182: =IF(INTRO!$E$33<>0,INTRO!$E$33, " ") -> DRC | B182: KASAI ORIENTAL | C182: Lubilanji | D182: 268201 | E182: =IF(INTRO!$E$48="","",ROUND($D182*INTRO!$E$48,0)) -> 45594 | F182: =IF(INTRO!$E$49="","",ROUND($D182*INTRO!$E$49,0)) -> 93870 | G182: =IF(INTRO!$E$50="","",ROUND($D182*INTRO!$E$50,0)) -> 123372 | H182: 1 | I182: 4 | J182: 2 | K182: 2 | L182: 0 | M182: =IF(INTRO!$E$37="Endémique",IF($H182>0,IF($H182=4,"Inconnu",IF($H182=99,"Interrompu",$D182)),0),"Non requis") -> 268201 | N182: =IF(INTRO!$E$39="Endémique", IF($I182>0, IF($I182=4,"Inconnu",IF($I182=99,"Interrompu",$D182)), 0),"Non requis") -> Inconnu | O182: =IF(INTRO!$E$41="Endémique", IF(AND($J182>1,$J182<5), IF($J182=4, "Inconnu", E182+F182), 0),"Non requis") -> 139464 | P182: =IF(INTRO!$E$43="Endémique", IF(AND($K182>0,$K182<5), IF($K182=4,"Inconnu", IF($K182=1, $F182*0.33, IF($K182=2, $F182*0.5+$G182*0.2, SUM(F182:G182)))), 0),"Non requis") -> 71609.4 | Q182: 1 | R182: 0 | S182: 1 | T182: 1 | Y182: 14031 | Z182: Lubilanji | AA182: TRUE | AB182: 0 | AC182: 0 | AD182: 0
A183: =IF(INTRO!$E$33<>0,INTRO!$E$33, " ") -> DRC | B183: KASAI ORIENTAL | C183: Lukelenge | D183: 304125 | E183: =IF(INTRO!$E$48="","",ROUND($D183*INTRO!$E$48,0)) -> 51701 | F183: =IF(INTRO!$E$49="","",ROUND($D183*INTRO!$E$49,0)) -> 106444 | G183: =IF(INTRO!$E$50="","",ROUND($D183*INTRO!$E$50,0)) -> 139898 | H183: 0 | I183: 4 | J183: 1 | K183: 2 | L183: 0 | M183: =IF(INTRO!$E$37="Endémique",IF($H183>0,IF($H183=4,"Inconnu",IF($H183=99,"Interrompu",$D183)),0),"Non requis") -> 0 | N183: =IF(INTRO!$E$39="Endémique", IF($I183>0, IF($I183=4,"Inconnu",IF($I183=99,"Interrompu",$D183)), 0),"Non requis") -> Inconnu | O183: =IF(INTRO!$E$41="Endémique", IF(AND($J183>1,$J183<5), IF($J183=4, "Inconnu", E183+F183), 0),"Non requis") -> 0 | P183: =IF(INTRO!$E$43="Endémique", IF(AND($K183>0,$K183<5), IF($K183=4,"Inconnu", IF($K183=1, $F183*0.33, IF($K183=2, $F183*0.5+$G183*0.2, SUM(F183:G183)))), 0),"Non requis") -> 81201.6 | Q183: 0 | R183: 0 | S183: 0 | T183: 0 | Y183: 14033 | Z183: Lukelenge | AA183: TRUE | AB183: 0 | AC183: 1 | AD183: 1
A184: =IF(INTRO!$E$33<>0,INTRO!$E$33, " ") -> DRC | B184: KASAI ORIENTAL | C184: Miabi | D184: 175027 | E184: =IF(INTRO!$E$48="","",ROUND($D184*INTRO!$E$48,0)) -> 29755 | F184: =IF(INTRO!$E$49="","",ROUND($D184*INTRO!$E$49,0)) -> 61259 | G184: =IF(INTRO!$E$50="","",ROUND($D184*INTRO!$E$50,0)) -> 80512 | H184: 0 | I184: 1 | J184: 1 | K184: 1 | L184: 0 | M184: =IF(INTRO!$E$37="Endémique",IF($H184>0,IF($H184=4,"Inconnu",IF($H184=99,"Interrompu",$D184)),0),"Non requis") -> 0 | N184: =IF(INTRO!$E$39="Endémique", IF($I184>0, IF($I184=4,"Inconnu",IF($I184=99,"Interrompu",$D184)), 0),"Non requis") -> 175027 | O184: =IF(INTRO!$E$41="Endémique", IF(AND($J184>1,$J184<5), IF($J184=4, "Inconnu", E184+F184), 0),"Non requis") -> 0 | P184: =IF(INTRO!$E$43="Endémique", IF(AND($K184>0,$K184<5), IF($K184=4,"Inconnu", IF($K184=1, $F184*0.33, IF($K184=2, $F184*0.5+$G184*0.2, SUM(F184:G184)))), 0),"Non requis") -> 20215.47 | Q184: 0 | R184: 1 | S184: 0 | T184: 0 | Y184: 14037 | Z184: Miabi | AA184: TRUE | AB184: 0 | AC184: 1 | AD184: 1
A185: =IF(INTRO!$E$33<>0,INTRO!$E$33, " ") -> DRC | B185: KASAI ORIENTAL | C185: Mpokolo | D185: 318956 | E185: =IF(INTRO!$E$48="","",ROUND($D185*INTRO!$E$48,0)) -> 54223 | F185: =IF(INTRO!$E$49="","",ROUND($D185*INTRO!$E$49,0)) -> 111635 | G185: =IF(INTRO!$E$50="","",ROUND($D185*INTRO!$E$50,0)) -> 146720 | H185: 1 | I185: 4 | J185: 1 | K185: 2 | L185: 0 | M185: =IF(INTRO!$E$37="Endémique",IF($H185>0,IF($H185=4,"Inconnu",IF($H185=99,"Interrompu",$D185)),0),"Non requis") -> 318956 | N185: =IF(INTRO!$E$39="Endémique", IF($I185>0, IF($I185=4,"Inconnu",IF($I185=99,"Interrompu",$D185)), 0),"Non requis") -> Inconnu | O185: =IF(INTRO!$E$41="Endémique", IF(AND($J185>1,$J185<5), IF($J185=4, "Inconnu", E185+F185), 0),"Non requis") -> 0 | P185: =IF(INTRO!$E$43="Endémique", IF(AND($K185>0,$K185<5), IF($K185=4,"Inconnu", IF($K185=1, $F185*0.33, IF($K185=2, $F185*0.5+$G185*0.2, SUM(F185:G185)))), 0),"Non requis") -> 85161.5 | Q185: 1 | R185: 0 | S185: 0 | T185: 0 | Y185: 14039 | Z185: Mpokolo | AA185: TRUE | AB185: 0 | AC185: 1 | AD185: 1
A186: =IF(INTRO!$E$33<>0,INTRO!$E$33, " ") -> DRC | B186: KASAI ORIENTAL | C186: Mukumbi | D186: 183943 | E186: =IF(INTRO!$E$48="","",ROUND($D186*INTRO!$E$48,0)) -> 31270 | F186: =IF(INTRO!$E$49="","",ROUND($D186*INTRO!$E$49,0)) -> 64380 | G186: =IF(INTRO!$E$50="","",ROUND($D186*INTRO!$E$50,0)) -> 84614 | H186: 1 | I186: 1 | J186: 1 | K186: 2 | L186: 0 | M186: =IF(INTRO!$E$37="Endémique",IF($H186>0,IF($H186=4,"Inconnu",IF($H186=99,"Interrompu",$D186)),0),"Non requis") -> 183943 | N186: =IF(INTRO!$E$39="Endémique", IF($I186>0, IF($I186=4,"Inconnu",IF($I186=99,"Interrompu",$D186)), 0),"Non requis") -> 183943 | O186: =IF(INTRO!$E$41="Endémique", IF(AND($J186>1,$J186<5), IF($J186=4, "Inconnu", E186+F186), 0),"Non requis") -> 0 | P186: =IF(INTRO!$E$43="Endémique", IF(AND($K186>0,$K186<5), IF($K186=4,"Inconnu", IF($K186=1, $F186*0.33, IF($K186=2, $F186*0.5+$G186*0.2, SUM(F186:G186)))), 0),"Non requis") -> 49112.8 | Q186: 1 | R186: 1 | S186: 0 | T186: 1 | Y186: 14040 | Z186: Mukumbi | AA186: TRUE | AB186: 0 | AC186: 0 | AD186: 0
A187: =IF(INTRO!$E$33<>0,INTRO!$E$33, " ") -> DRC | B187: KASAI ORIENTAL | C187: Muya | D187: 365401 | E187: =IF(INTRO!$E$48="","",ROUND($D187*INTRO!$E$48,0)) -> 62118 | F187: =IF(INTRO!$E$49="","",ROUND($D187*INTRO!$E$49,0)) -> 127890 | G187: =IF(INTRO!$E$50="","",ROUND($D187*INTRO!$E$50,0)) -> 168084 | H187: 0 | I187: 4 | J187: 1 | K187: 2 | L187: 0 | M187: =IF(INTRO!$E$37="Endémique",IF($H187>0,IF($H187=4,"Inconnu",IF($H187=99,"Interrompu",$D187)),0),"Non requis") -> 0 | N187: =IF(INTRO!$E$39="Endémique", IF($I187>0, IF($I187=4,"Inconnu",IF($I187=99,"Interrompu",$D187)), 0),"Non requis") -> Inconnu | O187: =IF(INTRO!$E$41="Endémique", IF(AND($J187>1,$J187<5), IF($J187=4, "Inconnu", E187+F187), 0),"Non requis") -> 0 | P187: =IF(INTRO!$E$43="Endémique", IF(AND($K187>0,$K187<5), IF($K187=4,"Inconnu", IF($K187=1, $F187*0.33, IF($K187=2, $F187*0.5+$G187*0.2, SUM(F187:G187)))), 0),"Non requis") -> 97561.8 | Q187: 0 | R187: 0 | S187: 0 | T187: 0 | Y187: 14042 | Z187: Muya | AA187: TRUE | AB187: 0 | AC187: 1 | AD187: 1
A188: =IF(INTRO!$E$33<>0,INTRO!$E$33, " ") -> DRC | B188: KASAI ORIENTAL | C188: Nzaba | D188: 264518 | E188: =IF(INTRO!$E$48="","",ROUND($D188*INTRO!$E$48,0)) -> 44968 | F188: =IF(INTRO!$E$49="","",ROUND($D188*INTRO!$E$49,0)) -> 92581 | G188: =IF(INTRO!$E$50="","",ROUND($D188*INTRO!$E$50,0)) -> 121678 | H188: 0 | I188: 4 | J188: 1 | K188: 1 | L188: 0 | M188: =IF(INTRO!$E$37="Endémique",IF($H188>0,IF($H188=4,"Inconnu",IF($H188=99,"Interrompu",$D188)),0),"Non requis") -> 0 | N188: =IF(INTRO!$E$39="Endémique", IF($I188>0, IF($I188=4,"Inconnu",IF($I188=99,"Interrompu",$D188)), 0),"Non requis") -> Inconnu | O188: =IF(INTRO!$E$41="Endémique", IF(AND($J188>1,$J188<5), IF($J188=4, "Inconnu", E188+F188), 0),"Non requis") -> 0 | P188: =IF(INTRO!$E$43="Endémique", IF(AND($K188>0,$K188<5), IF($K188=4,"Inconnu", IF($K188=1, $F188*0.33, IF($K188=2, $F188*0.5+$G188*0.2, SUM(F188:G188)))), 0),"Non requis") -> 30551.73 | Q188: 0 | R188: 0 | S188: 0 | T188: 1 | Y188: 14045 | Z188: Nzaba | AA188: TRUE | AB188: 0 | AC188: 0 | AD188: 0
A189: =IF(INTRO!$E$33<>0,INTRO!$E$33, " ") -> DRC | B189: KASAI ORIENTAL | C189: Tshilenge | D189: 335070 | E189: =IF(INTRO!$E$48="","",ROUND($D189*INTRO!$E$48,0)) -> 56962 | F189: =IF(INTRO!$E$49="","",ROUND($D189*INTRO!$E$49,0)) -> 117275 | G189: =IF(INTRO!$E$50="","",ROUND($D189*INTRO!$E$50,0)) -> 154132 | H189: 0 | I189: 1 | J189: 2 | K189: 2 | L189: 0 | M189: =IF(INTRO!$E$37="Endémique",IF($H189>0,IF($H189=4,"Inconnu",IF($H189=99,"Interrompu",$D189)),0),"Non requis") -> 0 | N189: =IF(INTRO!$E$39="Endémique", IF($I189>0, IF($I189=4,"Inconnu",IF($I189=99,"Interrompu",$D189)), 0),"Non requis") -> 335070 | O189: =IF(INTRO!$E$41="Endémique", IF(AND($J189>1,$J189<5), IF($J189=4, "Inconnu", E189+F189), 0),"Non requis") -> 174237 | P189: =IF(INTRO!$E$43="Endémique", IF(AND($K189>0,$K189<5), IF($K189=4,"Inconnu", IF($K189=1, $F189*0.33, IF($K189=2, $F189*0.5+$G189*0.2, SUM(F189:G189)))), 0),"Non requis") -> 89463.9 | Q189: 0 | R189: 1 | S189: 1 | T189: 0 | Y189: 14049 | Z189: Tshilenge | AA189: TRUE | AB189: 0 | AC189: 1 | AD189: 1
A190: =IF(INTRO!$E$33<>0,INTRO!$E$33, " ") -> DRC | B190: KASAI ORIENTAL | C190: Tshilundu | D190: 214006 | E190: =IF(INTRO!$E$48="","",ROUND($D190*INTRO!$E$48,0)) -> 36381 | F190: =IF(INTRO!$E$49="","",ROUND($D190*INTRO!$E$49,0)) -> 74902 | G190: =IF(INTRO!$E$50="","",ROUND($D190*INTRO!$E$50,0)) -> 98443 | H190: 0 | I190: 1 | J190: 1 | K190: 1 | L190: 0 | M190: =IF(INTRO!$E$37="Endémique",IF($H190>0,IF($H190=4,"Inconnu",IF($H190=99,"Interrompu",$D190)),0),"Non requis") -> 0 | N190: =IF(INTRO!$E$39="Endémique", IF($I190>0, IF($I190=4,"Inconnu",IF($I190=99,"Interrompu",$D190)), 0),"Non requis") -> 214006 | O190: =IF(INTRO!$E$41="Endémique", IF(AND($J190>1,$J190<5), IF($J190=4, "Inconnu", E190+F190), 0),"Non requis") -> 0 | P190: =IF(INTRO!$E$43="Endémique", IF(AND($K190>0,$K190<5), IF($K190=4,"Inconnu", IF($K190=1, $F190*0.33, IF($K190=2, $F190*0.5+$G190*0.2, SUM(F190:G190)))), 0),"Non requis") -> 24717.66 | Q190: 0 | R190: 1 | S190: 0 | T190: 0 | Y190: 14050 | Z190: Tshilundu | AA190: TRUE | AB190: 0 | AC190: 1 | AD190: 1
A191: =IF(INTRO!$E$33<>0,INTRO!$E$33, " ") -> DRC | B191: KASAI ORIENTAL | C191: Tshitenge | D191: 274907 | E191: =IF(INTRO!$E$48="","",ROUND($D191*INTRO!$E$48,0)) -> 46734 | F191: =IF(INTRO!$E$49="","",ROUND($D191*INTRO!$E$49,0)) -> 96217 | G191: =IF(INTRO!$E$50="","",ROUND($D191*INTRO!$E$50,0)) -> 126457 | H191: 1 | I191: 1 | J191: 1 | K191: 2 | L191: 0 | M191: =IF(INTRO!$E$37="Endémique",IF($H191>0,IF($H191=4,"Inconnu",IF($H191=99,"Interrompu",$D191)),0),"Non requis") -> 274907 | N191: =IF(INTRO!$E$39="Endémique", IF($I191>0, IF($I191=4,"Inconnu",IF($I191=99,"Interrompu",$D191)), 0),"Non requis") -> 274907 | O191: =IF(INTRO!$E$41="Endémique", IF(AND($J191>1,$J191<5), IF($J191=4, "Inconnu", E191+F191), 0),"Non requis") -> 0 | P191: =IF(INTRO!$E$43="Endémique", IF(AND($K191>0,$K191<5), IF($K191=4,"Inconnu", IF($K191=1, $F191*0.33, IF($K191=2, $F191*0.5+$G191*0.2, SUM(F191:G191)))), 0),"Non requis") -> 73399.9 | Q191: 1 | R191: 1 | S191: 0 | T191: 0 | Y191: 14057 | Z191: Tshitenge | AA191: TRUE | AB191: 0 | AC191: 1 | AD191: 1
A192: =IF(INTRO!$E$33<>0,INTRO!$E$33, " ") -> DRC | B192: KASAI ORIENTAL | C192: Tshitshimbi | D192: 211578 | E192: =IF(INTRO!$E$48="","",ROUND($D192*INTRO!$E$48,0)) -> 35968 | F192: =IF(INTRO!$E$49="","",ROUND($D192*INTRO!$E$49,0)) -> 74052 | G192: =IF(INTRO!$E$50="","",ROUND($D192*INTRO!$E$50,0)) -> 97326 | H192: 0 | I192: 1 | J192: 1 | K192: 2 | L192: 0 | M192: =IF(INTRO!$E$37="Endémique",IF($H192>0,IF($H192=4,"Inconnu",IF($H192=99,"Interrompu",$D192)),0),"Non requis") -> 0 | N192: =IF(INTRO!$E$39="Endémique", IF($I192>0, IF($I192=4,"Inconnu",IF($I192=99,"Interrompu",$D192)), 0),"Non requis") -> 211578 | O192: =IF(INTRO!$E$41="Endémique", IF(AND($J192>1,$J192<5), IF($J192=4, "Inconnu", E192+F192), 0),"Non requis") -> 0 | P192: =IF(INTRO!$E$43="Endémique", IF(AND($K192>0,$K192<5), IF($K192=4,"Inconnu", IF($K192=1, $F192*0.33, IF($K192=2, $F192*0.5+$G192*0.2, SUM(F192:G192)))), 0),"Non requis") -> 56491.2 | Q192: 0 | R192: 1 | S192: 0 | T192: 0 | Y192: 14051 | Z192: Tshitshimbi | AA192: TRUE | AB192: 0 | AC192: 1 | AD192: 1
A193: =IF(INTRO!$E$33<>0,INTRO!$E$33, " ") -> DRC | B193: KINSHASA | C193: Bandalungwa | D193: 208335 | E193: =IF(INTRO!$E$48="","",ROUND($D193*INTRO!$E$48,0)) -> 35417 | F193: =IF(INTRO!$E$49="","",ROUND($D193*INTRO!$E$49,0)) -> 72917 | G193: =IF(INTRO!$E$50="","",ROUND($D193*INTRO!$E$50,0)) -> 95834 | H193: 0 | I193: 4 | J193: 3 | K193: 1 | L193: 0 | M193: =IF(INTRO!$E$37="Endémique",IF($H193>0,IF($H193=4,"Inconnu",IF($H193=99,"Interrompu",$D193)),0),"Non requis") -> 0 | N193: =IF(INTRO!$E$39="Endémique", IF($I193>0, IF($I193=4,"Inconnu",IF($I193=99,"Interrompu",$D193)), 0),"Non requis") -> Inconnu | O193: =IF(INTRO!$E$41="Endémique", IF(AND($J193>1,$J193<5), IF($J193=4, "Inconnu", E193+F193), 0),"Non requis") -> 108334 | P193: =IF(INTRO!$E$43="Endémique", IF(AND($K193>0,$K193<5), IF($K193=4,"Inconnu", IF($K193=1, $F193*0.33, IF($K193=2, $F193*0.5+$G193*0.2, SUM(F193:G193)))), 0),"Non requis") -> 24062.61 | Q193: 0 | R193: 0 | S193: 0 | T193: 0 | Y193: 14126 | Z193: Bandalungwa | AA193: TRUE | AB193: 0 | AC193: 0 | AD193: 0
A194: =IF(INTRO!$E$33<>0,INTRO!$E$33, " ") -> DRC | B194: KINSHASA | C194: Barumbu | D194: 174157 | E194: =IF(INTRO!$E$48="","",ROUND($D194*INTRO!$E$48,0)) -> 29607 | F194: =IF(INTRO!$E$49="","",ROUND($D194*INTRO!$E$49,0)) -> 60955 | G194: =IF(INTRO!$E$50="","",ROUND($D194*INTRO!$E$50,0)) -> 80112 | H194: 0 | I194: 4 | J194: 3 | K194: 1 | L194: 0 | M194: =IF(INTRO!$E$37="Endémique",IF($H194>0,IF($H194=4,"Inconnu",IF($H194=99,"Interrompu",$D194)),0),"Non requis") -> 0 | N194: =IF(INTRO!$E$39="Endémique", IF($I194>0, IF($I194=4,"Inconnu",IF($I194=99,"Interrompu",$D194)), 0),"Non requis") -> Inconnu | O194: =IF(INTRO!$E$41="Endémique", IF(AND($J194>1,$J194<5), IF($J194=4, "Inconnu", E194+F194), 0),"Non requis") -> 90562 | P194: =IF(INTRO!$E$43="Endémique", IF(AND($K194>0,$K194<5), IF($K194=4,"Inconnu", IF($K194=1, $F194*0.33, IF($K194=2, $F194*0.5+$G194*0.2, SUM(F194:G194)))), 0),"Non requis") -> 20115.15 | Q194: 0 | R194: 0 | S194: 0 | T194: 0 | Y194: 14127 | Z194: Barumbu | AA194: TRUE | AB194: 0 | AC194: 0 | AD194: 0
A195: =IF(INTRO!$E$33<>0,INTRO!$E$33, " ") -> DRC | B195: KINSHASA | C195: Binza-Metéo | D195: 460450 | E195: =IF(INTRO!$E$48="","",ROUND($D195*INTRO!$E$48,0)) -> 78277 | F195: =IF(INTRO!$E$49="","",ROUND($D195*INTRO!$E$49,0)) -> 161158 | G195: =IF(INTRO!$E$50="","",ROUND($D195*INTRO!$E$50,0)) -> 211807 | H195: 0 | I195: 4 | J195: 3 | K195: 1 | L195: 0 | M195: =IF(INTRO!$E$37="Endémique",IF($H195>0,IF($H195=4,"Inconnu",IF($H195=99,"Interrompu",$D195)),0),"Non requis") -> 0 | N195: =IF(INTRO!$E$39="Endémique", IF($I195>0, IF($I195=4,"Inconnu",IF($I195=99,"Interrompu",$D195)), 0),"Non requis") -> Inconnu | O195: =IF(INTRO!$E$41="Endémique", IF(AND($J195>1,$J195<5), IF($J195=4, "Inconnu", E195+F195), 0),"Non requis") -> 239435 | P195: =IF(INTRO!$E$43="Endémique", IF(AND($K195>0,$K195<5), IF($K195=4,"Inconnu", IF($K195=1, $F195*0.33, IF($K195=2, $F195*0.5+$G195*0.2, SUM(F195:G195)))), 0),"Non requis") -> 53182.14 | Q195: 0 | R195: 0 | S195: 0 | T195: 0 | Y195: 14128 | Z195: Binza-Metéo | AA195: TRUE | AB195: 0 | AC195: 0 | AD195: 0
A196: =IF(INTRO!$E$33<>0,INTRO!$E$33, " ") -> DRC | B196: KINSHASA | C196: Binza-Ozone | D196: 45199 | E196: =IF(INTRO!$E$48="","",ROUND($D196*INTRO!$E$48,0)) -> 7684 | F196: =IF(INTRO!$E$49="","",ROUND($D196*INTRO!$E$49,0)) -> 15820 | G196: =IF(INTRO!$E$50="","",ROUND($D196*INTRO!$E$50,0)) -> 20792 | H196: 0 | I196: 1 | J196: 3 | K196: 1 | L196: 0 | M196: =IF(INTRO!$E$37="Endémique",IF($H196>0,IF($H196=4,"Inconnu",IF($H196=99,"Interrompu",$D196)),0),"Non requis") -> 0 | N196: =IF(INTRO!$E$39="Endémique", IF($I196>0, IF($I196=4,"Inconnu",IF($I196=99,"Interrompu",$D196)), 0),"Non requis") -> 45199 | O196: =IF(INTRO!$E$41="Endémique", IF(AND($J196>1,$J196<5), IF($J196=4, "Inconnu", E196+F196), 0),"Non requis") -> 23504 | P196: =IF(INTRO!$E$43="Endémique", IF(AND($K196>0,$K196<5), IF($K196=4,"Inconnu", IF($K196=1, $F196*0.33, IF($K196=2, $F196*0.5+$G196*0.2, SUM(F196:G196)))), 0),"Non requis") -> 5220.6 | Q196: 0 | R196: 1 | S196: 0 | T196: 0 | Y196: 14129 | Z196: Binza-Ozone | AA196: TRUE | AB196: 0 | AC196: 0 | AD196: 0
A197: =IF(INTRO!$E$33<>0,INTRO!$E$33, " ") -> DRC | B197: KINSHASA | C197: Biyela | D197: 258095 | E197: =IF(INTRO!$E$48="","",ROUND($D197*INTRO!$E$48,0)) -> 43876 | F197: =IF(INTRO!$E$49="","",ROUND($D197*INTRO!$E$49,0)) -> 90333 | G197: =IF(INTRO!$E$50="","",ROUND($D197*INTRO!$E$50,0)) -> 118724 | H197: 0 | I197: 4 | J197: 3 | K197: 1 | L197: 0 | M197: =IF(INTRO!$E$37="Endémique",IF($H197>0,IF($H197=4,"Inconnu",IF($H197=99,"Interrompu",$D197)),0),"Non requis") -> 0 | N197: =IF(INTRO!$E$39="Endémique", IF($I197>0, IF($I197=4,"Inconnu",IF($I197=99,"Interrompu",$D197)), 0),"Non requis") -> Inconnu | O197: =IF(INTRO!$E$41="Endémique", IF(AND($J197>1,$J197<5), IF($J197=4, "Inconnu", E197+F197), 0),"Non requis") -> 134209 | P197: =IF(INTRO!$E$43="Endémique", IF(AND($K197>0,$K197<5), IF($K197=4,"Inconnu", IF($K197=1, $F197*0.33, IF($K197=2, $F197*0.5+$G197*0.2, SUM(F197:G197)))), 0),"Non requis") -> 29809.89 | Q197: 0 | R197: 0 | S197: 0 | T197: 0 | Y197: 14130 | Z197: Biyela | AA197: TRUE | AB197: 0 | AC197: 0 | AD197: 0
A198: =IF(INTRO!$E$33<>0,INTRO!$E$33, " ") -> DRC | B198: KINSHASA | C198: Bumbu | D198: 475177 | E198: =IF(INTRO!$E$48="","",ROUND($D198*INTRO!$E$48,0)) -> 80780 | F198: =IF(INTRO!$E$49="","",ROUND($D198*INTRO!$E$49,0)) -> 166312 | G198: =IF(INTRO!$E$50="","",ROUND($D198*INTRO!$E$50,0)) -> 218581 | H198: 0 | I198: 4 | J198: 3 | K198: 1 | L198: 0 | M198: =IF(INTRO!$E$37="Endémique",IF($H198>0,IF($H198=4,"Inconnu",IF($H198=99,"Interrompu",$D198)),0),"Non requis") -> 0 | N198: =IF(INTRO!$E$39="Endémique", IF($I198>0, IF($I198=4,"Inconnu",IF($I198=99,"Interrompu",$D198)), 0),"Non requis") -> Inconnu | O198: =IF(INTRO!$E$41="Endémique", IF(AND($J198>1,$J198<5), IF($J198=4, "Inconnu", E198+F198), 0),"Non requis") -> 247092 | P198: =IF(INTRO!$E$43="Endémique", IF(AND($K198>0,$K198<5), IF($K198=4,"Inconnu", IF($K198=1, $F198*0.33, IF($K198=2, $F198*0.5+$G198*0.2, SUM(F198:G198)))), 0),"Non requis") -> 54882.96 | Q198: 0 | R198: 0 | S198: 0 | T198: 0 | Y198: 14131 | Z198: Bumbu | AA198: TRUE | AB198: 0 | AC198: 0 | AD198: 0
A199: =IF(INTRO!$E$33<>0,INTRO!$E$33, " ") -> DRC | B199: KINSHASA | C199: Gombe | D199: 37388 | E199: =IF(INTRO!$E$48="","",ROUND($D199*INTRO!$E$48,0)) -> 6356 | F199: =IF(INTRO!$E$49="","",ROUND($D199*INTRO!$E$49,0)) -> 13086 | G199: =IF(INTRO!$E$50="","",ROUND($D199*INTRO!$E$50,0)) -> 17198 | H199: 0 | I199: 4 | J199: 3 | K199: 1 | L199: 0 | M199: =IF(INTRO!$E$37="Endémique",IF($H199>0,IF($H199=4,"Inconnu",IF($H199=99,"Interrompu",$D199)),0),"Non requis") -> 0 | N199: =IF(INTRO!$E$39="Endémique", IF($I199>0, IF($I199=4,"Inconnu",IF($I199=99,"Interrompu",$D199)), 0),"Non requis") -> Inconnu | O199: =IF(INTRO!$E$41="Endémique", IF(AND($J199>1,$J199<5), IF($J199=4, "Inconnu", E199+F199), 0),"Non requis") -> 19442 | P199: =IF(INTRO!$E$43="Endémique", IF(AND($K199>0,$K199<5), IF($K199=4,"Inconnu", IF($K199=1, $F199*0.33, IF($K199=2, $F199*0.5+$G199*0.2, SUM(F199:G199)))), 0),"Non requis") -> 4318.38 | Q199: 0 | R199: 0 | S199: 0 | T199: 0 | Y199: 14132 | Z199: Gombe | AA199: TRUE | AB199: 0 | AC199: 0 | AD199: 0
A200: =IF(INTRO!$E$33<>0,INTRO!$E$33, " ") -> DRC | B200: KINSHASA | C200: Kalamu I | D200: 167263 | E200: =IF(INTRO!$E$48="","",ROUND($D200*INTRO!$E$48,0)) -> 28435 | F200: =IF(INTRO!$E$49="","",ROUND($D200*INTRO!$E$49,0)) -> 58542 | G200: =IF(INTRO!$E$50="","",ROUND($D200*INTRO!$E$50,0)) -> 76941 | H200: 0 | I200: 4 | J200: 3 | K200: 1 | L200: 0 | M200: =IF(INTRO!$E$37="Endémique",IF($H200>0,IF($H200=4,"Inconnu",IF($H200=99,"Interrompu",$D200)),0),"Non requis") -> 0 | N200: =IF(INTRO!$E$39="Endémique", IF($I200>0, IF($I200=4,"Inconnu",IF($I200=99,"Interrompu",$D200)), 0),"Non requis") -> Inconnu | O200: =IF(INTRO!$E$41="Endémique", IF(AND($J200>1,$J200<5), IF($J200=4, "Inconnu", E200+F200), 0),"Non requis") -> 86977 | P200: =IF(INTRO!$E$43="Endémique", IF(AND($K200>0,$K200<5), IF($K200=4,"Inconnu", IF($K200=1, $F200*0.33, IF($K200=2, $F200*0.5+$G200*0.2, SUM(F200:G200)))), 0),"Non requis") -> 19318.86 | Q200: 0 | R200: 0 | S200: 0 | T200: 0 | Y200: 14133 | Z200: Kalamu I | AA200: TRUE | AB200: 0 | AC200: 0 | AD200: 0
A201: =IF(INTRO!$E$33<>0,INTRO!$E$33, " ") -> DRC | B201: KINSHASA | C201: Kalamu II | D201: 149292 | E201: =IF(INTRO!$E$48="","",ROUND($D201*INTRO!$E$48,0)) -> 25380 | F201: =IF(INTRO!$E$49="","",ROUND($D201*INTRO!$E$49,0)) -> 52252 | G201: =IF(INTRO!$E$50="","",ROUND($D201*INTRO!$E$50,0)) -> 68674 | H201: 0 | I201: 4 | J201: 3 | K201: 1 | L201: 0 | M201: =IF(INTRO!$E$37="Endémique",IF($H201>0,IF($H201=4,"Inconnu",IF($H201=99,"Interrompu",$D201)),0),"Non requis") -> 0 | N201: =IF(INTRO!$E$39="Endémique", IF($I201>0, IF($I201=4,"Inconnu",IF($I201=99,"Interrompu",$D201)), 0),"Non requis") -> Inconnu | O201: =IF(INTRO!$E$41="Endémique", IF(AND($J201>1,$J201<5), IF($J201=4, "Inconnu", E201+F201), 0),"Non requis") -> 77632 | P201: =IF(INTRO!$E$43="Endémique", IF(AND($K201>0,$K201<5), IF($K201=4,"Inconnu", IF($K201=1, $F201*0.33, IF($K201=2, $F201*0.5+$G201*0.2, SUM(F201:G201)))), 0),"Non requis") -> 17243.16 | Q201: 0 | R201: 0 | S201: 0 | T201: 0 | Y201: 14134 | Z201: Kalamu II | AA201: TRUE | AB201: 0 | AC201: 0 | AD201: 0
A202: =IF(INTRO!$E$33<>0,INTRO!$E$33, " ") -> DRC | B202: KINSHASA | C202: Kasa Vubu | D202: 152362 | E202: =IF(INTRO!$E$48="","",ROUND($D202*INTRO!$E$48,0)) -> 25902 | F202: =IF(INTRO!$E$49="","",ROUND($D202*INTRO!$E$49,0)) -> 53327 | G202: =IF(INTRO!$E$50="","",ROUND($D202*INTRO!$E$50,0)) -> 70087 | H202: 0 | I202: 4 | J202: 3 | K202: 1 | L202: 0 | M202: =IF(INTRO!$E$37="Endémique",IF($H202>0,IF($H202=4,"Inconnu",IF($H202=99,"Interrompu",$D202)),0),"Non requis") -> 0 | N202: =IF(INTRO!$E$39="Endémique", IF($I202>0, IF($I202=4,"Inconnu",IF($I202=99,"Interrompu",$D202)), 0),"Non requis") -> Inconnu | O202: =IF(INTRO!$E$41="Endémique", IF(AND($J202>1,$J202<5), IF($J202=4, "Inconnu", E202+F202), 0),"Non requis") -> 79229 | P202: =IF(INTRO!$E$43="Endémique", IF(AND($K202>0,$K202<5), IF($K202=4,"Inconnu", IF($K202=1, $F202*0.33, IF($K202=2, $F202*0.5+$G202*0.2, SUM(F202:G202)))), 0),"Non requis") -> 17597.91 | Q202: 0 | R202: 0 | S202: 0 | T202: 0 | Y202: 14135 | Z202: Kasa Vubu | AA202: =Z202=C202 -> TRUE | AB202: 0 | AC202: 0 | AD202: =AB202+AC202 -> 0
A203: =IF(INTRO!$E$33<>0,INTRO!$E$33, " ") -> DRC | B203: KINSHASA | C203: Kikimi | D203: 294780 | E203: =IF(INTRO!$E$48="","",ROUND($D203*INTRO!$E$48,0)) -> 50113 | F203: =IF(INTRO!$E$49="","",ROUND($D203*INTRO!$E$49,0)) -> 103173 | G203: =IF(INTRO!$E$50="","",ROUND($D203*INTRO!$E$50,0)) -> 135599 | H203: 0 | I203: 4 | J203: 3 | K203: 1 | L203: 0 | M203: =IF(INTRO!$E$37="Endémique",IF($H203>0,IF($H203=4,"Inconnu",IF($H203=99,"Interrompu",$D203)),0),"Non requis") -> 0 | N203: =IF(INTRO!$E$39="Endémique", IF($I203>0, IF($I203=4,"Inconnu",IF($I203=99,"Interrompu",$D203)), 0),"Non requis") -> Inconnu | O203: =IF(INTRO!$E$41="Endémique", IF(AND($J203>1,$J203<5), IF($J203=4, "Inconnu", E203+F203), 0),"Non requis") -> 153286 | P203: =IF(INTRO!$E$43="Endémique", IF(AND($K203>0,$K203<5), IF($K203=4,"Inconnu", IF($K203=1, $F203*0.33, IF($K203=2, $F203*0.5+$G203*0.2, SUM(F203:G203)))), 0),"Non requis") -> 34047.09 | Q203: 0 | R203: 0 | S203: 0 | T203: 0 | Y203: 14136 | Z203: Kikimi | AA203: TRUE | AB203: 0 | AC203: 0 | AD203: 0
... 324 more rows

Sheet ALB_MBD
A1: Albendazole (ALB) et Mebendazole (MBD)
A2: Structure administrative, population ciblée par groupe d'âge, plan de traitement et information sur les comprimés
A4: TOTAL | D4: =SUM(D$9:D$1000) -> 17710448 | E4: =SUM(E$9:E$1000) -> 36462721 | F4: =SUM(F$9:F$1000) -> 54173169 | I4: =SUM(I$9:I$1000) -> 28442737 | J4: =SUM(J$9:J$1000) -> 9977696 | M4: =SUM(M$9:M$1000) -> 8633136 | N4: =SUM(N$9:N$1000) -> 8866255 | O4: =SUM(O$9:O$1000) -> 0 | P4: =SUM(P$9:P$1000) -> 17499391 | Q4: =SUM(Q$9:Q$1000) -> 0 | R4: =SUM(R$9:R$1000) -> 0 | S4: 0 | T4: 0 | U4: 0 | V4: 48398129 | W4: 242109 | X4: 0 | Y4: 8866255 | Z4: 44403 | AA4: 0 | AB4: 0 | AC4: 0
A6: Structure administrative du pays | D6: Population nécessitant un traitement avec ALB/MBD | G6: Plan de traitement | I6: Population couverte par le PEFL avec ALB | J6: Endémique à la Loase | L6: Médicament choisi pour le traitement des STH | M6: Population cible | U6: Albendazole (ALB) | AA6: Mebendazole (MBD)
A7: Pays | B7: Région/Département | C7: District | D7: EAPréS | E7: EAS | F7: Total | G7: FL | H7: STH | J7: Population | K7: Tours planifiés | M7: STH (ALB) | Q7: STH (MBD) | U7: Reste en stock (FL) | V7: Comprimés devant être fournis (FL) | W7: Flacons (400mg) 200 comprimés (FL) | X7: Reste en stock (STH) | Y7: Comprimés devant être fournis pour EAS (STH) | Z7: Flacons (400mg) 200 comprimés (STH) | AA7: Reste en stock | AB7: Comprimés devant être fournis pour EAS | AC7: Flacons (500mg) 150 comprimés
M8: EAPréS | N8: EAS | O8: Autres | P8: Total | Q8: EAPréS | R8: EAS | S8: Autres | T8: Total
A9: =IF(AND(INTRO!$E$37="Non endémique",INTRO!$E$41="Non endémique")," ",IF(COUNTRY_INFO!A9=0," ",COUNTRY_INFO!A9)) -> DRC | B9: =IF(AND(INTRO!$E$37="Non endémique",INTRO!$E$41="Non endémique")," ",IF(COUNTRY_INFO!B9=0," ",COUNTRY_INFO!B9)) -> BAS UELE | C9: =IF(AND(INTRO!$E$37="Non endémique",INTRO!$E$41="Non endémique")," ",IF(COUNTRY_INFO!C9=0," ",COUNTRY_INFO!C9)) -> Aketi | D9: =IF(AND(INTRO!$E$37="Non endémique",INTRO!$E$41="Non endémique"),0,IF(AND(OR(COUNTRY_INFO!$H9=0,COUNTRY_INFO!$H9=4,COUNTRY_INFO!$H9=99),OR(COUNTRY_INFO!$J9=0,COUNTRY_INFO!$J9=4)),0,COUNTRY_INFO!$E9)) -> 25721 | E9: =IF(AND(INTRO!$E$37="Non endémique",INTRO!$E$41="Non endémique"),0,IF(AND(OR(COUNTRY_INFO!$H9=0,COUNTRY_INFO!$H9=4,COUNTRY_INFO!$H9=99),OR(COUNTRY_INFO!$J9=0,COUNTRY_INFO!$J9=4)),0,COUNTRY_INFO!$F9)) -> 52955 | F9: =SUM(D9:E9) -> 78676 | G9: =IF(AND(INTRO!$E$37="Non endémique",INTRO!$E$41="Non endémique"),0,COUNTRY_INFO!Q9) -> 1 | H9: =IF(AND(INTRO!$E$37="Non endémique",INTRO!$E$41="Non endémique"),0,COUNTRY_INFO!S9) -> 0 | I9: =IF($G9=1,IVM!$G9,0) -> 122553 | M9: =IF($L9="ALB", IF(INTRO!$E$39="Non endémique",IF($H9<>0,$D9*($H9-$G9),0),$D9*$H9), 0) -> 0 | N9: =IF($L9="ALB", IF($H9=0, 0, IF(AND($I9=0, OR($J9=0,$J9=" ")), $E9*$H9, IF(AND($I9=0, $J9>0), IF(($H9-$K9)<=0, 0, $E9*(MAX($H9,$K9)-MIN($H9,$K9))), IF(AND($I9>0, $J9=0), $E9*($H9-$G9), IF($J9=" ", $E9*($H9-$G9), $J9*$E9/($I9+$J9)*$K9+$I9*$E9/($I9+$J9)*($H9-$G9)))))), 0) -> 0 | P9: =SUM(M9:O9) -> 0 | Q9: =IF($L9="MBD", IF(INTRO!$E$39="Non endémique",IF($H9<>0,$D9*($H9-$G9),0),$D9*$H9),0) -> 0 | R9: =IF($L9="MBD", IF($H9=0, 0, IF(AND($I9=0, OR($J9=0,$J9=" ")), $E9*$H9, IF(AND($I9=0, $J9>0), IF(($H9-$K9)<=0, 0, $E9*(MAX($H9,$K9)-MIN($H9,$K9))), IF(AND($I9>0, $J9=0), $E9*($H9-$G9), IF($J9=" ", $E9*($H9-$G9), $J9*$E9/($I9+$J9)*$K9+$I9*$E9/($I9+$J9)*($H9-$G9)))))), 0) -> 0 | T9: =SUM(Q9:S9) -> 0 | V9: =IF($J9<>" ", IF(($I9+$J9*$K9)>$U9, ($I9+$J9*$K9)-$U9,0), IF($I9>$U9, $I9-$U9, 0)) -> 122553 | W9: =IF($J9<>" ", ROUNDUP(($I9+$J9*$K9)/200,0), ROUNDUP($I9/200,0)) -> 613 | Y9: =IF($N9>$X9,$N9-$X9,0) -> 0 | Z9: =ROUNDUP($N9/200,0) -> 0 | AB9: =IF($R9>$AA9,$R9-$AA9,0) -> 0 | AC9: =ROUNDUP($R9/150,0) -> 0
A10: =IF(AND(INTRO!$E$37="Non endémique",INTRO!$E$41="Non endémique")," ",IF(COUNTRY_INFO!A10=0," ",COUNTRY_INFO!A10)) -> DRC | B10: =IF(AND(INTRO!$E$37="Non endémique",INTRO!$E$41="Non endémique")," ",IF(COUNTRY_INFO!B10=0," ",COUNTRY_INFO!B10)) -> BAS UELE | C10: =IF(AND(INTRO!$E$37="Non endémique",INTRO!$E$41="Non endémique")," ",IF(COUNTRY_INFO!C10=0," ",COUNTRY_INFO!C10)) -> Ango | D10: =IF(AND(INTRO!$E$37="Non endémique",INTRO!$E$41="Non endémique"),0,IF(AND(OR(COUNTRY_INFO!$H10=0,COUNTRY_INFO!$H10=4,COUNTRY_INFO!$H10=99),OR(COUNTRY_INFO!$J10=0,COUNTRY_INFO!$J10=4)),0,COUNTRY_INFO!$E10)) -> 31992 | E10: =IF(AND(INTRO!$E$37="Non endémique",INTRO!$E$41="Non endémique"),0,IF(AND(OR(COUNTRY_INFO!$H10=0,COUNTRY_INFO!$H10=4,COUNTRY_INFO!$H10=99),OR(COUNTRY_INFO!$J10=0,COUNTRY_INFO!$J10=4)),0,COUNTRY_INFO!$F10)) -> 65865 | F10: 97857 | G10: =IF(AND(INTRO!$E$37="Non endémique",INTRO!$E$41="Non endémique"),0,COUNTRY_INFO!Q10) -> 0 | H10: =IF(AND(INTRO!$E$37="Non endémique",INTRO!$E$41="Non endémique"),0,COUNTRY_INFO!S10) -> 1 | I10: =IF($G10=1,IVM!$G10,0) -> 0 | L10: ALB | M10: =IF($L10="ALB", IF(INTRO!$E$39="Non endémique",IF($H10<>0,$D10*($H10-$G10),0),$D10*$H10), 0) -> 31992 | N10: 65865 | P10: 97857 | Q10: =IF($L10="MBD", IF(INTRO!$E$39="Non endémique",IF($H10<>0,$D10*($H10-$G10),0),$D10*$H10),0) -> 0 | R10: 0 | T10: 0 | V10: 0 | W10: 0 | Y10: 65865 | Z10: 330 | AB10: 0 | AC10: 0
A11: =IF(AND(INTRO!$E$37="Non endémique",INTRO!$E$41="Non endémique")," ",IF(COUNTRY_INFO!A11=0," ",COUNTRY_INFO!A11)) -> DRC | B11: =IF(AND(INTRO!$E$37="Non endémique",INTRO!$E$41="Non endémique")," ",IF(COUNTRY_INFO!B11=0," ",COUNTRY_INFO!B11)) -> BAS UELE | C11: =IF(AND(INTRO!$E$37="Non endémique",INTRO!$E$41="Non endémique")," ",IF(COUNTRY_INFO!C11=0," ",COUNTRY_INFO!C11)) -> Bili | D11: =IF(AND(INTRO!$E$37="Non endémique",INTRO!$E$41="Non endémique"),0,IF(AND(OR(COUNTRY_INFO!$H11=0,COUNTRY_INFO!$H11=4,COUNTRY_INFO!$H11=99),OR(COUNTRY_INFO!$J11=0,COUNTRY_INFO!$J11=4)),0,COUNTRY_INFO!$E11)) -> 13584 | E11: =IF(AND(INTRO!$E$37="Non endémique",INTRO!$E$41="Non endémique"),0,IF(AND(OR(COUNTRY_INFO!$H11=0,COUNTRY_INFO!$H11=4,COUNTRY_INFO!$H11=99),OR(COUNTRY_INFO!$J11=0,COUNTRY_INFO!$J11=4)),0,COUNTRY_INFO!$F11)) -> 27968 | F11: 41552 | G11: =IF(AND(INTRO!$E$37="Non endémique",INTRO!$E$41="Non endémique"),0,COUNTRY_INFO!Q11) -> 0 | H11: =IF(AND(INTRO!$E$37="Non endémique",INTRO!$E$41="Non endémique"),0,COUNTRY_INFO!S11) -> 1 | I11: =IF($G11=1,IVM!$G11,0) -> 0 | L11: ALB | M11: =IF($L11="ALB", IF(INTRO!$E$39="Non endémique",IF($H11<>0,$D11*($H11-$G11),0),$D11*$H11), 0) -> 13584 | N11: 27968 | P11: 41552 | Q11: =IF($L11="MBD", IF(INTRO!$E$39="Non endémique",IF($H11<>0,$D11*($H11-$G11),0),$D11*$H11),0) -> 0 | R11: 0 | T11: 0 | V11: 0 | W11: 0 | Y11: 27968 | Z11: 140 | AB11: 0 | AC11: 0
A12: =IF(AND(INTRO!$E$37="Non endémique",INTRO!$E$41="Non endémique")," ",IF(COUNTRY_INFO!A12=0," ",COUNTRY_INFO!A12)) -> DRC | B12: =IF(AND(INTRO!$E$37="Non endémique",INTRO!$E$41="Non endémique")," ",IF(COUNTRY_INFO!B12=0," ",COUNTRY_INFO!B12)) -> BAS UELE | C12: =IF(AND(INTRO!$E$37="Non endémique",INTRO!$E$41="Non endémique")," ",IF(COUNTRY_INFO!C12=0," ",COUNTRY_INFO!C12)) -> Bondo | D12: =IF(AND(INTRO!$E$37="Non endémique",INTRO!$E$41="Non endémique"),0,IF(AND(OR(COUNTRY_INFO!$H12=0,COUNTRY_INFO!$H12=4,COUNTRY_INFO!$H12=99),OR(COUNTRY_INFO!$J12=0,COUNTRY_INFO!$J12=4)),0,COUNTRY_INFO!$E12)) -> 26737 | E12: =IF(AND(INTRO!$E$37="Non endémique",INTRO!$E$41="Non endémique"),0,IF(AND(OR(COUNTRY_INFO!$H12=0,COUNTRY_INFO!$H12=4,COUNTRY_INFO!$H12=99),OR(COUNTRY_INFO!$J12=0,COUNTRY_INFO!$J12=4)),0,COUNTRY_INFO!$F12)) -> 55046 | F12: 81783 | G12: =IF(AND(INTRO!$E$37="Non endémique",INTRO!$E$41="Non endémique"),0,COUNTRY_INFO!Q12) -> 1 | H12: =IF(AND(INTRO!$E$37="Non endémique",INTRO!$E$41="Non endémique"),0,COUNTRY_INFO!S12) -> 1 | I12: =IF($G12=1,IVM!$G12,0) -> 127393 | L12: ALB | M12: =IF($L12="ALB", IF(INTRO!$E$39="Non endémique",IF($H12<>0,$D12*($H12-$G12),0),$D12*$H12), 0) -> 26737 | N12: 0 | P12: 26737 | Q12: =IF($L12="MBD", IF(INTRO!$E$39="Non endémique",IF($H12<>0,$D12*($H12-$G12),0),$D12*$H12),0) -> 0 | R12: 0 | T12: 0 | V12: 127393 | W12: 637 | Y12: 0 | Z12: 0 | AB12: 0 | AC12: 0
A13: =IF(AND(INTRO!$E$37="Non endémique",INTRO!$E$41="Non endémique")," ",IF(COUNTRY_INFO!A13=0," ",COUNTRY_INFO!A13)) -> DRC | B13: =IF(AND(INTRO!$E$37="Non endémique",INTRO!$E$41="Non endémique")," ",IF(COUNTRY_INFO!B13=0," ",COUNTRY_INFO!B13)) -> BAS UELE | C13: =IF(AND(INTRO!$E$37="Non endémique",INTRO!$E$41="Non endémique")," ",IF(COUNTRY_INFO!C13=0," ",COUNTRY_INFO!C13)) -> Buta | D13: =IF(AND(INTRO!$E$37="Non endémique",INTRO!$E$41="Non endémique"),0,IF(AND(OR(COUNTRY_INFO!$H13=0,COUNTRY_INFO!$H13=4,COUNTRY_INFO!$H13=99),OR(COUNTRY_INFO!$J13=0,COUNTRY_INFO!$J13=4)),0,COUNTRY_INFO!$E13)) -> 38602 | E13: =IF(AND(INTRO!$E$37="Non endémique",INTRO!$E$41="Non endémique"),0,IF(AND(OR(COUNTRY_INFO!$H13=0,COUNTRY_INFO!$H13=4,COUNTRY_INFO!$H13=99),OR(COUNTRY_INFO!$J13=0,COUNTRY_INFO!$J13=4)),0,COUNTRY_INFO!$F13)) -> 79474 | F13: 118076 | G13: =IF(AND(INTRO!$E$37="Non endémique",INTRO!$E$41="Non endémique"),0,COUNTRY_INFO!Q13) -> 1 | H13: =IF(AND(INTRO!$E$37="Non endémique",INTRO!$E$41="Non endémique"),0,COUNTRY_INFO!S13) -> 1 | I13: =IF($G13=1,IVM!$G13,0) -> 183926 | L13: ALB | M13: =IF($L13="ALB", IF(INTRO!$E$39="Non endémique",IF($H13<>0,$D13*($H13-$G13),0),$D13*$H13), 0) -> 38602 | N13: 0 | P13: 38602 | Q13: =IF($L13="MBD", IF(INTRO!$E$39="Non endémique",IF($H13<>0,$D13*($H13-$G13),0),$D13*$H13),0) -> 0 | R13: 0 | T13: 0 | V13: 183926 | W13: 920 | Y13: 0 | Z13: 0 | AB13: 0 | AC13: 0
A14: =IF(AND(INTRO!$E$37="Non endémique",INTRO!$E$41="Non endémique")," ",IF(COUNTRY_INFO!A14=0," ",COUNTRY_INFO!A14)) -> DRC | B14: =IF(AND(INTRO!$E$37="Non endémique",INTRO!$E$41="Non endémique")," ",IF(COUNTRY_INFO!B14=0," ",COUNTRY_INFO!B14)) -> BAS UELE | C14: =IF(AND(INTRO!$E$37="Non endémique",INTRO!$E$41="Non endémique")," ",IF(COUNTRY_INFO!C14=0," ",COUNTRY_INFO!C14)) -> Dingela | D14: =IF(AND(INTRO!$E$37="Non endémique",INTRO!$E$41="Non endémique"),0,IF(AND(OR(COUNTRY_INFO!$H14=0,COUNTRY_INFO!$H14=4,COUNTRY_INFO!$H14=99),OR(COUNTRY_INFO!$J14=0,COUNTRY_INFO!$J14=4)),0,COUNTRY_INFO!$E14)) -> 24982 | E14: =IF(AND(INTRO!$E$37="Non endémique",INTRO!$E$41="Non endémique"),0,IF(AND(OR(COUNTRY_INFO!$H14=0,COUNTRY_INFO!$H14=4,COUNTRY_INFO!$H14=99),OR(COUNTRY_INFO!$J14=0,COUNTRY_INFO!$J14=4)),0,COUNTRY_INFO!$F14)) -> 51434 | F14: 76416 | G14: =IF(AND(INTRO!$E$37="Non endémique",INTRO!$E$41="Non endémique"),0,COUNTRY_INFO!Q14) -> 0 | H14: =IF(AND(INTRO!$E$37="Non endémique",INTRO!$E$41="Non endémique"),0,COUNTRY_INFO!S14) -> 1 | I14: =IF($G14=1,IVM!$G14,0) -> 0 | L14: ALB | M14: =IF($L14="ALB", IF(INTRO!$E$39="Non endémique",IF($H14<>0,$D14*($H14-$G14),0),$D14*$H14), 0) -> 24982 | N14: 51434 | P14: 76416 | Q14: =IF($L14="MBD", IF(INTRO!$E$39="Non endémique",IF($H14<>0,$D14*($H14-$G14),0),$D14*$H14),0) -> 0 | R14: 0 | T14: 0 | V14: 0 | W14: 0 | Y14: 51434 | Z14: 258 | AB14: 0 | AC14: 0
A15: =IF(AND(INTRO!$E$37="Non endémique",INTRO!$E$41="Non endémique")," ",IF(COUNTRY_INFO!A15=0," ",COUNTRY_INFO!A15)) -> DRC | B15: =IF(AND(INTRO!$E$37="Non endémique",INTRO!$E$41="Non endémique")," ",IF(COUNTRY_INFO!B15=0," ",COUNTRY_INFO!B15)) -> BAS UELE | C15: =IF(AND(INTRO!$E$37="Non endémique",INTRO!$E$41="Non endémique")," ",IF(COUNTRY_INFO!C15=0," ",COUNTRY_INFO!C15)) -> Likati | D15: =IF(AND(INTRO!$E$37="Non endémique",INTRO!$E$41="Non endémique"),0,IF(AND(OR(COUNTRY_INFO!$H15=0,COUNTRY_INFO!$H15=4,COUNTRY_INFO!$H15=99),OR(COUNTRY_INFO!$J15=0,COUNTRY_INFO!$J15=4)),0,COUNTRY_INFO!$E15)) -> 14977 | E15: =IF(AND(INTRO!$E$37="Non endémique",INTRO!$E$41="Non endémique"),0,IF(AND(OR(COUNTRY_INFO!$H15=0,COUNTRY_INFO!$H15=4,COUNTRY_INFO!$H15=99),OR(COUNTRY_INFO!$J15=0,COUNTRY_INFO!$J15=4)),0,COUNTRY_INFO!$F15)) -> 30834 | F15: 45811 | G15: =IF(AND(INTRO!$E$37="Non endémique",INTRO!$E$41="Non endémique"),0,COUNTRY_INFO!Q15) -> 1 | H15: =IF(AND(INTRO!$E$37="Non endémique",INTRO!$E$41="Non endémique"),0,COUNTRY_INFO!S15) -> 0 | I15: =IF($G15=1,IVM!$G15,0) -> 71359 | M15: =IF($L15="ALB", IF(INTRO!$E$39="Non endémique",IF($H15<>0,$D15*($H15-$G15),0),$D15*$H15), 0) -> 0 | N15: 0 | P15: 0 | Q15: =IF($L15="MBD", IF(INTRO!$E$39="Non endémique",IF($H15<>0,$D15*($H15-$G15),0),$D15*$H15),0) -> 0 | R15: 0 | T15: 0 | V15: 71359 | W15: 357 | Y15: 0 | Z15: 0 | AB15: 0 | AC15: 0
A16: =IF(AND(INTRO!$E$37="Non endémique",INTRO!$E$41="Non endémique")," ",IF(COUNTRY_INFO!A16=0," ",COUNTRY_INFO!A16)) -> DRC | B16: =IF(AND(INTRO!$E$37="Non endémique",INTRO!$E$41="Non endémique")," ",IF(COUNTRY_INFO!B16=0," ",COUNTRY_INFO!B16)) -> BAS UELE | C16: =IF(AND(INTRO!$E$37="Non endémique",INTRO!$E$41="Non endémique")," ",IF(COUNTRY_INFO!C16=0," ",COUNTRY_INFO!C16)) -> Monga | D16: =IF(AND(INTRO!$E$37="Non endémique",INTRO!$E$41="Non endémique"),0,IF(AND(OR(COUNTRY_INFO!$H16=0,COUNTRY_INFO!$H16=4,COUNTRY_INFO!$H16=99),OR(COUNTRY_INFO!$J16=0,COUNTRY_INFO!$J16=4)),0,COUNTRY_INFO!$E16)) -> 15635 | E16: =IF(AND(INTRO!$E$37="Non endémique",INTRO!$E$41="Non endémique"),0,IF(AND(OR(COUNTRY_INFO!$H16=0,COUNTRY_INFO!$H16=4,COUNTRY_INFO!$H16=99),OR(COUNTRY_INFO!$J16=0,COUNTRY_INFO!$J16=4)),0,COUNTRY_INFO!$F16)) -> 32190 | F16: 47825 | G16: =IF(AND(INTRO!$E$37="Non endémique",INTRO!$E$41="Non endémique"),0,COUNTRY_INFO!Q16) -> 1 | H16: =IF(AND(INTRO!$E$37="Non endémique",INTRO!$E$41="Non endémique"),0,COUNTRY_INFO!S16) -> 1 | I16: =IF($G16=1,IVM!$G16,0) -> 74497 | L16: ALB | M16: =IF($L16="ALB", IF(INTRO!$E$39="Non endémique",IF($H16<>0,$D16*($H16-$G16),0),$D16*$H16), 0) -> 15635 | N16: 0 | P16: 15635 | Q16: =IF($L16="MBD", IF(INTRO!$E$39="Non endémique",IF($H16<>0,$D16*($H16-$G16),0),$D16*$H16),0) -> 0 | R16: 0 | T16: 0 | V16: 74497 | W16: 373 | Y16: 0 | Z16: 0 | AB16: 0 | AC16: 0
A17: =IF(AND(INTRO!$E$37="Non endémique",INTRO!$E$41="Non endémique")," ",IF(COUNTRY_INFO!A17=0," ",COUNTRY_INFO!A17)) -> DRC | B17: =IF(AND(INTRO!$E$37="Non endémique",INTRO!$E$41="Non endémique")," ",IF(COUNTRY_INFO!B17=0," ",COUNTRY_INFO!B17)) -> BAS UELE | C17: =IF(AND(INTRO!$E$37="Non endémique",INTRO!$E$41="Non endémique")," ",IF(COUNTRY_INFO!C17=0," ",COUNTRY_INFO!C17)) -> Poko | D17: =IF(AND(INTRO!$E$37="Non endémique",INTRO!$E$41="Non endémique"),0,IF(AND(OR(COUNTRY_INFO!$H17=0,COUNTRY_INFO!$H17=4,COUNTRY_INFO!$H17=99),OR(COUNTRY_INFO!$J17=0,COUNTRY_INFO!$J17=4)),0,COUNTRY_INFO!$E17)) -> 24775 | E17: =IF(AND(INTRO!$E$37="Non endémique",INTRO!$E$41="Non endémique"),0,IF(AND(OR(COUNTRY_INFO!$H17=0,COUNTRY_INFO!$H17=4,COUNTRY_INFO!$H17=99),OR(COUNTRY_INFO!$J17=0,COUNTRY_INFO!$J17=4)),0,COUNTRY_INFO!$F17)) -> 51008 | F17: 75783 | G17: =IF(AND(INTRO!$E$37="Non endémique",INTRO!$E$41="Non endémique"),0,COUNTRY_INFO!Q17) -> 1 | H17: =IF(AND(INTRO!$E$37="Non endémique",INTRO!$E$41="Non endémique"),0,COUNTRY_INFO!S17) -> 1 | I17: =IF($G17=1,IVM!$G17,0) -> 118047 | L17: ALB | M17: =IF($L17="ALB", IF(INTRO!$E$39="Non endémique",IF($H17<>0,$D17*($H17-$G17),0),$D17*$H17), 0) -> 24775 | N17: 0 | P17: 24775 | Q17: =IF($L17="MBD", IF(INTRO!$E$39="Non endémique",IF($H17<>0,$D17*($H17-$G17),0),$D17*$H17),0) -> 0 | R17: 0 | T17: 0 | V17: 118047 | W17: 591 | Y17: 0 | Z17: 0 | AB17: 0 | AC17: 0
A18: =IF(AND(INTRO!$E$37="Non endémique",INTRO!$E$41="Non endémique")," ",IF(COUNTRY_INFO!A18=0," ",COUNTRY_INFO!A18)) -> DRC | B18: =IF(AND(INTRO!$E$37="Non endémique",INTRO!$E$41="Non endémique")," ",IF(COUNTRY_INFO!B18=0," ",COUNTRY_INFO!B18)) -> BAS UELE | C18: =IF(AND(INTRO!$E$37="Non endémique",INTRO!$E$41="Non endémique")," ",IF(COUNTRY_INFO!C18=0," ",COUNTRY_INFO!C18)) -> Titule | D18: =IF(AND(INTRO!$E$37="Non endémique",INTRO!$E$41="Non endémique"),0,IF(AND(OR(COUNTRY_INFO!$H18=0,COUNTRY_INFO!$H18=4,COUNTRY_INFO!$H18=99),OR(COUNTRY_INFO!$J18=0,COUNTRY_INFO!$J18=4)),0,COUNTRY_INFO!$E18)) -> 15973 | E18: =IF(AND(INTRO!$E$37="Non endémique",INTRO!$E$41="Non endémique"),0,IF(AND(OR(COUNTRY_INFO!$H18=0,COUNTRY_INFO!$H18=4,COUNTRY_INFO!$H18=99),OR(COUNTRY_INFO!$J18=0,COUNTRY_INFO!$J18=4)),0,COUNTRY_INFO!$F18)) -> 32886 | F18: 48859 | G18: =IF(AND(INTRO!$E$37="Non endémique",INTRO!$E$41="Non endémique"),0,COUNTRY_INFO!Q18) -> 0 | H18: =IF(AND(INTRO!$E$37="Non endémique",INTRO!$E$41="Non endémique"),0,COUNTRY_INFO!S18) -> 1 | I18: =IF($G18=1,IVM!$G18,0) -> 0 | L18: ALB | M18: =IF($L18="ALB", IF(INTRO!$E$39="Non endémique",IF($H18<>0,$D18*($H18-$G18),0),$D18*$H18), 0) -> 15973 | N18: 32886 | P18: 48859 | Q18: =IF($L18="MBD", IF(INTRO!$E$39="Non endémique",IF($H18<>0,$D18*($H18-$G18),0),$D18*$H18),0) -> 0 | R18: 0 | T18: 0 | V18: 0 | W18: 0 | Y18: 32886 | Z18: 165 | AB18: 0 | AC18: 0
A19: =IF(AND(INTRO!$E$37="Non endémique",INTRO!$E$41="Non endémique")," ",IF(COUNTRY_INFO!A19=0," ",COUNTRY_INFO!A19)) -> DRC | B19: =IF(AND(INTRO!$E$37="Non endémique",INTRO!$E$41="Non endémique")," ",IF(COUNTRY_INFO!B19=0," ",COUNTRY_INFO!B19)) -> BAS UELE | C19: =IF(AND(INTRO!$E$37="Non endémique",INTRO!$E$41="Non endémique")," ",IF(COUNTRY_INFO!C19=0," ",COUNTRY_INFO!C19)) -> Viadana | D19: =IF(AND(INTRO!$E$37="Non endémique",INTRO!$E$41="Non endémique"),0,IF(AND(OR(COUNTRY_INFO!$H19=0,COUNTRY_INFO!$H19=4,COUNTRY_INFO!$H19=99),OR(COUNTRY_INFO!$J19=0,COUNTRY_INFO!$J19=4)),0,COUNTRY_INFO!$E19)) -> 21656 | E19: =IF(AND(INTRO!$E$37="Non endémique",INTRO!$E$41="Non endémique"),0,IF(AND(OR(COUNTRY_INFO!$H19=0,COUNTRY_INFO!$H19=4,COUNTRY_INFO!$H19=99),OR(COUNTRY_INFO!$J19=0,COUNTRY_INFO!$J19=4)),0,COUNTRY_INFO!$F19)) -> 44587 | F19: 66243 | G19: =IF(AND(INTRO!$E$37="Non endémique",INTRO!$E$41="Non endémique"),0,COUNTRY_INFO!Q19) -> 1 | H19: =IF(AND(INTRO!$E$37="Non endémique",INTRO!$E$41="Non endémique"),0,COUNTRY_INFO!S19) -> 1 | I19: =IF($G19=1,IVM!$G19,0) -> 103186 | L19: ALB | M19: =IF($L19="ALB", IF(INTRO!$E$39="Non endémique",IF($H19<>0,$D19*($H19-$G19),0),$D19*$H19), 0) -> 21656 | N19: 0 | P19: 21656 | Q19: =IF($L19="MBD", IF(INTRO!$E$39="Non endémique",IF($H19<>0,$D19*($H19-$G19),0),$D19*$H19),0) -> 0 | R19: 0 | T19: 0 | V19: 103186 | W19: 516 | Y19: 0 | Z19: 0 | AB19: 0 | AC19: 0
A20: =IF(AND(INTRO!$E$37="Non endémique",INTRO!$E$41="Non endémique")," ",IF(COUNTRY_INFO!A20=0," ",COUNTRY_INFO!A20)) -> DRC | B20: =IF(AND(INTRO!$E$37="Non endémique",INTRO!$E$41="Non endémique")," ",IF(COUNTRY_INFO!B20=0," ",COUNTRY_INFO!B20)) -> EQUATEUR | C20: =IF(AND(INTRO!$E$37="Non endémique",INTRO!$E$41="Non endémique")," ",IF(COUNTRY_INFO!C20=0," ",COUNTRY_INFO!C20)) -> Basankusu | D20: =IF(AND(INTRO!$E$37="Non endémique",INTRO!$E$41="Non endémique"),0,IF(AND(OR(COUNTRY_INFO!$H20=0,COUNTRY_INFO!$H20=4,COUNTRY_INFO!$H20=99),OR(COUNTRY_INFO!$J20=0,COUNTRY_INFO!$J20=4)),0,COUNTRY_INFO!$E20)) -> 48415 | E20: =IF(AND(INTRO!$E$37="Non endémique",INTRO!$E$41="Non endémique"),0,IF(AND(OR(COUNTRY_INFO!$H20=0,COUNTRY_INFO!$H20=4,COUNTRY_INFO!$H20=99),OR(COUNTRY_INFO!$J20=0,COUNTRY_INFO!$J20=4)),0,COUNTRY_INFO!$F20)) -> 99679 | F20: 148094 | G20: =IF(AND(INTRO!$E$37="Non endémique",INTRO!$E$41="Non endémique"),0,COUNTRY_INFO!Q20) -> 1 | H20: =IF(AND(INTRO!$E$37="Non endémique",INTRO!$E$41="Non endémique"),0,COUNTRY_INFO!S20) -> 1 | I20: =IF($G20=1,IVM!$G20,0) -> 230686 | L20: ALB | M20: =IF($L20="ALB", IF(INTRO!$E$39="Non endémique",IF($H20<>0,$D20*($H20-$G20),0),$D20*$H20), 0) -> 48415 | N20: 0 | P20: 48415 | Q20: =IF($L20="MBD", IF(INTRO!$E$39="Non endémique",IF($H20<>0,$D20*($H20-$G20),0),$D20*$H20),0) -> 0 | R20: 0 | T20: 0 | V20: 230686 | W20: 1154 | Y20: 0 | Z20: 0 | AB20: 0 | AC20: 0
A21: =IF(AND(INTRO!$E$37="Non endémique",INTRO!$E$41="Non endémique")," ",IF(COUNTRY_INFO!A21=0," ",COUNTRY_INFO!A21)) -> DRC | B21: =IF(AND(INTRO!$E$37="Non endémique",INTRO!$E$41="Non endémique")," ",IF(COUNTRY_INFO!B21=0," ",COUNTRY_INFO!B21)) -> EQUATEUR | C21: =IF(AND(INTRO!$E$37="Non endémique",INTRO!$E$41="Non endémique")," ",IF(COUNTRY_INFO!C21=0," ",COUNTRY_INFO!C21)) -> Bikoro | D21: =IF(AND(INTRO!$E$37="Non endémique",INTRO!$E$41="Non endémique"),0,IF(AND(OR(COUNTRY_INFO!$H21=0,COUNTRY_INFO!$H21=4,COUNTRY_INFO!$H21=99),OR(COUNTRY_INFO!$J21=0,COUNTRY_INFO!$J21=4)),0,COUNTRY_INFO!$E21)) -> 30292 | E21: =IF(AND(INTRO!$E$37="Non endémique",INTRO!$E$41="Non endémique"),0,IF(AND(OR(COUNTRY_INFO!$H21=0,COUNTRY_INFO!$H21=4,COUNTRY_INFO!$H21=99),OR(COUNTRY_INFO!$J21=0,COUNTRY_INFO!$J21=4)),0,COUNTRY_INFO!$F21)) -> 62366 | F21: 92658 | G21: =IF(AND(INTRO!$E$37="Non endémique",INTRO!$E$41="Non endémique"),0,COUNTRY_INFO!Q21) -> 1 | H21: =IF(AND(INTRO!$E$37="Non endémique",INTRO!$E$41="Non endémique"),0,COUNTRY_INFO!S21) -> 1 | I21: =IF($G21=1,IVM!$G21,0) -> 0 | J21: 144333 | K21: 2 | L21: ALB | M21: =IF($L21="ALB", IF(INTRO!$E$39="Non endémique",IF($H21<>0,$D21*($H21-$G21),0),$D21*$H21), 0) -> 30292 | N21: 0 | P21: 30292 | Q21: =IF($L21="MBD", IF(INTRO!$E$39="Non endémique",IF($H21<>0,$D21*($H21-$G21),0),$D21*$H21),0) -> 0 | R21: 0 | T21: 0 | V21: 288666 | W21: 1444 | Y21: 0 | Z21: 0 | AB21: 0 | AC21: 0
A22: =IF(AND(INTRO!$E$37="Non endémique",INTRO!$E$41="Non endémique")," ",IF(COUNTRY_INFO!A22=0," ",COUNTRY_INFO!A22)) -> DRC | B22: =IF(AND(INTRO!$E$37="Non endémique",INTRO!$E$41="Non endémique")," ",IF(COUNTRY_INFO!B22=0," ",COUNTRY_INFO!B22)) -> EQUATEUR | C22: =IF(AND(INTRO!$E$37="Non endémique",INTRO!$E$41="Non endémique")," ",IF(COUNTRY_INFO!C22=0," ",COUNTRY_INFO!C22)) -> Bolenge | D22: =IF(AND(INTRO!$E$37="Non endémique",INTRO!$E$41="Non endémique"),0,IF(AND(OR(COUNTRY_INFO!$H22=0,COUNTRY_INFO!$H22=4,COUNTRY_INFO!$H22=99),OR(COUNTRY_INFO!$J22=0,COUNTRY_INFO!$J22=4)),0,COUNTRY_INFO!$E22)) -> 20147 | E22: =IF(AND(INTRO!$E$37="Non endémique",INTRO!$E$41="Non endémique"),0,IF(AND(OR(COUNTRY_INFO!$H22=0,COUNTRY_INFO!$H22=4,COUNTRY_INFO!$H22=99),OR(COUNTRY_INFO!$J22=0,COUNTRY_INFO!$J22=4)),0,COUNTRY_INFO!$F22)) -> 41479 | F22: 61626 | G22: =IF(AND(INTRO!$E$37="Non endémique",INTRO!$E$41="Non endémique"),0,COUNTRY_INFO!Q22) -> 0 | H22: =IF(AND(INTRO!$E$37="Non endémique",INTRO!$E$41="Non endémique"),0,COUNTRY_INFO!S22) -> 1 | I22: =IF($G22=1,IVM!$G22,0) -> 0 | L22: ALB | M22: =IF($L22="ALB", IF(INTRO!$E$39="Non endémique",IF($H22<>0,$D22*($H22-$G22),0),$D22*$H22), 0) -> 20147 | N22: 41479 | P22: 61626 | Q22: =IF($L22="MBD", IF(INTRO!$E$39="Non endémique",IF($H22<>0,$D22*($H22-$G22),0),$D22*$H22),0) -> 0 | R22: 0 | T22: 0 | V22: 0 | W22: 0 | Y22: 41479 | Z22: 208 | AB22: 0 | AC22: 0
A23: =IF(AND(INTRO!$E$37="Non endémique",INTRO!$E$41="Non endémique")," ",IF(COUNTRY_INFO!A23=0," ",COUNTRY_INFO!A23)) -> DRC | B23: =IF(AND(INTRO!$E$37="Non endémique",INTRO!$E$41="Non endémique")," ",IF(COUNTRY_INFO!B23=0," ",COUNTRY_INFO!B23)) -> EQUATEUR | C23: =IF(AND(INTRO!$E$37="Non endémique",INTRO!$E$41="Non endémique")," ",IF(COUNTRY_INFO!C23=0," ",COUNTRY_INFO!C23)) -> Bolomba | D23: =IF(AND(INTRO!$E$37="Non endémique",INTRO!$E$41="Non endémique"),0,IF(AND(OR(COUNTRY_INFO!$H23=0,COUNTRY_INFO!$H23=4,COUNTRY_INFO!$H23=99),OR(COUNTRY_INFO!$J23=0,COUNTRY_INFO!$J23=4)),0,COUNTRY_INFO!$E23)) -> 54512 | E23: =IF(AND(INTRO!$E$37="Non endémique",INTRO!$E$41="Non endémique"),0,IF(AND(OR(COUNTRY_INFO!$H23=0,COUNTRY_INFO!$H23=4,COUNTRY_INFO!$H23=99),OR(COUNTRY_INFO!$J23=0,COUNTRY_INFO!$J23=4)),0,COUNTRY_INFO!$F23)) -> 112231 | F23: 166743 | G23: =IF(AND(INTRO!$E$37="Non endémique",INTRO!$E$41="Non endémique"),0,COUNTRY_INFO!Q23) -> 1 | H23: =IF(AND(INTRO!$E$37="Non endémique",INTRO!$E$41="Non endémique"),0,COUNTRY_INFO!S23) -> 1 | I23: =IF($G23=1,IVM!$G23,0) -> 259734 | L23: ALB | M23: =IF($L23="ALB", IF(INTRO!$E$39="Non endémique",IF($H23<>0,$D23*($H23-$G23),0),$D23*$H23), 0) -> 54512 | N23: 0 | P23: 54512 | Q23: =IF($L23="MBD", IF(INTRO!$E$39="Non endémique",IF($H23<>0,$D23*($H23-$G23),0),$D23*$H23),0) -> 0 | R23: 0 | T23: 0 | V23: 259734 | W23: 1299 | Y23: 0 | Z23: 0 | AB23: 0 | AC23: 0
A24: =IF(AND(INTRO!$E$37="Non endémique",INTRO!$E$41="Non endémique")," ",IF(COUNTRY_INFO!A24=0," ",COUNTRY_INFO!A24)) -> DRC | B24: =IF(AND(INTRO!$E$37="Non endémique",INTRO!$E$41="Non endémique")," ",IF(COUNTRY_INFO!B24=0," ",COUNTRY_INFO!B24)) -> EQUATEUR | C24: =IF(AND(INTRO!$E$37="Non endémique",INTRO!$E$41="Non endémique")," ",IF(COUNTRY_INFO!C24=0," ",COUNTRY_INFO!C24)) -> Bomongo | D24: =IF(AND(INTRO!$E$37="Non endémique",INTRO!$E$41="Non endémique"),0,IF(AND(OR(COUNTRY_INFO!$H24=0,COUNTRY_INFO!$H24=4,COUNTRY_INFO!$H24=99),OR(COUNTRY_INFO!$J24=0,COUNTRY_INFO!$J24=4)),0,COUNTRY_INFO!$E24)) -> 21409 | E24: =IF(AND(INTRO!$E$37="Non endémique",INTRO!$E$41="Non endémique"),0,IF(AND(OR(COUNTRY_INFO!$H24=0,COUNTRY_INFO!$H24=4,COUNTRY_INFO!$H24=99),OR(COUNTRY_INFO!$J24=0,COUNTRY_INFO!$J24=4)),0,COUNTRY_INFO!$F24)) -> 44077 | F24: 65486 | G24: =IF(AND(INTRO!$E$37="Non endémique",INTRO!$E$41="Non endémique"),0,COUNTRY_INFO!Q24) -> 1 | H24: =IF(AND(INTRO!$E$37="Non endémique",INTRO!$E$41="Non endémique"),0,COUNTRY_INFO!S24) -> 1 | I24: =IF($G24=1,IVM!$G24,0) -> 0 | J24: 102006 | K24: 2 | L24: ALB | M24: =IF($L24="ALB", IF(INTRO!$E$39="Non endémique",IF($H24<>0,$D24*($H24-$G24),0),$D24*$H24), 0) -> 21409 | N24: 0 | P24: 21409 | Q24: =IF($L24="MBD", IF(INTRO!$E$39="Non endémique",IF($H24<>0,$D24*($H24-$G24),0),$D24*$H24),0) -> 0 | R24: 0 | T24: 0 | V24: 204012 | W24: 1021 | Y24: 0 | Z24: 0 | AB24: 0 | AC24: 0
A25: =IF(AND(INTRO!$E$37="Non endémique",INTRO!$E$41="Non endémique")," ",IF(COUNTRY_INFO!A25=0," ",COUNTRY_INFO!A25)) -> DRC | B25: =IF(AND(INTRO!$E$37="Non endémique",INTRO!$E$41="Non endémique")," ",IF(COUNTRY_INFO!B25=0," ",COUNTRY_INFO!B25)) -> EQUATEUR | C25: =IF(AND(INTRO!$E$37="Non endémique",INTRO!$E$41="Non endémique")," ",IF(COUNTRY_INFO!C25=0," ",COUNTRY_INFO!C25)) -> Djombo | D25: =IF(AND(INTRO!$E$37="Non endémique",INTRO!$E$41="Non endémique"),0,IF(AND(OR(COUNTRY_INFO!$H25=0,COUNTRY_INFO!$H25=4,COUNTRY_INFO!$H25=99),OR(COUNTRY_INFO!$J25=0,COUNTRY_INFO!$J25=4)),0,COUNTRY_INFO!$E25)) -> 23490 | E25: =IF(AND(INTRO!$E$37="Non endémique",INTRO!$E$41="Non endémique"),0,IF(AND(OR(COUNTRY_INFO!$H25=0,COUNTRY_INFO!$H25=4,COUNTRY_INFO!$H25=99),OR(COUNTRY_INFO!$J25=0,COUNTRY_INFO!$J25=4)),0,COUNTRY_INFO!$F25)) -> 48362 | F25: 71852 | G25: =IF(AND(INTRO!$E$37="Non endémique",INTRO!$E$41="Non endémique"),0,COUNTRY_INFO!Q25) -> 1 | H25: =IF(AND(INTRO!$E$37="Non endémique",INTRO!$E$41="Non endémique"),0,COUNTRY_INFO!S25) -> 1 | I25: =IF($G25=1,IVM!$G25,0) -> 111924 | L25: ALB | M25: =IF($L25="ALB", IF(INTRO!$E$39="Non endémique",IF($H25<>0,$D25*($H25-$G25),0),$D25*$H25), 0) -> 23490 | N25: 0 | P25: 23490 | Q25: =IF($L25="MBD", IF(INTRO!$E$39="Non endémique",IF($H25<>0,$D25*($H25-$G25),0),$D25*$H25),0) -> 0 | R25: 0 | T25: 0 | V25: 111924 | W25: 560 | Y25: 0 | Z25: 0 | AB25: 0 | AC25: 0
A26: =IF(AND(INTRO!$E$37="Non endémique",INTRO!$E$41="Non endémique")," ",IF(COUNTRY_INFO!A26=0," ",COUNTRY_INFO!A26)) -> DRC | B26: =IF(AND(INTRO!$E$37="Non endémique",INTRO!$E$41="Non endémique")," ",IF(COUNTRY_INFO!B26=0," ",COUNTRY_INFO!B26)) -> EQUATEUR | C26: =IF(AND(INTRO!$E$37="Non endémique",INTRO!$E$41="Non endémique")," ",IF(COUNTRY_INFO!C26=0," ",COUNTRY_INFO!C26)) -> Iboko | D26: =IF(AND(INTRO!$E$37="Non endémique",INTRO!$E$41="Non endémique"),0,IF(AND(OR(COUNTRY_INFO!$H26=0,COUNTRY_INFO!$H26=4,COUNTRY_INFO!$H26=99),OR(COUNTRY_INFO!$J26=0,COUNTRY_INFO!$J26=4)),0,COUNTRY_INFO!$E26)) -> 22936 | E26: =IF(AND(INTRO!$E$37="Non endémique",INTRO!$E$41="Non endémique"),0,IF(AND(OR(COUNTRY_INFO!$H26=0,COUNTRY_INFO!$H26=4,COUNTRY_INFO!$H26=99),OR(COUNTRY_INFO!$J26=0,COUNTRY_INFO!$J26=4)),0,COUNTRY_INFO!$F26)) -> 47220 | F26: 70156 | G26: =IF(AND(INTRO!$E$37="Non endémique",INTRO!$E$41="Non endémique"),0,COUNTRY_INFO!Q26) -> 0 | H26: =IF(AND(INTRO!$E$37="Non endémique",INTRO!$E$41="Non endémique"),0,COUNTRY_INFO!S26) -> 1 | I26: =IF($G26=1,IVM!$G26,0) -> 0 | L26: ALB | M26: =IF($L26="ALB", IF(INTRO!$E$39="Non endémique",IF($H26<>0,$D26*($H26-$G26),0),$D26*$H26), 0) -> 22936 | N26: 47220 | P26: 70156 | Q26: =IF($L26="MBD", IF(INTRO!$E$39="Non endémique",IF($H26<>0,$D26*($H26-$G26),0),$D26*$H26),0) -> 0 | R26: 0 | T26: 0 | V26: 0 | W26: 0 | Y26: 47220 | Z26: 237 | AB26: 0 | AC26: 0
A27: =IF(AND(INTRO!$E$37="Non endémique",INTRO!$E$41="Non endémique")," ",IF(COUNTRY_INFO!A27=0," ",COUNTRY_INFO!A27)) -> DRC | B27: =IF(AND(INTRO!$E$37="Non endémique",INTRO!$E$41="Non endémique")," ",IF(COUNTRY_INFO!B27=0," ",COUNTRY_INFO!B27)) -> EQUATEUR | C27: =IF(AND(INTRO!$E$37="Non endémique",INTRO!$E$41="Non endémique")," ",IF(COUNTRY_INFO!C27=0," ",COUNTRY_INFO!C27)) -> Ingende | D27: =IF(AND(INTRO!$E$37="Non endémique",INTRO!$E$41="Non endémique"),0,IF(AND(OR(COUNTRY_INFO!$H27=0,COUNTRY_INFO!$H27=4,COUNTRY_INFO!$H27=99),OR(COUNTRY_INFO!$J27=0,COUNTRY_INFO!$J27=4)),0,COUNTRY_INFO!$E27)) -> 29725 | E27: =IF(AND(INTRO!$E$37="Non endémique",INTRO!$E$41="Non endémique"),0,IF(AND(OR(COUNTRY_INFO!$H27=0,COUNTRY_INFO!$H27=4,COUNTRY_INFO!$H27=99),OR(COUNTRY_INFO!$J27=0,COUNTRY_INFO!$J27=4)),0,COUNTRY_INFO!$F27)) -> 61199 | F27: 90924 | G27: =IF(AND(INTRO!$E$37="Non endémique",INTRO!$E$41="Non endémique"),0,COUNTRY_INFO!Q27) -> 1 | H27: =IF(AND(INTRO!$E$37="Non endémique",INTRO!$E$41="Non endémique"),0,COUNTRY_INFO!S27) -> 1 | I27: =IF($G27=1,IVM!$G27,0) -> 141632 | L27: ALB | M27: =IF($L27="ALB", IF(INTRO!$E$39="Non endémique",IF($H27<>0,$D27*($H27-$G27),0),$D27*$H27), 0) -> 29725 | N27: 0 | P27: 29725 | Q27: =IF($L27="MBD", IF(INTRO!$E$39="Non endémique",IF($H27<>0,$D27*($H27-$G27),0),$D27*$H27),0) -> 0 | R27: 0 | T27: 0 | V27: 141632 | W27: 709 | Y27: 0 | Z27: 0 | AB27: 0 | AC27: 0
A28: =IF(AND(INTRO!$E$37="Non endémique",INTRO!$E$41="Non endémique")," ",IF(COUNTRY_INFO!A28=0," ",COUNTRY_INFO!A28)) -> DRC | B28: =IF(AND(INTRO!$E$37="Non endémique",INTRO!$E$41="Non endémique")," ",IF(COUNTRY_INFO!B28=0," ",COUNTRY_INFO!B28)) -> EQUATEUR | C28: =IF(AND(INTRO!$E$37="Non endémique",INTRO!$E$41="Non endémique")," ",IF(COUNTRY_INFO!C28=0," ",COUNTRY_INFO!C28)) -> Irebu | D28: =IF(AND(INTRO!$E$37="Non endémique",INTRO!$E$41="Non endémique"),0,IF(AND(OR(COUNTRY_INFO!$H28=0,COUNTRY_INFO!$H28=4,COUNTRY_INFO!$H28=99),OR(COUNTRY_INFO!$J28=0,COUNTRY_INFO!$J28=4)),0,COUNTRY_INFO!$E28)) -> 7457 | E28: =IF(AND(INTRO!$E$37="Non endémique",INTRO!$E$41="Non endémique"),0,IF(AND(OR(COUNTRY_INFO!$H28=0,COUNTRY_INFO!$H28=4,COUNTRY_INFO!$H28=99),OR(COUNTRY_INFO!$J28=0,COUNTRY_INFO!$J28=4)),0,COUNTRY_INFO!$F28)) -> 15353 | F28: 22810 | G28: =IF(AND(INTRO!$E$37="Non endémique",INTRO!$E$41="Non endémique"),0,COUNTRY_INFO!Q28) -> 0 | H28: =IF(AND(INTRO!$E$37="Non endémique",INTRO!$E$41="Non endémique"),0,COUNTRY_INFO!S28) -> 0 | I28: =IF($G28=1,IVM!$G28,0) -> 0 | M28: =IF($L28="ALB", IF(INTRO!$E$39="Non endémique",IF($H28<>0,$D28*($H28-$G28),0),$D28*$H28), 0) -> 0 | N28: 0 | P28: 0 | Q28: =IF($L28="MBD", IF(INTRO!$E$39="Non endémique",IF($H28<>0,$D28*($H28-$G28),0),$D28*$H28),0) -> 0 | R28: 0 | T28: 0 | V28: 0 | W28: 0 | Y28: 0 | Z28: 0 | AB28: 0 | AC28: 0
A29: =IF(AND(INTRO!$E$37="Non endémique",INTRO!$E$41="Non endémique")," ",IF(COUNTRY_INFO!A29=0," ",COUNTRY_INFO!A29)) -> DRC | B29: =IF(AND(INTRO!$E$37="Non endémique",INTRO!$E$41="Non endémique")," ",IF(COUNTRY_INFO!B29=0," ",COUNTRY_INFO!B29)) -> EQUATEUR | C29: =IF(AND(INTRO!$E$37="Non endémique",INTRO!$E$41="Non endémique")," ",IF(COUNTRY_INFO!C29=0," ",COUNTRY_INFO!C29)) -> Lilanga Bobangi | D29: =IF(AND(INTRO!$E$37="Non endémique",INTRO!$E$41="Non endémique"),0,IF(AND(OR(COUNTRY_INFO!$H29=0,COUNTRY_INFO!$H29=4,COUNTRY_INFO!$H29=99),OR(COUNTRY_INFO!$J29=0,COUNTRY_INFO!$J29=4)),0,COUNTRY_INFO!$E29)) -> 16520 | E29: =IF(AND(INTRO!$E$37="Non endémique",INTRO!$E$41="Non endémique"),0,IF(AND(OR(COUNTRY_INFO!$H29=0,COUNTRY_INFO!$H29=4,COUNTRY_INFO!$H29=99),OR(COUNTRY_INFO!$J29=0,COUNTRY_INFO!$J29=4)),0,COUNTRY_INFO!$F29)) -> 34012 | F29: 50532 | G29: =IF(AND(INTRO!$E$37="Non endémique",INTRO!$E$41="Non endémique"),0,COUNTRY_INFO!Q29) -> 0 | H29: =IF(AND(INTRO!$E$37="Non endémique",INTRO!$E$41="Non endémique"),0,COUNTRY_INFO!S29) -> 1 | I29: =IF($G29=1,IVM!$G29,0) -> 0 | L29: ALB | M29: =IF($L29="ALB", IF(INTRO!$E$39="Non endémique",IF($H29<>0,$D29*($H29-$G29),0),$D29*$H29), 0) -> 16520 | N29: 34012 | P29: 50532 | Q29: =IF($L29="MBD", IF(INTRO!$E$39="Non endémique",IF($H29<>0,$D29*($H29-$G29),0),$D29*$H29),0) -> 0 | R29: 0 | T29: 0 | V29: 0 | W29: 0 | Y29: 34012 | Z29: 171 | AB29: 0 | AC29: 0
A30: =IF(AND(INTRO!$E$37="Non endémique",INTRO!$E$41="Non endémique")," ",IF(COUNTRY_INFO!A30=0," ",COUNTRY_INFO!A30)) -> DRC | B30: =IF(AND(INTRO!$E$37="Non endémique",INTRO!$E$41="Non endémique")," ",IF(COUNTRY_INFO!B30=0," ",COUNTRY_INFO!B30)) -> EQUATEUR | C30: =IF(AND(INTRO!$E$37="Non endémique",INTRO!$E$41="Non endémique")," ",IF(COUNTRY_INFO!C30=0," ",COUNTRY_INFO!C30)) -> Lotumbe | D30: =IF(AND(INTRO!$E$37="Non endémique",INTRO!$E$41="Non endémique"),0,IF(AND(OR(COUNTRY_INFO!$H30=0,COUNTRY_INFO!$H30=4,COUNTRY_INFO!$H30=99),OR(COUNTRY_INFO!$J30=0,COUNTRY_INFO!$J30=4)),0,COUNTRY_INFO!$E30)) -> 23639 | E30: =IF(AND(INTRO!$E$37="Non endémique",INTRO!$E$41="Non endémique"),0,IF(AND(OR(COUNTRY_INFO!$H30=0,COUNTRY_INFO!$H30=4,COUNTRY_INFO!$H30=99),OR(COUNTRY_INFO!$J30=0,COUNTRY_INFO!$J30=4)),0,COUNTRY_INFO!$F30)) -> 48669 | F30: 72308 | G30: =IF(AND(INTRO!$E$37="Non endémique",INTRO!$E$41="Non endémique"),0,COUNTRY_INFO!Q30) -> 0 | H30: =IF(AND(INTRO!$E$37="Non endémique",INTRO!$E$41="Non endémique"),0,COUNTRY_INFO!S30) -> 1 | I30: =IF($G30=1,IVM!$G30,0) -> 0 | L30: ALB | M30: =IF($L30="ALB", IF(INTRO!$E$39="Non endémique",IF($H30<>0,$D30*($H30-$G30),0),$D30*$H30), 0) -> 23639 | N30: 48669 | P30: 72308 | Q30: =IF($L30="MBD", IF(INTRO!$E$39="Non endémique",IF($H30<>0,$D30*($H30-$G30),0),$D30*$H30),0) -> 0 | R30: 0 | T30: 0 | V30: 0 | W30: 0 | Y30: 48669 | Z30: 244 | AB30: 0 | AC30: 0
A31: =IF(AND(INTRO!$E$37="Non endémique",INTRO!$E$41="Non endémique")," ",IF(COUNTRY_INFO!A31=0," ",COUNTRY_INFO!A31)) -> DRC | B31: =IF(AND(INTRO!$E$37="Non endémique",INTRO!$E$41="Non endémique")," ",IF(COUNTRY_INFO!B31=0," ",COUNTRY_INFO!B31)) -> EQUATEUR | C31: =IF(AND(INTRO!$E$37="Non endémique",INTRO!$E$41="Non endémique")," ",IF(COUNTRY_INFO!C31=0," ",COUNTRY_INFO!C31)) -> Lukolela | D31: =IF(AND(INTRO!$E$37="Non endémique",INTRO!$E$41="Non endémique"),0,IF(AND(OR(COUNTRY_INFO!$H31=0,COUNTRY_INFO!$H31=4,COUNTRY_INFO!$H31=99),OR(COUNTRY_INFO!$J31=0,COUNTRY_INFO!$J31=4)),0,COUNTRY_INFO!$E31)) -> 29516 | E31: =IF(AND(INTRO!$E$37="Non endémique",INTRO!$E$41="Non endémique"),0,IF(AND(OR(COUNTRY_INFO!$H31=0,COUNTRY_INFO!$H31=4,COUNTRY_INFO!$H31=99),OR(COUNTRY_INFO!$J31=0,COUNTRY_INFO!$J31=4)),0,COUNTRY_INFO!$F31)) -> 60768 | F31: 90284 | G31: =IF(AND(INTRO!$E$37="Non endémique",INTRO!$E$41="Non endémique"),0,COUNTRY_INFO!Q31) -> 0 | H31: =IF(AND(INTRO!$E$37="Non endémique",INTRO!$E$41="Non endémique"),0,COUNTRY_INFO!S31) -> 0 | I31: =IF($G31=1,IVM!$G31,0) -> 0 | M31: =IF($L31="ALB", IF(INTRO!$E$39="Non endémique",IF($H31<>0,$D31*($H31-$G31),0),$D31*$H31), 0) -> 0 | N31: 0 | P31: 0 | Q31: =IF($L31="MBD", IF(INTRO!$E$39="Non endémique",IF($H31<>0,$D31*($H31-$G31),0),$D31*$H31),0) -> 0 | R31: 0 | T31: 0 | V31: 0 | W31: 0 | Y31: 0 | Z31: 0 | AB31: 0 | AC31: 0
A32: =IF(AND(INTRO!$E$37="Non endémique",INTRO!$E$41="Non endémique")," ",IF(COUNTRY_INFO!A32=0," ",COUNTRY_INFO!A32)) -> DRC | B32: =IF(AND(INTRO!$E$37="Non endémique",INTRO!$E$41="Non endémique")," ",IF(COUNTRY_INFO!B32=0," ",COUNTRY_INFO!B32)) -> EQUATEUR | C32: =IF(AND(INTRO!$E$37="Non endémique",INTRO!$E$41="Non endémique")," ",IF(COUNTRY_INFO!C32=0," ",COUNTRY_INFO!C32)) -> Makanza | D32: =IF(AND(INTRO!$E$37="Non endémique",INTRO!$E$41="Non endémique"),0,IF(AND(OR(COUNTRY_INFO!$H32=0,COUNTRY_INFO!$H32=4,COUNTRY_INFO!$H32=99),OR(COUNTRY_INFO!$J32=0,COUNTRY_INFO!$J32=4)),0,COUNTRY_INFO!$E32)) -> 23126 | E32: =IF(AND(INTRO!$E$37="Non endémique",INTRO!$E$41="Non endémique"),0,IF(AND(OR(COUNTRY_INFO!$H32=0,COUNTRY_INFO!$H32=4,COUNTRY_INFO!$H32=99),OR(COUNTRY_INFO!$J32=0,COUNTRY_INFO!$J32=4)),0,COUNTRY_INFO!$F32)) -> 47612 | F32: 70738 | G32: =IF(AND(INTRO!$E$37="Non endémique",INTRO!$E$41="Non endémique"),0,COUNTRY_INFO!Q32) -> 0 | H32: =IF(AND(INTRO!$E$37="Non endémique",INTRO!$E$41="Non endémique"),0,COUNTRY_INFO!S32) -> 1 | I32: =IF($G32=1,IVM!$G32,0) -> 0 | L32: ALB | M32: =IF($L32="ALB", IF(INTRO!$E$39="Non endémique",IF($H32<>0,$D32*($H32-$G32),0),$D32*$H32), 0) -> 23126 | N32: 47612 | P32: 70738 | Q32: =IF($L32="MBD", IF(INTRO!$E$39="Non endémique",IF($H32<>0,$D32*($H32-$G32),0),$D32*$H32),0) -> 0 | R32: 0 | T32: 0 | V32: 0 | W32: 0 | Y32: 47612 | Z32: 239 | AB32: 0 | AC32: 0
A33: =IF(AND(INTRO!$E$37="Non endémique",INTRO!$E$41="Non endémique")," ",IF(COUNTRY_INFO!A33=0," ",COUNTRY_INFO!A33)) -> DRC | B33: =IF(AND(INTRO!$E$37="Non endémique",INTRO!$E$41="Non endémique")," ",IF(COUNTRY_INFO!B33=0," ",COUNTRY_INFO!B33)) -> EQUATEUR | C33: =IF(AND(INTRO!$E$37="Non endémique",INTRO!$E$41="Non endémique")," ",IF(COUNTRY_INFO!C33=0," ",COUNTRY_INFO!C33)) -> Mampoko | D33: =IF(AND(INTRO!$E$37="Non endémique",INTRO!$E$41="Non endémique"),0,IF(AND(OR(COUNTRY_INFO!$H33=0,COUNTRY_INFO!$H33=4,COUNTRY_INFO!$H33=99),OR(COUNTRY_INFO!$J33=0,COUNTRY_INFO!$J33=4)),0,COUNTRY_INFO!$E33)) -> 22011 | E33: =IF(AND(INTRO!$E$37="Non endémique",INTRO!$E$41="Non endémique"),0,IF(AND(OR(COUNTRY_INFO!$H33=0,COUNTRY_INFO!$H33=4,COUNTRY_INFO!$H33=99),OR(COUNTRY_INFO!$J33=0,COUNTRY_INFO!$J33=4)),0,COUNTRY_INFO!$F33)) -> 45316 | F33: 67327 | G33: =IF(AND(INTRO!$E$37="Non endémique",INTRO!$E$41="Non endémique"),0,COUNTRY_INFO!Q33) -> 1 | H33: =IF(AND(INTRO!$E$37="Non endémique",INTRO!$E$41="Non endémique"),0,COUNTRY_INFO!S33) -> 0 | I33: =IF($G33=1,IVM!$G33,0) -> 104874 | M33: =IF($L33="ALB", IF(INTRO!$E$39="Non endémique",IF($H33<>0,$D33*($H33-$G33),0),$D33*$H33), 0) -> 0 | N33: 0 | P33: 0 | Q33: =IF($L33="MBD", IF(INTRO!$E$39="Non endémique",IF($H33<>0,$D33*($H33-$G33),0),$D33*$H33),0) -> 0 | R33: 0 | T33: 0 | V33: 104874 | W33: 525 | Y33: 0 | Z33: 0 | AB33: 0 | AC33: 0
A34: =IF(AND(INTRO!$E$37="Non endémique",INTRO!$E$41="Non endémique")," ",IF(COUNTRY_INFO!A34=0," ",COUNTRY_INFO!A34)) -> DRC | B34: =IF(AND(INTRO!$E$37="Non endémique",INTRO!$E$41="Non endémique")," ",IF(COUNTRY_INFO!B34=0," ",COUNTRY_INFO!B34)) -> EQUATEUR | C34: =IF(AND(INTRO!$E$37="Non endémique",INTRO!$E$41="Non endémique")," ",IF(COUNTRY_INFO!C34=0," ",COUNTRY_INFO!C34)) -> Mbandaka | D34: =IF(AND(INTRO!$E$37="Non endémique",INTRO!$E$41="Non endémique"),0,IF(AND(OR(COUNTRY_INFO!$H34=0,COUNTRY_INFO!$H34=4,COUNTRY_INFO!$H34=99),OR(COUNTRY_INFO!$J34=0,COUNTRY_INFO!$J34=4)),0,COUNTRY_INFO!$E34)) -> 34915 | E34: =IF(AND(INTRO!$E$37="Non endémique",INTRO!$E$41="Non endémique"),0,IF(AND(OR(COUNTRY_INFO!$H34=0,COUNTRY_INFO!$H34=4,COUNTRY_INFO!$H34=99),OR(COUNTRY_INFO!$J34=0,COUNTRY_INFO!$J34=4)),0,COUNTRY_INFO!$F34)) -> 71885 | F34: 106800 | G34: =IF(AND(INTRO!$E$37="Non endémique",INTRO!$E$41="Non endémique"),0,COUNTRY_INFO!Q34) -> 1 | H34: =IF(AND(INTRO!$E$37="Non endémique",INTRO!$E$41="Non endémique"),0,COUNTRY_INFO!S34) -> 0 | I34: =IF($G34=1,IVM!$G34,0) -> 0 | J34: 166362 | K34: 2 | M34: =IF($L34="ALB", IF(INTRO!$E$39="Non endémique",IF($H34<>0,$D34*($H34-$G34),0),$D34*$H34), 0) -> 0 | N34: 0 | P34: 0 | Q34: =IF($L34="MBD", IF(INTRO!$E$39="Non endémique",IF($H34<>0,$D34*($H34-$G34),0),$D34*$H34),0) -> 0 | R34: 0 | T34: 0 | V34: 332724 | W34: 1664 | Y34: 0 | Z34: 0 | AB34: 0 | AC34: 0
A35: =IF(AND(INTRO!$E$37="Non endémique",INTRO!$E$41="Non endémique")," ",IF(COUNTRY_INFO!A35=0," ",COUNTRY_INFO!A35)) -> DRC | B35: =IF(AND(INTRO!$E$37="Non endémique",INTRO!$E$41="Non endémique")," ",IF(COUNTRY_INFO!B35=0," ",COUNTRY_INFO!B35)) -> EQUATEUR | C35: =IF(AND(INTRO!$E$37="Non endémique",INTRO!$E$41="Non endémique")," ",IF(COUNTRY_INFO!C35=0," ",COUNTRY_INFO!C35)) -> Monieka | D35: =IF(AND(INTRO!$E$37="Non endémique",INTRO!$E$41="Non endémique"),0,IF(AND(OR(COUNTRY_INFO!$H35=0,COUNTRY_INFO!$H35=4,COUNTRY_INFO!$H35=99),OR(COUNTRY_INFO!$J35=0,COUNTRY_INFO!$J35=4)),0,COUNTRY_INFO!$E35)) -> 15804 | E35: =IF(AND(INTRO!$E$37="Non endémique",INTRO!$E$41="Non endémique"),0,IF(AND(OR(COUNTRY_INFO!$H35=0,COUNTRY_INFO!$H35=4,COUNTRY_INFO!$H35=99),OR(COUNTRY_INFO!$J35=0,COUNTRY_INFO!$J35=4)),0,COUNTRY_INFO!$F35)) -> 32538 | F35: 48342 | G35: =IF(AND(INTRO!$E$37="Non endémique",INTRO!$E$41="Non endémique"),0,COUNTRY_INFO!Q35) -> 1 | H35: =IF(AND(INTRO!$E$37="Non endémique",INTRO!$E$41="Non endémique"),0,COUNTRY_INFO!S35) -> 0 | I35: =IF($G35=1,IVM!$G35,0) -> 75302 | M35: =IF($L35="ALB", IF(INTRO!$E$39="Non endémique",IF($H35<>0,$D35*($H35-$G35),0),$D35*$H35), 0) -> 0 | N35: 0 | P35: 0 | Q35: =IF($L35="MBD", IF(INTRO!$E$39="Non endémique",IF($H35<>0,$D35*($H35-$G35),0),$D35*$H35),0) -> 0 | R35: 0 | T35: 0 | V35: 75302 | W35: 377 | Y35: 0 | Z35: 0 | AB35: 0 | AC35: 0
A36: =IF(AND(INTRO!$E$37="Non endémique",INTRO!$E$41="Non endémique")," ",IF(COUNTRY_INFO!A36=0," ",COUNTRY_INFO!A36)) -> DRC | B36: =IF(AND(INTRO!$E$37="Non endémique",INTRO!$E$41="Non endémique")," ",IF(COUNTRY_INFO!B36=0," ",COUNTRY_INFO!B36)) -> EQUATEUR | C36: =IF(AND(INTRO!$E$37="Non endémique",INTRO!$E$41="Non endémique")," ",IF(COUNTRY_INFO!C36=0," ",COUNTRY_INFO!C36)) -> Ntondo | D36: =IF(AND(INTRO!$E$37="Non endémique",INTRO!$E$41="Non endémique"),0,IF(AND(OR(COUNTRY_INFO!$H36=0,COUNTRY_INFO!$H36=4,COUNTRY_INFO!$H36=99),OR(COUNTRY_INFO!$J36=0,COUNTRY_INFO!$J36=4)),0,COUNTRY_INFO!$E36)) -> 13518 | E36: =IF(AND(INTRO!$E$37="Non endémique",INTRO!$E$41="Non endémique"),0,IF(AND(OR(COUNTRY_INFO!$H36=0,COUNTRY_INFO!$H36=4,COUNTRY_INFO!$H36=99),OR(COUNTRY_INFO!$J36=0,COUNTRY_INFO!$J36=4)),0,COUNTRY_INFO!$F36)) -> 27831 | F36: 41349 | G36: =IF(AND(INTRO!$E$37="Non endémique",INTRO!$E$41="Non endémique"),0,COUNTRY_INFO!Q36) -> 1 | H36: =IF(AND(INTRO!$E$37="Non endémique",INTRO!$E$41="Non endémique"),0,COUNTRY_INFO!S36) -> 1 | I36: =IF($G36=1,IVM!$G36,0) -> 0 | J36: 64408 | K36: 2 | L36: ALB | M36: =IF($L36="ALB", IF(INTRO!$E$39="Non endémique",IF($H36<>0,$D36*($H36-$G36),0),$D36*$H36), 0) -> 13518 | N36: 0 | P36: 13518 | Q36: =IF($L36="MBD", IF(INTRO!$E$39="Non endémique",IF($H36<>0,$D36*($H36-$G36),0),$D36*$H36),0) -> 0 | R36: 0 | T36: 0 | V36: 128816 | W36: 645 | Y36: 0 | Z36: 0 | AB36: 0 | AC36: 0
A37: =IF(AND(INTRO!$E$37="Non endémique",INTRO!$E$41="Non endémique")," ",IF(COUNTRY_INFO!A37=0," ",COUNTRY_INFO!A37)) -> DRC | B37: =IF(AND(INTRO!$E$37="Non endémique",INTRO!$E$41="Non endémique")," ",IF(COUNTRY_INFO!B37=0," ",COUNTRY_INFO!B37)) -> EQUATEUR | C37: =IF(AND(INTRO!$E$37="Non endémique",INTRO!$E$41="Non endémique")," ",IF(COUNTRY_INFO!C37=0," ",COUNTRY_INFO!C37)) -> Wangata | D37: =IF(AND(INTRO!$E$37="Non endémique",INTRO!$E$41="Non endémique"),0,IF(AND(OR(COUNTRY_INFO!$H37=0,COUNTRY_INFO!$H37=4,COUNTRY_INFO!$H37=99),OR(COUNTRY_INFO!$J37=0,COUNTRY_INFO!$J37=4)),0,COUNTRY_INFO!$E37)) -> 32793 | E37: =IF(AND(INTRO!$E$37="Non endémique",INTRO!$E$41="Non endémique"),0,IF(AND(OR(COUNTRY_INFO!$H37=0,COUNTRY_INFO!$H37=4,COUNTRY_INFO!$H37=99),OR(COUNTRY_INFO!$J37=0,COUNTRY_INFO!$J37=4)),0,COUNTRY_INFO!$F37)) -> 67515 | F37: 100308 | G37: =IF(AND(INTRO!$E$37="Non endémique",INTRO!$E$41="Non endémique"),0,COUNTRY_INFO!Q37) -> 1 | H37: =IF(AND(INTRO!$E$37="Non endémique",INTRO!$E$41="Non endémique"),0,COUNTRY_INFO!S37) -> 1 | I37: =IF($G37=1,IVM!$G37,0) -> 156249 | L37: ALB | M37: =IF($L37="ALB", IF(INTRO!$E$39="Non endémique",IF($H37<>0,$D37*($H37-$G37),0),$D37*$H37), 0) -> 32793 | N37: 0 | P37: 32793 | Q37: =IF($L37="MBD", IF(INTRO!$E$39="Non endémique",IF($H37<>0,$D37*($H37-$G37),0),$D37*$H37),0) -> 0 | R37: 0 | T37: 0 | V37: 156249 | W37: 782 | Y37: 0 | Z37: 0 | AB37: 0 | AC37: 0
A38: =IF(AND(INTRO!$E$37="Non endémique",INTRO!$E$41="Non endémique")," ",IF(COUNTRY_INFO!A38=0," ",COUNTRY_INFO!A38)) -> DRC | B38: =IF(AND(INTRO!$E$37="Non endémique",INTRO!$E$41="Non endémique")," ",IF(COUNTRY_INFO!B38=0," ",COUNTRY_INFO!B38)) -> Haut Katanga | C38: =IF(AND(INTRO!$E$37="Non endémique",INTRO!$E$41="Non endémique")," ",IF(COUNTRY_INFO!C38=0," ",COUNTRY_INFO!C38)) -> Kafubu | D38: =IF(AND(INTRO!$E$37="Non endémique",INTRO!$E$41="Non endémique"),0,IF(AND(OR(COUNTRY_INFO!$H38=0,COUNTRY_INFO!$H38=4,COUNTRY_INFO!$H38=99),OR(COUNTRY_INFO!$J38=0,COUNTRY_INFO!$J38=4)),0,COUNTRY_INFO!$E38)) -> 18419 | E38: =IF(AND(INTRO!$E$37="Non endémique",INTRO!$E$41="Non endémique"),0,IF(AND(OR(COUNTRY_INFO!$H38=0,COUNTRY_INFO!$H38=4,COUNTRY_INFO!$H38=99),OR(COUNTRY_INFO!$J38=0,COUNTRY_INFO!$J38=4)),0,COUNTRY_INFO!$F38)) -> 37921 | F38: 56340 | G38: =IF(AND(INTRO!$E$37="Non endémique",INTRO!$E$41="Non endémique"),0,COUNTRY_INFO!Q38) -> 0 | H38: =IF(AND(INTRO!$E$37="Non endémique",INTRO!$E$41="Non endémique"),0,COUNTRY_INFO!S38) -> 0 | I38: =IF($G38=1,IVM!$G38,0) -> 0 | M38: =IF($L38="ALB", IF(INTRO!$E$39="Non endémique",IF($H38<>0,$D38*($H38-$G38),0),$D38*$H38), 0) -> 0 | N38: 0 | P38: 0 | Q38: =IF($L38="MBD", IF(INTRO!$E$39="Non endémique",IF($H38<>0,$D38*($H38-$G38),0),$D38*$H38),0) -> 0 | R38: 0 | T38: 0 | V38: 0 | W38: 0 | Y38: 0 | Z38: 0 | AB38: 0 | AC38: 0
A39: =IF(AND(INTRO!$E$37="Non endémique",INTRO!$E$41="Non endémique")," ",IF(COUNTRY_INFO!A39=0," ",COUNTRY_INFO!A39)) -> DRC | B39: =IF(AND(INTRO!$E$37="Non endémique",INTRO!$E$41="Non endémique")," ",IF(COUNTRY_INFO!B39=0," ",COUNTRY_INFO!B39)) -> Haut Katanga | C39: =IF(AND(INTRO!$E$37="Non endémique",INTRO!$E$41="Non endémique")," ",IF(COUNTRY_INFO!C39=0," ",COUNTRY_INFO!C39)) -> Kamalondo | D39: =IF(AND(INTRO!$E$37="Non endémique",INTRO!$E$41="Non endémique"),0,IF(AND(OR(COUNTRY_INFO!$H39=0,COUNTRY_INFO!$H39=4,COUNTRY_INFO!$H39=99),OR(COUNTRY_INFO!$J39=0,COUNTRY_INFO!$J39=4)),0,COUNTRY_INFO!$E39)) -> 9445 | E39: =IF(AND(INTRO!$E$37="Non endémique",INTRO!$E$41="Non endémique"),0,IF(AND(OR(COUNTRY_INFO!$H39=0,COUNTRY_INFO!$H39=4,COUNTRY_INFO!$H39=99),OR(COUNTRY_INFO!$J39=0,COUNTRY_INFO!$J39=4)),0,COUNTRY_INFO!$F39)) -> 19446 | F39: 28891 | G39: =IF(AND(INTRO!$E$37="Non endémique",INTRO!$E$41="Non endémique"),0,COUNTRY_INFO!Q39) -> 0 | H39: =IF(AND(INTRO!$E$37="Non endémique",INTRO!$E$41="Non endémique"),0,COUNTRY_INFO!S39) -> 1 | I39: =IF($G39=1,IVM!$G39,0) -> 0 | L39: ALB | M39: =IF($L39="ALB", IF(INTRO!$E$39="Non endémique",IF($H39<>0,$D39*($H39-$G39),0),$D39*$H39), 0) -> 9445 | N39: 19446 | P39: 28891 | Q39: =IF($L39="MBD", IF(INTRO!$E$39="Non endémique",IF($H39<>0,$D39*($H39-$G39),0),$D39*$H39),0) -> 0 | R39: 0 | T39: 0 | V39: 0 | W39: 0 | Y39: 19446 | Z39: 98 | AB39: 0 | AC39: 0
A40: =IF(AND(INTRO!$E$37="Non endémique",INTRO!$E$41="Non endémique")," ",IF(COUNTRY_INFO!A40=0," ",COUNTRY_INFO!A40)) -> DRC | B40: =IF(AND(INTRO!$E$37="Non endémique",INTRO!$E$41="Non endémique")," ",IF(COUNTRY_INFO!B40=0," ",COUNTRY_INFO!B40)) -> Haut Katanga | C40: =IF(AND(INTRO!$E$37="Non endémique",INTRO!$E$41="Non endémique")," ",IF(COUNTRY_INFO!C40=0," ",COUNTRY_INFO!C40)) -> Kambove | D40: =IF(AND(INTRO!$E$37="Non endémique",INTRO!$E$41="Non endémique"),0,IF(AND(OR(COUNTRY_INFO!$H40=0,COUNTRY_INFO!$H40=4,COUNTRY_INFO!$H40=99),OR(COUNTRY_INFO!$J40=0,COUNTRY_INFO!$J40=4)),0,COUNTRY_INFO!$E40)) -> 22837 | E40: =IF(AND(INTRO!$E$37="Non endémique",INTRO!$E$41="Non endémique"),0,IF(AND(OR(COUNTRY_INFO!$H40=0,COUNTRY_INFO!$H40=4,COUNTRY_INFO!$H40=99),OR(COUNTRY_INFO!$J40=0,COUNTRY_INFO!$J40=4)),0,COUNTRY_INFO!$F40)) -> 47017 | F40: 69854 | G40: =IF(AND(INTRO!$E$37="Non endémique",INTRO!$E$41="Non endémique"),0,COUNTRY_INFO!Q40) -> 0 | H40: =IF(AND(INTRO!$E$37="Non endémique",INTRO!$E$41="Non endémique"),0,COUNTRY_INFO!S40) -> 0 | I40: =IF($G40=1,IVM!$G40,0) -> 0 | M40: =IF($L40="ALB", IF(INTRO!$E$39="Non endémique",IF($H40<>0,$D40*($H40-$G40),0),$D40*$H40), 0) -> 0 | N40: 0 | P40: 0 | Q40: =IF($L40="MBD", IF(INTRO!$E$39="Non endémique",IF($H40<>0,$D40*($H40-$G40),0),$D40*$H40),0) -> 0 | R40: 0 | T40: 0 | V40: 0 | W40: 0 | Y40: 0 | Z40: 0 | AB40: 0 | AC40: 0
A41: =IF(AND(INTRO!$E$37="Non endémique",INTRO!$E$41="Non endémique")," ",IF(COUNTRY_INFO!A41=0," ",COUNTRY_INFO!A41)) -> DRC | B41: =IF(AND(INTRO!$E$37="Non endémique",INTRO!$E$41="Non endémique")," ",IF(COUNTRY_INFO!B41=0," ",COUNTRY_INFO!B41)) -> Haut Katanga | C41: =IF(AND(INTRO!$E$37="Non endémique",INTRO!$E$41="Non endémique")," ",IF(COUNTRY_INFO!C41=0," ",COUNTRY_INFO!C41)) -> Kampemba | D41: =IF(AND(INTRO!$E$37="Non endémique",INTRO!$E$41="Non endémique"),0,IF(AND(OR(COUNTRY_INFO!$H41=0,COUNTRY_INFO!$H41=4,COUNTRY_INFO!$H41=99),OR(COUNTRY_INFO!$J41=0,COUNTRY_INFO!$J41=4)),0,COUNTRY_INFO!$E41)) -> 0 | E41: =IF(AND(INTRO!$E$37="Non endémique",INTRO!$E$41="Non endémique"),0,IF(AND(OR(COUNTRY_INFO!$H41=0,COUNTRY_INFO!$H41=4,COUNTRY_INFO!$H41=99),OR(COUNTRY_INFO!$J41=0,COUNTRY_INFO!$J41=4)),0,COUNTRY_INFO!$F41)) -> 0 | F41: 0 | G41: =IF(AND(INTRO!$E$37="Non endémique",INTRO!$E$41="Non endémique"),0,COUNTRY_INFO!Q41) -> 0 | H41: =IF(AND(INTRO!$E$37="Non endémique",INTRO!$E$41="Non endémique"),0,COUNTRY_INFO!S41) -> 0 | I41: =IF($G41=1,IVM!$G41,0) -> 0 | M41: =IF($L41="ALB", IF(INTRO!$E$39="Non endémique",IF($H41<>0,$D41*($H41-$G41),0),$D41*$H41), 0) -> 0 | N41: 0 | P41: 0 | Q41: =IF($L41="MBD", IF(INTRO!$E$39="Non endémique",IF($H41<>0,$D41*($H41-$G41),0),$D41*$H41),0) -> 0 | R41: 0 | T41: 0 | V41: 0 | W41: 0 | Y41: 0 | Z41: 0 | AB41: 0 | AC41: 0
A42: =IF(AND(INTRO!$E$37="Non endémique",INTRO!$E$41="Non endémique")," ",IF(COUNTRY_INFO!A42=0," ",COUNTRY_INFO!A42)) -> DRC | B42: =IF(AND(INTRO!$E$37="Non endémique",INTRO!$E$41="Non endémique")," ",IF(COUNTRY_INFO!B42=0," ",COUNTRY_INFO!B42)) -> Haut Katanga | C42: =IF(AND(INTRO!$E$37="Non endémique",INTRO!$E$41="Non endémique")," ",IF(COUNTRY_INFO!C42=0," ",COUNTRY_INFO!C42)) -> Kapolobwe | D42: =IF(AND(INTRO!$E$37="Non endémique",INTRO!$E$41="Non endémique"),0,IF(AND(OR(COUNTRY_INFO!$H42=0,COUNTRY_INFO!$H42=4,COUNTRY_INFO!$H42=99),OR(COUNTRY_INFO!$J42=0,COUNTRY_INFO!$J42=4)),0,COUNTRY_INFO!$E42)) -> 0 | E42: =IF(AND(INTRO!$E$37="Non endémique",INTRO!$E$41="Non endémique"),0,IF(AND(OR(COUNTRY_INFO!$H42=0,COUNTRY_INFO!$H42=4,COUNTRY_INFO!$H42=99),OR(COUNTRY_INFO!$J42=0,COUNTRY_INFO!$J42=4)),0,COUNTRY_INFO!$F42)) -> 0 | F42: 0 | G42: =IF(AND(INTRO!$E$37="Non endémique",INTRO!$E$41="Non endémique"),0,COUNTRY_INFO!Q42) -> 0 | H42: =IF(AND(INTRO!$E$37="Non endémique",INTRO!$E$41="Non endémique"),0,COUNTRY_INFO!S42) -> 0 | I42: =IF($G42=1,IVM!$G42,0) -> 0 | M42: =IF($L42="ALB", IF(INTRO!$E$39="Non endémique",IF($H42<>0,$D42*($H42-$G42),0),$D42*$H42), 0) -> 0 | N42: 0 | P42: 0 | Q42: =IF($L42="MBD", IF(INTRO!$E$39="Non endémique",IF($H42<>0,$D42*($H42-$G42),0),$D42*$H42),0) -> 0 | R42: 0 | T42: 0 | V42: 0 | W42: 0 | Y42: 0 | Z42: 0 | AB42: 0 | AC42: 0
A43: =IF(AND(INTRO!$E$37="Non endémique",INTRO!$E$41="Non endémique")," ",IF(COUNTRY_INFO!A43=0," ",COUNTRY_INFO!A43)) -> DRC | B43: =IF(AND(INTRO!$E$37="Non endémique",INTRO!$E$41="Non endémique")," ",IF(COUNTRY_INFO!B43=0," ",COUNTRY_INFO!B43)) -> Haut Katanga | C43: =IF(AND(INTRO!$E$37="Non endémique",INTRO!$E$41="Non endémique")," ",IF(COUNTRY_INFO!C43=0," ",COUNTRY_INFO!C43)) -> Kasenga | D43: =IF(AND(INTRO!$E$37="Non endémique",INTRO!$E$41="Non endémique"),0,IF(AND(OR(COUNTRY_INFO!$H43=0,COUNTRY_INFO!$H43=4,COUNTRY_INFO!$H43=99),OR(COUNTRY_INFO!$J43=0,COUNTRY_INFO!$J43=4)),0,COUNTRY_INFO!$E43)) -> 29080 | E43: =IF(AND(INTRO!$E$37="Non endémique",INTRO!$E$41="Non endémique"),0,IF(AND(OR(COUNTRY_INFO!$H43=0,COUNTRY_INFO!$H43=4,COUNTRY_INFO!$H43=99),OR(COUNTRY_INFO!$J43=0,COUNTRY_INFO!$J43=4)),0,COUNTRY_INFO!$F43)) -> 59870 | F43: 88950 | G43: =IF(AND(INTRO!$E$37="Non endémique",INTRO!$E$41="Non endémique"),0,COUNTRY_INFO!Q43) -> 1 | H43: =IF(AND(INTRO!$E$37="Non endémique",INTRO!$E$41="Non endémique"),0,COUNTRY_INFO!S43) -> 0 | I43: =IF($G43=1,IVM!$G43,0) -> 138557 | M43: =IF($L43="ALB", IF(INTRO!$E$39="Non endémique",IF($H43<>0,$D43*($H43-$G43),0),$D43*$H43), 0) -> 0 | N43: 0 | P43: 0 | Q43: =IF($L43="MBD", IF(INTRO!$E$39="Non endémique",IF($H43<>0,$D43*($H43-$G43),0),$D43*$H43),0) -> 0 | R43: 0 | T43: 0 | V43: 138557 | W43: 693 | Y43: 0 | Z43: 0 | AB43: 0 | AC43: 0
A44: =IF(AND(INTRO!$E$37="Non endémique",INTRO!$E$41="Non endémique")," ",IF(COUNTRY_INFO!A44=0," ",COUNTRY_INFO!A44)) -> DRC | B44: =IF(AND(INTRO!$E$37="Non endémique",INTRO!$E$41="Non endémique")," ",IF(COUNTRY_INFO!B44=0," ",COUNTRY_INFO!B44)) -> Haut Katanga | C44: =IF(AND(INTRO!$E$37="Non endémique",INTRO!$E$41="Non endémique")," ",IF(COUNTRY_INFO!C44=0," ",COUNTRY_INFO!C44)) -> Kashobwe | D44: =IF(AND(INTRO!$E$37="Non endémique",INTRO!$E$41="Non endémique"),0,IF(AND(OR(COUNTRY_INFO!$H44=0,COUNTRY_INFO!$H44=4,COUNTRY_INFO!$H44=99),OR(COUNTRY_INFO!$J44=0,COUNTRY_INFO!$J44=4)),0,COUNTRY_INFO!$E44)) -> 29418 | E44: =IF(AND(INTRO!$E$37="Non endémique",INTRO!$E$41="Non endémique"),0,IF(AND(OR(COUNTRY_INFO!$H44=0,COUNTRY_INFO!$H44=4,COUNTRY_INFO!$H44=99),OR(COUNTRY_INFO!$J44=0,COUNTRY_INFO!$J44=4)),0,COUNTRY_INFO!$F44)) -> 60566 | F44: 89984 | G44: =IF(AND(INTRO!$E$37="Non endémique",INTRO!$E$41="Non endémique"),0,COUNTRY_INFO!Q44) -> 0 | H44: =IF(AND(INTRO!$E$37="Non endémique",INTRO!$E$41="Non endémique"),0,COUNTRY_INFO!S44) -> 0 | I44: =IF($G44=1,IVM!$G44,0) -> 0 | M44: =IF($L44="ALB", IF(INTRO!$E$39="Non endémique",IF($H44<>0,$D44*($H44-$G44),0),$D44*$H44), 0) -> 0 | N44: 0 | P44: 0 | Q44: =IF($L44="MBD", IF(INTRO!$E$39="Non endémique",IF($H44<>0,$D44*($H44-$G44),0),$D44*$H44),0) -> 0 | R44: 0 | T44: 0 | V44: 0 | W44: 0 | Y44: 0 | Z44: 0 | AB44: 0 | AC44: 0
A45: =IF(AND(INTRO!$E$37="Non endémique",INTRO!$E$41="Non endémique")," ",IF(COUNTRY_INFO!A45=0," ",COUNTRY_INFO!A45)) -> DRC | B45: =IF(AND(INTRO!$E$37="Non endémique",INTRO!$E$41="Non endémique")," ",IF(COUNTRY_INFO!B45=0," ",COUNTRY_INFO!B45)) -> Haut Katanga | C45: =IF(AND(INTRO!$E$37="Non endémique",INTRO!$E$41="Non endémique")," ",IF(COUNTRY_INFO!C45=0," ",COUNTRY_INFO!C45)) -> Katuba | D45: =IF(AND(INTRO!$E$37="Non endémique",INTRO!$E$41="Non endémique"),0,IF(AND(OR(COUNTRY_INFO!$H45=0,COUNTRY_INFO!$H45=4,COUNTRY_INFO!$H45=99),OR(COUNTRY_INFO!$J45=0,COUNTRY_INFO!$J45=4)),0,COUNTRY_INFO!$E45)) -> 34691 | E45: =IF(AND(INTRO!$E$37="Non endémique",INTRO!$E$41="Non endémique"),0,IF(AND(OR(COUNTRY_INFO!$H45=0,COUNTRY_INFO!$H45=4,COUNTRY_INFO!$H45=99),OR(COUNTRY_INFO!$J45=0,COUNTRY_INFO!$J45=4)),0,COUNTRY_INFO!$F45)) -> 71423 | F45: 106114 | G45: =IF(AND(INTRO!$E$37="Non endémique",INTRO!$E$41="Non endémique"),0,COUNTRY_INFO!Q45) -> 0 | H45: =IF(AND(INTRO!$E$37="Non endémique",INTRO!$E$41="Non endémique"),0,COUNTRY_INFO!S45) -> 1 | I45: =IF($G45=1,IVM!$G45,0) -> 0 | L45: ALB | M45: =IF($L45="ALB", IF(INTRO!$E$39="Non endémique",IF($H45<>0,$D45*($H45-$G45),0),$D45*$H45), 0) -> 34691 | N45: 71423 | P45: 106114 | Q45: =IF($L45="MBD", IF(INTRO!$E$39="Non endémique",IF($H45<>0,$D45*($H45-$G45),0),$D45*$H45),0) -> 0 | R45: 0 | T45: 0 | V45: 0 | W45: 0 | Y45: 71423 | Z45: 358 | AB45: 0 | AC45: 0
A46: =IF(AND(INTRO!$E$37="Non endémique",INTRO!$E$41="Non endémique")," ",IF(COUNTRY_INFO!A46=0," ",COUNTRY_INFO!A46)) -> DRC | B46: =IF(AND(INTRO!$E$37="Non endémique",INTRO!$E$41="Non endémique")," ",IF(COUNTRY_INFO!B46=0," ",COUNTRY_INFO!B46)) -> Haut Katanga | C46: =IF(AND(INTRO!$E$37="Non endémique",INTRO!$E$41="Non endémique")," ",IF(COUNTRY_INFO!C46=0," ",COUNTRY_INFO!C46)) -> Kenya | D46: =IF(AND(INTRO!$E$37="Non endémique",INTRO!$E$41="Non endémique"),0,IF(AND(OR(COUNTRY_INFO!$H46=0,COUNTRY_INFO!$H46=4,COUNTRY_INFO!$H46=99),OR(COUNTRY_INFO!$J46=0,COUNTRY_INFO!$J46=4)),0,COUNTRY_INFO!$E46)) -> 38608 | E46: =IF(AND(INTRO!$E$37="Non endémique",INTRO!$E$41="Non endémique"),0,IF(AND(OR(COUNTRY_INFO!$H46=0,COUNTRY_INFO!$H46=4,COUNTRY_INFO!$H46=99),OR(COUNTRY_INFO!$J46=0,COUNTRY_INFO!$J46=4)),0,COUNTRY_INFO!$F46)) -> 79486 | F46: 118094 | G46: =IF(AND(INTRO!$E$37="Non endémique",INTRO!$E$41="Non endémique"),0,COUNTRY_INFO!Q46) -> 1 | H46: =IF(AND(INTRO!$E$37="Non endémique",INTRO!$E$41="Non endémique"),0,COUNTRY_INFO!S46) -> 0 | I46: =IF($G46=1,IVM!$G46,0) -> 183953 | M46: =IF($L46="ALB", IF(INTRO!$E$39="Non endémique",IF($H46<>0,$D46*($H46-$G46),0),$D46*$H46), 0) -> 0 | N46: 0 | P46: 0 | Q46: =IF($L46="MBD", IF(INTRO!$E$39="Non endémique",IF($H46<>0,$D46*($H46-$G46),0),$D46*$H46),0) -> 0 | R46: 0 | T46: 0 | V46: 183953 | W46: 920 | Y46: 0 | Z46: 0 | AB46: 0 | AC46: 0
A47: =IF(AND(INTRO!$E$37="Non endémique",INTRO!$E$41="Non endémique")," ",IF(COUNTRY_INFO!A47=0," ",COUNTRY_INFO!A47)) -> DRC | B47: =IF(AND(INTRO!$E$37="Non endémique",INTRO!$E$41="Non endémique")," ",IF(COUNTRY_INFO!B47=0," ",COUNTRY_INFO!B47)) -> Haut Katanga | C47: =IF(AND(INTRO!$E$37="Non endémique",INTRO!$E$41="Non endémique")," ",IF(COUNTRY_INFO!C47=0," ",COUNTRY_INFO!C47)) -> Kikula | D47: =IF(AND(INTRO!$E$37="Non endémique",INTRO!$E$41="Non endémique"),0,IF(AND(OR(COUNTRY_INFO!$H47=0,COUNTRY_INFO!$H47=4,COUNTRY_INFO!$H47=99),OR(COUNTRY_INFO!$J47=0,COUNTRY_INFO!$J47=4)),0,COUNTRY_INFO!$E47)) -> 0 | E47: =IF(AND(INTRO!$E$37="Non endémique",INTRO!$E$41="Non endémique"),0,IF(AND(OR(COUNTRY_INFO!$H47=0,COUNTRY_INFO!$H47=4,COUNTRY_INFO!$H47=99),OR(COUNTRY_INFO!$J47=0,COUNTRY_INFO!$J47=4)),0,COUNTRY_INFO!$F47)) -> 0 | F47: 0 | G47: =IF(AND(INTRO!$E$37="Non endémique",INTRO!$E$41="Non endémique"),0,COUNTRY_INFO!Q47) -> 0 | H47: =IF(AND(INTRO!$E$37="Non endémique",INTRO!$E$41="Non endémique"),0,COUNTRY_INFO!S47) -> 0 | I47: =IF($G47=1,IVM!$G47,0) -> 0 | M47: =IF($L47="ALB", IF(INTRO!$E$39="Non endémique",IF($H47<>0,$D47*($H47-$G47),0),$D47*$H47), 0) -> 0 | N47: 0 | P47: 0 | Q47: =IF($L47="MBD", IF(INTRO!$E$39="Non endémique",IF($H47<>0,$D47*($H47-$G47),0),$D47*$H47),0) -> 0 | R47: 0 | T47: 0 | V47: 0 | W47: 0 | Y47: 0 | Z47: 0 | AB47: 0 | AC47: 0
A48: =IF(AND(INTRO!$E$37="Non endémique",INTRO!$E$41="Non endémique")," ",IF(COUNTRY_INFO!A48=0," ",COUNTRY_INFO!A48)) -> DRC | B48: =IF(AND(INTRO!$E$37="Non endémique",INTRO!$E$41="Non endémique")," ",IF(COUNTRY_INFO!B48=0," ",COUNTRY_INFO!B48)) -> Haut Katanga | C48: =IF(AND(INTRO!$E$37="Non endémique",INTRO!$E$41="Non endémique")," ",IF(COUNTRY_INFO!C48=0," ",COUNTRY_INFO!C48)) -> Kilela Balanda | D48: =IF(AND(INTRO!$E$37="Non endémique",INTRO!$E$41="Non endémique"),0,IF(AND(OR(COUNTRY_INFO!$H48=0,COUNTRY_INFO!$H48=4,COUNTRY_INFO!$H48=99),OR(COUNTRY_INFO!$J48=0,COUNTRY_INFO!$J48=4)),0,COUNTRY_INFO!$E48)) -> 19032 | E48: =IF(AND(INTRO!$E$37="Non endémique",INTRO!$E$41="Non endémique"),0,IF(AND(OR(COUNTRY_INFO!$H48=0,COUNTRY_INFO!$H48=4,COUNTRY_INFO!$H48=99),OR(COUNTRY_INFO!$J48=0,COUNTRY_INFO!$J48=4)),0,COUNTRY_INFO!$F48)) -> 39183 | F48: 58215 | G48: =IF(AND(INTRO!$E$37="Non endémique",INTRO!$E$41="Non endémique"),0,COUNTRY_INFO!Q48) -> 0 | H48: =IF(AND(INTRO!$E$37="Non endémique",INTRO!$E$41="Non endémique"),0,COUNTRY_INFO!S48) -> 0 | I48: =IF($G48=1,IVM!$G48,0) -> 0 | M48: =IF($L48="ALB", IF(INTRO!$E$39="Non endémique",IF($H48<>0,$D48*($H48-$G48),0),$D48*$H48), 0) -> 0 | N48: 0 | P48: 0 | Q48: =IF($L48="MBD", IF(INTRO!$E$39="Non endémique",IF($H48<>0,$D48*($H48-$G48),0),$D48*$H48),0) -> 0 | R48: 0 | T48: 0 | V48: 0 | W48: 0 | Y48: 0 | Z48: 0 | AB48: 0 | AC48: 0
A49: =IF(AND(INTRO!$E$37="Non endémique",INTRO!$E$41="Non endémique")," ",IF(COUNTRY_INFO!A49=0," ",COUNTRY_INFO!A49)) -> DRC | B49: =IF(AND(INTRO!$E$37="Non endémique",INTRO!$E$41="Non endémique")," ",IF(COUNTRY_INFO!B49=0," ",COUNTRY_INFO!B49)) -> Haut Katanga | C49: =IF(AND(INTRO!$E$37="Non endémique",INTRO!$E$41="Non endémique")," ",IF(COUNTRY_INFO!C49=0," ",COUNTRY_INFO!C49)) -> Kilwa | D49: =IF(AND(INTRO!$E$37="Non endémique",INTRO!$E$41="Non endémique"),0,IF(AND(OR(COUNTRY_INFO!$H49=0,COUNTRY_INFO!$H49=4,COUNTRY_INFO!$H49=99),OR(COUNTRY_INFO!$J49=0,COUNTRY_INFO!$J49=4)),0,COUNTRY_INFO!$E49)) -> 65305 | E49: =IF(AND(INTRO!$E$37="Non endémique",INTRO!$E$41="Non endémique"),0,IF(AND(OR(COUNTRY_INFO!$H49=0,COUNTRY_INFO!$H49=4,COUNTRY_INFO!$H49=99),OR(COUNTRY_INFO!$J49=0,COUNTRY_INFO!$J49=4)),0,COUNTRY_INFO!$F49)) -> 134452 | F49: 199757 | G49: =IF(AND(INTRO!$E$37="Non endémique",INTRO!$E$41="Non endémique"),0,COUNTRY_INFO!Q49) -> 1 | H49: =IF(AND(INTRO!$E$37="Non endémique",INTRO!$E$41="Non endémique"),0,COUNTRY_INFO!S49) -> 0 | I49: =IF($G49=1,IVM!$G49,0) -> 311161 | M49: =IF($L49="ALB", IF(INTRO!$E$39="Non endémique",IF($H49<>0,$D49*($H49-$G49),0),$D49*$H49), 0) -> 0 | N49: 0 | P49: 0 | Q49: =IF($L49="MBD", IF(INTRO!$E$39="Non endémique",IF($H49<>0,$D49*($H49-$G49),0),$D49*$H49),0) -> 0 | R49: 0 | T49: 0 | V49: 311161 | W49: 1556 | Y49: 0 | Z49: 0 | AB49: 0 | AC49: 0
A50: =IF(AND(INTRO!$E$37="Non endémique",INTRO!$E$41="Non endémique")," ",IF(COUNTRY_INFO!A50=0," ",COUNTRY_INFO!A50)) -> DRC | B50: =IF(AND(INTRO!$E$37="Non endémique",INTRO!$E$41="Non endémique")," ",IF(COUNTRY_INFO!B50=0," ",COUNTRY_INFO!B50)) -> Haut Katanga | C50: =IF(AND(INTRO!$E$37="Non endémique",INTRO!$E$41="Non endémique")," ",IF(COUNTRY_INFO!C50=0," ",COUNTRY_INFO!C50)) -> Kipushi | D50: =IF(AND(INTRO!$E$37="Non endémique",INTRO!$E$41="Non endémique"),0,IF(AND(OR(COUNTRY_INFO!$H50=0,COUNTRY_INFO!$H50=4,COUNTRY_INFO!$H50=99),OR(COUNTRY_INFO!$J50=0,COUNTRY_INFO!$J50=4)),0,COUNTRY_INFO!$E50)) -> 34827 | E50: =IF(AND(INTRO!$E$37="Non endémique",INTRO!$E$41="Non endémique"),0,IF(AND(OR(COUNTRY_INFO!$H50=0,COUNTRY_INFO!$H50=4,COUNTRY_INFO!$H50=99),OR(COUNTRY_INFO!$J50=0,COUNTRY_INFO!$J50=4)),0,COUNTRY_INFO!$F50)) -> 71702 | F50: 106529 | G50: =IF(AND(INTRO!$E$37="Non endémique",INTRO!$E$41="Non endémique"),0,COUNTRY_INFO!Q50) -> 1 | H50: =IF(AND(INTRO!$E$37="Non endémique",INTRO!$E$41="Non endémique"),0,COUNTRY_INFO!S50) -> 0 | I50: =IF($G50=1,IVM!$G50,0) -> 165939 | M50: =IF($L50="ALB", IF(INTRO!$E$39="Non endémique",IF($H50<>0,$D50*($H50-$G50),0),$D50*$H50), 0) -> 0 | N50: 0 | P50: 0 | Q50: =IF($L50="MBD", IF(INTRO!$E$39="Non endémique",IF($H50<>0,$D50*($H50-$G50),0),$D50*$H50),0) -> 0 | R50: 0 | T50: 0 | V50: 165939 | W50: 830 | Y50: 0 | Z50: 0 | AB50: 0 | AC50: 0
A51: =IF(AND(INTRO!$E$37="Non endémique",INTRO!$E$41="Non endémique")," ",IF(COUNTRY_INFO!A51=0," ",COUNTRY_INFO!A51)) -> DRC | B51: =IF(AND(INTRO!$E$37="Non endémique",INTRO!$E$41="Non endémique")," ",IF(COUNTRY_INFO!B51=0," ",COUNTRY_INFO!B51)) -> Haut Katanga | C51: =IF(AND(INTRO!$E$37="Non endémique",INTRO!$E$41="Non endémique")," ",IF(COUNTRY_INFO!C51=0," ",COUNTRY_INFO!C51)) -> Kisanga | D51: =IF(AND(INTRO!$E$37="Non endémique",INTRO!$E$41="Non endémique"),0,IF(AND(OR(COUNTRY_INFO!$H51=0,COUNTRY_INFO!$H51=4,COUNTRY_INFO!$H51=99),OR(COUNTRY_INFO!$J51=0,COUNTRY_INFO!$J51=4)),0,COUNTRY_INFO!$E51)) -> 49036 | E51: =IF(AND(INTRO!$E$37="Non endémique",INTRO!$E$41="Non endémique"),0,IF(AND(OR(COUNTRY_INFO!$H51=0,COUNTRY_INFO!$H51=4,COUNTRY_INFO!$H51=99),OR(COUNTRY_INFO!$J51=0,COUNTRY_INFO!$J51=4)),0,COUNTRY_INFO!$F51)) -> 100956 | F51: 149992 | G51: =IF(AND(INTRO!$E$37="Non endémique",INTRO!$E$41="Non endémique"),0,COUNTRY_INFO!Q51) -> 1 | H51: =IF(AND(INTRO!$E$37="Non endémique",INTRO!$E$41="Non endémique"),0,COUNTRY_INFO!S51) -> 0 | I51: =IF($G51=1,IVM!$G51,0) -> 233642 | M51: =IF($L51="ALB", IF(INTRO!$E$39="Non endémique",IF($H51<>0,$D51*($H51-$G51),0),$D51*$H51), 0) -> 0 | N51: 0 | P51: 0 | Q51: =IF($L51="MBD", IF(INTRO!$E$39="Non endémique",IF($H51<>0,$D51*($H51-$G51),0),$D51*$H51),0) -> 0 | R51: 0 | T51: 0 | V51: 233642 | W51: 1169 | Y51: 0 | Z51: 0 | AB51: 0 | AC51: 0
A52: =IF(AND(INTRO!$E$37="Non endémique",INTRO!$E$41="Non endémique")," ",IF(COUNTRY_INFO!A52=0," ",COUNTRY_INFO!A52)) -> DRC | B52: =IF(AND(INTRO!$E$37="Non endémique",INTRO!$E$41="Non endémique")," ",IF(COUNTRY_INFO!B52=0," ",COUNTRY_INFO!B52)) -> Haut Katanga | C52: =IF(AND(INTRO!$E$37="Non endémique",INTRO!$E$41="Non endémique")," ",IF(COUNTRY_INFO!C52=0," ",COUNTRY_INFO!C52)) -> Kowe | D52: =IF(AND(INTRO!$E$37="Non endémique",INTRO!$E$41="Non endémique"),0,IF(AND(OR(COUNTRY_INFO!$H52=0,COUNTRY_INFO!$H52=4,COUNTRY_INFO!$H52=99),OR(COUNTRY_INFO!$J52=0,COUNTRY_INFO!$J52=4)),0,COUNTRY_INFO!$E52)) -> 9232 | E52: =IF(AND(INTRO!$E$37="Non endémique",INTRO!$E$41="Non endémique"),0,IF(AND(OR(COUNTRY_INFO!$H52=0,COUNTRY_INFO!$H52=4,COUNTRY_INFO!$H52=99),OR(COUNTRY_INFO!$J52=0,COUNTRY_INFO!$J52=4)),0,COUNTRY_INFO!$F52)) -> 19006 | F52: 28238 | G52: =IF(AND(INTRO!$E$37="Non endémique",INTRO!$E$41="Non endémique"),0,COUNTRY_INFO!Q52) -> 0 | H52: =IF(AND(INTRO!$E$37="Non endémique",INTRO!$E$41="Non endémique"),0,COUNTRY_INFO!S52) -> 1 | I52: =IF($G52=1,IVM!$G52,0) -> 0 | L52: ALB | M52: =IF($L52="ALB", IF(INTRO!$E$39="Non endémique",IF($H52<>0,$D52*($H52-$G52),0),$D52*$H52), 0) -> 9232 | N52: 19006 | P52: 28238 | Q52: =IF($L52="MBD", IF(INTRO!$E$39="Non endémique",IF($H52<>0,$D52*($H52-$G52),0),$D52*$H52),0) -> 0 | R52: 0 | T52: 0 | V52: 0 | W52: 0 | Y52: 19006 | Z52: 96 | AB52: 0 | AC52: 0
A53: =IF(AND(INTRO!$E$37="Non endémique",INTRO!$E$41="Non endémique")," ",IF(COUNTRY_INFO!A53=0," ",COUNTRY_INFO!A53)) -> DRC | B53: =IF(AND(INTRO!$E$37="Non endémique",INTRO!$E$41="Non endémique")," ",IF(COUNTRY_INFO!B53=0," ",COUNTRY_INFO!B53)) -> Haut Katanga | C53: =IF(AND(INTRO!$E$37="Non endémique",INTRO!$E$41="Non endémique")," ",IF(COUNTRY_INFO!C53=0," ",COUNTRY_INFO!C53)) -> Likasi | D53: =IF(AND(INTRO!$E$37="Non endémique",INTRO!$E$41="Non endémique"),0,IF(AND(OR(COUNTRY_INFO!$H53=0,COUNTRY_INFO!$H53=4,COUNTRY_INFO!$H53=99),OR(COUNTRY_INFO!$J53=0,COUNTRY_INFO!$J53=4)),0,COUNTRY_INFO!$E53)) -> 31573 | E53: =IF(AND(INTRO!$E$37="Non endémique",INTRO!$E$41="Non endémique"),0,IF(AND(OR(COUNTRY_INFO!$H53=0,COUNTRY_INFO!$H53=4,COUNTRY_INFO!$H53=99),OR(COUNTRY_INFO!$J53=0,COUNTRY_INFO!$J53=4)),0,COUNTRY_INFO!$F53)) -> 65003 | F53: 96576 | G53: =IF(AND(INTRO!$E$37="Non endémique",INTRO!$E$41="Non endémique"),0,COUNTRY_INFO!Q53) -> 1 | H53: =IF(AND(INTRO!$E$37="Non endémique",INTRO!$E$41="Non endémique"),0,COUNTRY_INFO!S53) -> 0 | I53: =IF($G53=1,IVM!$G53,0) -> 150435 | M53: =IF($L53="ALB", IF(INTRO!$E$39="Non endémique",IF($H53<>0,$D53*($H53-$G53),0),$D53*$H53), 0) -> 0 | N53: 0 | P53: 0 | Q53: =IF($L53="MBD", IF(INTRO!$E$39="Non endémique",IF($H53<>0,$D53*($H53-$G53),0),$D53*$H53),0) -> 0 | R53: 0 | T53: 0 | V53: 150435 | W53: 753 | Y53: 0 | Z53: 0 | AB53: 0 | AC53: 0
A54: =IF(AND(INTRO!$E$37="Non endémique",INTRO!$E$41="Non endémique")," ",IF(COUNTRY_INFO!A54=0," ",COUNTRY_INFO!A54)) -> DRC | B54: =IF(AND(INTRO!$E$37="Non endémique",INTRO!$E$41="Non endémique")," ",IF(COUNTRY_INFO!B54=0," ",COUNTRY_INFO!B54)) -> Haut Katanga | C54: =IF(AND(INTRO!$E$37="Non endémique",INTRO!$E$41="Non endémique")," ",IF(COUNTRY_INFO!C54=0," ",COUNTRY_INFO!C54)) -> Lubumbashi | D54: =IF(AND(INTRO!$E$37="Non endémique",INTRO!$E$41="Non endémique"),0,IF(AND(OR(COUNTRY_INFO!$H54=0,COUNTRY_INFO!$H54=4,COUNTRY_INFO!$H54=99),OR(COUNTRY_INFO!$J54=0,COUNTRY_INFO!$J54=4)),0,COUNTRY_INFO!$E54)) -> 22140 | E54: =IF(AND(INTRO!$E$37="Non endémique",INTRO!$E$41="Non endémique"),0,IF(AND(OR(COUNTRY_INFO!$H54=0,COUNTRY_INFO!$H54=4,COUNTRY_INFO!$H54=99),OR(COUNTRY_INFO!$J54=0,COUNTRY_INFO!$J54=4)),0,COUNTRY_INFO!$F54)) -> 45583 | F54: 67723 | G54: =IF(AND(INTRO!$E$37="Non endémique",INTRO!$E$41="Non endémique"),0,COUNTRY_INFO!Q54) -> 1 | H54: =IF(AND(INTRO!$E$37="Non endémique",INTRO!$E$41="Non endémique"),0,COUNTRY_INFO!S54) -> 0 | I54: =IF($G54=1,IVM!$G54,0) -> 105492 | M54: =IF($L54="ALB", IF(INTRO!$E$39="Non endémique",IF($H54<>0,$D54*($H54-$G54),0),$D54*$H54), 0) -> 0 | N54: 0 | P54: 0 | Q54: =IF($L54="MBD", IF(INTRO!$E$39="Non endémique",IF($H54<>0,$D54*($H54-$G54),0),$D54*$H54),0) -> 0 | R54: 0 | T54: 0 | V54: 105492 | W54: 528 | Y54: 0 | Z54: 0 | AB54: 0 | AC54: 0
A55: =IF(AND(INTRO!$E$37="Non endémique",INTRO!$E$41="Non endémique")," ",IF(COUNTRY_INFO!A55=0," ",COUNTRY_INFO!A55)) -> DRC | B55: =IF(AND(INTRO!$E$37="Non endémique",INTRO!$E$41="Non endémique")," ",IF(COUNTRY_INFO!B55=0," ",COUNTRY_INFO!B55)) -> Haut Katanga | C55: =IF(AND(INTRO!$E$37="Non endémique",INTRO!$E$41="Non endémique")," ",IF(COUNTRY_INFO!C55=0," ",COUNTRY_INFO!C55)) -> Lukafu | D55: =IF(AND(INTRO!$E$37="Non endémique",INTRO!$E$41="Non endémique"),0,IF(AND(OR(COUNTRY_INFO!$H55=0,COUNTRY_INFO!$H55=4,COUNTRY_INFO!$H55=99),OR(COUNTRY_INFO!$J55=0,COUNTRY_INFO!$J55=4)),0,COUNTRY_INFO!$E55)) -> 17080 | E55: =IF(AND(INTRO!$E$37="Non endémique",INTRO!$E$41="Non endémique"),0,IF(AND(OR(COUNTRY_INFO!$H55=0,COUNTRY_INFO!$H55=4,COUNTRY_INFO!$H55=99),OR(COUNTRY_INFO!$J55=0,COUNTRY_INFO!$J55=4)),0,COUNTRY_INFO!$F55)) -> 35164 | F55: 52244 | G55: =IF(AND(INTRO!$E$37="Non endémique",INTRO!$E$41="Non endémique"),0,COUNTRY_INFO!Q55) -> 1 | H55: =IF(AND(INTRO!$E$37="Non endémique",INTRO!$E$41="Non endémique"),0,COUNTRY_INFO!S55) -> 0 | I55: =IF($G55=1,IVM!$G55,0) -> 81380 | M55: =IF($L55="ALB", IF(INTRO!$E$39="Non endémique",IF($H55<>0,$D55*($H55-$G55),0),$D55*$H55), 0) -> 0 | N55: 0 | P55: 0 | Q55: =IF($L55="MBD", IF(INTRO!$E$39="Non endémique",IF($H55<>0,$D55*($H55-$G55),0),$D55*$H55),0) -> 0 | R55: 0 | T55: 0 | V55: 81380 | W55: 407 | Y55: 0 | Z55: 0 | AB55: 0 | AC55: 0
A56: =IF(AND(INTRO!$E$37="Non endémique",INTRO!$E$41="Non endémique")," ",IF(COUNTRY_INFO!A56=0," ",COUNTRY_INFO!A56)) -> DRC | B56: =IF(AND(INTRO!$E$37="Non endémique",INTRO!$E$41="Non endémique")," ",IF(COUNTRY_INFO!B56=0," ",COUNTRY_INFO!B56)) -> Haut Katanga | C56: =IF(AND(INTRO!$E$37="Non endémique",INTRO!$E$41="Non endémique")," ",IF(COUNTRY_INFO!C56=0," ",COUNTRY_INFO!C56)) -> Mitwaba | D56: =IF(AND(INTRO!$E$37="Non endémique",INTRO!$E$41="Non endémique"),0,IF(AND(OR(COUNTRY_INFO!$H56=0,COUNTRY_INFO!$H56=4,COUNTRY_INFO!$H56=99),OR(COUNTRY_INFO!$J56=0,COUNTRY_INFO!$J56=4)),0,COUNTRY_INFO!$E56)) -> 27777 | E56: =IF(AND(INTRO!$E$37="Non endémique",INTRO!$E$41="Non endémique"),0,IF(AND(OR(COUNTRY_INFO!$H56=0,COUNTRY_INFO!$H56=4,COUNTRY_INFO!$H56=99),OR(COUNTRY_INFO!$J56=0,COUNTRY_INFO!$J56=4)),0,COUNTRY_INFO!$F56)) -> 57187 | F56: 84964 | G56: =IF(AND(INTRO!$E$37="Non endémique",INTRO!$E$41="Non endémique"),0,COUNTRY_INFO!Q56) -> 1 | H56: =IF(AND(INTRO!$E$37="Non endémique",INTRO!$E$41="Non endémique"),0,COUNTRY_INFO!S56) -> 0 | I56: =IF($G56=1,IVM!$G56,0) -> 132347 | M56: =IF($L56="ALB", IF(INTRO!$E$39="Non endémique",IF($H56<>0,$D56*($H56-$G56),0),$D56*$H56), 0) -> 0 | N56: 0 | P56: 0 | Q56: =IF($L56="MBD", IF(INTRO!$E$39="Non endémique",IF($H56<>0,$D56*($H56-$G56),0),$D56*$H56),0) -> 0 | R56: 0 | T56: 0 | V56: 132347 | W56: 662 | Y56: 0 | Z56: 0 | AB56: 0 | AC56: 0
A57: =IF(AND(INTRO!$E$37="Non endémique",INTRO!$E$41="Non endémique")," ",IF(COUNTRY_INFO!A57=0," ",COUNTRY_INFO!A57)) -> DRC | B57: =IF(AND(INTRO!$E$37="Non endémique",INTRO!$E$41="Non endémique")," ",IF(COUNTRY_INFO!B57=0," ",COUNTRY_INFO!B57)) -> Haut Katanga | C57: =IF(AND(INTRO!$E$37="Non endémique",INTRO!$E$41="Non endémique")," ",IF(COUNTRY_INFO!C57=0," ",COUNTRY_INFO!C57)) -> Mufunga Sampwe | D57: =IF(AND(INTRO!$E$37="Non endémique",INTRO!$E$41="Non endémique"),0,IF(AND(OR(COUNTRY_INFO!$H57=0,COUNTRY_INFO!$H57=4,COUNTRY_INFO!$H57=99),OR(COUNTRY_INFO!$J57=0,COUNTRY_INFO!$J57=4)),0,COUNTRY_INFO!$E57)) -> 31695 | E57: =IF(AND(INTRO!$E$37="Non endémique",INTRO!$E$41="Non endémique"),0,IF(AND(OR(COUNTRY_INFO!$H57=0,COUNTRY_INFO!$H57=4,COUNTRY_INFO!$H57=99),OR(COUNTRY_INFO!$J57=0,COUNTRY_INFO!$J57=4)),0,COUNTRY_INFO!$F57)) -> 65255 | F57: 96950 | G57: =IF(AND(INTRO!$E$37="Non endémique",INTRO!$E$41="Non endémique"),0,COUNTRY_INFO!Q57) -> 1 | H57: =IF(AND(INTRO!$E$37="Non endémique",INTRO!$E$41="Non endémique"),0,COUNTRY_INFO!S57) -> 0 | I57: =IF($G57=1,IVM!$G57,0) -> 151019 | M57: =IF($L57="ALB", IF(INTRO!$E$39="Non endémique",IF($H57<>0,$D57*($H57-$G57),0),$D57*$H57), 0) -> 0 | N57: 0 | P57: 0 | Q57: =IF($L57="MBD", IF(INTRO!$E$39="Non endémique",IF($H57<>0,$D57*($H57-$G57),0),$D57*$H57),0) -> 0 | R57: 0 | T57: 0 | V57: 151019 | W57: 756 | Y57: 0 | Z57: 0 | AB57: 0 | AC57: 0
A58: =IF(AND(INTRO!$E$37="Non endémique",INTRO!$E$41="Non endémique")," ",IF(COUNTRY_INFO!A58=0," ",COUNTRY_INFO!A58)) -> DRC | B58: =IF(AND(INTRO!$E$37="Non endémique",INTRO!$E$41="Non endémique")," ",IF(COUNTRY_INFO!B58=0," ",COUNTRY_INFO!B58)) -> Haut Katanga | C58: =IF(AND(INTRO!$E$37="Non endémique",INTRO!$E$41="Non endémique")," ",IF(COUNTRY_INFO!C58=0," ",COUNTRY_INFO!C58)) -> Mumbunda | D58: =IF(AND(INTRO!$E$37="Non endémique",INTRO!$E$41="Non endémique"),0,IF(AND(OR(COUNTRY_INFO!$H58=0,COUNTRY_INFO!$H58=4,COUNTRY_INFO!$H58=99),OR(COUNTRY_INFO!$J58=0,COUNTRY_INFO!$J58=4)),0,COUNTRY_INFO!$E58)) -> 28107 | E58: =IF(AND(INTRO!$E$37="Non endémique",INTRO!$E$41="Non endémique"),0,IF(AND(OR(COUNTRY_INFO!$H58=0,COUNTRY_INFO!$H58=4,COUNTRY_INFO!$H58=99),OR(COUNTRY_INFO!$J58=0,COUNTRY_INFO!$J58=4)),0,COUNTRY_INFO!$F58)) -> 57868 | F58: 85975 | G58: =IF(AND(INTRO!$E$37="Non endémique",INTRO!$E$41="Non endémique"),0,COUNTRY_INFO!Q58) -> 0 | H58: =IF(AND(INTRO!$E$37="Non endémique",INTRO!$E$41="Non endémique"),0,COUNTRY_INFO!S58) -> 0 | I58: =IF($G58=1,IVM!$G58,0) -> 0 | M58: =IF($L58="ALB", IF(INTRO!$E$39="Non endémique",IF($H58<>0,$D58*($H58-$G58),0),$D58*$H58), 0) -> 0 | N58: 0 | P58: 0 | Q58: =IF($L58="MBD", IF(INTRO!$E$39="Non endémique",IF($H58<>0,$D58*($H58-$G58),0),$D58*$H58),0) -> 0 | R58: 0 | T58: 0 | V58: 0 | W58: 0 | Y58: 0 | Z58: 0 | AB58: 0 | AC58: 0
A59: =IF(AND(INTRO!$E$37="Non endémique",INTRO!$E$41="Non endémique")," ",IF(COUNTRY_INFO!A59=0," ",COUNTRY_INFO!A59)) -> DRC | B59: =IF(AND(INTRO!$E$37="Non endémique",INTRO!$E$41="Non endémique")," ",IF(COUNTRY_INFO!B59=0," ",COUNTRY_INFO!B59)) -> Haut Katanga | C59: =IF(AND(INTRO!$E$37="Non endémique",INTRO!$E$41="Non endémique")," ",IF(COUNTRY_INFO!C59=0," ",COUNTRY_INFO!C59)) -> Panda | D59: =IF(AND(INTRO!$E$37="Non endémique",INTRO!$E$41="Non endémique"),0,IF(AND(OR(COUNTRY_INFO!$H59=0,COUNTRY_INFO!$H59=4,COUNTRY_INFO!$H59=99),OR(COUNTRY_INFO!$J59=0,COUNTRY_INFO!$J59=4)),0,COUNTRY_INFO!$E59)) -> 16284 | E59: =IF(AND(INTRO!$E$37="Non endémique",INTRO!$E$41="Non endémique"),0,IF(AND(OR(COUNTRY_INFO!$H59=0,COUNTRY_INFO!$H59=4,COUNTRY_INFO!$H59=99),OR(COUNTRY_INFO!$J59=0,COUNTRY_INFO!$J59=4)),0,COUNTRY_INFO!$F59)) -> 33526 | F59: 49810 | G59: =IF(AND(INTRO!$E$37="Non endémique",INTRO!$E$41="Non endémique"),0,COUNTRY_INFO!Q59) -> 0 | H59: =IF(AND(INTRO!$E$37="Non endémique",INTRO!$E$41="Non endémique"),0,COUNTRY_INFO!S59) -> 0 | I59: =IF($G59=1,IVM!$G59,0) -> 0 | M59: =IF($L59="ALB", IF(INTRO!$E$39="Non endémique",IF($H59<>0,$D59*($H59-$G59),0),$D59*$H59), 0) -> 0 | N59: 0 | P59: 0 | Q59: =IF($L59="MBD", IF(INTRO!$E$39="Non endémique",IF($H59<>0,$D59*($H59-$G59),0),$D59*$H59),0) -> 0 | R59: 0 | T59: 0 | V59: 0 | W59: 0 | Y59: 0 | Z59: 0 | AB59: 0 | AC59: 0
A60: =IF(AND(INTRO!$E$37="Non endémique",INTRO!$E$41="Non endémique")," ",IF(COUNTRY_INFO!A60=0," ",COUNTRY_INFO!A60)) -> DRC | B60: =IF(AND(INTRO!$E$37="Non endémique",INTRO!$E$41="Non endémique")," ",IF(COUNTRY_INFO!B60=0," ",COUNTRY_INFO!B60)) -> Haut Katanga | C60: =IF(AND(INTRO!$E$37="Non endémique",INTRO!$E$41="Non endémique")," ",IF(COUNTRY_INFO!C60=0," ",COUNTRY_INFO!C60)) -> Pweto | D60: =IF(AND(INTRO!$E$37="Non endémique",INTRO!$E$41="Non endémique"),0,IF(AND(OR(COUNTRY_INFO!$H60=0,COUNTRY_INFO!$H60=4,COUNTRY_INFO!$H60=99),OR(COUNTRY_INFO!$J60=0,COUNTRY_INFO!$J60=4)),0,COUNTRY_INFO!$E60)) -> 53173 | E60: =IF(AND(INTRO!$E$37="Non endémique",INTRO!$E$41="Non endémique"),0,IF(AND(OR(COUNTRY_INFO!$H60=0,COUNTRY_INFO!$H60=4,COUNTRY_INFO!$H60=99),OR(COUNTRY_INFO!$J60=0,COUNTRY_INFO!$J60=4)),0,COUNTRY_INFO!$F60)) -> 109474 | F60: 162647 | G60: =IF(AND(INTRO!$E$37="Non endémique",INTRO!$E$41="Non endémique"),0,COUNTRY_INFO!Q60) -> 0 | H60: =IF(AND(INTRO!$E$37="Non endémique",INTRO!$E$41="Non endémique"),0,COUNTRY_INFO!S60) -> 0 | I60: =IF($G60=1,IVM!$G60,0) -> 0 | M60: =IF($L60="ALB", IF(INTRO!$E$39="Non endémique",IF($H60<>0,$D60*($H60-$G60),0),$D60*$H60), 0) -> 0 | N60: 0 | P60: 0 | Q60: =IF($L60="MBD", IF(INTRO!$E$39="Non endémique",IF($H60<>0,$D60*($H60-$G60),0),$D60*$H60),0) -> 0 | R60: 0 | T60: 0 | V60: 0 | W60: 0 | Y60: 0 | Z60: 0 | AB60: 0 | AC60: 0
A61: =IF(AND(INTRO!$E$37="Non endémique",INTRO!$E$41="Non endémique")," ",IF(COUNTRY_INFO!A61=0," ",COUNTRY_INFO!A61)) -> DRC | B61: =IF(AND(INTRO!$E$37="Non endémique",INTRO!$E$41="Non endémique")," ",IF(COUNTRY_INFO!B61=0," ",COUNTRY_INFO!B61)) -> Haut Katanga | C61: =IF(AND(INTRO!$E$37="Non endémique",INTRO!$E$41="Non endémique")," ",IF(COUNTRY_INFO!C61=0," ",COUNTRY_INFO!C61)) -> Ruashi | D61: =IF(AND(INTRO!$E$37="Non endémique",INTRO!$E$41="Non endémique"),0,IF(AND(OR(COUNTRY_INFO!$H61=0,COUNTRY_INFO!$H61=4,COUNTRY_INFO!$H61=99),OR(COUNTRY_INFO!$J61=0,COUNTRY_INFO!$J61=4)),0,COUNTRY_INFO!$E61)) -> 50786 | E61: =IF(AND(INTRO!$E$37="Non endémique",INTRO!$E$41="Non endémique"),0,IF(AND(OR(COUNTRY_INFO!$H61=0,COUNTRY_INFO!$H61=4,COUNTRY_INFO!$H61=99),OR(COUNTRY_INFO!$J61=0,COUNTRY_INFO!$J61=4)),0,COUNTRY_INFO!$F61)) -> 104560 | F61: 155346 | G61: =IF(AND(INTRO!$E$37="Non endémique",INTRO!$E$41="Non endémique"),0,COUNTRY_INFO!Q61) -> 0 | H61: =IF(AND(INTRO!$E$37="Non endémique",INTRO!$E$41="Non endémique"),0,COUNTRY_INFO!S61) -> 0 | I61: =IF($G61=1,IVM!$G61,0) -> 0 | M61: =IF($L61="ALB", IF(INTRO!$E$39="Non endémique",IF($H61<>0,$D61*($H61-$G61),0),$D61*$H61), 0) -> 0 | N61: 0 | P61: 0 | Q61: =IF($L61="MBD", IF(INTRO!$E$39="Non endémique",IF($H61<>0,$D61*($H61-$G61),0),$D61*$H61),0) -> 0 | R61: 0 | T61: 0 | V61: 0 | W61: 0 | Y61: 0 | Z61: 0 | AB61: 0 | AC61: 0
A62: =IF(AND(INTRO!$E$37="Non endémique",INTRO!$E$41="Non endémique")," ",IF(COUNTRY_INFO!A62=0," ",COUNTRY_INFO!A62)) -> DRC | B62: =IF(AND(INTRO!$E$37="Non endémique",INTRO!$E$41="Non endémique")," ",IF(COUNTRY_INFO!B62=0," ",COUNTRY_INFO!B62)) -> Haut Katanga | C62: =IF(AND(INTRO!$E$37="Non endémique",INTRO!$E$41="Non endémique")," ",IF(COUNTRY_INFO!C62=0," ",COUNTRY_INFO!C62)) -> Sakania | D62: =IF(AND(INTRO!$E$37="Non endémique",INTRO!$E$41="Non endémique"),0,IF(AND(OR(COUNTRY_INFO!$H62=0,COUNTRY_INFO!$H62=4,COUNTRY_INFO!$H62=99),OR(COUNTRY_INFO!$J62=0,COUNTRY_INFO!$J62=4)),0,COUNTRY_INFO!$E62)) -> 32724 | E62: =IF(AND(INTRO!$E$37="Non endémique",INTRO!$E$41="Non endémique"),0,IF(AND(OR(COUNTRY_INFO!$H62=0,COUNTRY_INFO!$H62=4,COUNTRY_INFO!$H62=99),OR(COUNTRY_INFO!$J62=0,COUNTRY_INFO!$J62=4)),0,COUNTRY_INFO!$F62)) -> 67374 | F62: 100098 | G62: =IF(AND(INTRO!$E$37="Non endémique",INTRO!$E$41="Non endémique"),0,COUNTRY_INFO!Q62) -> 1 | H62: =IF(AND(INTRO!$E$37="Non endémique",INTRO!$E$41="Non endémique"),0,COUNTRY_INFO!S62) -> 0 | I62: =IF($G62=1,IVM!$G62,0) -> 155922 | M62: =IF($L62="ALB", IF(INTRO!$E$39="Non endémique",IF($H62<>0,$D62*($H62-$G62),0),$D62*$H62), 0) -> 0 | N62: 0 | P62: 0 | Q62: =IF($L62="MBD", IF(INTRO!$E$39="Non endémique",IF($H62<>0,$D62*($H62-$G62),0),$D62*$H62),0) -> 0 | R62: 0 | T62: 0 | V62: 155922 | W62: 780 | Y62: 0 | Z62: 0 | AB62: 0 | AC62: 0
A63: =IF(AND(INTRO!$E$37="Non endémique",INTRO!$E$41="Non endémique")," ",IF(COUNTRY_INFO!A63=0," ",COUNTRY_INFO!A63)) -> DRC | B63: =IF(AND(INTRO!$E$37="Non endémique",INTRO!$E$41="Non endémique")," ",IF(COUNTRY_INFO!B63=0," ",COUNTRY_INFO!B63)) -> Haut Katanga | C63: =IF(AND(INTRO!$E$37="Non endémique",INTRO!$E$41="Non endémique")," ",IF(COUNTRY_INFO!C63=0," ",COUNTRY_INFO!C63)) -> Tshamilemba | D63: =IF(AND(INTRO!$E$37="Non endémique",INTRO!$E$41="Non endémique"),0,IF(AND(OR(COUNTRY_INFO!$H63=0,COUNTRY_INFO!$H63=4,COUNTRY_INFO!$H63=99),OR(COUNTRY_INFO!$J63=0,COUNTRY_INFO!$J63=4)),0,COUNTRY_INFO!$E63)) -> 46031 | E63: =IF(AND(INTRO!$E$37="Non endémique",INTRO!$E$41="Non endémique"),0,IF(AND(OR(COUNTRY_INFO!$H63=0,COUNTRY_INFO!$H63=4,COUNTRY_INFO!$H63=99),OR(COUNTRY_INFO!$J63=0,COUNTRY_INFO!$J63=4)),0,COUNTRY_INFO!$F63)) -> 94769 | F63: 140800 | G63: =IF(AND(INTRO!$E$37="Non endémique",INTRO!$E$41="Non endémique"),0,COUNTRY_INFO!Q63) -> 0 | H63: =IF(AND(INTRO!$E$37="Non endémique",INTRO!$E$41="Non endémique"),0,COUNTRY_INFO!S63) -> 0 | I63: =IF($G63=1,IVM!$G63,0) -> 0 | M63: =IF($L63="ALB", IF(INTRO!$E$39="Non endémique",IF($H63<>0,$D63*($H63-$G63),0),$D63*$H63), 0) -> 0 | N63: 0 | P63: 0 | Q63: =IF($L63="MBD", IF(INTRO!$E$39="Non endémique",IF($H63<>0,$D63*($H63-$G63),0),$D63*$H63),0) -> 0 | R63: 0 | T63: 0 | V63: 0 | W63: 0 | Y63: 0 | Z63: 0 | AB63: 0 | AC63: 0
A64: =IF(AND(INTRO!$E$37="Non endémique",INTRO!$E$41="Non endémique")," ",IF(COUNTRY_INFO!A64=0," ",COUNTRY_INFO!A64)) -> DRC | B64: =IF(AND(INTRO!$E$37="Non endémique",INTRO!$E$41="Non endémique")," ",IF(COUNTRY_INFO!B64=0," ",COUNTRY_INFO!B64)) -> Haut Katanga | C64: =IF(AND(INTRO!$E$37="Non endémique",INTRO!$E$41="Non endémique")," ",IF(COUNTRY_INFO!C64=0," ",COUNTRY_INFO!C64)) -> Vangu | D64: =IF(AND(INTRO!$E$37="Non endémique",INTRO!$E$41="Non endémique"),0,IF(AND(OR(COUNTRY_INFO!$H64=0,COUNTRY_INFO!$H64=4,COUNTRY_INFO!$H64=99),OR(COUNTRY_INFO!$J64=0,COUNTRY_INFO!$J64=4)),0,COUNTRY_INFO!$E64)) -> 26255 | E64: =IF(AND(INTRO!$E$37="Non endémique",INTRO!$E$41="Non endémique"),0,IF(AND(OR(COUNTRY_INFO!$H64=0,COUNTRY_INFO!$H64=4,COUNTRY_INFO!$H64=99),OR(COUNTRY_INFO!$J64=0,COUNTRY_INFO!$J64=4)),0,COUNTRY_INFO!$F64)) -> 54055 | F64: 80310 | G64: =IF(AND(INTRO!$E$37="Non endémique",INTRO!$E$41="Non endémique"),0,COUNTRY_INFO!Q64) -> 0 | H64: =IF(AND(INTRO!$E$37="Non endémique",INTRO!$E$41="Non endémique"),0,COUNTRY_INFO!S64) -> 1 | I64: =IF($G64=1,IVM!$G64,0) -> 0 | L64: ALB | M64: =IF($L64="ALB", IF(INTRO!$E$39="Non endémique",IF($H64<>0,$D64*($H64-$G64),0),$D64*$H64), 0) -> 26255 | N64: 54055 | P64: 80310 | Q64: =IF($L64="MBD", IF(INTRO!$E$39="Non endémique",IF($H64<>0,$D64*($H64-$G64),0),$D64*$H64),0) -> 0 | R64: 0 | T64: 0 | V64: 0 | W64: 0 | Y64: 54055 | Z64: 271 | AB64: 0 | AC64: 0
A65: =IF(AND(INTRO!$E$37="Non endémique",INTRO!$E$41="Non endémique")," ",IF(COUNTRY_INFO!A65=0," ",COUNTRY_INFO!A65)) -> DRC | B65: =IF(AND(INTRO!$E$37="Non endémique",INTRO!$E$41="Non endémique")," ",IF(COUNTRY_INFO!B65=0," ",COUNTRY_INFO!B65)) -> HAUT LOMAMI | C65: =IF(AND(INTRO!$E$37="Non endémique",INTRO!$E$41="Non endémique")," ",IF(COUNTRY_INFO!C65=0," ",COUNTRY_INFO!C65)) -> Bukama | D65: =IF(AND(INTRO!$E$37="Non endémique",INTRO!$E$41="Non endémique"),0,IF(AND(OR(COUNTRY_INFO!$H65=0,COUNTRY_INFO!$H65=4,COUNTRY_INFO!$H65=99),OR(COUNTRY_INFO!$J65=0,COUNTRY_INFO!$J65=4)),0,COUNTRY_INFO!$E65)) -> 66543 | E65: =IF(AND(INTRO!$E$37="Non endémique",INTRO!$E$41="Non endémique"),0,IF(AND(OR(COUNTRY_INFO!$H65=0,COUNTRY_INFO!$H65=4,COUNTRY_INFO!$H65=99),OR(COUNTRY_INFO!$J65=0,COUNTRY_INFO!$J65=4)),0,COUNTRY_INFO!$F65)) -> 137001 | F65: 203544 | G65: =IF(AND(INTRO!$E$37="Non endémique",INTRO!$E$41="Non endémique"),0,COUNTRY_INFO!Q65) -> 0 | H65: =IF(AND(INTRO!$E$37="Non endémique",INTRO!$E$41="Non endémique"),0,COUNTRY_INFO!S65) -> 0 | I65: =IF($G65=1,IVM!$G65,0) -> 0 | M65: =IF($L65="ALB", IF(INTRO!$E$39="Non endémique",IF($H65<>0,$D65*($H65-$G65),0),$D65*$H65), 0) -> 0 | N65: 0 | P65: 0 | Q65: =IF($L65="MBD", IF(INTRO!$E$39="Non endémique",IF($H65<>0,$D65*($H65-$G65),0),$D65*$H65),0) -> 0 | R65: 0 | T65: 0 | V65: 0 | W65: 0 | Y65: 0 | Z65: 0 | AB65: 0 | AC65: 0
A66: =IF(AND(INTRO!$E$37="Non endémique",INTRO!$E$41="Non endémique")," ",IF(COUNTRY_INFO!A66=0," ",COUNTRY_INFO!A66)) -> DRC | B66: =IF(AND(INTRO!$E$37="Non endémique",INTRO!$E$41="Non endémique")," ",IF(COUNTRY_INFO!B66=0," ",COUNTRY_INFO!B66)) -> HAUT LOMAMI | C66: =IF(AND(INTRO!$E$37="Non endémique",INTRO!$E$41="Non endémique")," ",IF(COUNTRY_INFO!C66=0," ",COUNTRY_INFO!C66)) -> Butumba | D66: =IF(AND(INTRO!$E$37="Non endémique",INTRO!$E$41="Non endémique"),0,IF(AND(OR(COUNTRY_INFO!$H66=0,COUNTRY_INFO!$H66=4,COUNTRY_INFO!$H66=99),OR(COUNTRY_INFO!$J66=0,COUNTRY_INFO!$J66=4)),0,COUNTRY_INFO!$E66)) -> 39354 | E66: =IF(AND(INTRO!$E$37="Non endémique",INTRO!$E$41="Non endémique"),0,IF(AND(OR(COUNTRY_INFO!$H66=0,COUNTRY_INFO!$H66=4,COUNTRY_INFO!$H66=99),OR(COUNTRY_INFO!$J66=0,COUNTRY_INFO!$J66=4)),0,COUNTRY_INFO!$F66)) -> 81024 | F66: 120378 | G66: =IF(AND(INTRO!$E$37="Non endémique",INTRO!$E$41="Non endémique"),0,COUNTRY_INFO!Q66) -> 0 | H66: =IF(AND(INTRO!$E$37="Non endémique",INTRO!$E$41="Non endémique"),0,COUNTRY_INFO!S66) -> 0 | I66: =IF($G66=1,IVM!$G66,0) -> 0 | M66: =IF($L66="ALB", IF(INTRO!$E$39="Non endémique",IF($H66<>0,$D66*($H66-$G66),0),$D66*$H66), 0) -> 0 | N66: 0 | P66: 0 | Q66: =IF($L66="MBD", IF(INTRO!$E$39="Non endémique",IF($H66<>0,$D66*($H66-$G66),0),$D66*$H66),0) -> 0 | R66: 0 | T66: 0 | V66: 0 | W66: 0 | Y66: 0 | Z66: 0 | AB66: 0 | AC66: 0
A67: =IF(AND(INTRO!$E$37="Non endémique",INTRO!$E$41="Non endémique")," ",IF(COUNTRY_INFO!A67=0," ",COUNTRY_INFO!A67)) -> DRC | B67: =IF(AND(INTRO!$E$37="Non endémique",INTRO!$E$41="Non endémique")," ",IF(COUNTRY_INFO!B67=0," ",COUNTRY_INFO!B67)) -> HAUT LOMAMI | C67: =IF(AND(INTRO!$E$37="Non endémique",INTRO!$E$41="Non endémique")," ",IF(COUNTRY_INFO!C67=0," ",COUNTRY_INFO!C67)) -> Kabondo Dianda | D67: =IF(AND(INTRO!$E$37="Non endémique",INTRO!$E$41="Non endémique"),0,IF(AND(OR(COUNTRY_INFO!$H67=0,COUNTRY_INFO!$H67=4,COUNTRY_INFO!$H67=99),OR(COUNTRY_INFO!$J67=0,COUNTRY_INFO!$J67=4)),0,COUNTRY_INFO!$E67)) -> 48514 | E67: =IF(AND(INTRO!$E$37="Non endémique",INTRO!$E$41="Non endémique"),0,IF(AND(OR(COUNTRY_INFO!$H67=0,COUNTRY_INFO!$H67=4,COUNTRY_INFO!$H67=99),OR(COUNTRY_INFO!$J67=0,COUNTRY_INFO!$J67=4)),0,COUNTRY_INFO!$F67)) -> 99882 | F67: 148396 | G67: =IF(AND(INTRO!$E$37="Non endémique",INTRO!$E$41="Non endémique"),0,COUNTRY_INFO!Q67) -> 0 | H67: =IF(AND(INTRO!$E$37="Non endémique",INTRO!$E$41="Non endémique"),0,COUNTRY_INFO!S67) -> 0 | I67: =IF($G67=1,IVM!$G67,0) -> 0 | M67: =IF($L67="ALB", IF(INTRO!$E$39="Non endémique",IF($H67<>0,$D67*($H67-$G67),0),$D67*$H67), 0) -> 0 | N67: 0 | P67: 0 | Q67: =IF($L67="MBD", IF(INTRO!$E$39="Non endémique",IF($H67<>0,$D67*($H67-$G67),0),$D67*$H67),0) -> 0 | R67: 0 | T67: 0 | V67: 0 | W67: 0 | Y67: 0 | Z67: 0 | AB67: 0 | AC67: 0
A68: =IF(AND(INTRO!$E$37="Non endémique",INTRO!$E$41="Non endémique")," ",IF(COUNTRY_INFO!A68=0," ",COUNTRY_INFO!A68)) -> DRC | B68: =IF(AND(INTRO!$E$37="Non endémique",INTRO!$E$41="Non endémique")," ",IF(COUNTRY_INFO!B68=0," ",COUNTRY_INFO!B68)) -> HAUT LOMAMI | C68: =IF(AND(INTRO!$E$37="Non endémique",INTRO!$E$41="Non endémique")," ",IF(COUNTRY_INFO!C68=0," ",COUNTRY_INFO!C68)) -> Kabongo | D68: =IF(AND(INTRO!$E$37="Non endémique",INTRO!$E$41="Non endémique"),0,IF(AND(OR(COUNTRY_INFO!$H68=0,COUNTRY_INFO!$H68=4,COUNTRY_INFO!$H68=99),OR(COUNTRY_INFO!$J68=0,COUNTRY_INFO!$J68=4)),0,COUNTRY_INFO!$E68)) -> 72601 | E68: =IF(AND(INTRO!$E$37="Non endémique",INTRO!$E$41="Non endémique"),0,IF(AND(OR(COUNTRY_INFO!$H68=0,COUNTRY_INFO!$H68=4,COUNTRY_INFO!$H68=99),OR(COUNTRY_INFO!$J68=0,COUNTRY_INFO!$J68=4)),0,COUNTRY_INFO!$F68)) -> 149473 | F68: 222074 | G68: =IF(AND(INTRO!$E$37="Non endémique",INTRO!$E$41="Non endémique"),0,COUNTRY_INFO!Q68) -> 1 | H68: =IF(AND(INTRO!$E$37="Non endémique",INTRO!$E$41="Non endémique"),0,COUNTRY_INFO!S68) -> 0 | I68: =IF($G68=1,IVM!$G68,0) -> 345923 | M68: =IF($L68="ALB", IF(INTRO!$E$39="Non endémique",IF($H68<>0,$D68*($H68-$G68),0),$D68*$H68), 0) -> 0 | N68: 0 | P68: 0 | Q68: =IF($L68="MBD", IF(INTRO!$E$39="Non endémique",IF($H68<>0,$D68*($H68-$G68),0),$D68*$H68),0) -> 0 | R68: 0 | T68: 0 | V68: 345923 | W68: 1730 | Y68: 0 | Z68: 0 | AB68: 0 | AC68: 0
A69: =IF(AND(INTRO!$E$37="Non endémique",INTRO!$E$41="Non endémique")," ",IF(COUNTRY_INFO!A69=0," ",COUNTRY_INFO!A69)) -> DRC | B69: =IF(AND(INTRO!$E$37="Non endémique",INTRO!$E$41="Non endémique")," ",IF(COUNTRY_INFO!B69=0," ",COUNTRY_INFO!B69)) -> HAUT LOMAMI | C69: =IF(AND(INTRO!$E$37="Non endémique",INTRO!$E$41="Non endémique")," ",IF(COUNTRY_INFO!C69=0," ",COUNTRY_INFO!C69)) -> Kamina | D69: =IF(AND(INTRO!$E$37="Non endémique",INTRO!$E$41="Non endémique"),0,IF(AND(OR(COUNTRY_INFO!$H69=0,COUNTRY_INFO!$H69=4,COUNTRY_INFO!$H69=99),OR(COUNTRY_INFO!$J69=0,COUNTRY_INFO!$J69=4)),0,COUNTRY_INFO!$E69)) -> 58155 | E69: =IF(AND(INTRO!$E$37="Non endémique",INTRO!$E$41="Non endémique"),0,IF(AND(OR(COUNTRY_INFO!$H69=0,COUNTRY_INFO!$H69=4,COUNTRY_INFO!$H69=99),OR(COUNTRY_INFO!$J69=0,COUNTRY_INFO!$J69=4)),0,COUNTRY_INFO!$F69)) -> 119732 | F69: 177887 | G69: =IF(AND(INTRO!$E$37="Non endémique",INTRO!$E$41="Non endémique"),0,COUNTRY_INFO!Q69) -> 0 | H69: =IF(AND(INTRO!$E$37="Non endémique",INTRO!$E$41="Non endémique"),0,COUNTRY_INFO!S69) -> 1 | I69: =IF($G69=1,IVM!$G69,0) -> 0 | L69: ALB | M69: =IF($L69="ALB", IF(INTRO!$E$39="Non endémique",IF($H69<>0,$D69*($H69-$G69),0),$D69*$H69), 0) -> 58155 | N69: 119732 | P69: 177887 | Q69: =IF($L69="MBD", IF(INTRO!$E$39="Non endémique",IF($H69<>0,$D69*($H69-$G69),0),$D69*$H69),0) -> 0 | R69: 0 | T69: 0 | V69: 0 | W69: 0 | Y69: 119732 | Z69: 599 | AB69: 0 | AC69: 0
A70: =IF(AND(INTRO!$E$37="Non endémique",INTRO!$E$41="Non endémique")," ",IF(COUNTRY_INFO!A70=0," ",COUNTRY_INFO!A70)) -> DRC | B70: =IF(AND(INTRO!$E$37="Non endémique",INTRO!$E$41="Non endémique")," ",IF(COUNTRY_INFO!B70=0," ",COUNTRY_INFO!B70)) -> HAUT LOMAMI | C70: =IF(AND(INTRO!$E$37="Non endémique",INTRO!$E$41="Non endémique")," ",IF(COUNTRY_INFO!C70=0," ",COUNTRY_INFO!C70)) -> Kamina Base (Baka) | D70: =IF(AND(INTRO!$E$37="Non endémique",INTRO!$E$41="Non endémique"),0,IF(AND(OR(COUNTRY_INFO!$H70=0,COUNTRY_INFO!$H70=4,COUNTRY_INFO!$H70=99),OR(COUNTRY_INFO!$J70=0,COUNTRY_INFO!$J70=4)),0,COUNTRY_INFO!$E70)) -> 6225 | E70: =IF(AND(INTRO!$E$37="Non endémique",INTRO!$E$41="Non endémique"),0,IF(AND(OR(COUNTRY_INFO!$H70=0,COUNTRY_INFO!$H70=4,COUNTRY_INFO!$H70=99),OR(COUNTRY_INFO!$J70=0,COUNTRY_INFO!$J70=4)),0,COUNTRY_INFO!$F70)) -> 12816 | F70: 19041 | G70: =IF(AND(INTRO!$E$37="Non endémique",INTRO!$E$41="Non endémique"),0,COUNTRY_INFO!Q70) -> 1 | H70: =IF(AND(INTRO!$E$37="Non endémique",INTRO!$E$41="Non endémique"),0,COUNTRY_INFO!S70) -> 0 | I70: =IF($G70=1,IVM!$G70,0) -> 29660 | M70: =IF($L70="ALB", IF(INTRO!$E$39="Non endémique",IF($H70<>0,$D70*($H70-$G70),0),$D70*$H70), 0) -> 0 | N70: 0 | P70: 0 | Q70: =IF($L70="MBD", IF(INTRO!$E$39="Non endémique",IF($H70<>0,$D70*($H70-$G70),0),$D70*$H70),0) -> 0 | R70: 0 | T70: 0 | V70: 29660 | W70: 149 | Y70: 0 | Z70: 0 | AB70: 0 | AC70: 0
A71: =IF(AND(INTRO!$E$37="Non endémique",INTRO!$E$41="Non endémique")," ",IF(COUNTRY_INFO!A71=0," ",COUNTRY_INFO!A71)) -> DRC | B71: =IF(AND(INTRO!$E$37="Non endémique",INTRO!$E$41="Non endémique")," ",IF(COUNTRY_INFO!B71=0," ",COUNTRY_INFO!B71)) -> HAUT LOMAMI | C71: =IF(AND(INTRO!$E$37="Non endémique",INTRO!$E$41="Non endémique")," ",IF(COUNTRY_INFO!C71=0," ",COUNTRY_INFO!C71)) -> Kaniama | D71: =IF(AND(INTRO!$E$37="Non endémique",INTRO!$E$41="Non endémique"),0,IF(AND(OR(COUNTRY_INFO!$H71=0,COUNTRY_INFO!$H71=4,COUNTRY_INFO!$H71=99),OR(COUNTRY_INFO!$J71=0,COUNTRY_INFO!$J71=4)),0,COUNTRY_INFO!$E71)) -> 55843 | E71: =IF(AND(INTRO!$E$37="Non endémique",INTRO!$E$41="Non endémique"),0,IF(AND(OR(COUNTRY_INFO!$H71=0,COUNTRY_INFO!$H71=4,COUNTRY_INFO!$H71=99),OR(COUNTRY_INFO!$J71=0,COUNTRY_INFO!$J71=4)),0,COUNTRY_INFO!$F71)) -> 114972 | F71: 170815 | G71: =IF(AND(INTRO!$E$37="Non endémique",INTRO!$E$41="Non endémique"),0,COUNTRY_INFO!Q71) -> 1 | H71: =IF(AND(INTRO!$E$37="Non endémique",INTRO!$E$41="Non endémique"),0,COUNTRY_INFO!S71) -> 0 | I71: =IF($G71=1,IVM!$G71,0) -> 266078 | M71: =IF($L71="ALB", IF(INTRO!$E$39="Non endémique",IF($H71<>0,$D71*($H71-$G71),0),$D71*$H71), 0) -> 0 | N71: 0 | P71: 0 | Q71: =IF($L71="MBD", IF(INTRO!$E$39="Non endémique",IF($H71<>0,$D71*($H71-$G71),0),$D71*$H71),0) -> 0 | R71: 0 | T71: 0 | V71: 266078 | W71: 1331 | Y71: 0 | Z71: 0 | AB71: 0 | AC71: 0
A72: =IF(AND(INTRO!$E$37="Non endémique",INTRO!$E$41="Non endémique")," ",IF(COUNTRY_INFO!A72=0," ",COUNTRY_INFO!A72)) -> DRC | B72: =IF(AND(INTRO!$E$37="Non endémique",INTRO!$E$41="Non endémique")," ",IF(COUNTRY_INFO!B72=0," ",COUNTRY_INFO!B72)) -> HAUT LOMAMI | C72: =IF(AND(INTRO!$E$37="Non endémique",INTRO!$E$41="Non endémique")," ",IF(COUNTRY_INFO!C72=0," ",COUNTRY_INFO!C72)) -> Kayamba | D72: =IF(AND(INTRO!$E$37="Non endémique",INTRO!$E$41="Non endémique"),0,IF(AND(OR(COUNTRY_INFO!$H72=0,COUNTRY_INFO!$H72=4,COUNTRY_INFO!$H72=99),OR(COUNTRY_INFO!$J72=0,COUNTRY_INFO!$J72=4)),0,COUNTRY_INFO!$E72)) -> 20613 | E72: =IF(AND(INTRO!$E$37="Non endémique",INTRO!$E$41="Non endémique"),0,IF(AND(OR(COUNTRY_INFO!$H72=0,COUNTRY_INFO!$H72=4,COUNTRY_INFO!$H72=99),OR(COUNTRY_INFO!$J72=0,COUNTRY_INFO!$J72=4)),0,COUNTRY_INFO!$F72)) -> 42438 | F72: 63051 | G72: =IF(AND(INTRO!$E$37="Non endémique",INTRO!$E$41="Non endémique"),0,COUNTRY_INFO!Q72) -> 1 | H72: =IF(AND(INTRO!$E$37="Non endémique",INTRO!$E$41="Non endémique"),0,COUNTRY_INFO!S72) -> 0 | I72: =IF($G72=1,IVM!$G72,0) -> 98214 | M72: =IF($L72="ALB", IF(INTRO!$E$39="Non endémique",IF($H72<>0,$D72*($H72-$G72),0),$D72*$H72), 0) -> 0 | N72: 0 | P72: 0 | Q72: =IF($L72="MBD", IF(INTRO!$E$39="Non endémique",IF($H72<>0,$D72*($H72-$G72),0),$D72*$H72),0) -> 0 | R72: 0 | T72: 0 | V72: 98214 | W72: 492 | Y72: 0 | Z72: 0 | AB72: 0 | AC72: 0
A73: =IF(AND(INTRO!$E$37="Non endémique",INTRO!$E$41="Non endémique")," ",IF(COUNTRY_INFO!A73=0," ",COUNTRY_INFO!A73)) -> DRC | B73: =IF(AND(INTRO!$E$37="Non endémique",INTRO!$E$41="Non endémique")," ",IF(COUNTRY_INFO!B73=0," ",COUNTRY_INFO!B73)) -> HAUT LOMAMI | C73: =IF(AND(INTRO!$E$37="Non endémique",INTRO!$E$41="Non endémique")," ",IF(COUNTRY_INFO!C73=0," ",COUNTRY_INFO!C73)) -> Kinda | D73: =IF(AND(INTRO!$E$37="Non endémique",INTRO!$E$41="Non endémique"),0,IF(AND(OR(COUNTRY_INFO!$H73=0,COUNTRY_INFO!$H73=4,COUNTRY_INFO!$H73=99),OR(COUNTRY_INFO!$J73=0,COUNTRY_INFO!$J73=4)),0,COUNTRY_INFO!$E73)) -> 17967 | E73: =IF(AND(INTRO!$E$37="Non endémique",INTRO!$E$41="Non endémique"),0,IF(AND(OR(COUNTRY_INFO!$H73=0,COUNTRY_INFO!$H73=4,COUNTRY_INFO!$H73=99),OR(COUNTRY_INFO!$J73=0,COUNTRY_INFO!$J73=4)),0,COUNTRY_INFO!$F73)) -> 36991 | F73: =SUM(D73:E73) -> 54958 | G73: =IF(AND(INTRO!$E$37="Non endémique",INTRO!$E$41="Non endémique"),0,COUNTRY_INFO!Q73) -> 0 | H73: =IF(AND(INTRO!$E$37="Non endémique",INTRO!$E$41="Non endémique"),0,COUNTRY_INFO!S73) -> 0 | I73: =IF($G73=1,IVM!$G73,0) -> 0 | M73: =IF($L73="ALB", IF(INTRO!$E$39="Non endémique",IF($H73<>0,$D73*($H73-$G73),0),$D73*$H73), 0) -> 0 | N73: =IF($L73="ALB", IF($H73=0, 0, IF(AND($I73=0, OR($J73=0,$J73=" ")), $E73*$H73, IF(AND($I73=0, $J73>0), IF(($H73-$K73)<=0, 0, $E73*(MAX($H73,$K73)-MIN($H73,$K73))), IF(AND($I73>0, $J73=0), $E73*($H73-$G73), IF($J73=" ", $E73*($H73-$G73), $J73*$E73/($I73+$J73)*$K73+$I73*$E73/($I73+$J73)*($H73-$G73)))))), 0) -> 0 | P73: =SUM(M73:O73) -> 0 | Q73: =IF($L73="MBD", IF(INTRO!$E$39="Non endémique",IF($H73<>0,$D73*($H73-$G73),0),$D73*$H73),0) -> 0 | R73: =IF($L73="MBD", IF($H73=0, 0, IF(AND($I73=0, OR($J73=0,$J73=" ")), $E73*$H73, IF(AND($I73=0, $J73>0), IF(($H73-$K73)<=0, 0, $E73*(MAX($H73,$K73)-MIN($H73,$K73))), IF(AND($I73>0, $J73=0), $E73*($H73-$G73), IF($J73=" ", $E73*($H73-$G73), $J73*$E73/($I73+$J73)*$K73+$I73*$E73/($I73+$J73)*($H73-$G73)))))), 0) -> 0 | T73: =SUM(Q73:S73) -> 0 | V73: =IF($J73<>" ", IF(($I73+$J73*$K73)>$U73, ($I73+$J73*$K73)-$U73,0), IF($I73>$U73, $I73-$U73, 0)) -> 0 | W73: =IF($J73<>" ", ROUNDUP(($I73+$J73*$K73)/200,0), ROUNDUP($I73/200,0)) -> 0 | Y73: =IF($N73>$X73,$N73-$X73,0) -> 0 | Z73: =ROUNDUP($N73/200,0) -> 0 | AB73: =IF($R73>$AA73,$R73-$AA73,0) -> 0 | AC73: =ROUNDUP($R73/150,0) -> 0
A74: =IF(AND(INTRO!$E$37="Non endémique",INTRO!$E$41="Non endémique")," ",IF(COUNTRY_INFO!A74=0," ",COUNTRY_INFO!A74)) -> DRC | B74: =IF(AND(INTRO!$E$37="Non endémique",INTRO!$E$41="Non endémique")," ",IF(COUNTRY_INFO!B74=0," ",COUNTRY_INFO!B74)) -> HAUT LOMAMI | C74: =IF(AND(INTRO!$E$37="Non endémique",INTRO!$E$41="Non endémique")," ",IF(COUNTRY_INFO!C74=0," ",COUNTRY_INFO!C74)) -> Kinkonja | D74: =IF(AND(INTRO!$E$37="Non endémique",INTRO!$E$41="Non endémique"),0,IF(AND(OR(COUNTRY_INFO!$H74=0,COUNTRY_INFO!$H74=4,COUNTRY_INFO!$H74=99),OR(COUNTRY_INFO!$J74=0,COUNTRY_INFO!$J74=4)),0,COUNTRY_INFO!$E74)) -> 50409 | E74: =IF(AND(INTRO!$E$37="Non endémique",INTRO!$E$41="Non endémique"),0,IF(AND(OR(COUNTRY_INFO!$H74=0,COUNTRY_INFO!$H74=4,COUNTRY_INFO!$H74=99),OR(COUNTRY_INFO!$J74=0,COUNTRY_INFO!$J74=4)),0,COUNTRY_INFO!$F74)) -> 103782 | F74: 154191 | G74: =IF(AND(INTRO!$E$37="Non endémique",INTRO!$E$41="Non endémique"),0,COUNTRY_INFO!Q74) -> 0 | H74: =IF(AND(INTRO!$E$37="Non endémique",INTRO!$E$41="Non endémique"),0,COUNTRY_INFO!S74) -> 0 | I74: =IF($G74=1,IVM!$G74,0) -> 0 | M74: =IF($L74="ALB", IF(INTRO!$E$39="Non endémique",IF($H74<>0,$D74*($H74-$G74),0),$D74*$H74), 0) -> 0 | N74: 0 | P74: 0 | Q74: =IF($L74="MBD", IF(INTRO!$E$39="Non endémique",IF($H74<>0,$D74*($H74-$G74),0),$D74*$H74),0) -> 0 | R74: 0 | T74: 0 | V74: 0 | W74: 0 | Y74: 0 | Z74: 0 | AB74: 0 | AC74: 0
A75: =IF(AND(INTRO!$E$37="Non endémique",INTRO!$E$41="Non endémique")," ",IF(COUNTRY_INFO!A75=0," ",COUNTRY_INFO!A75)) -> DRC | B75: =IF(AND(INTRO!$E$37="Non endémique",INTRO!$E$41="Non endémique")," ",IF(COUNTRY_INFO!B75=0," ",COUNTRY_INFO!B75)) -> HAUT LOMAMI | C75: =IF(AND(INTRO!$E$37="Non endémique",INTRO!$E$41="Non endémique")," ",IF(COUNTRY_INFO!C75=0," ",COUNTRY_INFO!C75)) -> Kitenge | D75: =IF(AND(INTRO!$E$37="Non endémique",INTRO!$E$41="Non endémique"),0,IF(AND(OR(COUNTRY_INFO!$H75=0,COUNTRY_INFO!$H75=4,COUNTRY_INFO!$H75=99),OR(COUNTRY_INFO!$J75=0,COUNTRY_INFO!$J75=4)),0,COUNTRY_INFO!$E75)) -> 55783 | E75: =IF(AND(INTRO!$E$37="Non endémique",INTRO!$E$41="Non endémique"),0,IF(AND(OR(COUNTRY_INFO!$H75=0,COUNTRY_INFO!$H75=4,COUNTRY_INFO!$H75=99),OR(COUNTRY_INFO!$J75=0,COUNTRY_INFO!$J75=4)),0,COUNTRY_INFO!$F75)) -> 114848 | F75: 170631 | G75: =IF(AND(INTRO!$E$37="Non endémique",INTRO!$E$41="Non endémique"),0,COUNTRY_INFO!Q75) -> 0 | H75: =IF(AND(INTRO!$E$37="Non endémique",INTRO!$E$41="Non endémique"),0,COUNTRY_INFO!S75) -> 0 | I75: =IF($G75=1,IVM!$G75,0) -> 0 | M75: =IF($L75="ALB", IF(INTRO!$E$39="Non endémique",IF($H75<>0,$D75*($H75-$G75),0),$D75*$H75), 0) -> 0 | N75: 0 | P75: 0 | Q75: =IF($L75="MBD", IF(INTRO!$E$39="Non endémique",IF($H75<>0,$D75*($H75-$G75),0),$D75*$H75),0) -> 0 | R75: 0 | T75: 0 | V75: 0 | W75: 0 | Y75: 0 | Z75: 0 | AB75: 0 | AC75: 0
